Workbook

Sheet AllModes
A1: Read instructions! | B1: Inches | C1: sea level, 70˚F | D1: Feet | E1: All Modes | R1: BANDWIDTH
A2: Length = | B2: 252.4 | C2: Lx = | D2: =+B2/12 -> 21.03333333 | E2: nx | F2: ny | G2: nz | H2: f | I2: Type | J2: Weight | K2: SPACING | L2: Δf | M2: Octave Band | N2: Δmax | O2: Δavg | P2: Δ² | Q2: 1/3 Octave Band | R2: low | S2: center | T2: hi | U2: # of modes
A3: Width = | B3: 188.6 | C3: Ly = | D3: =+B3/12 -> 15.71666667 | E3: 1 | F3: 0 | G3: 0 | H3: =$D$5*SQRT((($E3/$D$2)^2)+(($F3/$D$3)^2)+(($G3/$D$4)^2)) -> 26.82551506 | I3: =+IF(+AND(E3=0,F3=0)+OR(+AND(E3=0,G3=0))+OR(+AND(F3=0,G3=0)),"Axial",(+IF(+OR(E3=0,F3=0,G3=0),"Tangential","Oblique"))) -> Axial | J3: =IF(I3="Axial",1,IF(I3="Tangential",0.5,IF(I3="Oblique",0.25,""))) -> 1 | L3: - | M3: =IF(H3<17.8,1,IF(H3<=22.4,2,IF(H3<=28.2,3,IF(H3<=35.5,4,IF(H3<=44.7,5,IF(H3<=56.2,6,IF(H3<=70.8,7,IF(H3<=89.1,8,IF(H3<=112,9,IF(H3<=141,10,IF(H3<=178,11,IF(H3<=224,12,IF(H3<=282,13,IF(H3<=355,14,IF(H3<=447,15,IF(H3<=562,16,IF(H3<=708,17,IF(H3<=891,18,IF(H3<=1122,19,IF(H3<=1413,20,IF(H3<=1778,21,IF(H3<=2239,22,IF(H3<=2818,23,IF(H3<=3548,24,IF(H3<=4467,25,IF(H3<=5623,26,IF(H3<=7079,27,IF(H3<=8913,28,IF(H3<=11220,29,IF(H3<=14130,30,IF(H3<=17780,31,IF(H3<=22390,32,)))))))))))))))))))))))))))))))) -> 3 | Q3: 1 | R3: 14.1 | S3: 16 | T3: 17.8 | U3: =COUNTIF($M$3:$M$1001,Q3) -> 0 | V3: =IF((U3)<5,"INACCURATE","CAN TEST") -> INACCURATE
A4: Height = | B4: 132.7 | C4: Lz = | D4: =+B4/12 -> 11.05833333 | E4: 0 | F4: 1 | G4: 0 | H4: =$D$5*SQRT((($E4/$D$2)^2)+(($F4/$D$3)^2)+(($G4/$D$4)^2)) -> 35.90010604 | I4: =+IF(+AND(E4=0,F4=0)+OR(+AND(E4=0,G4=0))+OR(+AND(F4=0,G4=0)),"Axial",(+IF(+OR(E4=0,F4=0,G4=0),"Tangential","Oblique"))) -> Axial | J4: =IF(I4="Axial",1,IF(I4="Tangential",0.5,IF(I4="Oblique",0.25,""))) -> 1 | K4: =IF((H4-H3)<1,"RED","OK") -> OK | L4: =H4-H3 -> 9.074590989 | M4: =IF(H4<17.8,1,IF(H4<=22.4,2,IF(H4<=28.2,3,IF(H4<=35.5,4,IF(H4<=44.7,5,IF(H4<=56.2,6,IF(H4<=70.8,7,IF(H4<=89.1,8,IF(H4<=112,9,IF(H4<=141,10,IF(H4<=178,11,IF(H4<=224,12,IF(H4<=282,13,IF(H4<=355,14,IF(H4<=447,15,IF(H4<=562,16,IF(H4<=708,17,IF(H4<=891,18,IF(H4<=1122,19,IF(H4<=1413,20,IF(H4<=1778,21,IF(H4<=2239,22,IF(H4<=2818,23,IF(H4<=3548,24,IF(H4<=4467,25,IF(H4<=5623,26,IF(H4<=7079,27,IF(H4<=8913,28,IF(H4<=11220,29,IF(H4<=14130,30,IF(H4<=17780,31,IF(H4<=22390,32,)))))))))))))))))))))))))))))))) -> 5 | Q4: =Q3+1 -> 2 | R4: 17.8 | S4: 20 | T4: 22.4 | U4: =COUNTIF($M$3:$M$1001,Q4) -> 0 | V4: =IF((U4)<5,"INACCURATE","CAN TEST") -> INACCURATE
A5: Calculate Inches here | C5: c/2 = | D5: =1128.46/2 -> 564.23 | E5: 1 | F5: 1 | G5: 0 | H5: =$D$5*SQRT((($E5/$D$2)^2)+(($F5/$D$3)^2)+(($G5/$D$4)^2)) -> 44.81546465 | I5: =+IF(+AND(E5=0,F5=0)+OR(+AND(E5=0,G5=0))+OR(+AND(F5=0,G5=0)),"Axial",(+IF(+OR(E5=0,F5=0,G5=0),"Tangential","Oblique"))) -> Tangential | J5: 0.5 | K5: =IF((H5-H4)<1,"RED","OK") -> OK | L5: =H5-H4 -> 8.915358608 | M5: 6 | P5: =O5*N5 -> 0 | Q5: 3 | R5: 22.4 | S5: 25 | T5: 28.2 | U5: 1 | V5: INACCURATE
A6: 20 | B6: =A6*12 -> 240 | C6: =IF(D7>1500,"PERFECT","TOO SMALL") -> PERFECT | D6: VOLUME | E6: 0 | F6: 0 | G6: 1 | H6: =$D$5*SQRT((($E6/$D$2)^2)+(($F6/$D$3)^2)+(($G6/$D$4)^2)) -> 51.02305953 | I6: =+IF(+AND(E6=0,F6=0)+OR(+AND(E6=0,G6=0))+OR(+AND(F6=0,G6=0)),"Axial",(+IF(+OR(E6=0,F6=0,G6=0),"Tangential","Oblique"))) -> Axial | J6: 1 | K6: OK | L6: 6.20759488 | M6: 6 | P6: 0 | Q6: 4 | R6: 28.2 | S6: 31.5 | T6: 35.5 | U6: 0 | V6: INACCURATE
A7: 12 | B7: =A7*12 -> 144 | C7: V = | D7: =+D2*D3*D4 -> 3655.596255 | E7: 2 | F7: 0 | G7: 0 | H7: =$D$5*SQRT((($E7/$D$2)^2)+(($F7/$D$3)^2)+(($G7/$D$4)^2)) -> 53.65103011 | I7: =+IF(+AND(E7=0,F7=0)+OR(+AND(E7=0,G7=0))+OR(+AND(F7=0,G7=0)),"Axial",(+IF(+OR(E7=0,F7=0,G7=0),"Tangential","Oblique"))) -> Axial | J7: 1 | K7: OK | L7: 2.627970578 | M7: 6 | P7: 0 | Q7: 5 | R7: 35.5 | S7: 40 | T7: 44.7 | U7: 1 | V7: INACCURATE
A8: 7.5 | B8: =A8*12 -> 90 | C8: V = | D8: =0.028316846592*D7 -> 103.5149583 | E8: 1 | F8: 0 | G8: 1 | H8: =$D$5*SQRT((($E8/$D$2)^2)+(($F8/$D$3)^2)+(($G8/$D$4)^2)) -> 57.64512869 | I8: =+IF(+AND(E8=0,F8=0)+OR(+AND(E8=0,G8=0))+OR(+AND(F8=0,G8=0)),"Axial",(+IF(+OR(E8=0,F8=0,G8=0),"Tangential","Oblique"))) -> Tangential | J8: 0.5 | K8: OK | L8: 3.994098582 | M8: 7 | P8: 0 | Q8: 6 | R8: 44.7 | S8: 50 | T8: 56.2 | U8: 3 | V8: INACCURATE
A9: If you found this spreadsheet helpful, please send a donation via PayPal to erika@jhbrandt.net | E9: 0 | F9: 1 | G9: 1 | H9: =$D$5*SQRT((($E9/$D$2)^2)+(($F9/$D$3)^2)+(($G9/$D$4)^2)) -> 62.38726006 | I9: =+IF(+AND(E9=0,F9=0)+OR(+AND(E9=0,G9=0))+OR(+AND(F9=0,G9=0)),"Axial",(+IF(+OR(E9=0,F9=0,G9=0),"Tangential","Oblique"))) -> Tangential | J9: 0.5 | K9: OK | L9: 4.742131369 | M9: 7 | P9: 0 | Q9: 7 | R9: 56.2 | S9: 63 | T9: 70.8 | U9: 4 | V9: INACCURATE
E10: 2 | F10: 1 | G10: 0 | H10: =$D$5*SQRT((($E10/$D$2)^2)+(($F10/$D$3)^2)+(($G10/$D$4)^2)) -> 64.55424576 | I10: =+IF(+AND(E10=0,F10=0)+OR(+AND(E10=0,G10=0))+OR(+AND(F10=0,G10=0)),"Axial",(+IF(+OR(E10=0,F10=0,G10=0),"Tangential","Oblique"))) -> Tangential | J10: 0.5 | K10: OK | L10: 2.1669857 | M10: 7 | P10: 0 | Q10: 8 | R10: 70.8 | S10: 80 | T10: 89.1 | U10: =COUNTIF($M$3:$M$1001,Q10) -> 7 | V10: CAN TEST
E11: 1 | F11: 1 | G11: 1 | H11: =$D$5*SQRT((($E11/$D$2)^2)+(($F11/$D$3)^2)+(($G11/$D$4)^2)) -> 67.9100764 | I11: =+IF(+AND(E11=0,F11=0)+OR(+AND(E11=0,G11=0))+OR(+AND(F11=0,G11=0)),"Axial",(+IF(+OR(E11=0,F11=0,G11=0),"Tangential","Oblique"))) -> Oblique | J11: 0.25 | K11: OK | L11: 3.355830633 | M11: 7 | P11: 0 | Q11: 9 | R11: 89.1 | S11: 100 | T11: 112 | U11: 13 | V11: CAN TEST
A12: Floor/ceiling area | B12: =(B2/12)*(B3/12) -> 330.5738889 | E12: 0 | F12: 2 | G12: 0 | H12: =$D$5*SQRT((($E12/$D$2)^2)+(($F12/$D$3)^2)+(($G12/$D$4)^2)) -> 71.80021209 | I12: =+IF(+AND(E12=0,F12=0)+OR(+AND(E12=0,G12=0))+OR(+AND(F12=0,G12=0)),"Axial",(+IF(+OR(E12=0,F12=0,G12=0),"Tangential","Oblique"))) -> Axial | J12: 1 | K12: OK | L12: 3.890135693 | M12: 8 | P12: 0 | Q12: 10 | R12: 112 | S12: 125 | T12: 141 | U12: 20 | V12: CAN TEST
A13: Wall f & b area | B13: =(B3/12)*(B4/12) -> 173.8001389 | E13: 2 | F13: 0 | G13: 1 | H13: =$D$5*SQRT((($E13/$D$2)^2)+(($F13/$D$3)^2)+(($G13/$D$4)^2)) -> 74.03908182 | I13: =+IF(+AND(E13=0,F13=0)+OR(+AND(E13=0,G13=0))+OR(+AND(F13=0,G13=0)),"Axial",(+IF(+OR(E13=0,F13=0,G13=0),"Tangential","Oblique"))) -> Tangential | J13: 0.5 | K13: OK | L13: 2.238869726 | M13: 8 | P13: 0 | Q13: 11 | R13: 141 | S13: 160 | T13: 178 | U13: 43 | V13: CAN TEST
A14: Wall side area | B14: =(B2/12)*(B4/12) -> 232.5936111 | D14: Position % | E14: 1 | F14: 2 | G14: 0 | H14: =$D$5*SQRT((($E14/$D$2)^2)+(($F14/$D$3)^2)+(($G14/$D$4)^2)) -> 76.6477574 | I14: =+IF(+AND(E14=0,F14=0)+OR(+AND(E14=0,G14=0))+OR(+AND(F14=0,G14=0)),"Axial",(+IF(+OR(E14=0,F14=0,G14=0),"Tangential","Oblique"))) -> Tangential | J14: 0.5 | K14: OK | L14: 2.608675582 | M14: 8 | P14: 0 | Q14: 12 | R14: 178 | S14: 200 | T14: 224 | U14: 82 | V14: CAN TEST
A15: Ideal Mix position | B15: =B2*D15 -> 94.65 | C15: to front wall | D15: =3/8 -> 0.375 | E15: 3 | F15: 0 | G15: 0 | H15: =$D$5*SQRT((($E15/$D$2)^2)+(($F15/$D$3)^2)+(($G15/$D$4)^2)) -> 80.47654517 | I15: =+IF(+AND(E15=0,F15=0)+OR(+AND(E15=0,G15=0))+OR(+AND(F15=0,G15=0)),"Axial",(+IF(+OR(E15=0,F15=0,G15=0),"Tangential","Oblique"))) -> Axial | J15: 1 | K15: OK | L15: 3.828787769 | M15: 8 | P15: 0 | Q15: 13 | R15: 224 | S15: 250 | T15: 282 | U15: 137 | V15: CAN TEST
E16: 2 | F16: 1 | G16: 1 | H16: =$D$5*SQRT((($E16/$D$2)^2)+(($F16/$D$3)^2)+(($G16/$D$4)^2)) -> 82.28367548 | I16: =+IF(+AND(E16=0,F16=0)+OR(+AND(E16=0,G16=0))+OR(+AND(F16=0,G16=0)),"Axial",(+IF(+OR(E16=0,F16=0,G16=0),"Tangential","Oblique"))) -> Oblique | J16: 0.25 | K16: OK | L16: 1.807130311 | M16: 8 | P16: 0 | Q16: 14 | R16: 282 | S16: 315 | T16: 355 | U16: 215 | V16: CAN TEST
E17: 0 | F17: 2 | G17: 1 | H17: =$D$5*SQRT((($E17/$D$2)^2)+(($F17/$D$3)^2)+(($G17/$D$4)^2)) -> 88.08304638 | I17: =+IF(+AND(E17=0,F17=0)+OR(+AND(E17=0,G17=0))+OR(+AND(F17=0,G17=0)),"Axial",(+IF(+OR(E17=0,F17=0,G17=0),"Tangential","Oblique"))) -> Tangential | J17: 0.5 | K17: OK | L17: 5.799370906 | M17: 8 | P17: 0 | Q17: 15 | R17: 355 | S17: 400 | T17: 447 | U17: 255 | V17: CAN TEST
A18: see the Ideal Rooms tab | E18: 3 | F18: 1 | G18: 0 | H18: =$D$5*SQRT((($E18/$D$2)^2)+(($F18/$D$3)^2)+(($G18/$D$4)^2)) -> 88.12089387 | I18: =+IF(+AND(E18=0,F18=0)+OR(+AND(E18=0,G18=0))+OR(+AND(F18=0,G18=0)),"Axial",(+IF(+OR(E18=0,F18=0,G18=0),"Tangential","Oblique"))) -> Tangential | J18: 0.5 | K18: RED | L18: 0.03784748399 | M18: 8 | P18: 0 | Q18: 16 | R18: 447 | S18: 500 | T18: 562 | U18: 201 | V18: CAN TEST
B19: Height | C19: Width | D19: Length | E19: 2 | F19: 2 | G19: 0 | H19: =$D$5*SQRT((($E19/$D$2)^2)+(($F19/$D$3)^2)+(($G19/$D$4)^2)) -> 89.6309293 | I19: =+IF(+AND(E19=0,F19=0)+OR(+AND(E19=0,G19=0))+OR(+AND(F19=0,G19=0)),"Axial",(+IF(+OR(E19=0,F19=0,G19=0),"Tangential","Oblique"))) -> Tangential | J19: 0.5 | K19: OK | L19: 1.510035438 | M19: 9 | Q19: 17 | R19: 562 | S19: 630 | T19: 708
A20: Ratio: | B20: 1 | C20: =B3/B4 -> 1.421250942 | D20: =B2/B4 -> 1.902034665 | E20: 1 | F20: 2 | G20: 1 | H20: =$D$5*SQRT((($E20/$D$2)^2)+(($F20/$D$3)^2)+(($G20/$D$4)^2)) -> 92.07731164 | I20: =+IF(+AND(E20=0,F20=0)+OR(+AND(E20=0,G20=0))+OR(+AND(F20=0,G20=0)),"Axial",(+IF(+OR(E20=0,F20=0,G20=0),"Tangential","Oblique"))) -> Oblique | J20: 0.25 | K20: OK | L20: 2.446382331 | M20: 9 | Q20: 18 | R20: 708 | S20: 800 | T20: 891
E21: 3 | F21: 0 | G21: 1 | H21: =$D$5*SQRT((($E21/$D$2)^2)+(($F21/$D$3)^2)+(($G21/$D$4)^2)) -> 95.28812584 | I21: =+IF(+AND(E21=0,F21=0)+OR(+AND(E21=0,G21=0))+OR(+AND(F21=0,G21=0)),"Axial",(+IF(+OR(E21=0,F21=0,G21=0),"Tangential","Oblique"))) -> Tangential | J21: 0.5 | K21: OK | L21: 3.210814204 | M21: 9 | Q21: 19 | R21: 891 | S21: 1000 | T21: 1122
A22: INSTRUCTIONS: | E22: 3 | F22: 1 | G22: 1 | H22: =$D$5*SQRT((($E22/$D$2)^2)+(($F22/$D$3)^2)+(($G22/$D$4)^2)) -> 101.8265414 | I22: =+IF(+AND(E22=0,F22=0)+OR(+AND(E22=0,G22=0))+OR(+AND(F22=0,G22=0)),"Axial",(+IF(+OR(E22=0,F22=0,G22=0),"Tangential","Oblique"))) -> Oblique | J22: 0.25 | K22: OK | L22: 6.538415593 | M22: 9 | Q22: 20 | R22: 1122 | S22: 1250 | T22: 1413
A23: 1. Enter Dimensions in Yellow Area (inches). | E23: 0 | F23: 0 | G23: 2 | H23: =$D$5*SQRT((($E23/$D$2)^2)+(($F23/$D$3)^2)+(($G23/$D$4)^2)) -> 102.0461191 | I23: =+IF(+AND(E23=0,F23=0)+OR(+AND(E23=0,G23=0))+OR(+AND(F23=0,G23=0)),"Axial",(+IF(+OR(E23=0,F23=0,G23=0),"Tangential","Oblique"))) -> Axial | J23: 1 | K23: RED | L23: 0.2195776335 | M23: 9 | Q23: 21 | R23: 1413 | S23: 1600 | T23: 1778
A24: 2. Press Ctrl+Shift+S to Sort. | E24: 2 | F24: 2 | G24: 1 | H24: =$D$5*SQRT((($E24/$D$2)^2)+(($F24/$D$3)^2)+(($G24/$D$4)^2)) -> 103.1361047 | I24: =+IF(+AND(E24=0,F24=0)+OR(+AND(E24=0,G24=0))+OR(+AND(F24=0,G24=0)),"Axial",(+IF(+OR(E24=0,F24=0,G24=0),"Tangential","Oblique"))) -> Oblique | J24: 0.25 | K24: OK | L24: 1.089985632 | M24: 9 | Q24: 22 | R24: 1778 | S24: 2000 | T24: 2239
A25: 3. Press Ctrl+Shift+C to Copy Mode Strength Data. | E25: 1 | F25: 0 | G25: 2 | H25: =$D$5*SQRT((($E25/$D$2)^2)+(($F25/$D$3)^2)+(($G25/$D$4)^2)) -> 105.5131209 | I25: =+IF(+AND(E25=0,F25=0)+OR(+AND(E25=0,G25=0))+OR(+AND(F25=0,G25=0)),"Axial",(+IF(+OR(E25=0,F25=0,G25=0),"Tangential","Oblique"))) -> Tangential | J25: 0.5 | K25: OK | L25: 2.377016166 | M25: 9 | Q25: 23 | R25: 2239 | S25: 2500 | T25: 2818
E26: 4 | F26: 0 | G26: 0 | H26: =$D$5*SQRT((($E26/$D$2)^2)+(($F26/$D$3)^2)+(($G26/$D$4)^2)) -> 107.3020602 | I26: =+IF(+AND(E26=0,F26=0)+OR(+AND(E26=0,G26=0))+OR(+AND(F26=0,G26=0)),"Axial",(+IF(+OR(E26=0,F26=0,G26=0),"Tangential","Oblique"))) -> Axial | J26: 1 | K26: OK | L26: 1.788939358 | M26: 9 | Q26: 24 | R26: 2818 | S26: 3150 | T26: 3548
A27: Analysis Note for Bonello Graph: | E27: 0 | F27: 3 | G27: 0 | H27: =$D$5*SQRT((($E27/$D$2)^2)+(($F27/$D$3)^2)+(($G27/$D$4)^2)) -> 107.7003181 | I27: =+IF(+AND(E27=0,F27=0)+OR(+AND(E27=0,G27=0))+OR(+AND(F27=0,G27=0)),"Axial",(+IF(+OR(E27=0,F27=0,G27=0),"Tangential","Oblique"))) -> Axial | J27: 1 | K27: RED | L27: 0.3982579117 | M27: 9 | Q27: 25 | R27: 3548 | S27: 4000 | T27: 4467
A28: If the "Ideal" bar (red) in any 1/3 Octave exceeds the "Actual" bar (blue) in the same 1/3 octave, the room is "non-ideal". If this is the case, alternate room dimensions are usually the best course of action. Since in many cases altering the room dimensions is not doable, bass traps should be considered. Consider each of the following when recommending bass traps: | E28: 3 | F28: 2 | G28: 0 | H28: =$D$5*SQRT((($E28/$D$2)^2)+(($F28/$D$3)^2)+(($G28/$D$4)^2)) -> 107.8505669 | I28: =+IF(+AND(E28=0,F28=0)+OR(+AND(E28=0,G28=0))+OR(+AND(F28=0,G28=0)),"Axial",(+IF(+OR(E28=0,F28=0,G28=0),"Tangential","Oblique"))) -> Tangential | J28: 0.5 | K28: RED | L28: 0.1502487539 | M28: 9 | Q28: 26 | R28: 4467 | S28: 5000 | T28: 5623
E29: 0 | F29: 1 | G29: 2 | H29: =$D$5*SQRT((($E29/$D$2)^2)+(($F29/$D$3)^2)+(($G29/$D$4)^2)) -> 108.1768368 | I29: =+IF(+AND(E29=0,F29=0)+OR(+AND(E29=0,G29=0))+OR(+AND(F29=0,G29=0)),"Axial",(+IF(+OR(E29=0,F29=0,G29=0),"Tangential","Oblique"))) -> Tangential | J29: 0.5 | K29: RED | L29: 0.3262699601 | M29: 9 | Q29: 27 | R29: 5623 | S29: 6300 | T29: 7079
E30: 1 | F30: 3 | G30: 0 | H30: =$D$5*SQRT((($E30/$D$2)^2)+(($F30/$D$3)^2)+(($G30/$D$4)^2)) -> 110.990841 | I30: =+IF(+AND(E30=0,F30=0)+OR(+AND(E30=0,G30=0))+OR(+AND(F30=0,G30=0)),"Axial",(+IF(+OR(E30=0,F30=0,G30=0),"Tangential","Oblique"))) -> Tangential | J30: 0.5 | K30: OK | L30: 2.814004144 | M30: 9 | Q30: 28 | R30: 7079 | S30: 8000 | T30: 8913
E31: 1 | F31: 1 | G31: 2 | H31: =$D$5*SQRT((($E31/$D$2)^2)+(($F31/$D$3)^2)+(($G31/$D$4)^2)) -> 111.453292 | I31: =+IF(+AND(E31=0,F31=0)+OR(+AND(E31=0,G31=0))+OR(+AND(F31=0,G31=0)),"Axial",(+IF(+OR(E31=0,F31=0,G31=0),"Tangential","Oblique"))) -> Oblique | J31: 0.25 | K31: RED | L31: 0.4624509665 | M31: 9 | Q31: 29 | R31: 8913 | S31: 10000 | T31: 11220
E32: 4 | F32: 1 | G32: 0 | H32: =$D$5*SQRT((($E32/$D$2)^2)+(($F32/$D$3)^2)+(($G32/$D$4)^2)) -> 113.1483528 | I32: =+IF(+AND(E32=0,F32=0)+OR(+AND(E32=0,G32=0))+OR(+AND(F32=0,G32=0)),"Axial",(+IF(+OR(E32=0,F32=0,G32=0),"Tangential","Oblique"))) -> Tangential | J32: 0.5 | K32: OK | L32: 1.695060844 | M32: 10 | Q32: 30 | R32: 11220 | S32: 12500 | T32: 14130
E33: 2 | F33: 0 | G33: 2 | H33: =$D$5*SQRT((($E33/$D$2)^2)+(($F33/$D$3)^2)+(($G33/$D$4)^2)) -> 115.2902574 | I33: =+IF(+AND(E33=0,F33=0)+OR(+AND(E33=0,G33=0))+OR(+AND(F33=0,G33=0)),"Axial",(+IF(+OR(E33=0,F33=0,G33=0),"Tangential","Oblique"))) -> Tangential | J33: 0.5 | K33: OK | L33: 2.141904584 | M33: 10 | Q33: 31 | R33: 14130 | S33: 16000 | T33: 17780
E34: 4 | F34: 0 | G34: 1 | H34: =$D$5*SQRT((($E34/$D$2)^2)+(($F34/$D$3)^2)+(($G34/$D$4)^2)) -> 118.8153388 | I34: =+IF(+AND(E34=0,F34=0)+OR(+AND(E34=0,G34=0))+OR(+AND(F34=0,G34=0)),"Axial",(+IF(+OR(E34=0,F34=0,G34=0),"Tangential","Oblique"))) -> Tangential | J34: 0.5 | K34: OK | L34: 3.525081404 | M34: 10 | Q34: 32 | R34: 17780 | S34: 20000 | T34: 22390
A35: (a) For tangential modes above 80 Hz and axial modes above 100 Hz, corner traps should be used in each vertical corner as much as possible. | E35: 0 | F35: 3 | G35: 1 | H35: =$D$5*SQRT((($E35/$D$2)^2)+(($F35/$D$3)^2)+(($G35/$D$4)^2)) -> 119.175128 | I35: =+IF(+AND(E35=0,F35=0)+OR(+AND(E35=0,G35=0))+OR(+AND(F35=0,G35=0)),"Axial",(+IF(+OR(E35=0,F35=0,G35=0),"Tangential","Oblique"))) -> Tangential | J35: 0.5 | K35: RED | L35: 0.359789194 | M35: 10
E36: 3 | F36: 2 | G36: 1 | H36: =$D$5*SQRT((($E36/$D$2)^2)+(($F36/$D$3)^2)+(($G36/$D$4)^2)) -> 119.3109273 | I36: =+IF(+AND(E36=0,F36=0)+OR(+AND(E36=0,G36=0))+OR(+AND(F36=0,G36=0)),"Axial",(+IF(+OR(E36=0,F36=0,G36=0),"Tangential","Oblique"))) -> Oblique | J36: 0.25 | K36: RED | L36: 0.1357993524 | M36: 10
E37: 2 | F37: 3 | G37: 0 | H37: =$D$5*SQRT((($E37/$D$2)^2)+(($F37/$D$3)^2)+(($G37/$D$4)^2)) -> 120.3236949 | I37: =+IF(+AND(E37=0,F37=0)+OR(+AND(E37=0,G37=0))+OR(+AND(F37=0,G37=0)),"Axial",(+IF(+OR(E37=0,F37=0,G37=0),"Tangential","Oblique"))) -> Tangential | J37: 0.5 | K37: OK | L37: 1.012767578 | M37: 10
A38: (b) For axial modes below 100 Hz, either broadband absorbers, properly designed diaphragmatic absorbers should be used, in general, at the center of the wall*. | E38: 2 | F38: 1 | G38: 2 | H38: =$D$5*SQRT((($E38/$D$2)^2)+(($F38/$D$3)^2)+(($G38/$D$4)^2)) -> 120.7504081 | I38: =+IF(+AND(E38=0,F38=0)+OR(+AND(E38=0,G38=0))+OR(+AND(F38=0,G38=0)),"Axial",(+IF(+OR(E38=0,F38=0,G38=0),"Tangential","Oblique"))) -> Oblique | J38: 0.25 | K38: RED | L38: 0.4267132096 | M38: 10
E39: 1 | F39: 3 | G39: 1 | H39: =$D$5*SQRT((($E39/$D$2)^2)+(($F39/$D$3)^2)+(($G39/$D$4)^2)) -> 122.1569457 | I39: =+IF(+AND(E39=0,F39=0)+OR(+AND(E39=0,G39=0))+OR(+AND(F39=0,G39=0)),"Axial",(+IF(+OR(E39=0,F39=0,G39=0),"Tangential","Oblique"))) -> Oblique | J39: 0.25 | K39: OK | L39: 1.406537597 | M39: 10
E40: 4 | F40: 1 | G40: 1 | H40: =$D$5*SQRT((($E40/$D$2)^2)+(($F40/$D$3)^2)+(($G40/$D$4)^2)) -> 124.1205154 | I40: =+IF(+AND(E40=0,F40=0)+OR(+AND(E40=0,G40=0))+OR(+AND(F40=0,G40=0)),"Axial",(+IF(+OR(E40=0,F40=0,G40=0),"Tangential","Oblique"))) -> Oblique | J40: 0.25 | K40: OK | L40: 1.963569689 | M40: 10
E41: 0 | F41: 2 | G41: 2 | H41: =$D$5*SQRT((($E41/$D$2)^2)+(($F41/$D$3)^2)+(($G41/$D$4)^2)) -> 124.7745201 | I41: =+IF(+AND(E41=0,F41=0)+OR(+AND(E41=0,G41=0))+OR(+AND(F41=0,G41=0)),"Axial",(+IF(+OR(E41=0,F41=0,G41=0),"Tangential","Oblique"))) -> Tangential | J41: 0.5 | K41: RED | L41: 0.6540047136 | M41: 10
A42: (c) For tangential modes below 80 Hz, broadband traps, diaphragmatic absorbers can also be used, but placement is dependent on the distribution of the mode. | E42: 1 | F42: 2 | G42: 2 | H42: =$D$5*SQRT((($E42/$D$2)^2)+(($F42/$D$3)^2)+(($G42/$D$4)^2)) -> 127.6255818 | I42: =+IF(+AND(E42=0,F42=0)+OR(+AND(E42=0,G42=0))+OR(+AND(F42=0,G42=0)),"Axial",(+IF(+OR(E42=0,F42=0,G42=0),"Tangential","Oblique"))) -> Oblique | J42: 0.25 | K42: OK | L42: 2.851061677 | M42: 10
E43: 4 | F43: 2 | G43: 0 | H43: =$D$5*SQRT((($E43/$D$2)^2)+(($F43/$D$3)^2)+(($G43/$D$4)^2)) -> 129.1084915 | I43: =+IF(+AND(E43=0,F43=0)+OR(+AND(E43=0,G43=0))+OR(+AND(F43=0,G43=0)),"Axial",(+IF(+OR(E43=0,F43=0,G43=0),"Tangential","Oblique"))) -> Tangential | J43: 0.5 | K43: OK | L43: 1.482909723 | M43: 10
E44: 3 | F44: 0 | G44: 2 | H44: =$D$5*SQRT((($E44/$D$2)^2)+(($F44/$D$3)^2)+(($G44/$D$4)^2)) -> 129.9610893 | I44: =+IF(+AND(E44=0,F44=0)+OR(+AND(E44=0,G44=0))+OR(+AND(F44=0,G44=0)),"Axial",(+IF(+OR(E44=0,F44=0,G44=0),"Tangential","Oblique"))) -> Tangential | J44: 0.5 | K44: RED | L44: 0.8525977988 | M44: 10
A45: *The important wall for treatment is the opposite wall to the wall indicated by the mode number. For example, an absorber for the (x,0,0) mode should be most effective when placed at the center of the "y" wall. | E45: 2 | F45: 3 | G45: 1 | H45: =$D$5*SQRT((($E45/$D$2)^2)+(($F45/$D$3)^2)+(($G45/$D$4)^2)) -> 130.6948513 | I45: =+IF(+AND(E45=0,F45=0)+OR(+AND(E45=0,G45=0))+OR(+AND(F45=0,G45=0)),"Axial",(+IF(+OR(E45=0,F45=0,G45=0),"Tangential","Oblique"))) -> Oblique | J45: 0.25 | K45: RED | L45: 0.7337619983 | M45: 10
E46: 5 | F46: 0 | G46: 0 | H46: =$D$5*SQRT((($E46/$D$2)^2)+(($F46/$D$3)^2)+(($G46/$D$4)^2)) -> 134.1275753 | I46: =+IF(+AND(E46=0,F46=0)+OR(+AND(E46=0,G46=0))+OR(+AND(F46=0,G46=0)),"Axial",(+IF(+OR(E46=0,F46=0,G46=0),"Tangential","Oblique"))) -> Axial | J46: 1 | K46: OK | L46: 3.432723955 | M46: 10
E47: 3 | F47: 3 | G47: 0 | H47: =$D$5*SQRT((($E47/$D$2)^2)+(($F47/$D$3)^2)+(($G47/$D$4)^2)) -> 134.446394 | I47: =+IF(+AND(E47=0,F47=0)+OR(+AND(E47=0,G47=0))+OR(+AND(F47=0,G47=0)),"Axial",(+IF(+OR(E47=0,F47=0,G47=0),"Tangential","Oblique"))) -> Tangential | J47: 0.5 | K47: RED | L47: 0.3188186795 | M47: 10
E48: 3 | F48: 1 | G48: 2 | H48: =$D$5*SQRT((($E48/$D$2)^2)+(($F48/$D$3)^2)+(($G48/$D$4)^2)) -> 134.8284182 | I48: =+IF(+AND(E48=0,F48=0)+OR(+AND(E48=0,G48=0))+OR(+AND(F48=0,G48=0)),"Axial",(+IF(+OR(E48=0,F48=0,G48=0),"Tangential","Oblique"))) -> Oblique | J48: 0.25 | K48: RED | L48: 0.3820242356 | M48: 10
E49: 2 | F49: 2 | G49: 2 | H49: =$D$5*SQRT((($E49/$D$2)^2)+(($F49/$D$3)^2)+(($G49/$D$4)^2)) -> 135.8201528 | I49: =+IF(+AND(E49=0,F49=0)+OR(+AND(E49=0,G49=0))+OR(+AND(F49=0,G49=0)),"Axial",(+IF(+OR(E49=0,F49=0,G49=0),"Tangential","Oblique"))) -> Oblique | J49: 0.25 | K49: RED | L49: 0.9917345992 | M49: 10
A50: Other Notes: | E50: 4 | F50: 2 | G50: 1 | H50: =$D$5*SQRT((($E50/$D$2)^2)+(($F50/$D$3)^2)+(($G50/$D$4)^2)) -> 138.8249084 | I50: =+IF(+AND(E50=0,F50=0)+OR(+AND(E50=0,G50=0))+OR(+AND(F50=0,G50=0)),"Axial",(+IF(+OR(E50=0,F50=0,G50=0),"Tangential","Oblique"))) -> Oblique | J50: 0.25 | K50: OK | L50: 3.004755593 | M50: 10
A51: If the "Ideal" bar does exceed the "Actual" bar in any given 1/3-octave band, the problem modes will usually be those occurring in the 1/3 octave bands that are lower than the violating band. I.e., if the "Ideal" bar at 100 Hz exceeds the "Actual" bar, the modes at 80 Hz and below are likely to give very perceptible problems in the room. | E51: 5 | F51: 1 | G51: 0 | H51: =$D$5*SQRT((($E51/$D$2)^2)+(($F51/$D$3)^2)+(($G51/$D$4)^2)) -> 138.8489253 | I51: =+IF(+AND(E51=0,F51=0)+OR(+AND(E51=0,G51=0))+OR(+AND(F51=0,G51=0)),"Axial",(+IF(+OR(E51=0,F51=0,G51=0),"Tangential","Oblique"))) -> Tangential | J51: 0.5 | K51: RED | L51: 0.02401694001 | M51: 10
E52: 5 | F52: 0 | G52: 1 | H52: =$D$5*SQRT((($E52/$D$2)^2)+(($F52/$D$3)^2)+(($G52/$D$4)^2)) -> 143.5045611 | I52: =+IF(+AND(E52=0,F52=0)+OR(+AND(E52=0,G52=0))+OR(+AND(F52=0,G52=0)),"Axial",(+IF(+OR(E52=0,F52=0,G52=0),"Tangential","Oblique"))) -> Tangential | J52: 0.5 | K52: OK | L52: 4.655635766 | M52: 11
E53: 0 | F53: 4 | G53: 0 | H53: =$D$5*SQRT((($E53/$D$2)^2)+(($F53/$D$3)^2)+(($G53/$D$4)^2)) -> 143.6004242 | I53: =+IF(+AND(E53=0,F53=0)+OR(+AND(E53=0,G53=0))+OR(+AND(F53=0,G53=0)),"Axial",(+IF(+OR(E53=0,F53=0,G53=0),"Tangential","Oblique"))) -> Axial | J53: 1 | K53: RED | L53: 0.09586308735 | M53: 11
E54: 3 | F54: 3 | G54: 1 | H54: =$D$5*SQRT((($E54/$D$2)^2)+(($F54/$D$3)^2)+(($G54/$D$4)^2)) -> 143.802592 | I54: =+IF(+AND(E54=0,F54=0)+OR(+AND(E54=0,G54=0))+OR(+AND(F54=0,G54=0)),"Axial",(+IF(+OR(E54=0,F54=0,G54=0),"Tangential","Oblique"))) -> Oblique | J54: 0.25 | K54: RED | L54: 0.2021677738 | M54: 11
E55: 1 | F55: 4 | G55: 0 | H55: =$D$5*SQRT((($E55/$D$2)^2)+(($F55/$D$3)^2)+(($G55/$D$4)^2)) -> 146.0845306 | I55: =+IF(+AND(E55=0,F55=0)+OR(+AND(E55=0,G55=0))+OR(+AND(F55=0,G55=0)),"Axial",(+IF(+OR(E55=0,F55=0,G55=0),"Tangential","Oblique"))) -> Tangential | J55: 0.5 | K55: OK | L55: 2.281938653 | M55: 11
E56: 5 | F56: 1 | G56: 1 | H56: =$D$5*SQRT((($E56/$D$2)^2)+(($F56/$D$3)^2)+(($G56/$D$4)^2)) -> 147.9269302 | I56: =+IF(+AND(E56=0,F56=0)+OR(+AND(E56=0,G56=0))+OR(+AND(F56=0,G56=0)),"Axial",(+IF(+OR(E56=0,F56=0,G56=0),"Tangential","Oblique"))) -> Oblique | J56: 0.25 | K56: OK | L56: 1.842399559 | M56: 11
E57: 4 | F57: 0 | G57: 2 | H57: =$D$5*SQRT((($E57/$D$2)^2)+(($F57/$D$3)^2)+(($G57/$D$4)^2)) -> 148.0781636 | I57: =+IF(+AND(E57=0,F57=0)+OR(+AND(E57=0,G57=0))+OR(+AND(F57=0,G57=0)),"Axial",(+IF(+OR(E57=0,F57=0,G57=0),"Tangential","Oblique"))) -> Tangential | J57: 0.5 | K57: RED | L57: 0.1512334661 | M57: 11
A58: RT60 is not applicable to these small rooms. The mean free time is calculated instead from the mean free path. | E58: 0 | F58: 3 | G58: 2 | H58: =$D$5*SQRT((($E58/$D$2)^2)+(($F58/$D$3)^2)+(($G58/$D$4)^2)) -> 148.3670076 | I58: =+IF(+AND(E58=0,F58=0)+OR(+AND(E58=0,G58=0))+OR(+AND(F58=0,G58=0)),"Axial",(+IF(+OR(E58=0,F58=0,G58=0),"Tangential","Oblique"))) -> Tangential | J58: 0.5 | K58: RED | L58: 0.2888439635 | M58: 11
E59: 3 | F59: 2 | G59: 2 | H59: =$D$5*SQRT((($E59/$D$2)^2)+(($F59/$D$3)^2)+(($G59/$D$4)^2)) -> 148.4761098 | I59: =+IF(+AND(E59=0,F59=0)+OR(+AND(E59=0,G59=0))+OR(+AND(F59=0,G59=0)),"Axial",(+IF(+OR(E59=0,F59=0,G59=0),"Tangential","Oblique"))) -> Oblique | J59: 0.25 | K59: RED | L59: 0.1091022495 | M59: 11
E60: 1 | F60: 3 | G60: 2 | H60: =$D$5*SQRT((($E60/$D$2)^2)+(($F60/$D$3)^2)+(($G60/$D$4)^2)) -> 150.772601 | I60: =+IF(+AND(E60=0,F60=0)+OR(+AND(E60=0,G60=0))+OR(+AND(F60=0,G60=0)),"Axial",(+IF(+OR(E60=0,F60=0,G60=0),"Tangential","Oblique"))) -> Oblique | J60: 0.25 | K60: OK | L60: 2.296491117 | M60: 11
E61: 4 | F61: 3 | G61: 0 | H61: =$D$5*SQRT((($E61/$D$2)^2)+(($F61/$D$3)^2)+(($G61/$D$4)^2)) -> 152.0299005 | I61: =+IF(+AND(E61=0,F61=0)+OR(+AND(E61=0,G61=0))+OR(+AND(F61=0,G61=0)),"Axial",(+IF(+OR(E61=0,F61=0,G61=0),"Tangential","Oblique"))) -> Tangential | J61: 0.5 | K61: OK | L61: 1.257299565 | M61: 11
E62: 5 | F62: 2 | G62: 0 | H62: =$D$5*SQRT((($E62/$D$2)^2)+(($F62/$D$3)^2)+(($G62/$D$4)^2)) -> 152.136376 | I62: =+IF(+AND(E62=0,F62=0)+OR(+AND(E62=0,G62=0))+OR(+AND(F62=0,G62=0)),"Axial",(+IF(+OR(E62=0,F62=0,G62=0),"Tangential","Oblique"))) -> Tangential | J62: 0.5 | K62: RED | L62: 0.1064754852 | M62: 11
E63: 4 | F63: 1 | G63: 2 | H63: =$D$5*SQRT((($E63/$D$2)^2)+(($F63/$D$3)^2)+(($G63/$D$4)^2)) -> 152.3678449 | I63: =+IF(+AND(E63=0,F63=0)+OR(+AND(E63=0,G63=0))+OR(+AND(F63=0,G63=0)),"Axial",(+IF(+OR(E63=0,F63=0,G63=0),"Tangential","Oblique"))) -> Oblique | J63: 0.25 | K63: RED | L63: 0.2314688847 | M63: 11
E64: 0 | F64: 4 | G64: 1 | H64: =$D$5*SQRT((($E64/$D$2)^2)+(($F64/$D$3)^2)+(($G64/$D$4)^2)) -> 152.3956509 | I64: =+IF(+AND(E64=0,F64=0)+OR(+AND(E64=0,G64=0))+OR(+AND(F64=0,G64=0)),"Axial",(+IF(+OR(E64=0,F64=0,G64=0),"Tangential","Oblique"))) -> Tangential | J64: 0.5 | K64: RED | L64: 0.02780605334 | M64: 11
E65: 0 | F65: 0 | G65: 3 | H65: =$D$5*SQRT((($E65/$D$2)^2)+(($F65/$D$3)^2)+(($G65/$D$4)^2)) -> 153.0691786 | I65: =+IF(+AND(E65=0,F65=0)+OR(+AND(E65=0,G65=0))+OR(+AND(F65=0,G65=0)),"Axial",(+IF(+OR(E65=0,F65=0,G65=0),"Tangential","Oblique"))) -> Axial | J65: 1 | K65: RED | L65: 0.6735276491 | M65: 11
E66: 2 | F66: 4 | G66: 0 | H66: =$D$5*SQRT((($E66/$D$2)^2)+(($F66/$D$3)^2)+(($G66/$D$4)^2)) -> 153.2955148 | I66: =+IF(+AND(E66=0,F66=0)+OR(+AND(E66=0,G66=0))+OR(+AND(F66=0,G66=0)),"Axial",(+IF(+OR(E66=0,F66=0,G66=0),"Tangential","Oblique"))) -> Tangential | J66: 0.5 | K66: RED | L66: 0.2263361962 | M66: 11
E67: 1 | F67: 4 | G67: 1 | H67: =$D$5*SQRT((($E67/$D$2)^2)+(($F67/$D$3)^2)+(($G67/$D$4)^2)) -> 154.738627 | I67: =+IF(+AND(E67=0,F67=0)+OR(+AND(E67=0,G67=0))+OR(+AND(F67=0,G67=0)),"Axial",(+IF(+OR(E67=0,F67=0,G67=0),"Tangential","Oblique"))) -> Oblique | J67: 0.25 | K67: OK | L67: 1.443112207 | M67: 11
E68: 1 | F68: 0 | G68: 3 | H68: =$D$5*SQRT((($E68/$D$2)^2)+(($F68/$D$3)^2)+(($G68/$D$4)^2)) -> 155.4020003 | I68: =+IF(+AND(E68=0,F68=0)+OR(+AND(E68=0,G68=0))+OR(+AND(F68=0,G68=0)),"Axial",(+IF(+OR(E68=0,F68=0,G68=0),"Tangential","Oblique"))) -> Tangential | J68: =IF(I68="Axial",1,IF(I68="Tangential",0.5,IF(I68="Oblique",0.25,""))) -> 0.5 | K68: RED | L68: 0.6633732908 | M68: =IF(H68<17.8,1,IF(H68<=22.4,2,IF(H68<=28.2,3,IF(H68<=35.5,4,IF(H68<=44.7,5,IF(H68<=56.2,6,IF(H68<=70.8,7,IF(H68<=89.1,8,IF(H68<=112,9,IF(H68<=141,10,IF(H68<=178,11,IF(H68<=224,12,IF(H68<=282,13,IF(H68<=355,14,IF(H68<=447,15,IF(H68<=562,16,IF(H68<=708,17,IF(H68<=891,18,IF(H68<=1122,19,IF(H68<=1413,20,IF(H68<=1778,21,IF(H68<=2239,22,IF(H68<=2818,23,IF(H68<=3548,24,IF(H68<=4467,25,IF(H68<=5623,26,IF(H68<=7079,27,IF(H68<=8913,28,IF(H68<=11220,29,IF(H68<=14130,30,IF(H68<=17780,31,IF(H68<=22390,32,)))))))))))))))))))))))))))))))) -> 11
E69: 0 | F69: 1 | G69: 3 | H69: =$D$5*SQRT((($E69/$D$2)^2)+(($F69/$D$3)^2)+(($G69/$D$4)^2)) -> 157.2227434 | I69: =+IF(+AND(E69=0,F69=0)+OR(+AND(E69=0,G69=0))+OR(+AND(F69=0,G69=0)),"Axial",(+IF(+OR(E69=0,F69=0,G69=0),"Tangential","Oblique"))) -> Tangential | J69: 0.5 | K69: =IF((H69-H68)<1,"RED","OK") -> OK | L69: =H69-H68 -> 1.820743135 | M69: 11
E70: 2 | F70: 3 | G70: 2 | H70: =$D$5*SQRT((($E70/$D$2)^2)+(($F70/$D$3)^2)+(($G70/$D$4)^2)) -> 157.7694583 | I70: =+IF(+AND(E70=0,F70=0)+OR(+AND(E70=0,G70=0))+OR(+AND(F70=0,G70=0)),"Axial",(+IF(+OR(E70=0,F70=0,G70=0),"Tangential","Oblique"))) -> Oblique | J70: 0.25 | K70: RED | L70: 0.5467148795 | M70: 11
E71: 1 | F71: 1 | G71: 3 | H71: =$D$5*SQRT((($E71/$D$2)^2)+(($F71/$D$3)^2)+(($G71/$D$4)^2)) -> 159.4948253 | I71: =+IF(+AND(E71=0,F71=0)+OR(+AND(E71=0,G71=0))+OR(+AND(F71=0,G71=0)),"Axial",(+IF(+OR(E71=0,F71=0,G71=0),"Tangential","Oblique"))) -> Oblique | J71: 0.25 | K71: OK | L71: 1.725367029 | M71: 11
E72: 4 | F72: 3 | G72: 1 | H72: =$D$5*SQRT((($E72/$D$2)^2)+(($F72/$D$3)^2)+(($G72/$D$4)^2)) -> 160.3634723 | I72: =+IF(+AND(E72=0,F72=0)+OR(+AND(E72=0,G72=0))+OR(+AND(F72=0,G72=0)),"Axial",(+IF(+OR(E72=0,F72=0,G72=0),"Tangential","Oblique"))) -> Oblique | J72: 0.25 | K72: RED | L72: 0.8686469955 | M72: 11
E73: 5 | F73: 2 | G73: 1 | H73: =$D$5*SQRT((($E73/$D$2)^2)+(($F73/$D$3)^2)+(($G73/$D$4)^2)) -> 160.4644182 | I73: =+IF(+AND(E73=0,F73=0)+OR(+AND(E73=0,G73=0))+OR(+AND(F73=0,G73=0)),"Axial",(+IF(+OR(E73=0,F73=0,G73=0),"Tangential","Oblique"))) -> Oblique | J73: 0.25 | K73: RED | L73: 0.1009458742 | M73: 11
E74: 6 | F74: 0 | G74: 0 | H74: =$D$5*SQRT((($E74/$D$2)^2)+(($F74/$D$3)^2)+(($G74/$D$4)^2)) -> 160.9530903 | I74: =+IF(+AND(E74=0,F74=0)+OR(+AND(E74=0,G74=0))+OR(+AND(F74=0,G74=0)),"Axial",(+IF(+OR(E74=0,F74=0,G74=0),"Tangential","Oblique"))) -> Axial | J74: 1 | K74: RED | L74: 0.4886721277 | M74: 11
E75: 2 | F75: 4 | G75: 1 | H75: =$D$5*SQRT((($E75/$D$2)^2)+(($F75/$D$3)^2)+(($G75/$D$4)^2)) -> 161.5638185 | I75: =+IF(+AND(E75=0,F75=0)+OR(+AND(E75=0,G75=0))+OR(+AND(F75=0,G75=0)),"Axial",(+IF(+OR(E75=0,F75=0,G75=0),"Tangential","Oblique"))) -> Oblique | J75: 0.25 | K75: RED | L75: 0.610728204 | M75: 11 | N75: =0.16*(($D$8/$N$102)^(1/2)) -> 2.735816709
E76: 2 | F76: 0 | G76: 3 | H76: =$D$5*SQRT((($E76/$D$2)^2)+(($F76/$D$3)^2)+(($G76/$D$4)^2)) -> 162.1992801 | I76: =+IF(+AND(E76=0,F76=0)+OR(+AND(E76=0,G76=0))+OR(+AND(F76=0,G76=0)),"Axial",(+IF(+OR(E76=0,F76=0,G76=0),"Tangential","Oblique"))) -> Tangential | J76: 0.5 | K76: RED | L76: 0.6354615748 | M76: 11
E77: 4 | F77: 2 | G77: 2 | H77: =$D$5*SQRT((($E77/$D$2)^2)+(($F77/$D$3)^2)+(($G77/$D$4)^2)) -> 164.567351 | I77: =+IF(+AND(E77=0,F77=0)+OR(+AND(E77=0,G77=0))+OR(+AND(F77=0,G77=0)),"Axial",(+IF(+OR(E77=0,F77=0,G77=0),"Tangential","Oblique"))) -> Oblique | J77: 0.25 | K77: OK | L77: 2.368070843 | M77: 11
E78: 3 | F78: 4 | G78: 0 | H78: =$D$5*SQRT((($E78/$D$2)^2)+(($F78/$D$3)^2)+(($G78/$D$4)^2)) -> 164.6133535 | I78: =+IF(+AND(E78=0,F78=0)+OR(+AND(E78=0,G78=0))+OR(+AND(F78=0,G78=0)),"Axial",(+IF(+OR(E78=0,F78=0,G78=0),"Tangential","Oblique"))) -> Tangential | J78: 0.5 | K78: RED | L78: 0.04600253182 | M78: 11
E79: 6 | F79: 1 | G79: 0 | H79: =$D$5*SQRT((($E79/$D$2)^2)+(($F79/$D$3)^2)+(($G79/$D$4)^2)) -> 164.9082014 | I79: =+IF(+AND(E79=0,F79=0)+OR(+AND(E79=0,G79=0))+OR(+AND(F79=0,G79=0)),"Axial",(+IF(+OR(E79=0,F79=0,G79=0),"Tangential","Oblique"))) -> Tangential | J79: 0.5 | K79: RED | L79: 0.294847952 | M79: 11
E80: 2 | F80: 1 | G80: 3 | H80: =$D$5*SQRT((($E80/$D$2)^2)+(($F80/$D$3)^2)+(($G80/$D$4)^2)) -> 166.1247245 | I80: =+IF(+AND(E80=0,F80=0)+OR(+AND(E80=0,G80=0))+OR(+AND(F80=0,G80=0)),"Axial",(+IF(+OR(E80=0,F80=0,G80=0),"Tangential","Oblique"))) -> Oblique | J80: 0.25 | K80: OK | L80: 1.216523039 | M80: 11
E81: 5 | F81: 0 | G81: 2 | H81: =$D$5*SQRT((($E81/$D$2)^2)+(($F81/$D$3)^2)+(($G81/$D$4)^2)) -> 168.5337262 | I81: =+IF(+AND(E81=0,F81=0)+OR(+AND(E81=0,G81=0))+OR(+AND(F81=0,G81=0)),"Axial",(+IF(+OR(E81=0,F81=0,G81=0),"Tangential","Oblique"))) -> Tangential | J81: 0.5 | K81: OK | L81: 2.40900172 | M81: 11
E82: 3 | F82: 3 | G82: 2 | H82: =$D$5*SQRT((($E82/$D$2)^2)+(($F82/$D$3)^2)+(($G82/$D$4)^2)) -> 168.7875685 | I82: =+IF(+AND(E82=0,F82=0)+OR(+AND(E82=0,G82=0))+OR(+AND(F82=0,G82=0)),"Axial",(+IF(+OR(E82=0,F82=0,G82=0),"Tangential","Oblique"))) -> Oblique | J82: 0.25 | K82: RED | L82: 0.2538422554 | M82: 11
E83: 6 | F83: 0 | G83: 1 | H83: =$D$5*SQRT((($E83/$D$2)^2)+(($F83/$D$3)^2)+(($G83/$D$4)^2)) -> 168.8468238 | I83: =+IF(+AND(E83=0,F83=0)+OR(+AND(E83=0,G83=0))+OR(+AND(F83=0,G83=0)),"Axial",(+IF(+OR(E83=0,F83=0,G83=0),"Tangential","Oblique"))) -> Tangential | J83: 0.5 | K83: RED | L83: 0.05925530065 | M83: 11
E84: 0 | F84: 2 | G84: 3 | H84: =$D$5*SQRT((($E84/$D$2)^2)+(($F84/$D$3)^2)+(($G84/$D$4)^2)) -> 169.0723037 | I84: =+IF(+AND(E84=0,F84=0)+OR(+AND(E84=0,G84=0))+OR(+AND(F84=0,G84=0)),"Axial",(+IF(+OR(E84=0,F84=0,G84=0),"Tangential","Oblique"))) -> Tangential | J84: 0.5 | K84: RED | L84: 0.2254799887 | M84: 11
E85: 1 | F85: 2 | G85: 3 | H85: =$D$5*SQRT((($E85/$D$2)^2)+(($F85/$D$3)^2)+(($G85/$D$4)^2)) -> 171.1871845 | I85: =+IF(+AND(E85=0,F85=0)+OR(+AND(E85=0,G85=0))+OR(+AND(F85=0,G85=0)),"Axial",(+IF(+OR(E85=0,F85=0,G85=0),"Tangential","Oblique"))) -> Oblique | J85: 0.25 | K85: OK | L85: 2.114880798 | M85: 11
E86: 5 | F86: 3 | G86: 0 | H86: =$D$5*SQRT((($E86/$D$2)^2)+(($F86/$D$3)^2)+(($G86/$D$4)^2)) -> 172.0161765 | I86: =+IF(+AND(E86=0,F86=0)+OR(+AND(E86=0,G86=0))+OR(+AND(F86=0,G86=0)),"Axial",(+IF(+OR(E86=0,F86=0,G86=0),"Tangential","Oblique"))) -> Tangential | J86: 0.5 | K86: RED | L86: 0.8289919545 | M86: 11
E87: 5 | F87: 1 | G87: 2 | H87: =$D$5*SQRT((($E87/$D$2)^2)+(($F87/$D$3)^2)+(($G87/$D$4)^2)) -> 172.3149282 | I87: =+IF(+AND(E87=0,F87=0)+OR(+AND(E87=0,G87=0))+OR(+AND(F87=0,G87=0)),"Axial",(+IF(+OR(E87=0,F87=0,G87=0),"Tangential","Oblique"))) -> Oblique | J87: 0.25 | K87: RED | L87: 0.298751704 | M87: 11
E88: 3 | F88: 4 | G88: 1 | H88: =$D$5*SQRT((($E88/$D$2)^2)+(($F88/$D$3)^2)+(($G88/$D$4)^2)) -> 172.3395159 | I88: =+IF(+AND(E88=0,F88=0)+OR(+AND(E88=0,G88=0))+OR(+AND(F88=0,G88=0)),"Axial",(+IF(+OR(E88=0,F88=0,G88=0),"Tangential","Oblique"))) -> Oblique | J88: 0.25 | K88: RED | L88: 0.02458772886 | M88: 11
E89: 6 | F89: 1 | G89: 1 | H89: =$D$5*SQRT((($E89/$D$2)^2)+(($F89/$D$3)^2)+(($G89/$D$4)^2)) -> 172.6211676 | I89: =+IF(+AND(E89=0,F89=0)+OR(+AND(E89=0,G89=0))+OR(+AND(F89=0,G89=0)),"Axial",(+IF(+OR(E89=0,F89=0,G89=0),"Tangential","Oblique"))) -> Oblique | J89: 0.25 | K89: RED | L89: 0.2816516788 | M89: 11
E90: 3 | F90: 0 | G90: 3 | H90: =$D$5*SQRT((($E90/$D$2)^2)+(($F90/$D$3)^2)+(($G90/$D$4)^2)) -> 172.9353861 | I90: =+IF(+AND(E90=0,F90=0)+OR(+AND(E90=0,G90=0))+OR(+AND(F90=0,G90=0)),"Axial",(+IF(+OR(E90=0,F90=0,G90=0),"Tangential","Oblique"))) -> Tangential | J90: 0.5 | K90: RED | L90: 0.3142184738 | M90: 11
E91: 0 | F91: 4 | G91: 2 | H91: =$D$5*SQRT((($E91/$D$2)^2)+(($F91/$D$3)^2)+(($G91/$D$4)^2)) -> 176.1660928 | I91: =+IF(+AND(E91=0,F91=0)+OR(+AND(E91=0,G91=0))+OR(+AND(F91=0,G91=0)),"Axial",(+IF(+OR(E91=0,F91=0,G91=0),"Tangential","Oblique"))) -> Tangential | J91: 0.5 | K91: OK | L91: 3.230706686 | M91: 11
E92: 6 | F92: 2 | G92: 0 | H92: =$D$5*SQRT((($E92/$D$2)^2)+(($F92/$D$3)^2)+(($G92/$D$4)^2)) -> 176.2417877 | I92: =+IF(+AND(E92=0,F92=0)+OR(+AND(E92=0,G92=0))+OR(+AND(F92=0,G92=0)),"Axial",(+IF(+OR(E92=0,F92=0,G92=0),"Tangential","Oblique"))) -> Tangential | J92: 0.5 | K92: RED | L92: 0.07569496797 | M92: 11
E93: 3 | F93: 1 | G93: 3 | H93: =$D$5*SQRT((($E93/$D$2)^2)+(($F93/$D$3)^2)+(($G93/$D$4)^2)) -> 176.6223807 | I93: =+IF(+AND(E93=0,F93=0)+OR(+AND(E93=0,G93=0))+OR(+AND(F93=0,G93=0)),"Axial",(+IF(+OR(E93=0,F93=0,G93=0),"Tangential","Oblique"))) -> Oblique | J93: 0.25 | K93: RED | L93: 0.3805929901 | M93: 11
E94: 2 | F94: 2 | G94: 3 | H94: =$D$5*SQRT((($E94/$D$2)^2)+(($F94/$D$3)^2)+(($G94/$D$4)^2)) -> 177.3805991 | I94: =+IF(+AND(E94=0,F94=0)+OR(+AND(E94=0,G94=0))+OR(+AND(F94=0,G94=0)),"Axial",(+IF(+OR(E94=0,F94=0,G94=0),"Tangential","Oblique"))) -> Oblique | J94: 0.25 | K94: RED | L94: 0.7582183411 | M94: 11
E95: 1 | F95: 4 | G95: 2 | H95: =$D$5*SQRT((($E95/$D$2)^2)+(($F95/$D$3)^2)+(($G95/$D$4)^2)) -> 178.1968027 | I95: =+IF(+AND(E95=0,F95=0)+OR(+AND(E95=0,G95=0))+OR(+AND(F95=0,G95=0)),"Axial",(+IF(+OR(E95=0,F95=0,G95=0),"Tangential","Oblique"))) -> Oblique | J95: 0.25 | K95: RED | L95: 0.8162036515 | M95: 12 | Q95: Transition/Diffusive Region
E96: 4 | F96: 4 | G96: 0 | H96: =$D$5*SQRT((($E96/$D$2)^2)+(($F96/$D$3)^2)+(($G96/$D$4)^2)) -> 179.2618586 | I96: =+IF(+AND(E96=0,F96=0)+OR(+AND(E96=0,G96=0))+OR(+AND(F96=0,G96=0)),"Axial",(+IF(+OR(E96=0,F96=0,G96=0),"Tangential","Oblique"))) -> Tangential | J96: 0.5 | K96: OK | L96: 1.065055892 | M96: 12 | N96: |------- | O96: Wave Region | P96: ------|------ | R96: ------|------ | S96: Ray Region | T96: ------|
E97: 5 | F97: 3 | G97: 1 | H97: =$D$5*SQRT((($E97/$D$2)^2)+(($F97/$D$3)^2)+(($G97/$D$4)^2)) -> 179.423849 | I97: =+IF(+AND(E97=0,F97=0)+OR(+AND(E97=0,G97=0))+OR(+AND(F97=0,G97=0)),"Axial",(+IF(+OR(E97=0,F97=0,G97=0),"Tangential","Oblique"))) -> Oblique | J97: 0.25 | K97: RED | L97: 0.1619903629 | M97: 12 | N97: F¹ | P97: F² | R97: F³ | T97: Fⁿ
E98: 0 | F98: 5 | G98: 0 | H98: =$D$5*SQRT((($E98/$D$2)^2)+(($F98/$D$3)^2)+(($G98/$D$4)^2)) -> 179.5005302 | I98: =+IF(+AND(E98=0,F98=0)+OR(+AND(E98=0,G98=0))+OR(+AND(F98=0,G98=0)),"Axial",(+IF(+OR(E98=0,F98=0,G98=0),"Tangential","Oblique"))) -> Axial | J98: 1 | K98: RED | L98: 0.07668125064 | M98: 12 | N98: =565/D2 -> 26.86212361 | P98: =(SQRT(N102/D7))*11885 -> 116.9646471 | R98: =4*P98 -> 467.8585886 | T98: 20000
E99: 1 | F99: 5 | G99: 0 | H99: =$D$5*SQRT((($E99/$D$2)^2)+(($F99/$D$3)^2)+(($G99/$D$4)^2)) -> 181.4939355 | I99: =+IF(+AND(E99=0,F99=0)+OR(+AND(E99=0,G99=0))+OR(+AND(F99=0,G99=0)),"Axial",(+IF(+OR(E99=0,F99=0,G99=0),"Tangential","Oblique"))) -> Tangential | J99: 0.5 | K99: OK | L99: 1.993405236 | M99: 12 | N99: LF cutoff | P99: (Schroeder Frequency) | T99: HF cutoff
E100: 4 | F100: 3 | G100: 2 | H100: =$D$5*SQRT((($E100/$D$2)^2)+(($F100/$D$3)^2)+(($G100/$D$4)^2)) -> 183.1024333 | I100: =+IF(+AND(E100=0,F100=0)+OR(+AND(E100=0,G100=0))+OR(+AND(F100=0,G100=0)),"Axial",(+IF(+OR(E100=0,F100=0,G100=0),"Tangential","Oblique"))) -> Oblique | J100: 0.25 | K100: OK | L100: 1.608497814 | M100: 12 | N100: =((SQRT(2))*(565/D2)) -> 37.98877953 | O100: <--This should be the LF cut-off of the speaker system if ported speakers are used
E101: 5 | F101: 2 | G101: 2 | H101: =$D$5*SQRT((($E101/$D$2)^2)+(($F101/$D$3)^2)+(($G101/$D$4)^2)) -> 183.1908494 | I101: =+IF(+AND(E101=0,F101=0)+OR(+AND(E101=0,G101=0))+OR(+AND(F101=0,G101=0)),"Axial",(+IF(+OR(E101=0,F101=0,G101=0),"Tangential","Oblique"))) -> Oblique | J101: 0.25 | K101: RED | L101: 0.08841617742 | M101: 12 | N101: MEAN FREE TIMES | P101: Permissible rise from 200 Hz @ 63 Hz | R101: =((((344/R98)/4)*1000)*2)*0.0393700787401574 -> 14.47371857 | S101: Maximum depth for Schroeder 1D diffusor
E102: 6 | F102: 2 | G102: 1 | H102: =$D$5*SQRT((($E102/$D$2)^2)+(($F102/$D$3)^2)+(($G102/$D$4)^2)) -> 183.4789371 | I102: =+IF(+AND(E102=0,F102=0)+OR(+AND(E102=0,G102=0))+OR(+AND(F102=0,G102=0)),"Axial",(+IF(+OR(E102=0,F102=0,G102=0),"Tangential","Oblique"))) -> Oblique | J102: 0.25 | K102: RED | L102: 0.2880876187 | M102: 12 | N102: =0.35*((D8/100)^(1/3)) -> 0.3540536546 | O102: Maximum | P102: =(N102*0.25)+N102 -> 0.4425670682 | R102: =(SQRT(2))*P98 -> 165.4129903 | S102: We don't want any problematic resonances below this frequency
E103: 2 | F103: 4 | G103: 2 | H103: =$D$5*SQRT((($E103/$D$2)^2)+(($F103/$D$3)^2)+(($G103/$D$4)^2)) -> 184.1546233 | I103: =+IF(+AND(E103=0,F103=0)+OR(+AND(E103=0,G103=0))+OR(+AND(F103=0,G103=0)),"Axial",(+IF(+OR(E103=0,F103=0,G103=0),"Tangential","Oblique"))) -> Oblique | J103: 0.25 | K103: RED | L103: 0.6756862035 | M103: 12 | N103: =N102 -> 0.3540536546 | O103: Balance spec. | P103: =(SQRT(N103/D7))*11250 -> 110.7153791 | Q103: Schroeder @ spec | R103: =P103/2 -> 55.35768954 | S103: <---- Maximum inner shell MAM resonance
E104: 4 | F104: 4 | G104: 1 | H104: =$D$5*SQRT((($E104/$D$2)^2)+(($F104/$D$3)^2)+(($G104/$D$4)^2)) -> 186.3817764 | I104: =+IF(+AND(E104=0,F104=0)+OR(+AND(E104=0,G104=0))+OR(+AND(F104=0,G104=0)),"Axial",(+IF(+OR(E104=0,F104=0,G104=0),"Tangential","Oblique"))) -> Oblique | J104: 0.25 | K104: OK | L104: 2.22715308 | M104: 12 | N104: Critical Distance - Dmin | O104: =(N75*1000)*0.039370078740157 -> 107.7093193 | P104: For control rooms, this is the circumference of the 'sweet-spot'
E105: 0 | F105: 5 | G105: 1 | H105: =$D$5*SQRT((($E105/$D$2)^2)+(($F105/$D$3)^2)+(($G105/$D$4)^2)) -> 186.611342 | I105: =+IF(+AND(E105=0,F105=0)+OR(+AND(E105=0,G105=0))+OR(+AND(F105=0,G105=0)),"Axial",(+IF(+OR(E105=0,F105=0,G105=0),"Tangential","Oblique"))) -> Tangential | J105: 0.5 | K105: RED | L105: 0.2295656247 | M105: 12
E106: 4 | F106: 0 | G106: 3 | H106: =$D$5*SQRT((($E106/$D$2)^2)+(($F106/$D$3)^2)+(($G106/$D$4)^2)) -> 186.9328905 | I106: =+IF(+AND(E106=0,F106=0)+OR(+AND(E106=0,G106=0))+OR(+AND(F106=0,G106=0)),"Axial",(+IF(+OR(E106=0,F106=0,G106=0),"Tangential","Oblique"))) -> Tangential | J106: 0.5 | K106: RED | L106: 0.3215485607 | M106: 12
E107: 0 | F107: 3 | G107: 3 | H107: =$D$5*SQRT((($E107/$D$2)^2)+(($F107/$D$3)^2)+(($G107/$D$4)^2)) -> 187.1617802 | I107: =+IF(+AND(E107=0,F107=0)+OR(+AND(E107=0,G107=0))+OR(+AND(F107=0,G107=0)),"Axial",(+IF(+OR(E107=0,F107=0,G107=0),"Tangential","Oblique"))) -> Tangential | J107: 0.5 | K107: RED | L107: 0.2288896499 | M107: 12 | N107: see the Ideal Rooms tab for best room ratios + more information
E108: 3 | F108: 2 | G108: 3 | H108: =$D$5*SQRT((($E108/$D$2)^2)+(($F108/$D$3)^2)+(($G108/$D$4)^2)) -> 187.2482796 | I108: =+IF(+AND(E108=0,F108=0)+OR(+AND(E108=0,G108=0))+OR(+AND(F108=0,G108=0)),"Axial",(+IF(+OR(E108=0,F108=0,G108=0),"Tangential","Oblique"))) -> Oblique | J108: 0.25 | K108: RED | L108: 0.08649941696 | M108: 12
E109: 2 | F109: 5 | G109: 0 | H109: =$D$5*SQRT((($E109/$D$2)^2)+(($F109/$D$3)^2)+(($G109/$D$4)^2)) -> 187.3469332 | I109: =+IF(+AND(E109=0,F109=0)+OR(+AND(E109=0,G109=0))+OR(+AND(F109=0,G109=0)),"Axial",(+IF(+OR(E109=0,F109=0,G109=0),"Tangential","Oblique"))) -> Tangential | J109: 0.5 | K109: RED | L109: 0.09865360315 | M109: 12
E110: 7 | F110: 0 | G110: 0 | H110: =$D$5*SQRT((($E110/$D$2)^2)+(($F110/$D$3)^2)+(($G110/$D$4)^2)) -> 187.7786054 | I110: =+IF(+AND(E110=0,F110=0)+OR(+AND(E110=0,G110=0))+OR(+AND(F110=0,G110=0)),"Axial",(+IF(+OR(E110=0,F110=0,G110=0),"Tangential","Oblique"))) -> Axial | J110: 1 | K110: RED | L110: 0.4316721809 | M110: 12
E111: 1 | F111: 5 | G111: 1 | H111: =$D$5*SQRT((($E111/$D$2)^2)+(($F111/$D$3)^2)+(($G111/$D$4)^2)) -> 188.5295765 | I111: =+IF(+AND(E111=0,F111=0)+OR(+AND(E111=0,G111=0))+OR(+AND(F111=0,G111=0)),"Axial",(+IF(+OR(E111=0,F111=0,G111=0),"Tangential","Oblique"))) -> Oblique | J111: 0.25 | K111: RED | L111: 0.7509711039 | M111: 12
E112: 1 | F112: 3 | G112: 3 | H112: =$D$5*SQRT((($E112/$D$2)^2)+(($F112/$D$3)^2)+(($G112/$D$4)^2)) -> 189.0744304 | I112: =+IF(+AND(E112=0,F112=0)+OR(+AND(E112=0,G112=0))+OR(+AND(F112=0,G112=0)),"Axial",(+IF(+OR(E112=0,F112=0,G112=0),"Tangential","Oblique"))) -> Oblique | J112: 0.25 | K112: RED | L112: 0.5448538808 | M112: 12
E113: 4 | F113: 1 | G113: 3 | H113: =$D$5*SQRT((($E113/$D$2)^2)+(($F113/$D$3)^2)+(($G113/$D$4)^2)) -> 190.3489511 | I113: =+IF(+AND(E113=0,F113=0)+OR(+AND(E113=0,G113=0))+OR(+AND(F113=0,G113=0)),"Axial",(+IF(+OR(E113=0,F113=0,G113=0),"Tangential","Oblique"))) -> Oblique | J113: 0.25 | K113: OK | L113: 1.274520711 | M113: 12
E114: 6 | F114: 0 | G114: 2 | H114: =$D$5*SQRT((($E114/$D$2)^2)+(($F114/$D$3)^2)+(($G114/$D$4)^2)) -> 190.5762517 | I114: =+IF(+AND(E114=0,F114=0)+OR(+AND(E114=0,G114=0))+OR(+AND(F114=0,G114=0)),"Axial",(+IF(+OR(E114=0,F114=0,G114=0),"Tangential","Oblique"))) -> Tangential | J114: 0.5 | K114: RED | L114: 0.2273005954 | M114: 12 | N114: TRACKING ROOM AND BOOTH BROADBAND TRAPPING | T114: Mem 3rd | U114: Mem 4th
E115: 7 | F115: 1 | G115: 0 | H115: =$D$5*SQRT((($E115/$D$2)^2)+(($F115/$D$3)^2)+(($G115/$D$4)^2)) -> 191.179555 | I115: =+IF(+AND(E115=0,F115=0)+OR(+AND(E115=0,G115=0))+OR(+AND(F115=0,G115=0)),"Axial",(+IF(+OR(E115=0,F115=0,G115=0),"Tangential","Oblique"))) -> Tangential | J115: 0.5 | K115: RED | L115: 0.6033033356 | M115: 12 | N115: Axial mode nx (length) | O115: =$P$126/((B2*2)/12) -> 26.77836166 | Q115: half-power at Fc for oblique incidence trapping | S115: FRONT & REAR WALL | T115: =O115*3 -> 80.33508499 | U115: =O115*4 -> 107.1134467
E116: 6 | F116: 3 | G116: 0 | H116: =$D$5*SQRT((($E116/$D$2)^2)+(($F116/$D$3)^2)+(($G116/$D$4)^2)) -> 193.6627373 | I116: =+IF(+AND(E116=0,F116=0)+OR(+AND(E116=0,G116=0))+OR(+AND(F116=0,G116=0)),"Axial",(+IF(+OR(E116=0,F116=0,G116=0),"Tangential","Oblique"))) -> Tangential | J116: 0.5 | K116: OK | L116: 2.483182273 | M116: 12 | N116: Trap depth MINIMUM | O116: =((B2/2)*0.271)/2 -> 17.1001
E117: 3 | F117: 4 | G117: 2 | H117: =$D$5*SQRT((($E117/$D$2)^2)+(($F117/$D$3)^2)+(($G117/$D$4)^2)) -> 193.6774808 | I117: =+IF(+AND(E117=0,F117=0)+OR(+AND(E117=0,G117=0))+OR(+AND(F117=0,G117=0)),"Axial",(+IF(+OR(E117=0,F117=0,G117=0),"Tangential","Oblique"))) -> Oblique | J117: 0.25 | K117: RED | L117: 0.0147434952 | M117: 12
E118: 6 | F118: 1 | G118: 2 | H118: =$D$5*SQRT((($E118/$D$2)^2)+(($F118/$D$3)^2)+(($G118/$D$4)^2)) -> 193.9281447 | I118: =+IF(+AND(E118=0,F118=0)+OR(+AND(E118=0,G118=0))+OR(+AND(F118=0,G118=0)),"Axial",(+IF(+OR(E118=0,F118=0,G118=0),"Tangential","Oblique"))) -> Oblique | J118: 0.25 | K118: RED | L118: 0.2506639461 | M118: 12 | N118: Axial mode ny (width) | O118: =$P$126/((B3*2)/12) -> 35.83700151 | Q118: half-power at Fc for oblique incidence trapping | S118: SIDE WALLS | T118: =O118*3 -> 107.5110045 | U118: =O118*4 -> 143.348006
E119: 2 | F119: 5 | G119: 1 | H119: =$D$5*SQRT((($E119/$D$2)^2)+(($F119/$D$3)^2)+(($G119/$D$4)^2)) -> 194.1706105 | I119: =+IF(+AND(E119=0,F119=0)+OR(+AND(E119=0,G119=0))+OR(+AND(F119=0,G119=0)),"Axial",(+IF(+OR(E119=0,F119=0,G119=0),"Tangential","Oblique"))) -> Oblique | J119: 0.25 | K119: RED | L119: 0.2424657822 | M119: 12 | N119: Trap depth MINIMUM | O119: =((B3/2)*0.271)/2 -> 12.77765
E120: 7 | F120: 0 | G120: 1 | H120: =$D$5*SQRT((($E120/$D$2)^2)+(($F120/$D$3)^2)+(($G120/$D$4)^2)) -> 194.5871456 | I120: =+IF(+AND(E120=0,F120=0)+OR(+AND(E120=0,G120=0))+OR(+AND(F120=0,G120=0)),"Axial",(+IF(+OR(E120=0,F120=0,G120=0),"Tangential","Oblique"))) -> Tangential | J120: 0.5 | K120: RED | L120: 0.416535122 | M120: 12
E121: 2 | F121: 3 | G121: 3 | H121: =$D$5*SQRT((($E121/$D$2)^2)+(($F121/$D$3)^2)+(($G121/$D$4)^2)) -> 194.699679 | I121: =+IF(+AND(E121=0,F121=0)+OR(+AND(E121=0,G121=0))+OR(+AND(F121=0,G121=0)),"Axial",(+IF(+OR(E121=0,F121=0,G121=0),"Tangential","Oblique"))) -> Oblique | J121: 0.25 | K121: RED | L121: 0.1125333466 | M121: 12 | N121: Axial mode nz (height) | O121: =$P$126/((B4*2)/12) -> 50.93337215 | Q121: half-power at Fc for oblique incidence trapping | S121: CEILING | T121: =O121*3 -> 152.8001164 | U121: =O121*4 -> 203.7334886
E122: 5 | F122: 4 | G122: 0 | H122: =$D$5*SQRT((($E122/$D$2)^2)+(($F122/$D$3)^2)+(($G122/$D$4)^2)) -> 196.4975528 | I122: =+IF(+AND(E122=0,F122=0)+OR(+AND(E122=0,G122=0))+OR(+AND(F122=0,G122=0)),"Axial",(+IF(+OR(E122=0,F122=0,G122=0),"Tangential","Oblique"))) -> Tangential | J122: 0.5 | K122: OK | L122: 1.797873865 | M122: 12 | N122: Trap depth MINIMUM | O122: =((B4/2)*0.271)/2 -> 8.990425
E123: 3 | F123: 5 | G123: 0 | H123: =$D$5*SQRT((($E123/$D$2)^2)+(($F123/$D$3)^2)+(($G123/$D$4)^2)) -> 196.7153138 | I123: =+IF(+AND(E123=0,F123=0)+OR(+AND(E123=0,G123=0))+OR(+AND(F123=0,G123=0)),"Axial",(+IF(+OR(E123=0,F123=0,G123=0),"Tangential","Oblique"))) -> Tangential | J123: 0.5 | K123: RED | L123: 0.2177609267 | M123: 12
E124: 7 | F124: 1 | G124: 1 | H124: =$D$5*SQRT((($E124/$D$2)^2)+(($F124/$D$3)^2)+(($G124/$D$4)^2)) -> 197.8711067 | I124: =+IF(+AND(E124=0,F124=0)+OR(+AND(E124=0,G124=0))+OR(+AND(F124=0,G124=0)),"Axial",(+IF(+OR(E124=0,F124=0,G124=0),"Tangential","Oblique"))) -> Oblique | J124: 0.25 | K124: OK | L124: 1.155792911 | M124: 12
E125: 5 | F125: 3 | G125: 2 | H125: =$D$5*SQRT((($E125/$D$2)^2)+(($F125/$D$3)^2)+(($G125/$D$4)^2)) -> 200.0074383 | I125: =+IF(+AND(E125=0,F125=0)+OR(+AND(E125=0,G125=0))+OR(+AND(F125=0,G125=0)),"Axial",(+IF(+OR(E125=0,F125=0,G125=0),"Tangential","Oblique"))) -> Oblique | J125: 0.25 | K125: OK | L125: 2.13633166 | M125: 12 | N125: Temperature Centigrade | O125: 20 | P125: =331.23 + (0.606*O125) -> 343.35
E126: 4 | F126: 2 | G126: 3 | H126: =$D$5*SQRT((($E126/$D$2)^2)+(($F126/$D$3)^2)+(($G126/$D$4)^2)) -> 200.2477866 | I126: =+IF(+AND(E126=0,F126=0)+OR(+AND(E126=0,G126=0))+OR(+AND(F126=0,G126=0)),"Axial",(+IF(+OR(E126=0,F126=0,G126=0),"Tangential","Oblique"))) -> Oblique | J126: 0.25 | K126: RED | L126: 0.240348214 | M126: 12 | N126: Temperature Fahrinheit | O126: =(9/5)*(O125)+32 -> 68 | P126: =P125*3.28084 -> 1126.476414
E127: 6 | F127: 3 | G127: 1 | H127: =$D$5*SQRT((($E127/$D$2)^2)+(($F127/$D$3)^2)+(($G127/$D$4)^2)) -> 200.271337 | I127: =+IF(+AND(E127=0,F127=0)+OR(+AND(E127=0,G127=0))+OR(+AND(F127=0,G127=0)),"Axial",(+IF(+OR(E127=0,F127=0,G127=0),"Tangential","Oblique"))) -> Oblique | J127: 0.25 | K127: RED | L127: 0.023550429 | M127: 12
E128: 7 | F128: 2 | G128: 0 | H128: =$D$5*SQRT((($E128/$D$2)^2)+(($F128/$D$3)^2)+(($G128/$D$4)^2)) -> 201.0374967 | I128: =+IF(+AND(E128=0,F128=0)+OR(+AND(E128=0,G128=0))+OR(+AND(F128=0,G128=0)),"Axial",(+IF(+OR(E128=0,F128=0,G128=0),"Tangential","Oblique"))) -> Tangential | J128: 0.5 | K128: RED | L128: 0.76615976 | M128: 12
E129: 5 | F129: 4 | G129: 1 | H129: =$D$5*SQRT((($E129/$D$2)^2)+(($F129/$D$3)^2)+(($G129/$D$4)^2)) -> 203.0138933 | I129: =+IF(+AND(E129=0,F129=0)+OR(+AND(E129=0,G129=0))+OR(+AND(F129=0,G129=0)),"Axial",(+IF(+OR(E129=0,F129=0,G129=0),"Tangential","Oblique"))) -> Oblique | J129: 0.25 | K129: OK | L129: 1.976396568 | M129: 12 | N129: All Modes | Q129: Wavelength | S129: Poly Diameter | T129: Poly Radius | U129: Poly Depth
E130: 3 | F130: 5 | G130: 1 | H130: =$D$5*SQRT((($E130/$D$2)^2)+(($F130/$D$3)^2)+(($G130/$D$4)^2)) -> 203.2246719 | I130: =+IF(+AND(E130=0,F130=0)+OR(+AND(E130=0,G130=0))+OR(+AND(F130=0,G130=0)),"Axial",(+IF(+OR(E130=0,F130=0,G130=0),"Tangential","Oblique"))) -> Oblique | J130: 0.25 | K130: RED | L130: 0.2107786054 | M130: 12 | N130: nx | O130: ny | P130: nz | Q130: f | R130: Type | S130: DIFFRACTION/SCATTERING @
E131: 5 | F131: 0 | G131: 3 | H131: =$D$5*SQRT((($E131/$D$2)^2)+(($F131/$D$3)^2)+(($G131/$D$4)^2)) -> 203.5199742 | I131: =+IF(+AND(E131=0,F131=0)+OR(+AND(E131=0,G131=0))+OR(+AND(F131=0,G131=0)),"Axial",(+IF(+OR(E131=0,F131=0,G131=0),"Tangential","Oblique"))) -> Tangential | J131: 0.5 | K131: RED | L131: 0.2953022528 | M131: 12 | N131: 0 | O131: 1 | P131: 0 | Q131: =$D$5*SQRT(((N131/$D$2)^2)+((O131/$D$3)^2)+((P131/$D$4)^2)) -> 35.90010604 | R131: =+IF(+AND(N131=0,O131=0)+OR(+AND(N131=0,P131=0))+OR(+AND(O131=0,P131=0)),"Axial",(+IF(+OR(N131=0,O131=0,P131=0),"Tangential","Oblique"))) -> Axial | S131: =((1128.48*12)*2)/Q131 -> 754.4133704 | T131: =S131/2 -> 377.2066852 | U131: =T131*0.0317224829 -> 11.96593262
E132: 6 | F132: 2 | G132: 2 | H132: =$D$5*SQRT((($E132/$D$2)^2)+(($F132/$D$3)^2)+(($G132/$D$4)^2)) -> 203.6530829 | I132: =+IF(+AND(E132=0,F132=0)+OR(+AND(E132=0,G132=0))+OR(+AND(F132=0,G132=0)),"Axial",(+IF(+OR(E132=0,F132=0,G132=0),"Tangential","Oblique"))) -> Oblique | J132: =IF(I132="Axial",1,IF(I132="Tangential",0.5,IF(I132="Oblique",0.25,""))) -> 0.25 | K132: RED | L132: 0.1331086932 | M132: =IF(H132<17.8,1,IF(H132<=22.4,2,IF(H132<=28.2,3,IF(H132<=35.5,4,IF(H132<=44.7,5,IF(H132<=56.2,6,IF(H132<=70.8,7,IF(H132<=89.1,8,IF(H132<=112,9,IF(H132<=141,10,IF(H132<=178,11,IF(H132<=224,12,IF(H132<=282,13,IF(H132<=355,14,IF(H132<=447,15,IF(H132<=562,16,IF(H132<=708,17,IF(H132<=891,18,IF(H132<=1122,19,IF(H132<=1413,20,IF(H132<=1778,21,IF(H132<=2239,22,IF(H132<=2818,23,IF(H132<=3548,24,IF(H132<=4467,25,IF(H132<=5623,26,IF(H132<=7079,27,IF(H132<=8913,28,IF(H132<=11220,29,IF(H132<=14130,30,IF(H132<=17780,31,IF(H132<=22390,32,)))))))))))))))))))))))))))))))) -> 12
E133: 3 | F133: 3 | G133: 3 | H133: =$D$5*SQRT((($E133/$D$2)^2)+(($F133/$D$3)^2)+(($G133/$D$4)^2)) -> 203.7302292 | I133: =+IF(+AND(E133=0,F133=0)+OR(+AND(E133=0,G133=0))+OR(+AND(F133=0,G133=0)),"Axial",(+IF(+OR(E133=0,F133=0,G133=0),"Tangential","Oblique"))) -> Oblique | J133: 0.25 | K133: =IF((H133-H132)<1,"RED","OK") -> RED | L133: =H133-H132 -> 0.07714632334 | M133: 12 | N133: Slat Diffraction Frequency, both width and gap
E134: 0 | F134: 0 | G134: 4 | H134: =$D$5*SQRT((($E134/$D$2)^2)+(($F134/$D$3)^2)+(($G134/$D$4)^2)) -> 204.0922381 | I134: =+IF(+AND(E134=0,F134=0)+OR(+AND(E134=0,G134=0))+OR(+AND(F134=0,G134=0)),"Axial",(+IF(+OR(E134=0,F134=0,G134=0),"Tangential","Oblique"))) -> Axial | J134: 1 | K134: RED | L134: 0.3620089437 | M134: 12 | O134: Full | P134: 1/2 wave | Q134: 1/4 wave
E135: 1 | F135: 0 | G135: 4 | H135: =$D$5*SQRT((($E135/$D$2)^2)+(($F135/$D$3)^2)+(($G135/$D$4)^2)) -> 205.8476376 | I135: =+IF(+AND(E135=0,F135=0)+OR(+AND(E135=0,G135=0))+OR(+AND(F135=0,G135=0)),"Axial",(+IF(+OR(E135=0,F135=0,G135=0),"Tangential","Oblique"))) -> Tangential | J135: 0.5 | K135: OK | L135: 1.755399512 | M135: 12 | N135: 0.75 | O135: =1126.48/(N135/12) -> 18023.68 | P135: =O135/2 -> 9011.84 | Q135: =P135/2 -> 4505.92
E136: 4 | F136: 4 | G136: 2 | H136: =$D$5*SQRT((($E136/$D$2)^2)+(($F136/$D$3)^2)+(($G136/$D$4)^2)) -> 206.2722094 | I136: =+IF(+AND(E136=0,F136=0)+OR(+AND(E136=0,G136=0))+OR(+AND(F136=0,G136=0)),"Axial",(+IF(+OR(E136=0,F136=0,G136=0),"Tangential","Oblique"))) -> Oblique | J136: 0.25 | K136: RED | L136: 0.4245717508 | M136: 12 | N136: 1.5 | O136: =1126.48/(N136/12) -> 9011.84 | P136: =O136/2 -> 4505.92 | Q136: 2252.96
E137: 0 | F137: 5 | G137: 2 | H137: =$D$5*SQRT((($E137/$D$2)^2)+(($F137/$D$3)^2)+(($G137/$D$4)^2)) -> 206.4796619 | I137: =+IF(+AND(E137=0,F137=0)+OR(+AND(E137=0,G137=0))+OR(+AND(F137=0,G137=0)),"Axial",(+IF(+OR(E137=0,F137=0,G137=0),"Tangential","Oblique"))) -> Tangential | J137: 0.5 | K137: RED | L137: 0.2074524773 | M137: 12 | N137: 2 | O137: =1126.48/(N137/12) -> 6758.88 | P137: 3379.44 | Q137: 1689.72
E138: 5 | F138: 1 | G138: 3 | H138: =$D$5*SQRT((($E138/$D$2)^2)+(($F138/$D$3)^2)+(($G138/$D$4)^2)) -> 206.6620369 | I138: =+IF(+AND(E138=0,F138=0)+OR(+AND(E138=0,G138=0))+OR(+AND(F138=0,G138=0)),"Axial",(+IF(+OR(E138=0,F138=0,G138=0),"Tangential","Oblique"))) -> Oblique | J138: 0.25 | K138: RED | L138: 0.1823750404 | M138: 12 | N138: 4 | O138: 3379.44 | P138: 1689.72 | Q138: 844.86
E139: 0 | F139: 1 | G139: 4 | H139: =$D$5*SQRT((($E139/$D$2)^2)+(($F139/$D$3)^2)+(($G139/$D$4)^2)) -> 207.2256241 | I139: =+IF(+AND(E139=0,F139=0)+OR(+AND(E139=0,G139=0))+OR(+AND(F139=0,G139=0)),"Axial",(+IF(+OR(E139=0,F139=0,G139=0),"Tangential","Oblique"))) -> Tangential | J139: 0.5 | K139: RED | L139: 0.5635871779 | M139: 12 | N139: 6 | O139: 2252.96 | P139: 1126.48 | Q139: 563.24
E140: 7 | F140: 2 | G140: 1 | H140: =$D$5*SQRT((($E140/$D$2)^2)+(($F140/$D$3)^2)+(($G140/$D$4)^2)) -> 207.4112526 | I140: =+IF(+AND(E140=0,F140=0)+OR(+AND(E140=0,G140=0))+OR(+AND(F140=0,G140=0)),"Axial",(+IF(+OR(E140=0,F140=0,G140=0),"Tangential","Oblique"))) -> Oblique | J140: 0.25 | K140: RED | L140: 0.185628502 | M140: 12 | N140: 8 | O140: 1689.72 | P140: 844.86 | Q140: 422.43
E141: 1 | F141: 5 | G141: 2 | H141: =$D$5*SQRT((($E141/$D$2)^2)+(($F141/$D$3)^2)+(($G141/$D$4)^2)) -> 208.2149347 | I141: =+IF(+AND(E141=0,F141=0)+OR(+AND(E141=0,G141=0))+OR(+AND(F141=0,G141=0)),"Axial",(+IF(+OR(E141=0,F141=0,G141=0),"Tangential","Oblique"))) -> Oblique | J141: 0.25 | K141: RED | L141: 0.8036820901 | M141: 12 | N141: 10 | O141: 1351.776 | P141: 675.888 | Q141: 337.944
E142: 1 | F142: 1 | G142: 4 | H142: =$D$5*SQRT((($E142/$D$2)^2)+(($F142/$D$3)^2)+(($G142/$D$4)^2)) -> 208.9547021 | I142: =+IF(+AND(E142=0,F142=0)+OR(+AND(E142=0,G142=0))+OR(+AND(F142=0,G142=0)),"Axial",(+IF(+OR(E142=0,F142=0,G142=0),"Tangential","Oblique"))) -> Oblique | J142: 0.25 | K142: RED | L142: 0.7397674365 | M142: 12 | N142: 12 | O142: 1126.48 | P142: 563.24 | Q142: 281.62
E143: 4 | F143: 5 | G143: 0 | H143: =$D$5*SQRT((($E143/$D$2)^2)+(($F143/$D$3)^2)+(($G143/$D$4)^2)) -> 209.1271682 | I143: =+IF(+AND(E143=0,F143=0)+OR(+AND(E143=0,G143=0))+OR(+AND(F143=0,G143=0)),"Axial",(+IF(+OR(E143=0,F143=0,G143=0),"Tangential","Oblique"))) -> Tangential | J143: 0.5 | K143: RED | L143: 0.1724660786 | M143: 12 | N143: 14 | O143: 965.5542857 | P143: 482.7771429 | Q143: 241.3885714
E144: 0 | F144: 4 | G144: 3 | H144: =$D$5*SQRT((($E144/$D$2)^2)+(($F144/$D$3)^2)+(($G144/$D$4)^2)) -> 209.883909 | I144: =+IF(+AND(E144=0,F144=0)+OR(+AND(E144=0,G144=0))+OR(+AND(F144=0,G144=0)),"Axial",(+IF(+OR(E144=0,F144=0,G144=0),"Tangential","Oblique"))) -> Tangential | J144: 0.5 | K144: RED | L144: 0.7567408121 | M144: 12 | N144: 16 | O144: 844.86 | P144: 422.43 | Q144: 211.215
E145: 2 | F145: 0 | G145: 4 | H145: =$D$5*SQRT((($E145/$D$2)^2)+(($F145/$D$3)^2)+(($G145/$D$4)^2)) -> 211.0262417 | I145: =+IF(+AND(E145=0,F145=0)+OR(+AND(E145=0,G145=0))+OR(+AND(F145=0,G145=0)),"Axial",(+IF(+OR(E145=0,F145=0,G145=0),"Tangential","Oblique"))) -> Tangential | J145: 0.5 | K145: OK | L145: 1.142332718 | M145: 12 | N145: 18 | O145: 750.9866667 | P145: 375.4933333 | Q145: 187.7466667
E146: 1 | F146: 4 | G146: 3 | H146: =$D$5*SQRT((($E146/$D$2)^2)+(($F146/$D$3)^2)+(($G146/$D$4)^2)) -> 211.5912652 | I146: =+IF(+AND(E146=0,F146=0)+OR(+AND(E146=0,G146=0))+OR(+AND(F146=0,G146=0)),"Axial",(+IF(+OR(E146=0,F146=0,G146=0),"Tangential","Oblique"))) -> Oblique | J146: 0.25 | K146: RED | L146: 0.5650234968 | M146: 12 | N146: 20 | O146: 675.888 | P146: 337.944 | Q146: 168.972
E147: 2 | F147: 5 | G147: 2 | H147: =$D$5*SQRT((($E147/$D$2)^2)+(($F147/$D$3)^2)+(($G147/$D$4)^2)) -> 213.3360818 | I147: =+IF(+AND(E147=0,F147=0)+OR(+AND(E147=0,G147=0))+OR(+AND(F147=0,G147=0)),"Axial",(+IF(+OR(E147=0,F147=0,G147=0),"Tangential","Oblique"))) -> Oblique | J147: 0.25 | K147: OK | L147: 1.744816578 | M147: 12 | N147: 22 | O147: 614.4436364 | P147: 307.2218182 | Q147: 153.6109091
E148: 7 | F148: 0 | G148: 2 | H148: =$D$5*SQRT((($E148/$D$2)^2)+(($F148/$D$3)^2)+(($G148/$D$4)^2)) -> 213.7152663 | I148: =+IF(+AND(E148=0,F148=0)+OR(+AND(E148=0,G148=0))+OR(+AND(F148=0,G148=0)),"Axial",(+IF(+OR(E148=0,F148=0,G148=0),"Tangential","Oblique"))) -> Tangential | J148: 0.5 | K148: RED | L148: 0.3791845175 | M148: 12 | N148: 24 | O148: 563.24 | P148: 281.62 | Q148: 140.81
E149: 2 | F149: 1 | G149: 4 | H149: =$D$5*SQRT((($E149/$D$2)^2)+(($F149/$D$3)^2)+(($G149/$D$4)^2)) -> 214.0581517 | I149: =+IF(+AND(E149=0,F149=0)+OR(+AND(E149=0,G149=0))+OR(+AND(F149=0,G149=0)),"Axial",(+IF(+OR(E149=0,F149=0,G149=0),"Tangential","Oblique"))) -> Oblique | J149: 0.25 | K149: RED | L149: 0.3428853857 | M149: 12 | N149: 26 | O149: 519.9138462 | P149: 259.9569231 | Q149: 129.9784615
E150: 8 | F150: 0 | G150: 0 | H150: =$D$5*SQRT((($E150/$D$2)^2)+(($F150/$D$3)^2)+(($G150/$D$4)^2)) -> 214.6041204 | I150: =+IF(+AND(E150=0,F150=0)+OR(+AND(E150=0,G150=0))+OR(+AND(F150=0,G150=0)),"Axial",(+IF(+OR(E150=0,F150=0,G150=0),"Tangential","Oblique"))) -> Axial | J150: 1 | K150: RED | L150: 0.5459687388 | M150: 12 | N150: 28 | O150: 482.7771429 | P150: 241.3885714 | Q150: 120.6942857
E151: 4 | F151: 5 | G151: 1 | H151: =$D$5*SQRT((($E151/$D$2)^2)+(($F151/$D$3)^2)+(($G151/$D$4)^2)) -> 215.2615272 | I151: =+IF(+AND(E151=0,F151=0)+OR(+AND(E151=0,G151=0))+OR(+AND(F151=0,G151=0)),"Axial",(+IF(+OR(E151=0,F151=0,G151=0),"Tangential","Oblique"))) -> Oblique | J151: 0.25 | K151: RED | L151: 0.6574067323 | M151: 12 | N151: 30 | O151: 450.592 | P151: 225.296 | Q151: 112.648
E152: 0 | F152: 6 | G152: 0 | H152: =$D$5*SQRT((($E152/$D$2)^2)+(($F152/$D$3)^2)+(($G152/$D$4)^2)) -> 215.4006363 | I152: =+IF(+AND(E152=0,F152=0)+OR(+AND(E152=0,G152=0))+OR(+AND(F152=0,G152=0)),"Axial",(+IF(+OR(E152=0,F152=0,G152=0),"Tangential","Oblique"))) -> Axial | J152: 1 | K152: RED | L152: 0.1391090912 | M152: 12 | N152: 32 | O152: 422.43 | P152: =O152/2 -> 211.215 | Q152: 105.6075
E153: 6 | F153: 4 | G153: 0 | H153: =$D$5*SQRT((($E153/$D$2)^2)+(($F153/$D$3)^2)+(($G153/$D$4)^2)) -> 215.7011338 | I153: =+IF(+AND(E153=0,F153=0)+OR(+AND(E153=0,G153=0))+OR(+AND(F153=0,G153=0)),"Axial",(+IF(+OR(E153=0,F153=0,G153=0),"Tangential","Oblique"))) -> Tangential | J153: 0.5 | K153: RED | L153: 0.3004975078 | M153: 12 | N153: 36 | O153: 375.4933333 | P153: 187.7466667 | Q153: 93.87333333
E154: 4 | F154: 3 | G154: 3 | H154: =$D$5*SQRT((($E154/$D$2)^2)+(($F154/$D$3)^2)+(($G154/$D$4)^2)) -> 215.7388794 | I154: =+IF(+AND(E154=0,F154=0)+OR(+AND(E154=0,G154=0))+OR(+AND(F154=0,G154=0)),"Axial",(+IF(+OR(E154=0,F154=0,G154=0),"Tangential","Oblique"))) -> Oblique | J154: 0.25 | K154: RED | L154: 0.03774563876 | M154: 12 | N154: 38 | O154: 355.7305263 | P154: 177.8652632 | Q154: 88.93263158
E155: 5 | F155: 2 | G155: 3 | H155: =$D$5*SQRT((($E155/$D$2)^2)+(($F155/$D$3)^2)+(($G155/$D$4)^2)) -> 215.8139253 | I155: =+IF(+AND(E155=0,F155=0)+OR(+AND(E155=0,G155=0))+OR(+AND(F155=0,G155=0)),"Axial",(+IF(+OR(E155=0,F155=0,G155=0),"Tangential","Oblique"))) -> Oblique | J155: 0.25 | K155: RED | L155: 0.07504586118 | M155: 12 | N155: 40 | O155: 337.944 | P155: 168.972 | Q155: 84.486
E156: 0 | F156: 2 | G156: 4 | H156: =$D$5*SQRT((($E156/$D$2)^2)+(($F156/$D$3)^2)+(($G156/$D$4)^2)) -> 216.3536737 | I156: =+IF(+AND(E156=0,F156=0)+OR(+AND(E156=0,G156=0))+OR(+AND(F156=0,G156=0)),"Axial",(+IF(+OR(E156=0,F156=0,G156=0),"Tangential","Oblique"))) -> Tangential | J156: 0.5 | K156: RED | L156: 0.5397484202 | M156: 12 | N156: 42 | O156: 321.8514286 | P156: 160.9257143 | Q156: 80.46285714
E157: 7 | F157: 3 | G157: 0 | H157: =$D$5*SQRT((($E157/$D$2)^2)+(($F157/$D$3)^2)+(($G157/$D$4)^2)) -> 216.472084 | I157: =+IF(+AND(E157=0,F157=0)+OR(+AND(E157=0,G157=0))+OR(+AND(F157=0,G157=0)),"Axial",(+IF(+OR(E157=0,F157=0,G157=0),"Tangential","Oblique"))) -> Tangential | J157: 0.5 | K157: RED | L157: 0.1184103426 | M157: 12 | N157: 46 | O157: 293.8643478 | P157: 146.9321739 | Q157: 73.46608696
E158: 2 | F158: 4 | G158: 3 | H158: =$D$5*SQRT((($E158/$D$2)^2)+(($F158/$D$3)^2)+(($G158/$D$4)^2)) -> 216.6326113 | I158: =+IF(+AND(E158=0,F158=0)+OR(+AND(E158=0,G158=0))+OR(+AND(F158=0,G158=0)),"Axial",(+IF(+OR(E158=0,F158=0,G158=0),"Tangential","Oblique"))) -> Oblique | J158: 0.25 | K158: RED | L158: 0.1605272951 | M158: 12 | N158: 48 | O158: 281.62 | P158: 140.81 | Q158: 70.405
E159: 7 | F159: 1 | G159: 2 | H159: =$D$5*SQRT((($E159/$D$2)^2)+(($F159/$D$3)^2)+(($G159/$D$4)^2)) -> 216.7095583 | I159: =+IF(+AND(E159=0,F159=0)+OR(+AND(E159=0,G159=0))+OR(+AND(F159=0,G159=0)),"Axial",(+IF(+OR(E159=0,F159=0,G159=0),"Tangential","Oblique"))) -> Oblique | J159: 0.25 | K159: RED | L159: 0.07694699794 | M159: 12
E160: 1 | F160: 6 | G160: 0 | H160: =$D$5*SQRT((($E160/$D$2)^2)+(($F160/$D$3)^2)+(($G160/$D$4)^2)) -> 217.0646041 | I160: =+IF(+AND(E160=0,F160=0)+OR(+AND(E160=0,G160=0))+OR(+AND(F160=0,G160=0)),"Axial",(+IF(+OR(E160=0,F160=0,G160=0),"Tangential","Oblique"))) -> Tangential | J160: 0.5 | K160: RED | L160: 0.3550457905 | M160: 12
E161: 8 | F161: 1 | G161: 0 | H161: =$D$5*SQRT((($E161/$D$2)^2)+(($F161/$D$3)^2)+(($G161/$D$4)^2)) -> 217.5861809 | I161: =+IF(+AND(E161=0,F161=0)+OR(+AND(E161=0,G161=0))+OR(+AND(F161=0,G161=0)),"Axial",(+IF(+OR(E161=0,F161=0,G161=0),"Tangential","Oblique"))) -> Tangential | J161: 0.5 | K161: RED | L161: 0.5215767943 | M161: 12
E162: 1 | F162: 2 | G162: 4 | H162: =$D$5*SQRT((($E162/$D$2)^2)+(($F162/$D$3)^2)+(($G162/$D$4)^2)) -> 218.0103676 | I162: =+IF(+AND(E162=0,F162=0)+OR(+AND(E162=0,G162=0))+OR(+AND(F162=0,G162=0)),"Axial",(+IF(+OR(E162=0,F162=0,G162=0),"Tangential","Oblique"))) -> Oblique | J162: 0.25 | K162: RED | L162: 0.4241866805 | M162: 12
E163: 6 | F163: 3 | G163: 2 | H163: =$D$5*SQRT((($E163/$D$2)^2)+(($F163/$D$3)^2)+(($G163/$D$4)^2)) -> 218.9033262 | I163: =+IF(+AND(E163=0,F163=0)+OR(+AND(E163=0,G163=0))+OR(+AND(F163=0,G163=0)),"Axial",(+IF(+OR(E163=0,F163=0,G163=0),"Tangential","Oblique"))) -> Oblique | J163: 0.25 | K163: RED | L163: 0.8929586237 | M163: 12
E164: 3 | F164: 0 | G164: 4 | H164: =$D$5*SQRT((($E164/$D$2)^2)+(($F164/$D$3)^2)+(($G164/$D$4)^2)) -> 219.3857698 | I164: =+IF(+AND(E164=0,F164=0)+OR(+AND(E164=0,G164=0))+OR(+AND(F164=0,G164=0)),"Axial",(+IF(+OR(E164=0,F164=0,G164=0),"Tangential","Oblique"))) -> Tangential | J164: 0.5 | K164: RED | L164: 0.4824435723 | M164: 12
E165: 8 | F165: 0 | G165: 1 | H165: =$D$5*SQRT((($E165/$D$2)^2)+(($F165/$D$3)^2)+(($G165/$D$4)^2)) -> 220.5862215 | I165: =+IF(+AND(E165=0,F165=0)+OR(+AND(E165=0,G165=0))+OR(+AND(F165=0,G165=0)),"Axial",(+IF(+OR(E165=0,F165=0,G165=0),"Tangential","Oblique"))) -> Tangential | J165: 0.5 | K165: OK | L165: 1.200451708 | M165: 12
E166: 0 | F166: 6 | G166: 1 | H166: =$D$5*SQRT((($E166/$D$2)^2)+(($F166/$D$3)^2)+(($G166/$D$4)^2)) -> 221.3612132 | I166: =+IF(+AND(E166=0,F166=0)+OR(+AND(E166=0,G166=0))+OR(+AND(F166=0,G166=0)),"Axial",(+IF(+OR(E166=0,F166=0,G166=0),"Tangential","Oblique"))) -> Tangential | J166: 0.5 | K166: RED | L166: 0.7749916981 | M166: 12
E167: 5 | F167: 4 | G167: 2 | H167: =$D$5*SQRT((($E167/$D$2)^2)+(($F167/$D$3)^2)+(($G167/$D$4)^2)) -> 221.4152178 | I167: =+IF(+AND(E167=0,F167=0)+OR(+AND(E167=0,G167=0))+OR(+AND(F167=0,G167=0)),"Axial",(+IF(+OR(E167=0,F167=0,G167=0),"Tangential","Oblique"))) -> Oblique | J167: 0.25 | K167: RED | L167: 0.05400464021 | M167: 12
E168: 3 | F168: 5 | G168: 2 | H168: =$D$5*SQRT((($E168/$D$2)^2)+(($F168/$D$3)^2)+(($G168/$D$4)^2)) -> 221.6084951 | I168: =+IF(+AND(E168=0,F168=0)+OR(+AND(E168=0,G168=0))+OR(+AND(F168=0,G168=0)),"Axial",(+IF(+OR(E168=0,F168=0,G168=0),"Tangential","Oblique"))) -> Oblique | J168: 0.25 | K168: RED | L168: 0.1932772349 | M168: 12
E169: 6 | F169: 4 | G169: 1 | H169: =$D$5*SQRT((($E169/$D$2)^2)+(($F169/$D$3)^2)+(($G169/$D$4)^2)) -> 221.6536301 | I169: =+IF(+AND(E169=0,F169=0)+OR(+AND(E169=0,G169=0))+OR(+AND(F169=0,G169=0)),"Axial",(+IF(+OR(E169=0,F169=0,G169=0),"Tangential","Oblique"))) -> Oblique | J169: 0.25 | K169: RED | L169: 0.04513498061 | M169: 12
E170: 2 | F170: 6 | G170: 0 | H170: =$D$5*SQRT((($E170/$D$2)^2)+(($F170/$D$3)^2)+(($G170/$D$4)^2)) -> 221.981682 | I170: =+IF(+AND(E170=0,F170=0)+OR(+AND(E170=0,G170=0))+OR(+AND(F170=0,G170=0)),"Axial",(+IF(+OR(E170=0,F170=0,G170=0),"Tangential","Oblique"))) -> Tangential | J170: 0.5 | K170: RED | L170: 0.3280519301 | M170: 12
E171: 6 | F171: 0 | G171: 3 | H171: =$D$5*SQRT((($E171/$D$2)^2)+(($F171/$D$3)^2)+(($G171/$D$4)^2)) -> 222.1172454 | I171: =+IF(+AND(E171=0,F171=0)+OR(+AND(E171=0,G171=0))+OR(+AND(F171=0,G171=0)),"Axial",(+IF(+OR(E171=0,F171=0,G171=0),"Tangential","Oblique"))) -> Tangential | J171: 0.5 | K171: RED | L171: 0.1355634622 | M171: 12
E172: 3 | F172: 1 | G172: 4 | H172: =$D$5*SQRT((($E172/$D$2)^2)+(($F172/$D$3)^2)+(($G172/$D$4)^2)) -> 222.3036968 | I172: =+IF(+AND(E172=0,F172=0)+OR(+AND(E172=0,G172=0))+OR(+AND(F172=0,G172=0)),"Axial",(+IF(+OR(E172=0,F172=0,G172=0),"Tangential","Oblique"))) -> Oblique | J172: 0.25 | K172: RED | L172: 0.1864513325 | M172: 12
E173: 7 | F173: 3 | G173: 1 | H173: =$D$5*SQRT((($E173/$D$2)^2)+(($F173/$D$3)^2)+(($G173/$D$4)^2)) -> 222.4039473 | I173: =+IF(+AND(E173=0,F173=0)+OR(+AND(E173=0,G173=0))+OR(+AND(F173=0,G173=0)),"Axial",(+IF(+OR(E173=0,F173=0,G173=0),"Tangential","Oblique"))) -> Oblique | J173: 0.25 | K173: RED | L173: 0.1002505152 | M173: 12
E174: 2 | F174: 2 | G174: 4 | H174: =$D$5*SQRT((($E174/$D$2)^2)+(($F174/$D$3)^2)+(($G174/$D$4)^2)) -> 222.9065839 | I174: =+IF(+AND(E174=0,F174=0)+OR(+AND(E174=0,G174=0))+OR(+AND(F174=0,G174=0)),"Axial",(+IF(+OR(E174=0,F174=0,G174=0),"Tangential","Oblique"))) -> Oblique | J174: 0.25 | K174: RED | L174: 0.5026366231 | M174: 12
E175: 1 | F175: 6 | G175: 1 | H175: =$D$5*SQRT((($E175/$D$2)^2)+(($F175/$D$3)^2)+(($G175/$D$4)^2)) -> 222.9807054 | I175: =+IF(+AND(E175=0,F175=0)+OR(+AND(E175=0,G175=0))+OR(+AND(F175=0,G175=0)),"Axial",(+IF(+OR(E175=0,F175=0,G175=0),"Tangential","Oblique"))) -> Oblique | J175: 0.25 | K175: RED | L175: 0.07412145138 | M175: 12
E176: 8 | F176: 1 | G176: 1 | H176: =$D$5*SQRT((($E176/$D$2)^2)+(($F176/$D$3)^2)+(($G176/$D$4)^2)) -> 223.4884756 | I176: =+IF(+AND(E176=0,F176=0)+OR(+AND(E176=0,G176=0))+OR(+AND(F176=0,G176=0)),"Axial",(+IF(+OR(E176=0,F176=0,G176=0),"Tangential","Oblique"))) -> Oblique | J176: 0.25 | K176: RED | L176: 0.5077702399 | M176: 12
E177: 5 | F177: 5 | G177: 0 | H177: =$D$5*SQRT((($E177/$D$2)^2)+(($F177/$D$3)^2)+(($G177/$D$4)^2)) -> 224.0773233 | I177: =+IF(+AND(E177=0,F177=0)+OR(+AND(E177=0,G177=0))+OR(+AND(F177=0,G177=0)),"Axial",(+IF(+OR(E177=0,F177=0,G177=0),"Tangential","Oblique"))) -> Tangential | J177: 0.5 | K177: RED | L177: 0.5888476536 | M177: 13
E178: 3 | F178: 4 | G178: 3 | H178: =$D$5*SQRT((($E178/$D$2)^2)+(($F178/$D$3)^2)+(($G178/$D$4)^2)) -> 224.7837396 | I178: =+IF(+AND(E178=0,F178=0)+OR(+AND(E178=0,G178=0))+OR(+AND(F178=0,G178=0)),"Axial",(+IF(+OR(E178=0,F178=0,G178=0),"Tangential","Oblique"))) -> Oblique | J178: 0.25 | K178: RED | L178: 0.7064163258 | M178: 13
E179: 6 | F179: 1 | G179: 3 | H179: =$D$5*SQRT((($E179/$D$2)^2)+(($F179/$D$3)^2)+(($G179/$D$4)^2)) -> 224.9997519 | I179: =+IF(+AND(E179=0,F179=0)+OR(+AND(E179=0,G179=0))+OR(+AND(F179=0,G179=0)),"Axial",(+IF(+OR(E179=0,F179=0,G179=0),"Tangential","Oblique"))) -> Oblique | J179: 0.25 | K179: RED | L179: 0.2160122758 | M179: 13
E180: 7 | F180: 2 | G180: 2 | H180: =$D$5*SQRT((($E180/$D$2)^2)+(($F180/$D$3)^2)+(($G180/$D$4)^2)) -> 225.4539543 | I180: =+IF(+AND(E180=0,F180=0)+OR(+AND(E180=0,G180=0))+OR(+AND(F180=0,G180=0)),"Axial",(+IF(+OR(E180=0,F180=0,G180=0),"Tangential","Oblique"))) -> Oblique | J180: 0.25 | K180: RED | L180: 0.4542024467 | M180: 13
E181: 8 | F181: 2 | G181: 0 | H181: =$D$5*SQRT((($E181/$D$2)^2)+(($F181/$D$3)^2)+(($G181/$D$4)^2)) -> 226.2967056 | I181: =+IF(+AND(E181=0,F181=0)+OR(+AND(E181=0,G181=0))+OR(+AND(F181=0,G181=0)),"Axial",(+IF(+OR(E181=0,F181=0,G181=0),"Tangential","Oblique"))) -> Tangential | J181: 0.5 | K181: RED | L181: 0.8427512947 | M181: 13
E182: 2 | F182: 6 | G182: 1 | H182: =$D$5*SQRT((($E182/$D$2)^2)+(($F182/$D$3)^2)+(($G182/$D$4)^2)) -> 227.7701028 | I182: =+IF(+AND(E182=0,F182=0)+OR(+AND(E182=0,G182=0))+OR(+AND(F182=0,G182=0)),"Axial",(+IF(+OR(E182=0,F182=0,G182=0),"Tangential","Oblique"))) -> Oblique | J182: 0.25 | K182: OK | L182: 1.473397219 | M182: 13
E183: 5 | F183: 5 | G183: 1 | H183: =$D$5*SQRT((($E183/$D$2)^2)+(($F183/$D$3)^2)+(($G183/$D$4)^2)) -> 229.8129661 | I183: =+IF(+AND(E183=0,F183=0)+OR(+AND(E183=0,G183=0))+OR(+AND(F183=0,G183=0)),"Axial",(+IF(+OR(E183=0,F183=0,G183=0),"Tangential","Oblique"))) -> Oblique | J183: 0.25 | K183: OK | L183: 2.042863312 | M183: 13
E184: 3 | F184: 6 | G184: 0 | H184: =$D$5*SQRT((($E184/$D$2)^2)+(($F184/$D$3)^2)+(($G184/$D$4)^2)) -> 229.9432722 | I184: =+IF(+AND(E184=0,F184=0)+OR(+AND(E184=0,G184=0))+OR(+AND(F184=0,G184=0)),"Axial",(+IF(+OR(E184=0,F184=0,G184=0),"Tangential","Oblique"))) -> Tangential | J184: 0.5 | K184: RED | L184: 0.130306056 | M184: 13
E185: 5 | F185: 3 | G185: 3 | H185: =$D$5*SQRT((($E185/$D$2)^2)+(($F185/$D$3)^2)+(($G185/$D$4)^2)) -> 230.2601538 | I185: =+IF(+AND(E185=0,F185=0)+OR(+AND(E185=0,G185=0))+OR(+AND(F185=0,G185=0)),"Axial",(+IF(+OR(E185=0,F185=0,G185=0),"Tangential","Oblique"))) -> Oblique | J185: 0.25 | K185: RED | L185: 0.3168815749 | M185: 13
E186: 4 | F186: 0 | G186: 4 | H186: =$D$5*SQRT((($E186/$D$2)^2)+(($F186/$D$3)^2)+(($G186/$D$4)^2)) -> 230.5805148 | I186: =+IF(+AND(E186=0,F186=0)+OR(+AND(E186=0,G186=0))+OR(+AND(F186=0,G186=0)),"Axial",(+IF(+OR(E186=0,F186=0,G186=0),"Tangential","Oblique"))) -> Tangential | J186: 0.5 | K186: RED | L186: 0.3203610069 | M186: 13
E187: 0 | F187: 3 | G187: 4 | H187: =$D$5*SQRT((($E187/$D$2)^2)+(($F187/$D$3)^2)+(($G187/$D$4)^2)) -> 230.7661158 | I187: =+IF(+AND(E187=0,F187=0)+OR(+AND(E187=0,G187=0))+OR(+AND(F187=0,G187=0)),"Axial",(+IF(+OR(E187=0,F187=0,G187=0),"Tangential","Oblique"))) -> Tangential | J187: 0.5 | K187: RED | L187: 0.1856010049 | M187: 13
E188: 3 | F188: 2 | G188: 4 | H188: =$D$5*SQRT((($E188/$D$2)^2)+(($F188/$D$3)^2)+(($G188/$D$4)^2)) -> 230.8362763 | I188: =+IF(+AND(E188=0,F188=0)+OR(+AND(E188=0,G188=0))+OR(+AND(F188=0,G188=0)),"Axial",(+IF(+OR(E188=0,F188=0,G188=0),"Tangential","Oblique"))) -> Oblique | J188: 0.25 | K188: RED | L188: 0.07016049404 | M188: 13
E189: 8 | F189: 2 | G189: 1 | H189: =$D$5*SQRT((($E189/$D$2)^2)+(($F189/$D$3)^2)+(($G189/$D$4)^2)) -> 231.9774807 | I189: =+IF(+AND(E189=0,F189=0)+OR(+AND(E189=0,G189=0))+OR(+AND(F189=0,G189=0)),"Axial",(+IF(+OR(E189=0,F189=0,G189=0),"Tangential","Oblique"))) -> Oblique | J189: 0.25 | K189: OK | L189: 1.14120447 | M189: 13
E190: 1 | F190: 3 | G190: 4 | H190: =$D$5*SQRT((($E190/$D$2)^2)+(($F190/$D$3)^2)+(($G190/$D$4)^2)) -> 232.3200561 | I190: =+IF(+AND(E190=0,F190=0)+OR(+AND(E190=0,G190=0))+OR(+AND(F190=0,G190=0)),"Axial",(+IF(+OR(E190=0,F190=0,G190=0),"Tangential","Oblique"))) -> Oblique | J190: 0.25 | K190: RED | L190: 0.3425753214 | M190: 13
E191: 4 | F191: 5 | G191: 2 | H191: =$D$5*SQRT((($E191/$D$2)^2)+(($F191/$D$3)^2)+(($G191/$D$4)^2)) -> 232.6963319 | I191: =+IF(+AND(E191=0,F191=0)+OR(+AND(E191=0,G191=0))+OR(+AND(F191=0,G191=0)),"Axial",(+IF(+OR(E191=0,F191=0,G191=0),"Tangential","Oblique"))) -> Oblique | J191: 0.25 | K191: RED | L191: 0.3762758679 | M191: 13
E192: 4 | F192: 1 | G192: 4 | H192: =$D$5*SQRT((($E192/$D$2)^2)+(($F192/$D$3)^2)+(($G192/$D$4)^2)) -> 233.358504 | I192: =+IF(+AND(E192=0,F192=0)+OR(+AND(E192=0,G192=0))+OR(+AND(F192=0,G192=0)),"Axial",(+IF(+OR(E192=0,F192=0,G192=0),"Tangential","Oblique"))) -> Oblique | J192: 0.25 | K192: RED | L192: 0.6621721072 | M192: 13
E193: 6 | F193: 2 | G193: 3 | H193: =$D$5*SQRT((($E193/$D$2)^2)+(($F193/$D$3)^2)+(($G193/$D$4)^2)) -> 233.4338047 | I193: =+IF(+AND(E193=0,F193=0)+OR(+AND(E193=0,G193=0))+OR(+AND(F193=0,G193=0)),"Axial",(+IF(+OR(E193=0,F193=0,G193=0),"Tangential","Oblique"))) -> Oblique | J193: 0.25 | K193: RED | L193: 0.07530066925 | M193: 13
E194: 3 | F194: 6 | G194: 1 | H194: =$D$5*SQRT((($E194/$D$2)^2)+(($F194/$D$3)^2)+(($G194/$D$4)^2)) -> 235.5361141 | I194: =+IF(+AND(E194=0,F194=0)+OR(+AND(E194=0,G194=0))+OR(+AND(F194=0,G194=0)),"Axial",(+IF(+OR(E194=0,F194=0,G194=0),"Tangential","Oblique"))) -> Oblique | J194: 0.25 | K194: OK | L194: 2.10230936 | M194: 13
E195: 4 | F195: 4 | G195: 3 | H195: =$D$5*SQRT((($E195/$D$2)^2)+(($F195/$D$3)^2)+(($G195/$D$4)^2)) -> 235.7222675 | I195: =+IF(+AND(E195=0,F195=0)+OR(+AND(E195=0,G195=0))+OR(+AND(F195=0,G195=0)),"Axial",(+IF(+OR(E195=0,F195=0,G195=0),"Tangential","Oblique"))) -> Oblique | J195: 0.25 | K195: RED | L195: 0.1861534179 | M195: 13
E196: 0 | F196: 5 | G196: 3 | H196: =$D$5*SQRT((($E196/$D$2)^2)+(($F196/$D$3)^2)+(($G196/$D$4)^2)) -> 235.9038232 | I196: =+IF(+AND(E196=0,F196=0)+OR(+AND(E196=0,G196=0))+OR(+AND(F196=0,G196=0)),"Axial",(+IF(+OR(E196=0,F196=0,G196=0),"Tangential","Oblique"))) -> Tangential | J196: =IF(I196="Axial",1,IF(I196="Tangential",0.5,IF(I196="Oblique",0.25,""))) -> 0.5 | K196: RED | L196: 0.1815556856 | M196: =IF(H196<17.8,1,IF(H196<=22.4,2,IF(H196<=28.2,3,IF(H196<=35.5,4,IF(H196<=44.7,5,IF(H196<=56.2,6,IF(H196<=70.8,7,IF(H196<=89.1,8,IF(H196<=112,9,IF(H196<=141,10,IF(H196<=178,11,IF(H196<=224,12,IF(H196<=282,13,IF(H196<=355,14,IF(H196<=447,15,IF(H196<=562,16,IF(H196<=708,17,IF(H196<=891,18,IF(H196<=1122,19,IF(H196<=1413,20,IF(H196<=1778,21,IF(H196<=2239,22,IF(H196<=2818,23,IF(H196<=3548,24,IF(H196<=4467,25,IF(H196<=5623,26,IF(H196<=7079,27,IF(H196<=8913,28,IF(H196<=11220,29,IF(H196<=14130,30,IF(H196<=17780,31,IF(H196<=22390,32,)))))))))))))))))))))))))))))))) -> 13
E197: 7 | F197: 4 | G197: 0 | H197: =$D$5*SQRT((($E197/$D$2)^2)+(($F197/$D$3)^2)+(($G197/$D$4)^2)) -> 236.3934992 | I197: =+IF(+AND(E197=0,F197=0)+OR(+AND(E197=0,G197=0))+OR(+AND(F197=0,G197=0)),"Axial",(+IF(+OR(E197=0,F197=0,G197=0),"Tangential","Oblique"))) -> Tangential | J197: 0.5 | K197: =IF((H197-H196)<1,"RED","OK") -> RED | L197: =H197-H196 -> 0.4896760319 | M197: 13
E198: 2 | F198: 3 | G198: 4 | H198: =$D$5*SQRT((($E198/$D$2)^2)+(($F198/$D$3)^2)+(($G198/$D$4)^2)) -> 236.9207319 | I198: =+IF(+AND(E198=0,F198=0)+OR(+AND(E198=0,G198=0))+OR(+AND(F198=0,G198=0)),"Axial",(+IF(+OR(E198=0,F198=0,G198=0),"Tangential","Oblique"))) -> Oblique | J198: 0.25 | K198: RED | L198: 0.5272327373 | M198: 13
E199: 1 | F199: 5 | G199: 3 | H199: =$D$5*SQRT((($E199/$D$2)^2)+(($F199/$D$3)^2)+(($G199/$D$4)^2)) -> 237.4241396 | I199: =+IF(+AND(E199=0,F199=0)+OR(+AND(E199=0,G199=0))+OR(+AND(F199=0,G199=0)),"Axial",(+IF(+OR(E199=0,F199=0,G199=0),"Tangential","Oblique"))) -> Oblique | J199: 0.25 | K199: RED | L199: 0.5034076174 | M199: 13
E200: 8 | F200: 0 | G200: 2 | H200: =$D$5*SQRT((($E200/$D$2)^2)+(($F200/$D$3)^2)+(($G200/$D$4)^2)) -> 237.6306776 | I200: =+IF(+AND(E200=0,F200=0)+OR(+AND(E200=0,G200=0))+OR(+AND(F200=0,G200=0)),"Axial",(+IF(+OR(E200=0,F200=0,G200=0),"Tangential","Oblique"))) -> Tangential | J200: 0.5 | K200: RED | L200: 0.2065380231 | M200: 13
... 801 more rows

Sheet Mode Strength
A1: f | B1: Strength | C1: Interval | D1: Alerts | E1: 1% Near Co-Incidence | H1: NOTE:
A2: 26.82551506 | B2: 1 | E2: trapping needed | H2: IDEAL Interval should not be greater than 5.611807 | I2: 5.611807 | J2: 1 | K2: 0
A3: 35.90010604 | B3: =IF(A3=A2,B2+1,1) -> 1 | C3: =((A3-A2)/A3)*100 -> 25.27733756 | D3: =IF(C3>I2,J2,K2) -> 1 | E3: =IF(C3<((A2*1.01)-(A2)),J2,K2) -> 0 | F3: Note | G3: Frequency (Hz) | I3: 5.611807 | J3: 1 | K3: 0
A4: 44.81546465 | B4: =IF(A4=A3,B3+1,1) -> 1 | C4: =((A4-A3)/A4)*100 -> 19.89348694 | D4: 1 | E4: =IF(C4<((A3*1.01)-(A3)),J3,K3) -> 0 | F4: name | I4: 5.611807 | J4: 1 | K4: 0
A5: 51.02305953 | B5: 1 | C5: 12.16625372 | D5: 1 | E5: 0 | F5: A0 Double Pedal A | G5: 27.5 | I5: 5.611807 | J5: 1 | K5: 0
A6: 53.65103011 | B6: 1 | C6: 4.898266767 | D6: 0 | E6: 0 | F6: A♯0/B♭0 | G6: 29.1352 | I6: 5.611807 | J6: 1 | K6: 0
A7: 57.64512869 | B7: 1 | C7: 6.928770345 | D7: 1 | E7: 0 | F7: B0 | G7: 30.8677 | I7: 5.611807 | J7: 1 | K7: 0
A8: 62.38726006 | B8: 1 | C8: 7.60112139 | D8: 1 | E8: 0 | F8: C1 Pedal C | G8: 32.7032 | I8: 5.611807 | J8: 1 | K8: 0
A9: 64.55424576 | B9: 1 | C9: 3.35684458 | D9: 0 | E9: 0 | F9: C♯1/D♭1 | G9: 34.6478 | I9: 5.611807 | J9: 1 | K9: 0
A10: 67.9100764 | B10: 1 | C10: 4.941579823 | D10: 0 | E10: 0 | F10: D1 | G10: 36.7081 | I10: 5.611807 | J10: 1 | K10: 0
A11: 71.80021209 | B11: 1 | C11: 5.418000282 | D11: 0 | E11: 0 | F11: D♯1/E♭1 | G11: 38.8909 | I11: 5.611807 | J11: 1 | K11: 0
A12: 74.03908182 | B12: 1 | C12: 3.023902608 | D12: 0 | E12: 0 | F12: E1 | G12: 41.2034 | I12: 5.611807 | J12: 1 | K12: 0
A13: 76.6477574 | B13: 1 | C13: 3.403459763 | D13: 0 | E13: 0 | F13: F1 | G13: 43.6535 | I13: 5.611807 | J13: 1 | K13: 0
A14: 80.47654517 | B14: 1 | C14: 4.757644306 | D14: 0 | E14: 0 | F14: F♯1/G♭1 | G14: 46.2493 | I14: 5.611807 | J14: 1 | K14: 0
A15: 82.28367548 | B15: 1 | C15: 2.196219725 | D15: 0 | E15: 0 | F15: G1 | G15: 48.9994 | I15: 5.611807 | J15: 1 | K15: 0
A16: 88.08304638 | B16: 1 | C16: 6.58398085 | D16: 1 | E16: 0 | F16: G♯1/A♭1 | G16: 51.9131 | I16: 5.611807 | J16: 1 | K16: 0
A17: 88.12089387 | B17: 1 | C17: 0.04294950077 | D17: 0 | E17: 1 | F17: A1 | G17: 55 | I17: 5.611807 | J17: 1 | K17: 0
A18: 89.6309293 | B18: 1 | C18: 1.684725852 | D18: 0 | E18: 0 | F18: A♯1/B♭1 | G18: 58.2705 | I18: 5.611807 | J18: 1 | K18: 0
A19: 92.07731164 | B19: 1 | C19: 2.656878538 | D19: 0 | E19: 0 | F19: B1 | G19: 61.7354 | I19: 5.611807 | J19: 1 | K19: 0
A20: 95.28812584 | B20: 1 | C20: 3.369584799 | D20: 0 | E20: 0 | F20: C2 Deep C | G20: 65.4064 | I20: 5.611807 | J20: 1 | K20: 0
A21: 101.8265414 | B21: 1 | C21: 6.421130975 | D21: 1 | E21: 0 | F21: C♯2/D♭2 | G21: 69.2957 | I21: 5.611807 | J21: 1 | K21: 0
A22: 102.0461191 | B22: 1 | C22: 0.2151748989 | D22: 0 | E22: 1 | F22: D2 | G22: 73.4162 | I22: 5.611807 | J22: 1 | K22: 0
A23: 103.1361047 | B23: 1 | C23: 1.056841961 | D23: 0 | E23: 0 | F23: D♯2/E♭2 | G23: 77.7817 | I23: 5.611807 | J23: 1 | K23: 0
A24: 105.5131209 | B24: 1 | C24: 2.252815713 | D24: 0 | E24: 0 | F24: E2 | G24: 82.4069 | I24: 5.611807 | J24: 1 | K24: 0
A25: 107.3020602 | B25: 1 | C25: 1.667199451 | D25: 0 | E25: 0 | F25: F2 | G25: 87.3071 | I25: 5.611807 | J25: 1 | K25: 0
A26: 107.7003181 | B26: 1 | C26: 0.3697834126 | D26: 0 | E26: 1 | F26: F♯2/G♭2 | G26: 92.4986 | I26: 5.611807 | J26: 1 | K26: 0
A27: 107.8505669 | B27: 1 | C27: 0.1393119742 | D27: 0 | E27: 1 | F27: G2 | G27: 97.9989 | I27: 5.611807 | J27: 1 | K27: 0
A28: 108.1768368 | B28: 1 | C28: 0.3016079686 | D28: 0 | E28: 1 | F28: G♯2/A♭2 | G28: 103.826 | I28: 5.611807 | J28: 1 | K28: 0
A29: 110.990841 | B29: 1 | C29: 2.535348069 | D29: 0 | E29: 0 | F29: A2 | G29: 110 | I29: 5.611807 | J29: 1 | K29: 0
A30: 111.453292 | B30: 1 | C30: 0.414928046 | D30: 0 | E30: 1 | F30: A♯2/B♭2 | G30: 116.541 | I30: 5.611807 | J30: 1 | K30: 0
A31: 113.1483528 | B31: 1 | C31: 1.498087071 | D31: 0 | E31: 0 | F31: B2 | G31: 123.471 | I31: 5.611807 | J31: 1 | K31: 0
A32: 115.2902574 | B32: 1 | C32: 1.857836588 | D32: 0 | E32: 0 | F32: C3 Low C | G32: 130.813 | I32: 5.611807 | J32: 1 | K32: 0
A33: 118.8153388 | B33: 1 | C33: 2.966857175 | D33: 0 | E33: 0 | F33: C♯3/D♭3 | G33: 138.591 | I33: 5.611807 | J33: 1 | K33: 0
A34: 119.175128 | B34: 1 | C34: 0.3018995659 | D34: 0 | E34: 1 | F34: D3 | G34: 146.832 | I34: 5.611807 | J34: 1 | K34: 0
A35: 119.3109273 | B35: 1 | C35: 0.1138197108 | D35: 0 | E35: 1 | F35: D♯3/E♭3 | G35: 155.563 | I35: 5.611807 | J35: 1 | K35: 0
A36: 120.3236949 | B36: 1 | C36: 0.8417025248 | D36: 0 | E36: 1 | F36: E3 | G36: 164.814 | I36: 5.611807 | J36: 1 | K36: 0
A37: 120.7504081 | B37: 1 | C37: 0.3533844865 | D37: 0 | E37: 1 | F37: F3 | G37: 174.614 | I37: 5.611807 | J37: 1 | K37: 0
A38: 122.1569457 | B38: 1 | C38: 1.151418439 | D38: 0 | E38: 1 | F38: F♯3/G♭3 | G38: 184.997 | I38: 5.611807 | J38: 1 | K38: 0
A39: 124.1205154 | B39: 1 | C39: 1.581986413 | D39: 0 | E39: 0 | F39: G3 | G39: 195.998 | I39: 5.611807 | J39: 1 | K39: 0 | P39: If you found this spreadsheet helpful, please send a donation via PayPal to erika@jhbrandt.net
A40: 124.7745201 | B40: 1 | C40: 0.5241492517 | D40: 0 | E40: 1 | F40: G♯3/A♭3 | G40: 207.652 | I40: 5.611807 | J40: 1 | K40: 0
A41: 127.6255818 | B41: 1 | C41: 2.233926488 | D41: 0 | E41: 0 | F41: A3 | G41: 220 | I41: 5.611807 | J41: 1 | K41: 0
A42: 129.1084915 | B42: 1 | C42: 1.148576446 | D42: 0 | E42: 1 | F42: A♯3/B♭3 | G42: 233.082 | I42: 5.611807 | J42: 1 | K42: 0
A43: 129.9610893 | B43: 1 | C43: 0.6560408221 | D43: 0 | E43: 1 | F43: B3 | G43: 246.942 | I43: 5.611807 | J43: 1 | K43: 0
A44: 130.6948513 | B44: 1 | C44: 0.5614314496 | D44: 0 | E44: 1 | F44: C4 Middle C | G44: 261.626 | I44: 5.611807 | J44: 1 | K44: 0
A45: 134.1275753 | B45: 1 | C45: 2.559297704 | D45: 0 | E45: 0 | F45: C♯4/D♭4 | G45: 277.183 | I45: 5.611807 | J45: 1 | K45: 0
A46: 134.446394 | B46: 1 | C46: 0.2371344222 | D46: 0 | E46: 1 | F46: D4 | G46: 293.665 | I46: 5.611807 | J46: 1 | K46: 0
A47: 134.8284182 | B47: 1 | C47: 0.283341035 | D47: 0 | E47: 1 | F47: D♯4/E♭4 | G47: 311.127 | I47: 5.611807 | J47: 1 | K47: 0
A48: 135.8201528 | B48: 1 | C48: 0.7301822144 | D48: 0 | E48: 1 | F48: E4 | G48: 329.628 | I48: 5.611807 | J48: 1 | K48: 0
A49: 138.8249084 | B49: 1 | C49: 2.164421088 | D49: 0 | E49: 0 | F49: F4 | G49: 349.228 | I49: 5.611807 | J49: 1 | K49: 0
A50: 138.8489253 | B50: 1 | C50: 0.01729717386 | D50: 0 | E50: 1 | F50: F♯4/G♭4 | G50: 369.994 | I50: 5.611807 | J50: 1 | K50: 0
A51: 143.5045611 | B51: 1 | C51: 3.244242365 | D51: 0 | E51: 0 | F51: G4 | G51: 391.995 | I51: 5.611807 | J51: 1 | K51: 0
A52: 143.6004242 | B52: 1 | C52: 0.06675682743 | D52: 0 | E52: 1 | F52: G♯4/A♭4 | G52: 415.305 | I52: 5.611807 | J52: 1 | K52: 0
A53: 143.802592 | B53: 1 | C53: 0.1405870166 | D53: 0 | E53: 1 | F53: A4 A440 | G53: 440 | I53: 5.611807 | J53: 1 | K53: 0
A54: 146.0845306 | B54: 1 | C54: 1.56206728 | D54: 0 | E54: 0 | F54: A♯4/B♭4 | G54: 466.164 | I54: 5.611807 | J54: 1 | K54: 0
A55: 147.9269302 | B55: 1 | C55: 1.245479479 | D55: 0 | E55: 1 | F55: B4 | G55: 493.883 | I55: 5.611807 | J55: 1 | K55: 0
A56: 148.0781636 | B56: 1 | C56: 0.1021308358 | D56: 0 | E56: 1 | F56: C5 Tenor C | G56: 523.251 | I56: 5.611807 | J56: 1 | K56: 0
A57: 148.3670076 | B57: 1 | C57: 0.1946820713 | D57: 0 | E57: 1 | F57: C♯5/D♭5 | G57: 554.365 | I57: 5.611807 | J57: 1 | K57: 0
A58: 148.4761098 | B58: 1 | C58: 0.07348134973 | D58: 0 | E58: 1 | F58: D5 | G58: 587.33 | I58: 5.611807 | J58: 1 | K58: 0
A59: 150.772601 | B59: 1 | C59: 1.523148836 | D59: 0 | E59: 0 | F59: D♯5/E♭5 | G59: 622.254 | I59: 5.611807 | J59: 1 | K59: 0
A60: 152.0299005 | B60: 1 | C60: 0.8270080827 | D60: 0 | E60: 1 | F60: E5 | G60: 659.255 | I60: 5.611807 | J60: 1 | K60: 0
A61: 152.136376 | B61: 1 | C61: 0.06998686835 | D61: 0 | E61: 1 | F61: F5 | G61: 698.456 | I61: 5.611807 | J61: 1 | K61: 0
A62: 152.3678449 | B62: 1 | C62: 0.1519145229 | D62: 0 | E62: 1 | F62: F♯5/G♭5 | G62: 739.989 | I62: 5.611807 | J62: 1 | K62: 0
A63: 152.3956509 | B63: 1 | C63: 0.01824596251 | D63: 0 | E63: 1 | F63: G5 | G63: 783.991 | I63: 5.611807 | J63: 1 | K63: 0
A64: 153.0691786 | B64: 1 | C64: 0.4400151979 | D64: 0 | E64: 1 | F64: G♯5/A♭5 | G64: 830.609 | I64: 5.611807 | J64: 1 | K64: 0
A65: 153.2955148 | B65: 1 | C65: 0.1476469788 | D65: 0 | E65: 1 | F65: A5 | G65: 880 | I65: 5.611807 | J65: 1 | K65: 0
A66: 154.738627 | B66: 1 | C66: 0.9326127772 | D66: 0 | E66: 1 | F66: A♯5/B♭5 | G66: 932.328 | I66: 5.611807 | J66: 1 | K66: 0
A67: 155.4020003 | B67: 1 | C67: 0.4268756448 | D67: =IF(C67>I66,J66,K66) -> 0 | E67: 1 | F67: B5 | G67: 987.767 | I67: 5.611807 | J67: 1 | K67: 0
A68: 157.2227434 | B68: =IF(A68=A67,B67+1,1) -> 1 | C68: =((A68-A67)/A68)*100 -> 1.158066 | D68: 0 | E68: =IF(C68<((A67*1.01)-(A67)),J67,K67) -> 1 | F68: C6 Soprano C | G68: 1046.5 | I68: 5.611807 | J68: 1 | K68: 0
A69: 157.7694583 | B69: 1 | C69: 0.3465277027 | D69: 0 | E69: 1 | F69: C♯6/D♭6 | G69: 1108.73 | I69: 5.611807 | J69: 1 | K69: 0
A70: 159.4948253 | B70: 1 | C70: 1.08176991 | D70: 0 | E70: 1 | F70: D6 | G70: 1174.66 | I70: 5.611807 | J70: 1 | K70: 0
A71: 160.3634723 | B71: 1 | C71: 0.5416738506 | D71: 0 | E71: 1 | F71: D♯6/E♭6 | G71: 1244.51 | I71: 5.611807 | J71: 1 | K71: 0
A72: 160.4644182 | B72: 1 | C72: 0.06290857208 | D72: 0 | E72: 1 | F72: E6 | G72: 1318.51 | I72: 5.611807 | J72: 1 | K72: 0
A73: 160.9530903 | B73: 1 | C73: 0.3036115223 | D73: 0 | E73: 1 | F73: F6 | G73: 1396.91 | I73: 5.611807 | J73: 1 | K73: 0
A74: 161.5638185 | B74: 1 | C74: 0.3780105036 | D74: 0 | E74: 1 | F74: F♯6/G♭6 | G74: 1479.98 | I74: 5.611807 | J74: 1 | K74: 0
A75: 162.1992801 | B75: 1 | C75: 0.3917782954 | D75: 0 | E75: 1 | F75: G6 | G75: 1567.98 | I75: 5.611807 | J75: 1 | K75: 0
A76: 164.567351 | B76: 1 | C76: 1.438967589 | D76: 0 | E76: 1 | F76: G♯6/A♭6 | G76: 1661.22 | I76: 5.611807 | J76: 1 | K76: 0
A77: 164.6133535 | B77: 1 | C77: 0.02794580807 | D77: 0 | E77: 1 | F77: A6 | G77: 1760 | I77: 5.611807 | J77: 1 | K77: 0
A78: 164.9082014 | B78: 1 | C78: 0.1787952021 | D78: 0 | E78: 1 | F78: A♯6/B♭6 | G78: 1864.66 | I78: 5.611807 | J78: 1 | K78: 0
A79: 166.1247245 | B79: 1 | C79: 0.7322949927 | D79: 0 | E79: 1 | F79: B6 | G79: 1975.53 | I79: 5.611807 | J79: 1 | K79: 0
A80: 168.5337262 | B80: 1 | C80: 1.429388511 | D80: 0 | E80: 1 | F80: C7 Double high C | G80: 2093 | I80: 5.611807 | J80: 1 | K80: 0
A81: 168.7875685 | B81: 1 | C81: 0.1503915589 | D81: 0 | E81: 1 | F81: C♯7/D♭7 | G81: 2217.46 | I81: 5.611807 | J81: 1 | K81: 0
A82: 168.8468238 | B82: 1 | C82: 0.03509411627 | D82: 0 | E82: 1 | F82: D7 | G82: 2349.32 | I82: 5.611807 | J82: 1 | K82: 0
A83: 169.0723037 | B83: 1 | C83: 0.1333630546 | D83: 0 | E83: 1 | F83: D♯7/E♭7 | G83: 2489.02 | I83: 5.611807 | J83: 1 | K83: 0
A84: 171.1871845 | B84: 1 | C84: 1.235420048 | D84: 0 | E84: 1 | F84: E7 | G84: 2637.02 | I84: 5.611807 | J84: 1 | K84: 0
A85: 172.0161765 | B85: 1 | C85: 0.4819267417 | D85: 0 | E85: 1 | F85: F7 | G85: 2793.83 | I85: 5.611807 | J85: 1 | K85: 0
A86: 172.3149282 | B86: 1 | C86: 0.1733754046 | D86: 0 | E86: 1 | F86: F♯7/G♭7 | G86: 2959.96 | I86: 5.611807 | J86: 1 | K86: 0
A87: 172.3395159 | B87: 1 | C87: 0.01426702908 | D87: 0 | E87: 1 | F87: G7 | G87: 3135.96 | I87: 5.611807 | J87: 1 | K87: 0
A88: 172.6211676 | B88: 1 | C88: 0.1631617273 | D88: 0 | E88: 1 | F88: G♯7/A♭7 | G88: 3322.44 | I88: 5.611807 | J88: 1 | K88: 0
A89: 172.9353861 | B89: 1 | C89: 0.1816970378 | D89: 0 | E89: 1 | F89: A7 | G89: 3520 | I89: 5.611807 | J89: 1 | K89: 0
A90: 176.1660928 | B90: 1 | C90: 1.833898133 | D90: 0 | E90: 0 | F90: A♯7/B♭7 | G90: 3729.31 | I90: 5.611807 | J90: 1 | K90: 0
A91: 176.2417877 | B91: 1 | C91: 0.04294950077 | D91: 0 | E91: 1 | F91: B7 | G91: 3951.07 | I91: 5.611807 | J91: 1 | K91: 0
A92: 176.6223807 | B92: 1 | C92: 0.2154840109 | D92: 0 | E92: 1 | F92: C8 Eighth octave | G92: 4186.01 | I92: 5.611807 | J92: 1 | K92: 0
A93: 177.3805991 | B93: 1 | C93: 0.4274528021 | D93: 0 | E93: 1 | I93: 5.611807 | J93: 1 | K93: 0
A94: 178.1968027 | B94: 1 | C94: 0.4580349585 | D94: 0 | E94: 1 | I94: 5.611807 | J94: 1 | K94: 0
A95: 179.2618586 | B95: 1 | C95: 0.5941341346 | D95: 0 | E95: 1 | I95: 5.611807 | J95: 1 | K95: 0
A96: 179.423849 | B96: 1 | C96: 0.09028362943 | D96: 0 | E96: 1 | I96: 5.611807 | J96: 1 | K96: 0
A97: 179.5005302 | B97: 1 | C97: 0.0427192335 | D97: 0 | E97: 1 | I97: 5.611807 | J97: 1 | K97: 0
A98: 181.4939355 | B98: 1 | C98: 1.098331595 | D98: 0 | E98: 1 | I98: 5.611807 | J98: 1 | K98: 0
A99: 183.1024333 | B99: 1 | C99: 0.8784688358 | D99: 0 | E99: 1 | I99: 5.611807 | J99: 1 | K99: 0
A100: 183.1908494 | B100: 1 | C100: 0.04826451632 | D100: 0 | E100: 1 | I100: 5.611807 | J100: 1 | K100: 0
A101: 183.4789371 | B101: 1 | C101: 0.1570140002 | D101: 0 | E101: 1 | I101: 5.611807 | J101: 1 | K101: 0
A102: 184.1546233 | B102: 1 | C102: 0.3669124301 | D102: 0 | E102: 1 | I102: 5.611807 | J102: 1 | K102: 0
A103: 186.3817764 | B103: 1 | C103: 1.194941439 | D103: 0 | E103: 1 | I103: 5.611807 | J103: 1 | K103: 0
A104: 186.611342 | B104: 1 | C104: 0.123018045 | D104: 0 | E104: 1 | I104: 5.611807 | J104: 1 | K104: 0
A105: 186.9328905 | B105: 1 | C105: 0.1720128329 | D105: 0 | E105: 1 | I105: 5.611807 | J105: 1 | K105: 0
A106: 187.1617802 | B106: 1 | C106: 0.1222950806 | D106: 0 | E106: 1 | I106: 5.611807 | J106: 1 | K106: 0
A107: 187.2482796 | B107: 1 | C107: 0.04619503962 | D107: 0 | E107: 1 | I107: 5.611807 | J107: 1 | K107: 0
A108: 187.3469332 | B108: 1 | C108: 0.0526582429 | D108: 0 | E108: 1 | I108: 5.611807 | J108: 1 | K108: 0
A109: 187.7786054 | B109: 1 | C109: 0.2298835802 | D109: 0 | E109: 1 | I109: 5.611807 | J109: 1 | K109: 0
A110: 188.5295765 | B110: 1 | C110: 0.3983306587 | D110: 0 | E110: 1 | I110: 5.611807 | J110: 1 | K110: 0
A111: 189.0744304 | B111: 1 | C111: 0.2881689923 | D111: 0 | E111: 1 | I111: 5.611807 | J111: 1 | K111: 0
A112: 190.3489511 | B112: 1 | C112: 0.6695706509 | D112: 0 | E112: 1 | I112: 5.611807 | J112: 1 | K112: 0
A113: 190.5762517 | B113: 1 | C113: 0.1192701574 | D113: 0 | E113: 1 | I113: 5.611807 | J113: 1 | K113: 0
A114: 191.179555 | B114: 1 | C114: 0.3155689611 | D114: 0 | E114: 1 | I114: 5.611807 | J114: 1 | K114: 0
A115: 193.6627373 | B115: 1 | C115: 1.28221996 | D115: 0 | E115: 1 | I115: 5.611807 | J115: 1 | K115: 0
A116: 193.6774808 | B116: 1 | C116: 0.007612395175 | D116: 0 | E116: 1 | I116: 5.611807 | J116: 1 | K116: 0
A117: 193.9281447 | B117: 1 | C117: 0.1292560945 | D117: 0 | E117: 1 | I117: 5.611807 | J117: 1 | K117: 0
A118: 194.1706105 | B118: 1 | C118: 0.1248725446 | D118: 0 | E118: 1 | I118: 5.611807 | J118: 1 | K118: 0
A119: 194.5871456 | B119: 1 | C119: 0.2140609651 | D119: 0 | E119: 1 | I119: 5.611807 | J119: 1 | K119: 0
A120: 194.699679 | B120: 1 | C120: 0.05779842433 | D120: 0 | E120: 1 | I120: 5.611807 | J120: 1 | K120: 0
A121: 196.4975528 | B121: 1 | C121: 0.9149599264 | D121: 0 | E121: 1 | I121: 5.611807 | J121: 1 | K121: 0
A122: 196.7153138 | B122: 1 | C122: 0.1106985128 | D122: 0 | E122: 1 | I122: 5.611807 | J122: 1 | K122: 0
A123: 197.8711067 | B123: 1 | C123: 0.5841140378 | D123: 0 | E123: 1 | I123: 5.611807 | J123: 1 | K123: 0
A124: 200.0074383 | B124: 1 | C124: 1.068126105 | D124: 0 | E124: 1 | I124: 5.611807 | J124: 1 | K124: 0
A125: 200.2477866 | B125: 1 | C125: 0.1200254036 | D125: 0 | E125: 1 | I125: 5.611807 | J125: 1 | K125: 0
A126: 200.271337 | B126: 1 | C126: 0.01175926089 | D126: 0 | E126: 1 | I126: 5.611807 | J126: 1 | K126: 0
A127: 201.0374967 | B127: 1 | C127: 0.3811029149 | D127: 0 | E127: 1 | I127: 5.611807 | J127: 1 | K127: 0
A128: 203.0138933 | B128: 1 | C128: 0.97352774 | D128: 0 | E128: 1 | I128: 5.611807 | J128: 1 | K128: 0
A129: 203.2246719 | B129: 1 | C129: 0.1037170356 | D129: 0 | E129: 1 | I129: 5.611807 | J129: 1 | K129: 0
A130: 203.5199742 | B130: 1 | C130: 0.1450974304 | D130: 0 | E130: 1 | I130: 5.611807 | J130: 1 | K130: 0
A131: 203.6530829 | B131: 1 | C131: 0.06536050979 | D131: =IF(C131>I130,J130,K130) -> 0 | E131: 1 | I131: 5.611807 | J131: 1 | K131: 0
A132: 203.7302292 | B132: =IF(A132=A131,B131+1,1) -> 1 | C132: =((A132-A131)/A132)*100 -> 0.03786690058 | D132: 0 | E132: =IF(C132<((A131*1.01)-(A131)),J131,K131) -> 1 | I132: 5.611807 | J132: 1 | K132: 0
A133: 204.0922381 | B133: 1 | C133: 0.1773751648 | D133: 0 | E133: 1 | I133: 5.611807 | J133: 1 | K133: 0
A134: 205.8476376 | B134: 1 | C134: 0.8527664113 | D134: 0 | E134: 1 | I134: 5.611807 | J134: 1 | K134: 0
A135: 206.2722094 | B135: 1 | C135: 0.2058308058 | D135: 0 | E135: 1 | I135: 5.611807 | J135: 1 | K135: 0
A136: 206.4796619 | B136: 1 | C136: 0.1004711435 | D136: 0 | E136: 1 | I136: 5.611807 | J136: 1 | K136: 0
A137: 206.6620369 | B137: 1 | C137: 0.0882479642 | D137: 0 | E137: 1 | I137: 5.611807 | J137: 1 | K137: 0
A138: 207.2256241 | B138: 1 | C138: 0.2719678999 | D138: 0 | E138: 1 | I138: 5.611807 | J138: 1 | K138: 0
A139: 207.4112526 | B139: 1 | C139: 0.08949779711 | D139: 0 | E139: 1 | I139: 5.611807 | J139: 1 | K139: 0
A140: 208.2149347 | B140: 1 | C140: 0.3859867647 | D140: 0 | E140: 1 | I140: 5.611807 | J140: 1 | K140: 0
A141: 208.9547021 | B141: 1 | C141: 0.3540324429 | D141: 0 | E141: 1 | I141: 5.611807 | J141: 1 | K141: 0
A142: 209.1271682 | B142: 1 | C142: 0.08246947544 | D142: 0 | E142: 1 | I142: 5.611807 | J142: 1 | K142: 0
A143: 209.883909 | B143: 1 | C143: 0.360552086 | D143: 0 | E143: 1 | I143: 5.611807 | J143: 1 | K143: 0
A144: 211.0262417 | B144: 1 | C144: 0.5413225902 | D144: 0 | E144: 1 | I144: 5.611807 | J144: 1 | K144: 0
A145: 211.5912652 | B145: 1 | C145: 0.26703536 | D145: 0 | E145: 1 | I145: 5.611807 | J145: 1 | K145: 0
A146: 213.3360818 | B146: 1 | C146: 0.817872234 | D146: 0 | E146: 1 | I146: 5.611807 | J146: 1 | K146: 0
A147: 213.7152663 | B147: 1 | C147: 0.1774250965 | D147: 0 | E147: 1 | I147: 5.611807 | J147: 1 | K147: 0
A148: 214.0581517 | B148: 1 | C148: 0.160183288 | D148: 0 | E148: 1 | I148: 5.611807 | J148: 1 | K148: 0
A149: 214.6041204 | B149: 1 | C149: 0.2544073887 | D149: 0 | E149: 1 | I149: 5.611807 | J149: 1 | K149: 0
A150: 215.2615272 | B150: 1 | C150: 0.3053990841 | D150: 0 | E150: 1 | I150: 5.611807 | J150: 1 | K150: 0
A151: 215.4006363 | B151: 1 | C151: 0.06458156001 | D151: 0 | E151: 1 | I151: 5.611807 | J151: 1 | K151: 0
A152: 215.7011338 | B152: 1 | C152: 0.1393119742 | D152: 0 | E152: 1 | I152: 5.611807 | J152: 1 | K152: 0
A153: 215.7388794 | B153: 1 | C153: 0.01749598351 | D153: 0 | E153: 1 | I153: 5.611807 | J153: 1 | K153: 0
A154: 215.8139253 | B154: 1 | C154: 0.03477341005 | D154: 0 | E154: 1 | I154: 5.611807 | J154: 1 | K154: 0
A155: 216.3536737 | B155: 1 | C155: 0.2494750429 | D155: 0 | E155: 1 | I155: 5.611807 | J155: 1 | K155: 0
A156: 216.472084 | B156: 1 | C156: 0.05470005201 | D156: 0 | E156: 1 | I156: 5.611807 | J156: 1 | K156: 0
A157: 216.6326113 | B157: 1 | C157: 0.07410116791 | D157: 0 | E157: 1 | I157: 5.611807 | J157: 1 | K157: 0
A158: 216.7095583 | B158: 1 | C158: 0.03550697003 | D158: 0 | E158: 1 | I158: 5.611807 | J158: 1 | K158: 0
A159: 217.0646041 | B159: 1 | C159: 0.1635668754 | D159: 0 | E159: 1 | I159: 5.611807 | J159: 1 | K159: 0
A160: 217.5861809 | B160: 1 | C160: 0.2397104412 | D160: 0 | E160: 1 | I160: 5.611807 | J160: 1 | K160: 0
A161: 218.0103676 | B161: 1 | C161: 0.1945717927 | D161: 0 | E161: 1 | I161: 5.611807 | J161: 1 | K161: 0
A162: 218.9033262 | B162: 1 | C162: 0.4079237347 | D162: 0 | E162: 1 | I162: 5.611807 | J162: 1 | K162: 0
A163: 219.3857698 | B163: 1 | C163: 0.219906502 | D163: 0 | E163: 1 | I163: 5.611807 | J163: 1 | K163: 0
A164: 220.5862215 | B164: 1 | C164: 0.5442097423 | D164: 0 | E164: 1 | I164: 5.611807 | J164: 1 | K164: 0
A165: 221.3612132 | B165: 1 | C165: 0.3501027515 | D165: 0 | E165: 1 | I165: 5.611807 | J165: 1 | K165: 0
A166: 221.4152178 | B166: 1 | C166: 0.02439066327 | D166: 0 | E166: 1 | I166: 5.611807 | J166: 1 | K166: 0
A167: 221.6084951 | B167: 1 | C167: 0.08721562539 | D167: 0 | E167: 1 | I167: 5.611807 | J167: 1 | K167: 0
A168: 221.6536301 | B168: 1 | C168: 0.02036284296 | D168: 0 | E168: 1 | I168: 5.611807 | J168: 1 | K168: 0
A169: 221.981682 | B169: 1 | C169: 0.1477833338 | D169: 0 | E169: 1 | I169: 5.611807 | J169: 1 | K169: 0
A170: 222.1172454 | B170: 1 | C170: 0.06103238941 | D170: 0 | E170: 1 | I170: 5.611807 | J170: 1 | K170: 0
A171: 222.3036968 | B171: 1 | C171: 0.08387234902 | D171: 0 | E171: 1 | I171: 5.611807 | J171: 1 | K171: 0
A172: 222.4039473 | B172: 1 | C172: 0.04507587047 | D172: 0 | E172: 1 | I172: 5.611807 | J172: 1 | K172: 0
A173: 222.9065839 | B173: 1 | C173: 0.2254920489 | D173: 0 | E173: 1 | I173: 5.611807 | J173: 1 | K173: 0
A174: 222.9807054 | B174: 1 | C174: 0.03324119513 | D174: 0 | E174: 1 | I174: 5.611807 | J174: 1 | K174: 0
A175: 223.4884756 | B175: 1 | C175: 0.2272019792 | D175: 0 | E175: 1 | I175: 5.611807 | J175: 1 | K175: 0
A176: 224.0773233 | B176: 1 | C176: 0.2627877043 | D176: 0 | E176: 1 | I176: 5.611807 | J176: 1 | K176: 0
A177: 224.7837396 | B177: 1 | C177: 0.3142648695 | D177: 0 | E177: 1 | I177: 5.611807 | J177: 1 | K177: 0
A178: 224.9997519 | B178: 1 | C178: 0.09600556181 | D178: 0 | E178: 1 | I178: 5.611807 | J178: 1 | K178: 0
A179: 225.4539543 | B179: 1 | C179: 0.2014612909 | D179: 0 | E179: 1 | I179: 5.611807 | J179: 1 | K179: 0
A180: 226.2967056 | B180: 1 | C180: 0.3724098822 | D180: 0 | E180: 1 | I180: 5.611807 | J180: 1 | K180: 0
A181: 227.7701028 | B181: 1 | C181: 0.6468791123 | D181: 0 | E181: 1 | I181: 5.611807 | J181: 1 | K181: 0
A182: 229.8129661 | B182: 1 | C182: 0.8889243049 | D182: 0 | E182: 1 | I182: 5.611807 | J182: 1 | K182: 0
A183: 229.9432722 | B183: 1 | C183: 0.05666878391 | D183: 0 | E183: 1 | I183: 5.611807 | J183: 1 | K183: 0
A184: 230.2601538 | B184: 1 | C184: 0.1376189365 | D184: 0 | E184: 1 | I184: 5.611807 | J184: 1 | K184: 0
A185: 230.5805148 | B185: 1 | C185: 0.1389367212 | D185: 0 | E185: 1 | I185: 5.611807 | J185: 1 | K185: 0
A186: 230.7661158 | B186: 1 | C186: 0.08042818775 | D186: 0 | E186: 1 | I186: 5.611807 | J186: 1 | K186: 0
A187: 230.8362763 | B187: 1 | C187: 0.03039405035 | D187: 0 | E187: 1 | I187: 5.611807 | J187: 1 | K187: 0
A188: 231.9774807 | B188: 1 | C188: 0.4919462295 | D188: 0 | E188: 1 | I188: 5.611807 | J188: 1 | K188: 0
A189: 232.3200561 | B189: 1 | C189: 0.14745835 | D189: 0 | E189: 1 | I189: 5.611807 | J189: 1 | K189: 0
A190: 232.6963319 | B190: 1 | C190: 0.1617025351 | D190: 0 | E190: 1 | I190: 5.611807 | J190: 1 | K190: 0
A191: 233.358504 | B191: 1 | C191: 0.2837574358 | D191: 0 | E191: 1 | I191: 5.611807 | J191: 1 | K191: 0
A192: 233.4338047 | B192: 1 | C192: 0.03225782544 | D192: 0 | E192: 1 | I192: 5.611807 | J192: 1 | K192: 0
A193: 235.5361141 | B193: 1 | C193: 0.8925634901 | D193: 0 | E193: 1 | I193: 5.611807 | J193: 1 | K193: 0
A194: 235.7222675 | B194: 1 | C194: 0.07897150315 | D194: 0 | E194: 1 | I194: 5.611807 | J194: 1 | K194: 0
A195: 235.9038232 | B195: 1 | C195: 0.07696173938 | D195: =IF(C195>I194,J194,K194) -> 0 | E195: 1 | I195: 5.611807 | J195: 1 | K195: 0
A196: 236.3934992 | B196: =IF(A196=A195,B195+1,1) -> 1 | C196: =((A196-A195)/A196)*100 -> 0.2071444577 | D196: 0 | E196: =IF(C196<((A195*1.01)-(A195)),J195,K195) -> 1 | I196: 5.611807 | J196: 1 | K196: 0
A197: 236.9207319 | B197: 1 | C197: 0.2225355008 | D197: 0 | E197: 1 | I197: 5.611807 | J197: 1 | K197: 0
A198: 237.4241396 | B198: 1 | C198: 0.2120288267 | D198: 0 | E198: 1 | I198: 5.611807 | J198: 1 | K198: 0
A199: 237.6306776 | B199: 1 | C199: 0.08691555534 | D199: 0 | E199: 1 | I199: 5.611807 | J199: 1 | K199: 0
A200: 238.350256 | B200: 1 | C200: 0.3018995659 | D200: 0 | E200: 1 | I200: 5.611807 | J200: 1 | K200: 0
... 800 more rows

Sheet Axial
C1: Axial Modes
A2: Lx = | B2: =+AllModes!D2 -> 21.03333333 | C2: nx | D2: ny | E2: nz | F2: f | G2: Type | I2: If you found this spreadsheet helpful, please send a donation via PayPal to erika@jhbrandt.net
A3: Ly = | B3: =+AllModes!D3 -> 15.71666667 | C3: 1 | D3: 0 | E3: 0 | F3: =$B$5*SQRT((($C3/$B$2)^2)+(($D3/$B$3)^2)+(($E3/$B$4)^2)) -> 26.86212361 | G3: =+IF(+AND(C3=0,D3=0)+OR(+AND(C3=0,E3=0))+OR(+AND(D3=0,E3=0)),"Axial",(+IF(+OR(C3=0,D3=0,E3=0),"Tangential","Oblique"))) -> Axial
A4: Lz = | B4: =+AllModes!D4 -> 11.05833333 | C4: 0 | D4: 1 | E4: 0 | F4: =$B$5*SQRT((($C4/$B$2)^2)+(($D4/$B$3)^2)+(($E4/$B$4)^2)) -> 35.94909862 | G4: =+IF(+AND(C4=0,D4=0)+OR(+AND(C4=0,E4=0))+OR(+AND(D4=0,E4=0)),"Axial",(+IF(+OR(C4=0,D4=0,E4=0),"Tangential","Oblique"))) -> Axial
A5: c/2 = | B5: =1130/2 -> 565 | C5: 0 | D5: 0 | E5: 1 | F5: =$B$5*SQRT((($C5/$B$2)^2)+(($D5/$B$3)^2)+(($E5/$B$4)^2)) -> 51.09269028 | G5: =+IF(+AND(C5=0,D5=0)+OR(+AND(C5=0,E5=0))+OR(+AND(D5=0,E5=0)),"Axial",(+IF(+OR(C5=0,D5=0,E5=0),"Tangential","Oblique"))) -> Axial
C6: 2 | D6: 0 | E6: 0 | F6: =$B$5*SQRT((($C6/$B$2)^2)+(($D6/$B$3)^2)+(($E6/$B$4)^2)) -> 53.72424723 | G6: =+IF(+AND(C6=0,D6=0)+OR(+AND(C6=0,E6=0))+OR(+AND(D6=0,E6=0)),"Axial",(+IF(+OR(C6=0,D6=0,E6=0),"Tangential","Oblique"))) -> Axial
A7: V = | B7: =B2*B3*B4 -> 3655.596255 | C7: 0 | D7: 2 | E7: 0 | F7: =$B$5*SQRT((($C7/$B$2)^2)+(($D7/$B$3)^2)+(($E7/$B$4)^2)) -> 71.89819724 | G7: =+IF(+AND(C7=0,D7=0)+OR(+AND(C7=0,E7=0))+OR(+AND(D7=0,E7=0)),"Axial",(+IF(+OR(C7=0,D7=0,E7=0),"Tangential","Oblique"))) -> Axial
C8: 3 | D8: 0 | E8: 0 | F8: =$B$5*SQRT((($C8/$B$2)^2)+(($D8/$B$3)^2)+(($E8/$B$4)^2)) -> 80.58637084 | G8: =+IF(+AND(C8=0,D8=0)+OR(+AND(C8=0,E8=0))+OR(+AND(D8=0,E8=0)),"Axial",(+IF(+OR(C8=0,D8=0,E8=0),"Tangential","Oblique"))) -> Axial
C9: 0 | D9: 0 | E9: 2 | F9: =$B$5*SQRT((($C9/$B$2)^2)+(($D9/$B$3)^2)+(($E9/$B$4)^2)) -> 102.1853806 | G9: =+IF(+AND(C9=0,D9=0)+OR(+AND(C9=0,E9=0))+OR(+AND(D9=0,E9=0)),"Axial",(+IF(+OR(C9=0,D9=0,E9=0),"Tangential","Oblique"))) -> Axial
C10: 4 | D10: 0 | E10: 0 | F10: =$B$5*SQRT((($C10/$B$2)^2)+(($D10/$B$3)^2)+(($E10/$B$4)^2)) -> 107.4484945 | G10: =+IF(+AND(C10=0,D10=0)+OR(+AND(C10=0,E10=0))+OR(+AND(D10=0,E10=0)),"Axial",(+IF(+OR(C10=0,D10=0,E10=0),"Tangential","Oblique"))) -> Axial
C11: 0 | D11: 3 | E11: 0 | F11: =$B$5*SQRT((($C11/$B$2)^2)+(($D11/$B$3)^2)+(($E11/$B$4)^2)) -> 107.8472959 | G11: =+IF(+AND(C11=0,D11=0)+OR(+AND(C11=0,E11=0))+OR(+AND(D11=0,E11=0)),"Axial",(+IF(+OR(C11=0,D11=0,E11=0),"Tangential","Oblique"))) -> Axial
C12: 5 | D12: 0 | E12: 0 | F12: =$B$5*SQRT((($C12/$B$2)^2)+(($D12/$B$3)^2)+(($E12/$B$4)^2)) -> 134.3106181 | G12: =+IF(+AND(C12=0,D12=0)+OR(+AND(C12=0,E12=0))+OR(+AND(D12=0,E12=0)),"Axial",(+IF(+OR(C12=0,D12=0,E12=0),"Tangential","Oblique"))) -> Axial
C13: 0 | D13: 4 | E13: 0 | F13: =$B$5*SQRT((($C13/$B$2)^2)+(($D13/$B$3)^2)+(($E13/$B$4)^2)) -> 143.7963945 | G13: =+IF(+AND(C13=0,D13=0)+OR(+AND(C13=0,E13=0))+OR(+AND(D13=0,E13=0)),"Axial",(+IF(+OR(C13=0,D13=0,E13=0),"Tangential","Oblique"))) -> Axial
C14: 0 | D14: 0 | E14: 3 | F14: =$B$5*SQRT((($C14/$B$2)^2)+(($D14/$B$3)^2)+(($E14/$B$4)^2)) -> 153.2780708 | G14: =+IF(+AND(C14=0,D14=0)+OR(+AND(C14=0,E14=0))+OR(+AND(D14=0,E14=0)),"Axial",(+IF(+OR(C14=0,D14=0,E14=0),"Tangential","Oblique"))) -> Axial
C15: 6 | D15: 0 | E15: 0 | F15: =$B$5*SQRT((($C15/$B$2)^2)+(($D15/$B$3)^2)+(($E15/$B$4)^2)) -> 161.1727417 | G15: =+IF(+AND(C15=0,D15=0)+OR(+AND(C15=0,E15=0))+OR(+AND(D15=0,E15=0)),"Axial",(+IF(+OR(C15=0,D15=0,E15=0),"Tangential","Oblique"))) -> Axial
C16: 0 | D16: 5 | E16: 0 | F16: =$B$5*SQRT((($C16/$B$2)^2)+(($D16/$B$3)^2)+(($E16/$B$4)^2)) -> 179.7454931 | G16: =+IF(+AND(C16=0,D16=0)+OR(+AND(C16=0,E16=0))+OR(+AND(D16=0,E16=0)),"Axial",(+IF(+OR(C16=0,D16=0,E16=0),"Tangential","Oblique"))) -> Axial
C17: 7 | D17: 0 | E17: 0 | F17: =$B$5*SQRT((($C17/$B$2)^2)+(($D17/$B$3)^2)+(($E17/$B$4)^2)) -> 188.0348653 | G17: =+IF(+AND(C17=0,D17=0)+OR(+AND(C17=0,E17=0))+OR(+AND(D17=0,E17=0)),"Axial",(+IF(+OR(C17=0,D17=0,E17=0),"Tangential","Oblique"))) -> Axial
C18: 0 | D18: 0 | E18: 4 | F18: =$B$5*SQRT((($C18/$B$2)^2)+(($D18/$B$3)^2)+(($E18/$B$4)^2)) -> 204.3707611 | G18: =+IF(+AND(C18=0,D18=0)+OR(+AND(C18=0,E18=0))+OR(+AND(D18=0,E18=0)),"Axial",(+IF(+OR(C18=0,D18=0,E18=0),"Tangential","Oblique"))) -> Axial
C19: 8 | D19: 0 | E19: 0 | F19: =$B$5*SQRT((($C19/$B$2)^2)+(($D19/$B$3)^2)+(($E19/$B$4)^2)) -> 214.8969889 | G19: =+IF(+AND(C19=0,D19=0)+OR(+AND(C19=0,E19=0))+OR(+AND(D19=0,E19=0)),"Axial",(+IF(+OR(C19=0,D19=0,E19=0),"Tangential","Oblique"))) -> Axial
C20: 0 | D20: 6 | E20: 0 | F20: =$B$5*SQRT((($C20/$B$2)^2)+(($D20/$B$3)^2)+(($E20/$B$4)^2)) -> 215.6945917 | G20: =+IF(+AND(C20=0,D20=0)+OR(+AND(C20=0,E20=0))+OR(+AND(D20=0,E20=0)),"Axial",(+IF(+OR(C20=0,D20=0,E20=0),"Tangential","Oblique"))) -> Axial
C21: 9 | D21: 0 | E21: 0 | F21: =$B$5*SQRT((($C21/$B$2)^2)+(($D21/$B$3)^2)+(($E21/$B$4)^2)) -> 241.7591125 | G21: =+IF(+AND(C21=0,D21=0)+OR(+AND(C21=0,E21=0))+OR(+AND(D21=0,E21=0)),"Axial",(+IF(+OR(C21=0,D21=0,E21=0),"Tangential","Oblique"))) -> Axial
C22: 0 | D22: 7 | E22: 0 | F22: =$B$5*SQRT((($C22/$B$2)^2)+(($D22/$B$3)^2)+(($E22/$B$4)^2)) -> 251.6436903 | G22: =+IF(+AND(C22=0,D22=0)+OR(+AND(C22=0,E22=0))+OR(+AND(D22=0,E22=0)),"Axial",(+IF(+OR(C22=0,D22=0,E22=0),"Tangential","Oblique"))) -> Axial
C23: 0 | D23: 0 | E23: 5 | F23: =$B$5*SQRT((($C23/$B$2)^2)+(($D23/$B$3)^2)+(($E23/$B$4)^2)) -> 255.4634514 | G23: =+IF(+AND(C23=0,D23=0)+OR(+AND(C23=0,E23=0))+OR(+AND(D23=0,E23=0)),"Axial",(+IF(+OR(C23=0,D23=0,E23=0),"Tangential","Oblique"))) -> Axial
C24: 0 | D24: 8 | E24: 0 | F24: =$B$5*SQRT((($C24/$B$2)^2)+(($D24/$B$3)^2)+(($E24/$B$4)^2)) -> 287.592789 | G24: =+IF(+AND(C24=0,D24=0)+OR(+AND(C24=0,E24=0))+OR(+AND(D24=0,E24=0)),"Axial",(+IF(+OR(C24=0,D24=0,E24=0),"Tangential","Oblique"))) -> Axial
C25: 0 | D25: 0 | E25: 6 | F25: =$B$5*SQRT((($C25/$B$2)^2)+(($D25/$B$3)^2)+(($E25/$B$4)^2)) -> 306.5561417 | G25: =+IF(+AND(C25=0,D25=0)+OR(+AND(C25=0,E25=0))+OR(+AND(D25=0,E25=0)),"Axial",(+IF(+OR(C25=0,D25=0,E25=0),"Tangential","Oblique"))) -> Axial
C26: 0 | D26: 9 | E26: 0 | F26: =$B$5*SQRT((($C26/$B$2)^2)+(($D26/$B$3)^2)+(($E26/$B$4)^2)) -> 323.5418876 | G26: =+IF(+AND(C26=0,D26=0)+OR(+AND(C26=0,E26=0))+OR(+AND(D26=0,E26=0)),"Axial",(+IF(+OR(C26=0,D26=0,E26=0),"Tangential","Oblique"))) -> Axial
C27: 0 | D27: 0 | E27: 7 | F27: =$B$5*SQRT((($C27/$B$2)^2)+(($D27/$B$3)^2)+(($E27/$B$4)^2)) -> 357.648832 | G27: =+IF(+AND(C27=0,D27=0)+OR(+AND(C27=0,E27=0))+OR(+AND(D27=0,E27=0)),"Axial",(+IF(+OR(C27=0,D27=0,E27=0),"Tangential","Oblique"))) -> Axial
C28: 0 | D28: 0 | E28: 8 | F28: =$B$5*SQRT((($C28/$B$2)^2)+(($D28/$B$3)^2)+(($E28/$B$4)^2)) -> 408.7415222 | G28: =+IF(+AND(C28=0,D28=0)+OR(+AND(C28=0,E28=0))+OR(+AND(D28=0,E28=0)),"Axial",(+IF(+OR(C28=0,D28=0,E28=0),"Tangential","Oblique"))) -> Axial
C29: 0 | D29: 0 | E29: 9 | F29: =$B$5*SQRT((($C29/$B$2)^2)+(($D29/$B$3)^2)+(($E29/$B$4)^2)) -> 459.8342125 | G29: =+IF(+AND(C29=0,D29=0)+OR(+AND(C29=0,E29=0))+OR(+AND(D29=0,E29=0)),"Axial",(+IF(+OR(C29=0,D29=0,E29=0),"Tangential","Oblique"))) -> Axial

Sheet Tangential
C1: Tangential Modes
A2: Lx = | B2: =+AllModes!D2 -> 21.03333333 | C2: nx | D2: ny | E2: nz | F2: f | G2: Type | I2: If you found this spreadsheet helpful, please send a donation via PayPal to erika@jhbrandt.net
A3: Ly = | B3: =+AllModes!D3 -> 15.71666667 | C3: 1 | D3: 1 | E3: 0 | F3: =$B$5*SQRT((($C3/$B$2)^2)+(($D3/$B$3)^2)+(($E3/$B$4)^2)) -> 44.87662395 | G3: =+IF(+AND(C3=0,D3=0)+OR(+AND(C3=0,E3=0))+OR(+AND(D3=0,E3=0)),"Axial",(+IF(+OR(C3=0,D3=0,E3=0),"Tangential","Oblique"))) -> Tangential
A4: Lz = | B4: =+AllModes!D4 -> 11.05833333 | C4: 1 | D4: 0 | E4: 1 | F4: =$B$5*SQRT((($C4/$B$2)^2)+(($D4/$B$3)^2)+(($E4/$B$4)^2)) -> 57.72379652 | G4: =+IF(+AND(C4=0,D4=0)+OR(+AND(C4=0,E4=0))+OR(+AND(D4=0,E4=0)),"Axial",(+IF(+OR(C4=0,D4=0,E4=0),"Tangential","Oblique"))) -> Tangential
A5: c/2 = | B5: =1130/2 -> 565 | C5: 0 | D5: 1 | E5: 1 | F5: =$B$5*SQRT((($C5/$B$2)^2)+(($D5/$B$3)^2)+(($E5/$B$4)^2)) -> 62.47239944 | G5: =+IF(+AND(C5=0,D5=0)+OR(+AND(C5=0,E5=0))+OR(+AND(D5=0,E5=0)),"Axial",(+IF(+OR(C5=0,D5=0,E5=0),"Tangential","Oblique"))) -> Tangential
C6: 2 | D6: 1 | E6: 0 | F6: =$B$5*SQRT((($C6/$B$2)^2)+(($D6/$B$3)^2)+(($E6/$B$4)^2)) -> 64.64234241 | G6: =+IF(+AND(C6=0,D6=0)+OR(+AND(C6=0,E6=0))+OR(+AND(D6=0,E6=0)),"Axial",(+IF(+OR(C6=0,D6=0,E6=0),"Tangential","Oblique"))) -> Tangential
A7: V = | B7: =B2*B3*B4 -> 3655.596255 | C7: 2 | D7: 0 | E7: 1 | F7: =$B$5*SQRT((($C7/$B$2)^2)+(($D7/$B$3)^2)+(($E7/$B$4)^2)) -> 74.14012234 | G7: =+IF(+AND(C7=0,D7=0)+OR(+AND(C7=0,E7=0))+OR(+AND(D7=0,E7=0)),"Axial",(+IF(+OR(C7=0,D7=0,E7=0),"Tangential","Oblique"))) -> Tangential
C8: 1 | D8: 2 | E8: 0 | F8: =$B$5*SQRT((($C8/$B$2)^2)+(($D8/$B$3)^2)+(($E8/$B$4)^2)) -> 76.75235796 | G8: =+IF(+AND(C8=0,D8=0)+OR(+AND(C8=0,E8=0))+OR(+AND(D8=0,E8=0)),"Axial",(+IF(+OR(C8=0,D8=0,E8=0),"Tangential","Oblique"))) -> Tangential
C9: 0 | D9: 2 | E9: 1 | F9: =$B$5*SQRT((($C9/$B$2)^2)+(($D9/$B$3)^2)+(($E9/$B$4)^2)) -> 88.20325259 | G9: =+IF(+AND(C9=0,D9=0)+OR(+AND(C9=0,E9=0))+OR(+AND(D9=0,E9=0)),"Axial",(+IF(+OR(C9=0,D9=0,E9=0),"Tangential","Oblique"))) -> Tangential
C10: 3 | D10: 1 | E10: 0 | F10: =$B$5*SQRT((($C10/$B$2)^2)+(($D10/$B$3)^2)+(($E10/$B$4)^2)) -> 88.24115172 | G10: =+IF(+AND(C10=0,D10=0)+OR(+AND(C10=0,E10=0))+OR(+AND(D10=0,E10=0)),"Axial",(+IF(+OR(C10=0,D10=0,E10=0),"Tangential","Oblique"))) -> Tangential
C11: 2 | D11: 2 | E11: 0 | F11: =$B$5*SQRT((($C11/$B$2)^2)+(($D11/$B$3)^2)+(($E11/$B$4)^2)) -> 89.75324789 | G11: =+IF(+AND(C11=0,D11=0)+OR(+AND(C11=0,E11=0))+OR(+AND(D11=0,E11=0)),"Axial",(+IF(+OR(C11=0,D11=0,E11=0),"Tangential","Oblique"))) -> Tangential
C12: 3 | D12: 0 | E12: 1 | F12: =$B$5*SQRT((($C12/$B$2)^2)+(($D12/$B$3)^2)+(($E12/$B$4)^2)) -> 95.41816475 | G12: =+IF(+AND(C12=0,D12=0)+OR(+AND(C12=0,E12=0))+OR(+AND(D12=0,E12=0)),"Axial",(+IF(+OR(C12=0,D12=0,E12=0),"Tangential","Oblique"))) -> Tangential
C13: 1 | D13: 0 | E13: 2 | F13: =$B$5*SQRT((($C13/$B$2)^2)+(($D13/$B$3)^2)+(($E13/$B$4)^2)) -> 105.6571137 | G13: =+IF(+AND(C13=0,D13=0)+OR(+AND(C13=0,E13=0))+OR(+AND(D13=0,E13=0)),"Axial",(+IF(+OR(C13=0,D13=0,E13=0),"Tangential","Oblique"))) -> Tangential
C14: 3 | D14: 2 | E14: 0 | F14: =$B$5*SQRT((($C14/$B$2)^2)+(($D14/$B$3)^2)+(($E14/$B$4)^2)) -> 107.9977497 | G14: =+IF(+AND(C14=0,D14=0)+OR(+AND(C14=0,E14=0))+OR(+AND(D14=0,E14=0)),"Axial",(+IF(+OR(C14=0,D14=0,E14=0),"Tangential","Oblique"))) -> Tangential
C15: 0 | D15: 1 | E15: 2 | F15: =$B$5*SQRT((($C15/$B$2)^2)+(($D15/$B$3)^2)+(($E15/$B$4)^2)) -> 108.3244649 | G15: =+IF(+AND(C15=0,D15=0)+OR(+AND(C15=0,E15=0))+OR(+AND(D15=0,E15=0)),"Axial",(+IF(+OR(C15=0,D15=0,E15=0),"Tangential","Oblique"))) -> Tangential
C16: 1 | D16: 3 | E16: 0 | F16: =$B$5*SQRT((($C16/$B$2)^2)+(($D16/$B$3)^2)+(($E16/$B$4)^2)) -> 111.1423093 | G16: =+IF(+AND(C16=0,D16=0)+OR(+AND(C16=0,E16=0))+OR(+AND(D16=0,E16=0)),"Axial",(+IF(+OR(C16=0,D16=0,E16=0),"Tangential","Oblique"))) -> Tangential
C17: 4 | D17: 1 | E17: 0 | F17: =$B$5*SQRT((($C17/$B$2)^2)+(($D17/$B$3)^2)+(($E17/$B$4)^2)) -> 113.3027654 | G17: =+IF(+AND(C17=0,D17=0)+OR(+AND(C17=0,E17=0))+OR(+AND(D17=0,E17=0)),"Axial",(+IF(+OR(C17=0,D17=0,E17=0),"Tangential","Oblique"))) -> Tangential
C18: 2 | D18: 0 | E18: 2 | F18: =$B$5*SQRT((($C18/$B$2)^2)+(($D18/$B$3)^2)+(($E18/$B$4)^2)) -> 115.447593 | G18: =+IF(+AND(C18=0,D18=0)+OR(+AND(C18=0,E18=0))+OR(+AND(D18=0,E18=0)),"Axial",(+IF(+OR(C18=0,D18=0,E18=0),"Tangential","Oblique"))) -> Tangential
C19: 4 | D19: 0 | E19: 1 | F19: =$B$5*SQRT((($C19/$B$2)^2)+(($D19/$B$3)^2)+(($E19/$B$4)^2)) -> 118.9774851 | G19: =+IF(+AND(C19=0,D19=0)+OR(+AND(C19=0,E19=0))+OR(+AND(D19=0,E19=0)),"Axial",(+IF(+OR(C19=0,D19=0,E19=0),"Tangential","Oblique"))) -> Tangential
C20: 0 | D20: 3 | E20: 1 | F20: =$B$5*SQRT((($C20/$B$2)^2)+(($D20/$B$3)^2)+(($E20/$B$4)^2)) -> 119.3377653 | G20: =+IF(+AND(C20=0,D20=0)+OR(+AND(C20=0,E20=0))+OR(+AND(D20=0,E20=0)),"Axial",(+IF(+OR(C20=0,D20=0,E20=0),"Tangential","Oblique"))) -> Tangential
C21: 2 | D21: 3 | E21: 0 | F21: =$B$5*SQRT((($C21/$B$2)^2)+(($D21/$B$3)^2)+(($E21/$B$4)^2)) -> 120.4878997 | G21: =+IF(+AND(C21=0,D21=0)+OR(+AND(C21=0,E21=0))+OR(+AND(D21=0,E21=0)),"Axial",(+IF(+OR(C21=0,D21=0,E21=0),"Tangential","Oblique"))) -> Tangential
C22: 0 | D22: 2 | E22: 2 | F22: =$B$5*SQRT((($C22/$B$2)^2)+(($D22/$B$3)^2)+(($E22/$B$4)^2)) -> 124.9447989 | G22: =+IF(+AND(C22=0,D22=0)+OR(+AND(C22=0,E22=0))+OR(+AND(D22=0,E22=0)),"Axial",(+IF(+OR(C22=0,D22=0,E22=0),"Tangential","Oblique"))) -> Tangential
C23: 4 | D23: 2 | E23: 0 | F23: =$B$5*SQRT((($C23/$B$2)^2)+(($D23/$B$3)^2)+(($E23/$B$4)^2)) -> 129.2846848 | G23: =+IF(+AND(C23=0,D23=0)+OR(+AND(C23=0,E23=0))+OR(+AND(D23=0,E23=0)),"Axial",(+IF(+OR(C23=0,D23=0,E23=0),"Tangential","Oblique"))) -> Tangential
C24: 3 | D24: 0 | E24: 2 | F24: =$B$5*SQRT((($C24/$B$2)^2)+(($D24/$B$3)^2)+(($E24/$B$4)^2)) -> 130.1384461 | G24: =+IF(+AND(C24=0,D24=0)+OR(+AND(C24=0,E24=0))+OR(+AND(D24=0,E24=0)),"Axial",(+IF(+OR(C24=0,D24=0,E24=0),"Tangential","Oblique"))) -> Tangential
C25: 3 | D25: 3 | E25: 0 | F25: =$B$5*SQRT((($C25/$B$2)^2)+(($D25/$B$3)^2)+(($E25/$B$4)^2)) -> 134.6298718 | G25: =+IF(+AND(C25=0,D25=0)+OR(+AND(C25=0,E25=0))+OR(+AND(D25=0,E25=0)),"Axial",(+IF(+OR(C25=0,D25=0,E25=0),"Tangential","Oblique"))) -> Tangential
C26: 5 | D26: 1 | E26: 0 | F26: =$B$5*SQRT((($C26/$B$2)^2)+(($D26/$B$3)^2)+(($E26/$B$4)^2)) -> 139.0384113 | G26: =+IF(+AND(C26=0,D26=0)+OR(+AND(C26=0,E26=0))+OR(+AND(D26=0,E26=0)),"Axial",(+IF(+OR(C26=0,D26=0,E26=0),"Tangential","Oblique"))) -> Tangential
C27: 5 | D27: 0 | E27: 1 | F27: =$B$5*SQRT((($C27/$B$2)^2)+(($D27/$B$3)^2)+(($E27/$B$4)^2)) -> 143.7004006 | G27: =+IF(+AND(C27=0,D27=0)+OR(+AND(C27=0,E27=0))+OR(+AND(D27=0,E27=0)),"Axial",(+IF(+OR(C27=0,D27=0,E27=0),"Tangential","Oblique"))) -> Tangential
C28: 1 | D28: 4 | E28: 0 | F28: =$B$5*SQRT((($C28/$B$2)^2)+(($D28/$B$3)^2)+(($E28/$B$4)^2)) -> 146.283891 | G28: =+IF(+AND(C28=0,D28=0)+OR(+AND(C28=0,E28=0))+OR(+AND(D28=0,E28=0)),"Axial",(+IF(+OR(C28=0,D28=0,E28=0),"Tangential","Oblique"))) -> Tangential
C29: 4 | D29: 0 | E29: 2 | F29: =$B$5*SQRT((($C29/$B$2)^2)+(($D29/$B$3)^2)+(($E29/$B$4)^2)) -> 148.2802447 | G29: =+IF(+AND(C29=0,D29=0)+OR(+AND(C29=0,E29=0))+OR(+AND(D29=0,E29=0)),"Axial",(+IF(+OR(C29=0,D29=0,E29=0),"Tangential","Oblique"))) -> Tangential
C30: 0 | D30: 3 | E30: 2 | F30: =$B$5*SQRT((($C30/$B$2)^2)+(($D30/$B$3)^2)+(($E30/$B$4)^2)) -> 148.5694828 | G30: =+IF(+AND(C30=0,D30=0)+OR(+AND(C30=0,E30=0))+OR(+AND(D30=0,E30=0)),"Axial",(+IF(+OR(C30=0,D30=0,E30=0),"Tangential","Oblique"))) -> Tangential
C31: 4 | D31: 3 | E31: 0 | F31: =$B$5*SQRT((($C31/$B$2)^2)+(($D31/$B$3)^2)+(($E31/$B$4)^2)) -> 152.2373745 | G31: =+IF(+AND(C31=0,D31=0)+OR(+AND(C31=0,E31=0))+OR(+AND(D31=0,E31=0)),"Axial",(+IF(+OR(C31=0,D31=0,E31=0),"Tangential","Oblique"))) -> Tangential
C32: 5 | D32: 2 | E32: 0 | F32: =$B$5*SQRT((($C32/$B$2)^2)+(($D32/$B$3)^2)+(($E32/$B$4)^2)) -> 152.3439953 | G32: =+IF(+AND(C32=0,D32=0)+OR(+AND(C32=0,E32=0))+OR(+AND(D32=0,E32=0)),"Axial",(+IF(+OR(C32=0,D32=0,E32=0),"Tangential","Oblique"))) -> Tangential
C33: 0 | D33: 4 | E33: 1 | F33: =$B$5*SQRT((($C33/$B$2)^2)+(($D33/$B$3)^2)+(($E33/$B$4)^2)) -> 152.603624 | G33: =+IF(+AND(C33=0,D33=0)+OR(+AND(C33=0,E33=0))+OR(+AND(D33=0,E33=0)),"Axial",(+IF(+OR(C33=0,D33=0,E33=0),"Tangential","Oblique"))) -> Tangential
C34: 2 | D34: 4 | E34: 0 | F34: =$B$5*SQRT((($C34/$B$2)^2)+(($D34/$B$3)^2)+(($E34/$B$4)^2)) -> 153.5047159 | G34: =+IF(+AND(C34=0,D34=0)+OR(+AND(C34=0,E34=0))+OR(+AND(D34=0,E34=0)),"Axial",(+IF(+OR(C34=0,D34=0,E34=0),"Tangential","Oblique"))) -> Tangential
C35: 1 | D35: 0 | E35: 3 | F35: =$B$5*SQRT((($C35/$B$2)^2)+(($D35/$B$3)^2)+(($E35/$B$4)^2)) -> 155.6140761 | G35: =+IF(+AND(C35=0,D35=0)+OR(+AND(C35=0,E35=0))+OR(+AND(D35=0,E35=0)),"Axial",(+IF(+OR(C35=0,D35=0,E35=0),"Tangential","Oblique"))) -> Tangential
C36: 0 | D36: 1 | E36: 3 | F36: =$B$5*SQRT((($C36/$B$2)^2)+(($D36/$B$3)^2)+(($E36/$B$4)^2)) -> 157.437304 | G36: =+IF(+AND(C36=0,D36=0)+OR(+AND(C36=0,E36=0))+OR(+AND(D36=0,E36=0)),"Axial",(+IF(+OR(C36=0,D36=0,E36=0),"Tangential","Oblique"))) -> Tangential
C37: 2 | D37: 0 | E37: 3 | F37: =$B$5*SQRT((($C37/$B$2)^2)+(($D37/$B$3)^2)+(($E37/$B$4)^2)) -> 162.4206321 | G37: =+IF(+AND(C37=0,D37=0)+OR(+AND(C37=0,E37=0))+OR(+AND(D37=0,E37=0)),"Axial",(+IF(+OR(C37=0,D37=0,E37=0),"Tangential","Oblique"))) -> Tangential
C38: 3 | D38: 4 | E38: 0 | F38: =$B$5*SQRT((($C38/$B$2)^2)+(($D38/$B$3)^2)+(($E38/$B$4)^2)) -> 164.838 | G38: =+IF(+AND(C38=0,D38=0)+OR(+AND(C38=0,E38=0))+OR(+AND(D38=0,E38=0)),"Axial",(+IF(+OR(C38=0,D38=0,E38=0),"Tangential","Oblique"))) -> Tangential
C39: 6 | D39: 1 | E39: 0 | F39: =$B$5*SQRT((($C39/$B$2)^2)+(($D39/$B$3)^2)+(($E39/$B$4)^2)) -> 165.1332503 | G39: =+IF(+AND(C39=0,D39=0)+OR(+AND(C39=0,E39=0))+OR(+AND(D39=0,E39=0)),"Axial",(+IF(+OR(C39=0,D39=0,E39=0),"Tangential","Oblique"))) -> Tangential
C40: 5 | D40: 0 | E40: 2 | F40: =$B$5*SQRT((($C40/$B$2)^2)+(($D40/$B$3)^2)+(($E40/$B$4)^2)) -> 168.7637228 | G40: =+IF(+AND(C40=0,D40=0)+OR(+AND(C40=0,E40=0))+OR(+AND(D40=0,E40=0)),"Axial",(+IF(+OR(C40=0,D40=0,E40=0),"Tangential","Oblique"))) -> Tangential
C41: 6 | D41: 0 | E41: 1 | F41: =$B$5*SQRT((($C41/$B$2)^2)+(($D41/$B$3)^2)+(($E41/$B$4)^2)) -> 169.0772476 | G41: =+IF(+AND(C41=0,D41=0)+OR(+AND(C41=0,E41=0))+OR(+AND(D41=0,E41=0)),"Axial",(+IF(+OR(C41=0,D41=0,E41=0),"Tangential","Oblique"))) -> Tangential
C42: 0 | D42: 2 | E42: 3 | F42: =$B$5*SQRT((($C42/$B$2)^2)+(($D42/$B$3)^2)+(($E42/$B$4)^2)) -> 169.3030353 | G42: =+IF(+AND(C42=0,D42=0)+OR(+AND(C42=0,E42=0))+OR(+AND(D42=0,E42=0)),"Axial",(+IF(+OR(C42=0,D42=0,E42=0),"Tangential","Oblique"))) -> Tangential
C43: 5 | D43: 3 | E43: 0 | F43: =$B$5*SQRT((($C43/$B$2)^2)+(($D43/$B$3)^2)+(($E43/$B$4)^2)) -> 172.2509255 | G43: =+IF(+AND(C43=0,D43=0)+OR(+AND(C43=0,E43=0))+OR(+AND(D43=0,E43=0)),"Axial",(+IF(+OR(C43=0,D43=0,E43=0),"Tangential","Oblique"))) -> Tangential
C44: 3 | D44: 0 | E44: 3 | F44: =$B$5*SQRT((($C44/$B$2)^2)+(($D44/$B$3)^2)+(($E44/$B$4)^2)) -> 173.1713896 | G44: =+IF(+AND(C44=0,D44=0)+OR(+AND(C44=0,E44=0))+OR(+AND(D44=0,E44=0)),"Axial",(+IF(+OR(C44=0,D44=0,E44=0),"Tangential","Oblique"))) -> Tangential
C45: 0 | D45: 4 | E45: 2 | F45: =$B$5*SQRT((($C45/$B$2)^2)+(($D45/$B$3)^2)+(($E45/$B$4)^2)) -> 176.4065052 | G45: =+IF(+AND(C45=0,D45=0)+OR(+AND(C45=0,E45=0))+OR(+AND(D45=0,E45=0)),"Axial",(+IF(+OR(C45=0,D45=0,E45=0),"Tangential","Oblique"))) -> Tangential
C46: 6 | D46: 2 | E46: 0 | F46: =$B$5*SQRT((($C46/$B$2)^2)+(($D46/$B$3)^2)+(($E46/$B$4)^2)) -> 176.4823034 | G46: =+IF(+AND(C46=0,D46=0)+OR(+AND(C46=0,E46=0))+OR(+AND(D46=0,E46=0)),"Axial",(+IF(+OR(C46=0,D46=0,E46=0),"Tangential","Oblique"))) -> Tangential
C47: 4 | D47: 4 | E47: 0 | F47: =$B$5*SQRT((($C47/$B$2)^2)+(($D47/$B$3)^2)+(($E47/$B$4)^2)) -> 179.5064958 | G47: =+IF(+AND(C47=0,D47=0)+OR(+AND(C47=0,E47=0))+OR(+AND(D47=0,E47=0)),"Axial",(+IF(+OR(C47=0,D47=0,E47=0),"Tangential","Oblique"))) -> Tangential
C48: 1 | D48: 5 | E48: 0 | F48: =$B$5*SQRT((($C48/$B$2)^2)+(($D48/$B$3)^2)+(($E48/$B$4)^2)) -> 181.7416187 | G48: =+IF(+AND(C48=0,D48=0)+OR(+AND(C48=0,E48=0))+OR(+AND(D48=0,E48=0)),"Axial",(+IF(+OR(C48=0,D48=0,E48=0),"Tangential","Oblique"))) -> Tangential
C49: 0 | D49: 5 | E49: 1 | F49: =$B$5*SQRT((($C49/$B$2)^2)+(($D49/$B$3)^2)+(($E49/$B$4)^2)) -> 186.8660089 | G49: =+IF(+AND(C49=0,D49=0)+OR(+AND(C49=0,E49=0))+OR(+AND(D49=0,E49=0)),"Axial",(+IF(+OR(C49=0,D49=0,E49=0),"Tangential","Oblique"))) -> Tangential
C50: 4 | D50: 0 | E50: 3 | F50: =$B$5*SQRT((($C50/$B$2)^2)+(($D50/$B$3)^2)+(($E50/$B$4)^2)) -> 187.1879963 | G50: =+IF(+AND(C50=0,D50=0)+OR(+AND(C50=0,E50=0))+OR(+AND(D50=0,E50=0)),"Axial",(+IF(+OR(C50=0,D50=0,E50=0),"Tangential","Oblique"))) -> Tangential
C51: 0 | D51: 3 | E51: 3 | F51: =$B$5*SQRT((($C51/$B$2)^2)+(($D51/$B$3)^2)+(($E51/$B$4)^2)) -> 187.4171983 | G51: =+IF(+AND(C51=0,D51=0)+OR(+AND(C51=0,E51=0))+OR(+AND(D51=0,E51=0)),"Axial",(+IF(+OR(C51=0,D51=0,E51=0),"Tangential","Oblique"))) -> Tangential
C52: 2 | D52: 5 | E52: 0 | F52: =$B$5*SQRT((($C52/$B$2)^2)+(($D52/$B$3)^2)+(($E52/$B$4)^2)) -> 187.602604 | G52: =+IF(+AND(C52=0,D52=0)+OR(+AND(C52=0,E52=0))+OR(+AND(D52=0,E52=0)),"Axial",(+IF(+OR(C52=0,D52=0,E52=0),"Tangential","Oblique"))) -> Tangential
C53: 6 | D53: 0 | E53: 2 | F53: =$B$5*SQRT((($C53/$B$2)^2)+(($D53/$B$3)^2)+(($E53/$B$4)^2)) -> 190.8363295 | G53: =+IF(+AND(C53=0,D53=0)+OR(+AND(C53=0,E53=0))+OR(+AND(D53=0,E53=0)),"Axial",(+IF(+OR(C53=0,D53=0,E53=0),"Tangential","Oblique"))) -> Tangential
C54: 7 | D54: 1 | E54: 0 | F54: =$B$5*SQRT((($C54/$B$2)^2)+(($D54/$B$3)^2)+(($E54/$B$4)^2)) -> 191.4404562 | G54: =+IF(+AND(C54=0,D54=0)+OR(+AND(C54=0,E54=0))+OR(+AND(D54=0,E54=0)),"Axial",(+IF(+OR(C54=0,D54=0,E54=0),"Tangential","Oblique"))) -> Tangential
C55: 6 | D55: 3 | E55: 0 | F55: =$B$5*SQRT((($C55/$B$2)^2)+(($D55/$B$3)^2)+(($E55/$B$4)^2)) -> 193.9270272 | G55: =+IF(+AND(C55=0,D55=0)+OR(+AND(C55=0,E55=0))+OR(+AND(D55=0,E55=0)),"Axial",(+IF(+OR(C55=0,D55=0,E55=0),"Tangential","Oblique"))) -> Tangential
C56: 7 | D56: 0 | E56: 1 | F56: =$B$5*SQRT((($C56/$B$2)^2)+(($D56/$B$3)^2)+(($E56/$B$4)^2)) -> 194.8526971 | G56: =+IF(+AND(C56=0,D56=0)+OR(+AND(C56=0,E56=0))+OR(+AND(D56=0,E56=0)),"Axial",(+IF(+OR(C56=0,D56=0,E56=0),"Tangential","Oblique"))) -> Tangential
C57: 5 | D57: 4 | E57: 0 | F57: =$B$5*SQRT((($C57/$B$2)^2)+(($D57/$B$3)^2)+(($E57/$B$4)^2)) -> 196.7657114 | G57: =+IF(+AND(C57=0,D57=0)+OR(+AND(C57=0,E57=0))+OR(+AND(D57=0,E57=0)),"Axial",(+IF(+OR(C57=0,D57=0,E57=0),"Tangential","Oblique"))) -> Tangential
C58: 3 | D58: 5 | E58: 0 | F58: =$B$5*SQRT((($C58/$B$2)^2)+(($D58/$B$3)^2)+(($E58/$B$4)^2)) -> 196.9837695 | G58: =+IF(+AND(C58=0,D58=0)+OR(+AND(C58=0,E58=0))+OR(+AND(D58=0,E58=0)),"Axial",(+IF(+OR(C58=0,D58=0,E58=0),"Tangential","Oblique"))) -> Tangential
C59: 7 | D59: 2 | E59: 0 | F59: =$B$5*SQRT((($C59/$B$2)^2)+(($D59/$B$3)^2)+(($E59/$B$4)^2)) -> 201.3118509 | G59: =+IF(+AND(C59=0,D59=0)+OR(+AND(C59=0,E59=0))+OR(+AND(D59=0,E59=0)),"Axial",(+IF(+OR(C59=0,D59=0,E59=0),"Tangential","Oblique"))) -> Tangential
C60: 5 | D60: 0 | E60: 3 | F60: =$B$5*SQRT((($C60/$B$2)^2)+(($D60/$B$3)^2)+(($E60/$B$4)^2)) -> 203.7977162 | G60: =+IF(+AND(C60=0,D60=0)+OR(+AND(C60=0,E60=0))+OR(+AND(D60=0,E60=0)),"Axial",(+IF(+OR(C60=0,D60=0,E60=0),"Tangential","Oblique"))) -> Tangential
C61: 1 | D61: 0 | E61: 4 | F61: =$B$5*SQRT((($C61/$B$2)^2)+(($D61/$B$3)^2)+(($E61/$B$4)^2)) -> 206.1285562 | G61: =+IF(+AND(C61=0,D61=0)+OR(+AND(C61=0,E61=0))+OR(+AND(D61=0,E61=0)),"Axial",(+IF(+OR(C61=0,D61=0,E61=0),"Tangential","Oblique"))) -> Tangential
C62: 0 | D62: 5 | E62: 2 | F62: =$B$5*SQRT((($C62/$B$2)^2)+(($D62/$B$3)^2)+(($E62/$B$4)^2)) -> 206.761443 | G62: =+IF(+AND(C62=0,D62=0)+OR(+AND(C62=0,E62=0))+OR(+AND(D62=0,E62=0)),"Axial",(+IF(+OR(C62=0,D62=0,E62=0),"Tangential","Oblique"))) -> Tangential
C63: 0 | D63: 1 | E63: 4 | F63: =$B$5*SQRT((($C63/$B$2)^2)+(($D63/$B$3)^2)+(($E63/$B$4)^2)) -> 207.5084232 | G63: =+IF(+AND(C63=0,D63=0)+OR(+AND(C63=0,E63=0))+OR(+AND(D63=0,E63=0)),"Axial",(+IF(+OR(C63=0,D63=0,E63=0),"Tangential","Oblique"))) -> Tangential
C64: 4 | D64: 5 | E64: 0 | F64: =$B$5*SQRT((($C64/$B$2)^2)+(($D64/$B$3)^2)+(($E64/$B$4)^2)) -> 209.4125623 | G64: =+IF(+AND(C64=0,D64=0)+OR(+AND(C64=0,E64=0))+OR(+AND(D64=0,E64=0)),"Axial",(+IF(+OR(C64=0,D64=0,E64=0),"Tangential","Oblique"))) -> Tangential
C65: 0 | D65: 4 | E65: 3 | F65: =$B$5*SQRT((($C65/$B$2)^2)+(($D65/$B$3)^2)+(($E65/$B$4)^2)) -> 210.1703358 | G65: =+IF(+AND(C65=0,D65=0)+OR(+AND(C65=0,E65=0))+OR(+AND(D65=0,E65=0)),"Axial",(+IF(+OR(C65=0,D65=0,E65=0),"Tangential","Oblique"))) -> Tangential
C66: 2 | D66: 0 | E66: 4 | F66: =$B$5*SQRT((($C66/$B$2)^2)+(($D66/$B$3)^2)+(($E66/$B$4)^2)) -> 211.3142275 | G66: =+IF(+AND(C66=0,D66=0)+OR(+AND(C66=0,E66=0))+OR(+AND(D66=0,E66=0)),"Axial",(+IF(+OR(C66=0,D66=0,E66=0),"Tangential","Oblique"))) -> Tangential
C67: 7 | D67: 0 | E67: 2 | F67: =$B$5*SQRT((($C67/$B$2)^2)+(($D67/$B$3)^2)+(($E67/$B$4)^2)) -> 214.0069218 | G67: =+IF(+AND(C67=0,D67=0)+OR(+AND(C67=0,E67=0))+OR(+AND(D67=0,E67=0)),"Axial",(+IF(+OR(C67=0,D67=0,E67=0),"Tangential","Oblique"))) -> Tangential
C68: 6 | D68: 4 | E68: 0 | F68: =$B$5*SQRT((($C68/$B$2)^2)+(($D68/$B$3)^2)+(($E68/$B$4)^2)) -> 215.9954993 | G68: =+IF(+AND(C68=0,D68=0)+OR(+AND(C68=0,E68=0))+OR(+AND(D68=0,E68=0)),"Axial",(+IF(+OR(C68=0,D68=0,E68=0),"Tangential","Oblique"))) -> Tangential
C69: 0 | D69: 2 | E69: 4 | F69: =$B$5*SQRT((($C69/$B$2)^2)+(($D69/$B$3)^2)+(($E69/$B$4)^2)) -> 216.6489298 | G69: =+IF(+AND(C69=0,D69=0)+OR(+AND(C69=0,E69=0))+OR(+AND(D69=0,E69=0)),"Axial",(+IF(+OR(C69=0,D69=0,E69=0),"Tangential","Oblique"))) -> Tangential
C70: 7 | D70: 3 | E70: 0 | F70: =$B$5*SQRT((($C70/$B$2)^2)+(($D70/$B$3)^2)+(($E70/$B$4)^2)) -> 216.7675017 | G70: =+IF(+AND(C70=0,D70=0)+OR(+AND(C70=0,E70=0))+OR(+AND(D70=0,E70=0)),"Axial",(+IF(+OR(C70=0,D70=0,E70=0),"Tangential","Oblique"))) -> Tangential
C71: 1 | D71: 6 | E71: 0 | F71: =$B$5*SQRT((($C71/$B$2)^2)+(($D71/$B$3)^2)+(($E71/$B$4)^2)) -> 217.3608304 | G71: =+IF(+AND(C71=0,D71=0)+OR(+AND(C71=0,E71=0))+OR(+AND(D71=0,E71=0)),"Axial",(+IF(+OR(C71=0,D71=0,E71=0),"Tangential","Oblique"))) -> Tangential
C72: 8 | D72: 1 | E72: 0 | F72: =$B$5*SQRT((($C72/$B$2)^2)+(($D72/$B$3)^2)+(($E72/$B$4)^2)) -> 217.883119 | G72: =+IF(+AND(C72=0,D72=0)+OR(+AND(C72=0,E72=0))+OR(+AND(D72=0,E72=0)),"Axial",(+IF(+OR(C72=0,D72=0,E72=0),"Tangential","Oblique"))) -> Tangential
C73: 3 | D73: 0 | E73: 4 | F73: =$B$5*SQRT((($C73/$B$2)^2)+(($D73/$B$3)^2)+(($E73/$B$4)^2)) -> 219.6851637 | G73: =+IF(+AND(C73=0,D73=0)+OR(+AND(C73=0,E73=0))+OR(+AND(D73=0,E73=0)),"Axial",(+IF(+OR(C73=0,D73=0,E73=0),"Tangential","Oblique"))) -> Tangential
C74: 8 | D74: 0 | E74: 1 | F74: =$B$5*SQRT((($C74/$B$2)^2)+(($D74/$B$3)^2)+(($E74/$B$4)^2)) -> 220.8872537 | G74: =+IF(+AND(C74=0,D74=0)+OR(+AND(C74=0,E74=0))+OR(+AND(D74=0,E74=0)),"Axial",(+IF(+OR(C74=0,D74=0,E74=0),"Tangential","Oblique"))) -> Tangential
C75: 0 | D75: 6 | E75: 1 | F75: =$B$5*SQRT((($C75/$B$2)^2)+(($D75/$B$3)^2)+(($E75/$B$4)^2)) -> 221.663303 | G75: =+IF(+AND(C75=0,D75=0)+OR(+AND(C75=0,E75=0))+OR(+AND(D75=0,E75=0)),"Axial",(+IF(+OR(C75=0,D75=0,E75=0),"Tangential","Oblique"))) -> Tangential
C76: 2 | D76: 6 | E76: 0 | F76: =$B$5*SQRT((($C76/$B$2)^2)+(($D76/$B$3)^2)+(($E76/$B$4)^2)) -> 222.2846185 | G76: =+IF(+AND(C76=0,D76=0)+OR(+AND(C76=0,E76=0))+OR(+AND(D76=0,E76=0)),"Axial",(+IF(+OR(C76=0,D76=0,E76=0),"Tangential","Oblique"))) -> Tangential
C77: 6 | D77: 0 | E77: 3 | F77: =$B$5*SQRT((($C77/$B$2)^2)+(($D77/$B$3)^2)+(($E77/$B$4)^2)) -> 222.420367 | G77: =+IF(+AND(C77=0,D77=0)+OR(+AND(C77=0,E77=0))+OR(+AND(D77=0,E77=0)),"Axial",(+IF(+OR(C77=0,D77=0,E77=0),"Tangential","Oblique"))) -> Tangential
C78: 5 | D78: 5 | E78: 0 | F78: =$B$5*SQRT((($C78/$B$2)^2)+(($D78/$B$3)^2)+(($E78/$B$4)^2)) -> 224.3831197 | G78: =+IF(+AND(C78=0,D78=0)+OR(+AND(C78=0,E78=0))+OR(+AND(D78=0,E78=0)),"Axial",(+IF(+OR(C78=0,D78=0,E78=0),"Tangential","Oblique"))) -> Tangential
C79: 8 | D79: 2 | E79: 0 | F79: =$B$5*SQRT((($C79/$B$2)^2)+(($D79/$B$3)^2)+(($E79/$B$4)^2)) -> 226.6055308 | G79: =+IF(+AND(C79=0,D79=0)+OR(+AND(C79=0,E79=0))+OR(+AND(D79=0,E79=0)),"Axial",(+IF(+OR(C79=0,D79=0,E79=0),"Tangential","Oblique"))) -> Tangential
C80: 3 | D80: 6 | E80: 0 | F80: =$B$5*SQRT((($C80/$B$2)^2)+(($D80/$B$3)^2)+(($E80/$B$4)^2)) -> 230.2570739 | G80: =+IF(+AND(C80=0,D80=0)+OR(+AND(C80=0,E80=0))+OR(+AND(D80=0,E80=0)),"Axial",(+IF(+OR(C80=0,D80=0,E80=0),"Tangential","Oblique"))) -> Tangential
C81: 4 | D81: 0 | E81: 4 | F81: =$B$5*SQRT((($C81/$B$2)^2)+(($D81/$B$3)^2)+(($E81/$B$4)^2)) -> 230.8951861 | G81: =+IF(+AND(C81=0,D81=0)+OR(+AND(C81=0,E81=0))+OR(+AND(D81=0,E81=0)),"Axial",(+IF(+OR(C81=0,D81=0,E81=0),"Tangential","Oblique"))) -> Tangential
C82: 0 | D82: 3 | E82: 4 | F82: =$B$5*SQRT((($C82/$B$2)^2)+(($D82/$B$3)^2)+(($E82/$B$4)^2)) -> 231.0810404 | G82: =+IF(+AND(C82=0,D82=0)+OR(+AND(C82=0,E82=0))+OR(+AND(D82=0,E82=0)),"Axial",(+IF(+OR(C82=0,D82=0,E82=0),"Tangential","Oblique"))) -> Tangential
C83: 0 | D83: 5 | E83: 3 | F83: =$B$5*SQRT((($C83/$B$2)^2)+(($D83/$B$3)^2)+(($E83/$B$4)^2)) -> 236.2257592 | G83: =+IF(+AND(C83=0,D83=0)+OR(+AND(C83=0,E83=0))+OR(+AND(D83=0,E83=0)),"Axial",(+IF(+OR(C83=0,D83=0,E83=0),"Tangential","Oblique"))) -> Tangential
C84: 7 | D84: 4 | E84: 0 | F84: =$B$5*SQRT((($C84/$B$2)^2)+(($D84/$B$3)^2)+(($E84/$B$4)^2)) -> 236.7161035 | G84: =+IF(+AND(C84=0,D84=0)+OR(+AND(C84=0,E84=0))+OR(+AND(D84=0,E84=0)),"Axial",(+IF(+OR(C84=0,D84=0,E84=0),"Tangential","Oblique"))) -> Tangential
C85: 8 | D85: 0 | E85: 2 | F85: =$B$5*SQRT((($C85/$B$2)^2)+(($D85/$B$3)^2)+(($E85/$B$4)^2)) -> 237.9549702 | G85: =+IF(+AND(C85=0,D85=0)+OR(+AND(C85=0,E85=0))+OR(+AND(D85=0,E85=0)),"Axial",(+IF(+OR(C85=0,D85=0,E85=0),"Tangential","Oblique"))) -> Tangential
C86: 0 | D86: 6 | E86: 2 | F86: =$B$5*SQRT((($C86/$B$2)^2)+(($D86/$B$3)^2)+(($E86/$B$4)^2)) -> 238.6755306 | G86: =+IF(+AND(C86=0,D86=0)+OR(+AND(C86=0,E86=0))+OR(+AND(D86=0,E86=0)),"Axial",(+IF(+OR(C86=0,D86=0,E86=0),"Tangential","Oblique"))) -> Tangential
C87: 8 | D87: 3 | E87: 0 | F87: =$B$5*SQRT((($C87/$B$2)^2)+(($D87/$B$3)^2)+(($E87/$B$4)^2)) -> 240.4407517 | G87: =+IF(+AND(C87=0,D87=0)+OR(+AND(C87=0,E87=0))+OR(+AND(D87=0,E87=0)),"Axial",(+IF(+OR(C87=0,D87=0,E87=0),"Tangential","Oblique"))) -> Tangential
C88: 4 | D88: 6 | E88: 0 | F88: =$B$5*SQRT((($C88/$B$2)^2)+(($D88/$B$3)^2)+(($E88/$B$4)^2)) -> 240.9757993 | G88: =+IF(+AND(C88=0,D88=0)+OR(+AND(C88=0,E88=0))+OR(+AND(D88=0,E88=0)),"Axial",(+IF(+OR(C88=0,D88=0,E88=0),"Tangential","Oblique"))) -> Tangential
C89: 6 | D89: 5 | E89: 0 | F89: =$B$5*SQRT((($C89/$B$2)^2)+(($D89/$B$3)^2)+(($E89/$B$4)^2)) -> 241.4230622 | G89: =+IF(+AND(C89=0,D89=0)+OR(+AND(C89=0,E89=0))+OR(+AND(D89=0,E89=0)),"Axial",(+IF(+OR(C89=0,D89=0,E89=0),"Tangential","Oblique"))) -> Tangential
C90: 7 | D90: 0 | E90: 3 | F90: =$B$5*SQRT((($C90/$B$2)^2)+(($D90/$B$3)^2)+(($E90/$B$4)^2)) -> 242.5928226 | G90: =+IF(+AND(C90=0,D90=0)+OR(+AND(C90=0,E90=0))+OR(+AND(D90=0,E90=0)),"Axial",(+IF(+OR(C90=0,D90=0,E90=0),"Tangential","Oblique"))) -> Tangential
C91: 9 | D91: 1 | E91: 0 | F91: =$B$5*SQRT((($C91/$B$2)^2)+(($D91/$B$3)^2)+(($E91/$B$4)^2)) -> 244.4172788 | G91: =+IF(+AND(C91=0,D91=0)+OR(+AND(C91=0,E91=0))+OR(+AND(D91=0,E91=0)),"Axial",(+IF(+OR(C91=0,D91=0,E91=0),"Tangential","Oblique"))) -> Tangential
C92: 5 | D92: 0 | E92: 4 | F92: =$B$5*SQRT((($C92/$B$2)^2)+(($D92/$B$3)^2)+(($E92/$B$4)^2)) -> 244.5541865 | G92: =+IF(+AND(C92=0,D92=0)+OR(+AND(C92=0,E92=0))+OR(+AND(D92=0,E92=0)),"Axial",(+IF(+OR(C92=0,D92=0,E92=0),"Tangential","Oblique"))) -> Tangential
C93: 9 | D93: 0 | E93: 1 | F93: =$B$5*SQRT((($C93/$B$2)^2)+(($D93/$B$3)^2)+(($E93/$B$4)^2)) -> 247.0990317 | G93: =+IF(+AND(C93=0,D93=0)+OR(+AND(C93=0,E93=0))+OR(+AND(D93=0,E93=0)),"Axial",(+IF(+OR(C93=0,D93=0,E93=0),"Tangential","Oblique"))) -> Tangential
C94: 0 | D94: 4 | E94: 4 | F94: =$B$5*SQRT((($C94/$B$2)^2)+(($D94/$B$3)^2)+(($E94/$B$4)^2)) -> 249.8895978 | G94: =+IF(+AND(C94=0,D94=0)+OR(+AND(C94=0,E94=0))+OR(+AND(D94=0,E94=0)),"Axial",(+IF(+OR(C94=0,D94=0,E94=0),"Tangential","Oblique"))) -> Tangential
C95: 9 | D95: 2 | E95: 0 | F95: =$B$5*SQRT((($C95/$B$2)^2)+(($D95/$B$3)^2)+(($E95/$B$4)^2)) -> 252.2237484 | G95: =+IF(+AND(C95=0,D95=0)+OR(+AND(C95=0,E95=0))+OR(+AND(D95=0,E95=0)),"Axial",(+IF(+OR(C95=0,D95=0,E95=0),"Tangential","Oblique"))) -> Tangential
C96: 1 | D96: 7 | E96: 0 | F96: =$B$5*SQRT((($C96/$B$2)^2)+(($D96/$B$3)^2)+(($E96/$B$4)^2)) -> 253.0733502 | G96: =+IF(+AND(C96=0,D96=0)+OR(+AND(C96=0,E96=0))+OR(+AND(D96=0,E96=0)),"Axial",(+IF(+OR(C96=0,D96=0,E96=0),"Tangential","Oblique"))) -> Tangential
C97: 5 | D97: 6 | E97: 0 | F97: =$B$5*SQRT((($C97/$B$2)^2)+(($D97/$B$3)^2)+(($E97/$B$4)^2)) -> 254.0934848 | G97: =+IF(+AND(C97=0,D97=0)+OR(+AND(C97=0,E97=0))+OR(+AND(D97=0,E97=0)),"Axial",(+IF(+OR(C97=0,D97=0,E97=0),"Tangential","Oblique"))) -> Tangential
C98: 0 | D98: 7 | E98: 1 | F98: =$B$5*SQRT((($C98/$B$2)^2)+(($D98/$B$3)^2)+(($E98/$B$4)^2)) -> 256.7781336 | G98: =+IF(+AND(C98=0,D98=0)+OR(+AND(C98=0,E98=0))+OR(+AND(D98=0,E98=0)),"Axial",(+IF(+OR(C98=0,D98=0,E98=0),"Tangential","Oblique"))) -> Tangential
C99: 1 | D99: 0 | E99: 5 | F99: =$B$5*SQRT((($C99/$B$2)^2)+(($D99/$B$3)^2)+(($E99/$B$4)^2)) -> 256.8718526 | G99: =+IF(+AND(C99=0,D99=0)+OR(+AND(C99=0,E99=0))+OR(+AND(D99=0,E99=0)),"Axial",(+IF(+OR(C99=0,D99=0,E99=0),"Tangential","Oblique"))) -> Tangential
C100: 2 | D100: 7 | E100: 0 | F100: =$B$5*SQRT((($C100/$B$2)^2)+(($D100/$B$3)^2)+(($E100/$B$4)^2)) -> 257.3146743 | G100: =+IF(+AND(C100=0,D100=0)+OR(+AND(C100=0,E100=0))+OR(+AND(D100=0,E100=0)),"Axial",(+IF(+OR(C100=0,D100=0,E100=0),"Tangential","Oblique"))) -> Tangential
C101: 0 | D101: 1 | E101: 5 | F101: =$B$5*SQRT((($C101/$B$2)^2)+(($D101/$B$3)^2)+(($E101/$B$4)^2)) -> 257.9804502 | G101: =+IF(+AND(C101=0,D101=0)+OR(+AND(C101=0,E101=0))+OR(+AND(D101=0,E101=0)),"Axial",(+IF(+OR(C101=0,D101=0,E101=0),"Tangential","Oblique"))) -> Tangential
C102: 8 | D102: 4 | E102: 0 | F102: =$B$5*SQRT((($C102/$B$2)^2)+(($D102/$B$3)^2)+(($E102/$B$4)^2)) -> 258.5693696 | G102: =+IF(+AND(C102=0,D102=0)+OR(+AND(C102=0,E102=0))+OR(+AND(D102=0,E102=0)),"Axial",(+IF(+OR(C102=0,D102=0,E102=0),"Tangential","Oblique"))) -> Tangential
C103: 7 | D103: 5 | E103: 0 | F103: =$B$5*SQRT((($C103/$B$2)^2)+(($D103/$B$3)^2)+(($E103/$B$4)^2)) -> 260.1260326 | G103: =+IF(+AND(C103=0,D103=0)+OR(+AND(C103=0,E103=0))+OR(+AND(D103=0,E103=0)),"Axial",(+IF(+OR(C103=0,D103=0,E103=0),"Tangential","Oblique"))) -> Tangential
C104: 6 | D104: 0 | E104: 4 | F104: =$B$5*SQRT((($C104/$B$2)^2)+(($D104/$B$3)^2)+(($E104/$B$4)^2)) -> 260.2768923 | G104: =+IF(+AND(C104=0,D104=0)+OR(+AND(C104=0,E104=0))+OR(+AND(D104=0,E104=0)),"Axial",(+IF(+OR(C104=0,D104=0,E104=0),"Tangential","Oblique"))) -> Tangential
C105: 2 | D105: 0 | E105: 5 | F105: =$B$5*SQRT((($C105/$B$2)^2)+(($D105/$B$3)^2)+(($E105/$B$4)^2)) -> 261.0514695 | G105: =+IF(+AND(C105=0,D105=0)+OR(+AND(C105=0,E105=0))+OR(+AND(D105=0,E105=0)),"Axial",(+IF(+OR(C105=0,D105=0,E105=0),"Tangential","Oblique"))) -> Tangential
C106: 9 | D106: 0 | E106: 2 | F106: =$B$5*SQRT((($C106/$B$2)^2)+(($D106/$B$3)^2)+(($E106/$B$4)^2)) -> 262.4677513 | G106: =+IF(+AND(C106=0,D106=0)+OR(+AND(C106=0,E106=0))+OR(+AND(D106=0,E106=0)),"Axial",(+IF(+OR(C106=0,D106=0,E106=0),"Tangential","Oblique"))) -> Tangential
C107: 8 | D107: 0 | E107: 3 | F107: =$B$5*SQRT((($C107/$B$2)^2)+(($D107/$B$3)^2)+(($E107/$B$4)^2)) -> 263.9600023 | G107: =+IF(+AND(C107=0,D107=0)+OR(+AND(C107=0,E107=0))+OR(+AND(D107=0,E107=0)),"Axial",(+IF(+OR(C107=0,D107=0,E107=0),"Tangential","Oblique"))) -> Tangential
C108: 3 | D108: 7 | E108: 0 | F108: =$B$5*SQRT((($C108/$B$2)^2)+(($D108/$B$3)^2)+(($E108/$B$4)^2)) -> 264.2323032 | G108: =+IF(+AND(C108=0,D108=0)+OR(+AND(C108=0,E108=0))+OR(+AND(D108=0,E108=0)),"Axial",(+IF(+OR(C108=0,D108=0,E108=0),"Tangential","Oblique"))) -> Tangential
C109: 0 | D109: 6 | E109: 3 | F109: =$B$5*SQRT((($C109/$B$2)^2)+(($D109/$B$3)^2)+(($E109/$B$4)^2)) -> 264.6097578 | G109: =+IF(+AND(C109=0,D109=0)+OR(+AND(C109=0,E109=0))+OR(+AND(D109=0,E109=0)),"Axial",(+IF(+OR(C109=0,D109=0,E109=0),"Tangential","Oblique"))) -> Tangential
C110: 9 | D110: 3 | E110: 0 | F110: =$B$5*SQRT((($C110/$B$2)^2)+(($D110/$B$3)^2)+(($E110/$B$4)^2)) -> 264.7234552 | G110: =+IF(+AND(C110=0,D110=0)+OR(+AND(C110=0,E110=0))+OR(+AND(D110=0,E110=0)),"Axial",(+IF(+OR(C110=0,D110=0,E110=0),"Tangential","Oblique"))) -> Tangential
C111: 0 | D111: 2 | E111: 5 | F111: =$B$5*SQRT((($C111/$B$2)^2)+(($D111/$B$3)^2)+(($E111/$B$4)^2)) -> 265.3882548 | G111: =+IF(+AND(C111=0,D111=0)+OR(+AND(C111=0,E111=0))+OR(+AND(D111=0,E111=0)),"Axial",(+IF(+OR(C111=0,D111=0,E111=0),"Tangential","Oblique"))) -> Tangential
C112: 3 | D112: 0 | E112: 5 | F112: =$B$5*SQRT((($C112/$B$2)^2)+(($D112/$B$3)^2)+(($E112/$B$4)^2)) -> 267.8726156 | G112: =+IF(+AND(C112=0,D112=0)+OR(+AND(C112=0,E112=0))+OR(+AND(D112=0,E112=0)),"Axial",(+IF(+OR(C112=0,D112=0,E112=0),"Tangential","Oblique"))) -> Tangential
C113: 6 | D113: 6 | E113: 0 | F113: =$B$5*SQRT((($C113/$B$2)^2)+(($D113/$B$3)^2)+(($E113/$B$4)^2)) -> 269.2597437 | G113: =+IF(+AND(C113=0,D113=0)+OR(+AND(C113=0,E113=0))+OR(+AND(D113=0,E113=0)),"Axial",(+IF(+OR(C113=0,D113=0,E113=0),"Tangential","Oblique"))) -> Tangential
C114: 0 | D114: 7 | E114: 2 | F114: =$B$5*SQRT((($C114/$B$2)^2)+(($D114/$B$3)^2)+(($E114/$B$4)^2)) -> 271.5997034 | G114: =+IF(+AND(C114=0,D114=0)+OR(+AND(C114=0,E114=0))+OR(+AND(D114=0,E114=0)),"Axial",(+IF(+OR(C114=0,D114=0,E114=0),"Tangential","Oblique"))) -> Tangential
C115: 0 | D115: 5 | E115: 4 | F115: =$B$5*SQRT((($C115/$B$2)^2)+(($D115/$B$3)^2)+(($E115/$B$4)^2)) -> 272.1687901 | G115: =+IF(+AND(C115=0,D115=0)+OR(+AND(C115=0,E115=0))+OR(+AND(D115=0,E115=0)),"Axial",(+IF(+OR(C115=0,D115=0,E115=0),"Tangential","Oblique"))) -> Tangential
C116: 4 | D116: 7 | E116: 0 | F116: =$B$5*SQRT((($C116/$B$2)^2)+(($D116/$B$3)^2)+(($E116/$B$4)^2)) -> 273.6233284 | G116: =+IF(+AND(C116=0,D116=0)+OR(+AND(C116=0,E116=0))+OR(+AND(D116=0,E116=0)),"Axial",(+IF(+OR(C116=0,D116=0,E116=0),"Tangential","Oblique"))) -> Tangential
C117: 4 | D117: 0 | E117: 5 | F117: =$B$5*SQRT((($C117/$B$2)^2)+(($D117/$B$3)^2)+(($E117/$B$4)^2)) -> 277.1403146 | G117: =+IF(+AND(C117=0,D117=0)+OR(+AND(C117=0,E117=0))+OR(+AND(D117=0,E117=0)),"Axial",(+IF(+OR(C117=0,D117=0,E117=0),"Tangential","Oblique"))) -> Tangential
C118: 0 | D118: 3 | E118: 5 | F118: =$B$5*SQRT((($C118/$B$2)^2)+(($D118/$B$3)^2)+(($E118/$B$4)^2)) -> 277.2951753 | G118: =+IF(+AND(C118=0,D118=0)+OR(+AND(C118=0,E118=0))+OR(+AND(D118=0,E118=0)),"Axial",(+IF(+OR(C118=0,D118=0,E118=0),"Tangential","Oblique"))) -> Tangential
C119: 7 | D119: 0 | E119: 4 | F119: =$B$5*SQRT((($C119/$B$2)^2)+(($D119/$B$3)^2)+(($E119/$B$4)^2)) -> 277.7130148 | G119: =+IF(+AND(C119=0,D119=0)+OR(+AND(C119=0,E119=0))+OR(+AND(D119=0,E119=0)),"Axial",(+IF(+OR(C119=0,D119=0,E119=0),"Tangential","Oblique"))) -> Tangential
C120: 8 | D120: 5 | E120: 0 | F120: =$B$5*SQRT((($C120/$B$2)^2)+(($D120/$B$3)^2)+(($E120/$B$4)^2)) -> 280.1591657 | G120: =+IF(+AND(C120=0,D120=0)+OR(+AND(C120=0,E120=0))+OR(+AND(D120=0,E120=0)),"Axial",(+IF(+OR(C120=0,D120=0,E120=0),"Tangential","Oblique"))) -> Tangential
C121: 9 | D121: 4 | E121: 0 | F121: =$B$5*SQRT((($C121/$B$2)^2)+(($D121/$B$3)^2)+(($E121/$B$4)^2)) -> 281.2914353 | G121: =+IF(+AND(C121=0,D121=0)+OR(+AND(C121=0,E121=0))+OR(+AND(D121=0,E121=0)),"Axial",(+IF(+OR(C121=0,D121=0,E121=0),"Tangential","Oblique"))) -> Tangential
C122: 5 | D122: 7 | E122: 0 | F122: =$B$5*SQRT((($C122/$B$2)^2)+(($D122/$B$3)^2)+(($E122/$B$4)^2)) -> 285.2435609 | G122: =+IF(+AND(C122=0,D122=0)+OR(+AND(C122=0,E122=0))+OR(+AND(D122=0,E122=0)),"Axial",(+IF(+OR(C122=0,D122=0,E122=0),"Tangential","Oblique"))) -> Tangential
C123: 7 | D123: 6 | E123: 0 | F123: =$B$5*SQRT((($C123/$B$2)^2)+(($D123/$B$3)^2)+(($E123/$B$4)^2)) -> 286.1490302 | G123: =+IF(+AND(C123=0,D123=0)+OR(+AND(C123=0,E123=0))+OR(+AND(D123=0,E123=0)),"Axial",(+IF(+OR(C123=0,D123=0,E123=0),"Tangential","Oblique"))) -> Tangential
C124: 9 | D124: 0 | E124: 3 | F124: =$B$5*SQRT((($C124/$B$2)^2)+(($D124/$B$3)^2)+(($E124/$B$4)^2)) -> 286.2544943 | G124: =+IF(+AND(C124=0,D124=0)+OR(+AND(C124=0,E124=0))+OR(+AND(D124=0,E124=0)),"Axial",(+IF(+OR(C124=0,D124=0,E124=0),"Tangential","Oblique"))) -> Tangential
C125: 5 | D125: 0 | E125: 5 | F125: =$B$5*SQRT((($C125/$B$2)^2)+(($D125/$B$3)^2)+(($E125/$B$4)^2)) -> 288.6189826 | G125: =+IF(+AND(C125=0,D125=0)+OR(+AND(C125=0,E125=0))+OR(+AND(D125=0,E125=0)),"Axial",(+IF(+OR(C125=0,D125=0,E125=0),"Tangential","Oblique"))) -> Tangential
C126: 1 | D126: 8 | E126: 0 | F126: =$B$5*SQRT((($C126/$B$2)^2)+(($D126/$B$3)^2)+(($E126/$B$4)^2)) -> 288.8445706 | G126: =+IF(+AND(C126=0,D126=0)+OR(+AND(C126=0,E126=0))+OR(+AND(D126=0,E126=0)),"Axial",(+IF(+OR(C126=0,D126=0,E126=0),"Tangential","Oblique"))) -> Tangential
C127: 0 | D127: 8 | E127: 1 | F127: =$B$5*SQRT((($C127/$B$2)^2)+(($D127/$B$3)^2)+(($E127/$B$4)^2)) -> 292.0960035 | G127: =+IF(+AND(C127=0,D127=0)+OR(+AND(C127=0,E127=0))+OR(+AND(D127=0,E127=0)),"Axial",(+IF(+OR(C127=0,D127=0,E127=0),"Tangential","Oblique"))) -> Tangential
C128: 2 | D128: 8 | E128: 0 | F128: =$B$5*SQRT((($C128/$B$2)^2)+(($D128/$B$3)^2)+(($E128/$B$4)^2)) -> 292.5677819 | G128: =+IF(+AND(C128=0,D128=0)+OR(+AND(C128=0,E128=0))+OR(+AND(D128=0,E128=0)),"Axial",(+IF(+OR(C128=0,D128=0,E128=0),"Tangential","Oblique"))) -> Tangential
C129: 0 | D129: 4 | E129: 5 | F129: =$B$5*SQRT((($C129/$B$2)^2)+(($D129/$B$3)^2)+(($E129/$B$4)^2)) -> 293.153506 | G129: =+IF(+AND(C129=0,D129=0)+OR(+AND(C129=0,E129=0))+OR(+AND(D129=0,E129=0)),"Axial",(+IF(+OR(C129=0,D129=0,E129=0),"Tangential","Oblique"))) -> Tangential
C130: 0 | D130: 7 | E130: 3 | F130: =$B$5*SQRT((($C130/$B$2)^2)+(($D130/$B$3)^2)+(($E130/$B$4)^2)) -> 294.6501551 | G130: =+IF(+AND(C130=0,D130=0)+OR(+AND(C130=0,E130=0))+OR(+AND(D130=0,E130=0)),"Axial",(+IF(+OR(C130=0,D130=0,E130=0),"Tangential","Oblique"))) -> Tangential
C131: 8 | D131: 0 | E131: 4 | F131: =$B$5*SQRT((($C131/$B$2)^2)+(($D131/$B$3)^2)+(($E131/$B$4)^2)) -> 296.5604893 | G131: =+IF(+AND(C131=0,D131=0)+OR(+AND(C131=0,E131=0))+OR(+AND(D131=0,E131=0)),"Axial",(+IF(+OR(C131=0,D131=0,E131=0),"Tangential","Oblique"))) -> Tangential
C132: 0 | D132: 6 | E132: 4 | F132: =$B$5*SQRT((($C132/$B$2)^2)+(($D132/$B$3)^2)+(($E132/$B$4)^2)) -> 297.1389656 | G132: =+IF(+AND(C132=0,D132=0)+OR(+AND(C132=0,E132=0))+OR(+AND(D132=0,E132=0)),"Axial",(+IF(+OR(C132=0,D132=0,E132=0),"Tangential","Oblique"))) -> Tangential
C133: 3 | D133: 8 | E133: 0 | F133: =$B$5*SQRT((($C133/$B$2)^2)+(($D133/$B$3)^2)+(($E133/$B$4)^2)) -> 298.6700109 | G133: =+IF(+AND(C133=0,D133=0)+OR(+AND(C133=0,E133=0))+OR(+AND(D133=0,E133=0)),"Axial",(+IF(+OR(C133=0,D133=0,E133=0),"Tangential","Oblique"))) -> Tangential
C134: 6 | D134: 7 | E134: 0 | F134: =$B$5*SQRT((($C134/$B$2)^2)+(($D134/$B$3)^2)+(($E134/$B$4)^2)) -> 298.833063 | G134: =+IF(+AND(C134=0,D134=0)+OR(+AND(C134=0,E134=0))+OR(+AND(D134=0,E134=0)),"Axial",(+IF(+OR(C134=0,D134=0,E134=0),"Tangential","Oblique"))) -> Tangential
C135: 9 | D135: 5 | E135: 0 | F135: =$B$5*SQRT((($C135/$B$2)^2)+(($D135/$B$3)^2)+(($E135/$B$4)^2)) -> 301.257217 | G135: =+IF(+AND(C135=0,D135=0)+OR(+AND(C135=0,E135=0))+OR(+AND(D135=0,E135=0)),"Axial",(+IF(+OR(C135=0,D135=0,E135=0),"Tangential","Oblique"))) -> Tangential
C136: 6 | D136: 0 | E136: 5 | F136: =$B$5*SQRT((($C136/$B$2)^2)+(($D136/$B$3)^2)+(($E136/$B$4)^2)) -> 302.056663 | G136: =+IF(+AND(C136=0,D136=0)+OR(+AND(C136=0,E136=0))+OR(+AND(D136=0,E136=0)),"Axial",(+IF(+OR(C136=0,D136=0,E136=0),"Tangential","Oblique"))) -> Tangential
C137: 8 | D137: 6 | E137: 0 | F137: =$B$5*SQRT((($C137/$B$2)^2)+(($D137/$B$3)^2)+(($E137/$B$4)^2)) -> 304.4747489 | G137: =+IF(+AND(C137=0,D137=0)+OR(+AND(C137=0,E137=0))+OR(+AND(D137=0,E137=0)),"Axial",(+IF(+OR(C137=0,D137=0,E137=0),"Tangential","Oblique"))) -> Tangential
C138: 0 | D138: 8 | E138: 2 | F138: =$B$5*SQRT((($C138/$B$2)^2)+(($D138/$B$3)^2)+(($E138/$B$4)^2)) -> 305.2072481 | G138: =+IF(+AND(C138=0,D138=0)+OR(+AND(C138=0,E138=0))+OR(+AND(D138=0,E138=0)),"Axial",(+IF(+OR(C138=0,D138=0,E138=0),"Tangential","Oblique"))) -> Tangential
C139: 4 | D139: 8 | E139: 0 | F139: =$B$5*SQRT((($C139/$B$2)^2)+(($D139/$B$3)^2)+(($E139/$B$4)^2)) -> 307.0094318 | G139: =+IF(+AND(C139=0,D139=0)+OR(+AND(C139=0,E139=0))+OR(+AND(D139=0,E139=0)),"Axial",(+IF(+OR(C139=0,D139=0,E139=0),"Tangential","Oblique"))) -> Tangential
C140: 1 | D140: 0 | E140: 6 | F140: =$B$5*SQRT((($C140/$B$2)^2)+(($D140/$B$3)^2)+(($E140/$B$4)^2)) -> 307.7307942 | G140: =+IF(+AND(C140=0,D140=0)+OR(+AND(C140=0,E140=0))+OR(+AND(D140=0,E140=0)),"Axial",(+IF(+OR(C140=0,D140=0,E140=0),"Tangential","Oblique"))) -> Tangential
C141: 0 | D141: 1 | E141: 6 | F141: =$B$5*SQRT((($C141/$B$2)^2)+(($D141/$B$3)^2)+(($E141/$B$4)^2)) -> 308.6567765 | G141: =+IF(+AND(C141=0,D141=0)+OR(+AND(C141=0,E141=0))+OR(+AND(D141=0,E141=0)),"Axial",(+IF(+OR(C141=0,D141=0,E141=0),"Tangential","Oblique"))) -> Tangential
C142: 2 | D142: 0 | E142: 6 | F142: =$B$5*SQRT((($C142/$B$2)^2)+(($D142/$B$3)^2)+(($E142/$B$4)^2)) -> 311.2281522 | G142: =+IF(+AND(C142=0,D142=0)+OR(+AND(C142=0,E142=0))+OR(+AND(D142=0,E142=0)),"Axial",(+IF(+OR(C142=0,D142=0,E142=0),"Tangential","Oblique"))) -> Tangential
C143: 0 | D143: 5 | E143: 5 | F143: =$B$5*SQRT((($C143/$B$2)^2)+(($D143/$B$3)^2)+(($E143/$B$4)^2)) -> 312.3619972 | G143: =+IF(+AND(C143=0,D143=0)+OR(+AND(C143=0,E143=0))+OR(+AND(D143=0,E143=0)),"Axial",(+IF(+OR(C143=0,D143=0,E143=0),"Tangential","Oblique"))) -> Tangential
C144: 7 | D144: 7 | E144: 0 | F144: =$B$5*SQRT((($C144/$B$2)^2)+(($D144/$B$3)^2)+(($E144/$B$4)^2)) -> 314.1363676 | G144: =+IF(+AND(C144=0,D144=0)+OR(+AND(C144=0,E144=0))+OR(+AND(D144=0,E144=0)),"Axial",(+IF(+OR(C144=0,D144=0,E144=0),"Tangential","Oblique"))) -> Tangential
C145: 0 | D145: 2 | E145: 6 | F145: =$B$5*SQRT((($C145/$B$2)^2)+(($D145/$B$3)^2)+(($E145/$B$4)^2)) -> 314.874608 | G145: =+IF(+AND(C145=0,D145=0)+OR(+AND(C145=0,E145=0))+OR(+AND(D145=0,E145=0)),"Axial",(+IF(+OR(C145=0,D145=0,E145=0),"Tangential","Oblique"))) -> Tangential
C146: 9 | D146: 0 | E146: 4 | F146: =$B$5*SQRT((($C146/$B$2)^2)+(($D146/$B$3)^2)+(($E146/$B$4)^2)) -> 316.5673333 | G146: =+IF(+AND(C146=0,D146=0)+OR(+AND(C146=0,E146=0))+OR(+AND(D146=0,E146=0)),"Axial",(+IF(+OR(C146=0,D146=0,E146=0),"Tangential","Oblique"))) -> Tangential
C147: 3 | D147: 0 | E147: 6 | F147: =$B$5*SQRT((($C147/$B$2)^2)+(($D147/$B$3)^2)+(($E147/$B$4)^2)) -> 316.9713412 | G147: =+IF(+AND(C147=0,D147=0)+OR(+AND(C147=0,E147=0))+OR(+AND(D147=0,E147=0)),"Axial",(+IF(+OR(C147=0,D147=0,E147=0),"Tangential","Oblique"))) -> Tangential
C148: 7 | D148: 0 | E148: 5 | F148: =$B$5*SQRT((($C148/$B$2)^2)+(($D148/$B$3)^2)+(($E148/$B$4)^2)) -> 317.2044854 | G148: =+IF(+AND(C148=0,D148=0)+OR(+AND(C148=0,E148=0))+OR(+AND(D148=0,E148=0)),"Axial",(+IF(+OR(C148=0,D148=0,E148=0),"Tangential","Oblique"))) -> Tangential
C149: 5 | D149: 8 | E149: 0 | F149: =$B$5*SQRT((($C149/$B$2)^2)+(($D149/$B$3)^2)+(($E149/$B$4)^2)) -> 317.4097579 | G149: =+IF(+AND(C149=0,D149=0)+OR(+AND(C149=0,E149=0))+OR(+AND(D149=0,E149=0)),"Axial",(+IF(+OR(C149=0,D149=0,E149=0),"Tangential","Oblique"))) -> Tangential
C150: 9 | D150: 6 | E150: 0 | F150: =$B$5*SQRT((($C150/$B$2)^2)+(($D150/$B$3)^2)+(($E150/$B$4)^2)) -> 323.993249 | G150: =+IF(+AND(C150=0,D150=0)+OR(+AND(C150=0,E150=0))+OR(+AND(D150=0,E150=0)),"Axial",(+IF(+OR(C150=0,D150=0,E150=0),"Tangential","Oblique"))) -> Tangential
C151: 0 | D151: 7 | E151: 4 | F151: =$B$5*SQRT((($C151/$B$2)^2)+(($D151/$B$3)^2)+(($E151/$B$4)^2)) -> 324.1788933 | G151: =+IF(+AND(C151=0,D151=0)+OR(+AND(C151=0,E151=0))+OR(+AND(D151=0,E151=0)),"Axial",(+IF(+OR(C151=0,D151=0,E151=0),"Tangential","Oblique"))) -> Tangential
C152: 1 | D152: 9 | E152: 0 | F152: =$B$5*SQRT((($C152/$B$2)^2)+(($D152/$B$3)^2)+(($E152/$B$4)^2)) -> 324.6550888 | G152: =+IF(+AND(C152=0,D152=0)+OR(+AND(C152=0,E152=0))+OR(+AND(D152=0,E152=0)),"Axial",(+IF(+OR(C152=0,D152=0,E152=0),"Tangential","Oblique"))) -> Tangential
C153: 4 | D153: 0 | E153: 6 | F153: =$B$5*SQRT((($C153/$B$2)^2)+(($D153/$B$3)^2)+(($E153/$B$4)^2)) -> 324.8412642 | G153: =+IF(+AND(C153=0,D153=0)+OR(+AND(C153=0,E153=0))+OR(+AND(D153=0,E153=0)),"Axial",(+IF(+OR(C153=0,D153=0,E153=0),"Tangential","Oblique"))) -> Tangential
C154: 0 | D154: 3 | E154: 6 | F154: =$B$5*SQRT((($C154/$B$2)^2)+(($D154/$B$3)^2)+(($E154/$B$4)^2)) -> 324.9733946 | G154: =+IF(+AND(C154=0,D154=0)+OR(+AND(C154=0,E154=0))+OR(+AND(D154=0,E154=0)),"Axial",(+IF(+OR(C154=0,D154=0,E154=0),"Tangential","Oblique"))) -> Tangential
C155: 0 | D155: 8 | E155: 3 | F155: =$B$5*SQRT((($C155/$B$2)^2)+(($D155/$B$3)^2)+(($E155/$B$4)^2)) -> 325.8892132 | G155: =+IF(+AND(C155=0,D155=0)+OR(+AND(C155=0,E155=0))+OR(+AND(D155=0,E155=0)),"Axial",(+IF(+OR(C155=0,D155=0,E155=0),"Tangential","Oblique"))) -> Tangential
C156: 0 | D156: 9 | E156: 1 | F156: =$B$5*SQRT((($C156/$B$2)^2)+(($D156/$B$3)^2)+(($E156/$B$4)^2)) -> 327.5512418 | G156: =+IF(+AND(C156=0,D156=0)+OR(+AND(C156=0,E156=0))+OR(+AND(D156=0,E156=0)),"Axial",(+IF(+OR(C156=0,D156=0,E156=0),"Tangential","Oblique"))) -> Tangential
C157: 2 | D157: 9 | E157: 0 | F157: =$B$5*SQRT((($C157/$B$2)^2)+(($D157/$B$3)^2)+(($E157/$B$4)^2)) -> 327.9720228 | G157: =+IF(+AND(C157=0,D157=0)+OR(+AND(C157=0,E157=0))+OR(+AND(D157=0,E157=0)),"Axial",(+IF(+OR(C157=0,D157=0,E157=0),"Tangential","Oblique"))) -> Tangential
C158: 6 | D158: 8 | E158: 0 | F158: =$B$5*SQRT((($C158/$B$2)^2)+(($D158/$B$3)^2)+(($E158/$B$4)^2)) -> 329.6759999 | G158: =+IF(+AND(C158=0,D158=0)+OR(+AND(C158=0,E158=0))+OR(+AND(D158=0,E158=0)),"Axial",(+IF(+OR(C158=0,D158=0,E158=0),"Tangential","Oblique"))) -> Tangential
C159: 8 | D159: 7 | E159: 0 | F159: =$B$5*SQRT((($C159/$B$2)^2)+(($D159/$B$3)^2)+(($E159/$B$4)^2)) -> 330.915794 | G159: =+IF(+AND(C159=0,D159=0)+OR(+AND(C159=0,E159=0))+OR(+AND(D159=0,E159=0)),"Axial",(+IF(+OR(C159=0,D159=0,E159=0),"Tangential","Oblique"))) -> Tangential
C160: 3 | D160: 9 | E160: 0 | F160: =$B$5*SQRT((($C160/$B$2)^2)+(($D160/$B$3)^2)+(($E160/$B$4)^2)) -> 333.4269278 | G160: =+IF(+AND(C160=0,D160=0)+OR(+AND(C160=0,E160=0))+OR(+AND(D160=0,E160=0)),"Axial",(+IF(+OR(C160=0,D160=0,E160=0),"Tangential","Oblique"))) -> Tangential
C161: 8 | D161: 0 | E161: 5 | F161: =$B$5*SQRT((($C161/$B$2)^2)+(($D161/$B$3)^2)+(($E161/$B$4)^2)) -> 333.8297333 | G161: =+IF(+AND(C161=0,D161=0)+OR(+AND(C161=0,E161=0))+OR(+AND(D161=0,E161=0)),"Axial",(+IF(+OR(C161=0,D161=0,E161=0),"Tangential","Oblique"))) -> Tangential
C162: 0 | D162: 6 | E162: 5 | F162: =$B$5*SQRT((($C162/$B$2)^2)+(($D162/$B$3)^2)+(($E162/$B$4)^2)) -> 334.3437332 | G162: =+IF(+AND(C162=0,D162=0)+OR(+AND(C162=0,E162=0))+OR(+AND(D162=0,E162=0)),"Axial",(+IF(+OR(C162=0,D162=0,E162=0),"Tangential","Oblique"))) -> Tangential
C163: 5 | D163: 0 | E163: 6 | F163: =$B$5*SQRT((($C163/$B$2)^2)+(($D163/$B$3)^2)+(($E163/$B$4)^2)) -> 334.6879295 | G163: =+IF(+AND(C163=0,D163=0)+OR(+AND(C163=0,E163=0))+OR(+AND(D163=0,E163=0)),"Axial",(+IF(+OR(C163=0,D163=0,E163=0),"Tangential","Oblique"))) -> Tangential
C164: 0 | D164: 4 | E164: 6 | F164: =$B$5*SQRT((($C164/$B$2)^2)+(($D164/$B$3)^2)+(($E164/$B$4)^2)) -> 338.6060706 | G164: =+IF(+AND(C164=0,D164=0)+OR(+AND(C164=0,E164=0))+OR(+AND(D164=0,E164=0)),"Axial",(+IF(+OR(C164=0,D164=0,E164=0),"Tangential","Oblique"))) -> Tangential
C165: 0 | D165: 9 | E165: 2 | F165: =$B$5*SQRT((($C165/$B$2)^2)+(($D165/$B$3)^2)+(($E165/$B$4)^2)) -> 339.2951592 | G165: =+IF(+AND(C165=0,D165=0)+OR(+AND(C165=0,E165=0))+OR(+AND(D165=0,E165=0)),"Axial",(+IF(+OR(C165=0,D165=0,E165=0),"Tangential","Oblique"))) -> Tangential
C166: 4 | D166: 9 | E166: 0 | F166: =$B$5*SQRT((($C166/$B$2)^2)+(($D166/$B$3)^2)+(($E166/$B$4)^2)) -> 340.9171923 | G166: =+IF(+AND(C166=0,D166=0)+OR(+AND(C166=0,E166=0))+OR(+AND(D166=0,E166=0)),"Axial",(+IF(+OR(C166=0,D166=0,E166=0),"Tangential","Oblique"))) -> Tangential
C167: 7 | D167: 8 | E167: 0 | F167: =$B$5*SQRT((($C167/$B$2)^2)+(($D167/$B$3)^2)+(($E167/$B$4)^2)) -> 343.6083859 | G167: =+IF(+AND(C167=0,D167=0)+OR(+AND(C167=0,E167=0))+OR(+AND(D167=0,E167=0)),"Axial",(+IF(+OR(C167=0,D167=0,E167=0),"Tangential","Oblique"))) -> Tangential
C168: 6 | D168: 0 | E168: 6 | F168: =$B$5*SQRT((($C168/$B$2)^2)+(($D168/$B$3)^2)+(($E168/$B$4)^2)) -> 346.3427791 | G168: =+IF(+AND(C168=0,D168=0)+OR(+AND(C168=0,E168=0))+OR(+AND(D168=0,E168=0)),"Axial",(+IF(+OR(C168=0,D168=0,E168=0),"Tangential","Oblique"))) -> Tangential
C169: 9 | D169: 7 | E169: 0 | F169: =$B$5*SQRT((($C169/$B$2)^2)+(($D169/$B$3)^2)+(($E169/$B$4)^2)) -> 348.9584723 | G169: =+IF(+AND(C169=0,D169=0)+OR(+AND(C169=0,E169=0))+OR(+AND(D169=0,E169=0)),"Axial",(+IF(+OR(C169=0,D169=0,E169=0),"Tangential","Oblique"))) -> Tangential
C170: 5 | D170: 9 | E170: 0 | F170: =$B$5*SQRT((($C170/$B$2)^2)+(($D170/$B$3)^2)+(($E170/$B$4)^2)) -> 350.3122823 | G170: =+IF(+AND(C170=0,D170=0)+OR(+AND(C170=0,E170=0))+OR(+AND(D170=0,E170=0)),"Axial",(+IF(+OR(C170=0,D170=0,E170=0),"Tangential","Oblique"))) -> Tangential
C171: 9 | D171: 0 | E171: 5 | F171: =$B$5*SQRT((($C171/$B$2)^2)+(($D171/$B$3)^2)+(($E171/$B$4)^2)) -> 351.7229641 | G171: =+IF(+AND(C171=0,D171=0)+OR(+AND(C171=0,E171=0))+OR(+AND(D171=0,E171=0)),"Axial",(+IF(+OR(C171=0,D171=0,E171=0),"Tangential","Oblique"))) -> Tangential
C172: 0 | D172: 8 | E172: 4 | F172: =$B$5*SQRT((($C172/$B$2)^2)+(($D172/$B$3)^2)+(($E172/$B$4)^2)) -> 352.8130103 | G172: =+IF(+AND(C172=0,D172=0)+OR(+AND(C172=0,E172=0))+OR(+AND(D172=0,E172=0)),"Axial",(+IF(+OR(C172=0,D172=0,E172=0),"Tangential","Oblique"))) -> Tangential
C173: 0 | D173: 5 | E173: 6 | F173: =$B$5*SQRT((($C173/$B$2)^2)+(($D173/$B$3)^2)+(($E173/$B$4)^2)) -> 355.3661637 | G173: =+IF(+AND(C173=0,D173=0)+OR(+AND(C173=0,E173=0))+OR(+AND(D173=0,E173=0)),"Axial",(+IF(+OR(C173=0,D173=0,E173=0),"Tangential","Oblique"))) -> Tangential
C174: 0 | D174: 9 | E174: 3 | F174: =$B$5*SQRT((($C174/$B$2)^2)+(($D174/$B$3)^2)+(($E174/$B$4)^2)) -> 358.0132959 | G174: =+IF(+AND(C174=0,D174=0)+OR(+AND(C174=0,E174=0))+OR(+AND(D174=0,E174=0)),"Axial",(+IF(+OR(C174=0,D174=0,E174=0),"Tangential","Oblique"))) -> Tangential
C175: 0 | D175: 7 | E175: 5 | F175: =$B$5*SQRT((($C175/$B$2)^2)+(($D175/$B$3)^2)+(($E175/$B$4)^2)) -> 358.5890711 | G175: =+IF(+AND(C175=0,D175=0)+OR(+AND(C175=0,E175=0))+OR(+AND(D175=0,E175=0)),"Axial",(+IF(+OR(C175=0,D175=0,E175=0),"Tangential","Oblique"))) -> Tangential
C176: 1 | D176: 0 | E176: 7 | F176: =$B$5*SQRT((($C176/$B$2)^2)+(($D176/$B$3)^2)+(($E176/$B$4)^2)) -> 358.6561873 | G176: =+IF(+AND(C176=0,D176=0)+OR(+AND(C176=0,E176=0))+OR(+AND(D176=0,E176=0)),"Axial",(+IF(+OR(C176=0,D176=0,E176=0),"Tangential","Oblique"))) -> Tangential
C177: 8 | D177: 8 | E177: 0 | F177: =$B$5*SQRT((($C177/$B$2)^2)+(($D177/$B$3)^2)+(($E177/$B$4)^2)) -> 359.0129916 | G177: =+IF(+AND(C177=0,D177=0)+OR(+AND(C177=0,E177=0))+OR(+AND(D177=0,E177=0)),"Axial",(+IF(+OR(C177=0,D177=0,E177=0),"Tangential","Oblique"))) -> Tangential
C178: 0 | D178: 1 | E178: 7 | F178: =$B$5*SQRT((($C178/$B$2)^2)+(($D178/$B$3)^2)+(($E178/$B$4)^2)) -> 359.4510046 | G178: =+IF(+AND(C178=0,D178=0)+OR(+AND(C178=0,E178=0))+OR(+AND(D178=0,E178=0)),"Axial",(+IF(+OR(C178=0,D178=0,E178=0),"Tangential","Oblique"))) -> Tangential
C179: 7 | D179: 0 | E179: 6 | F179: =$B$5*SQRT((($C179/$B$2)^2)+(($D179/$B$3)^2)+(($E179/$B$4)^2)) -> 359.6300579 | G179: =+IF(+AND(C179=0,D179=0)+OR(+AND(C179=0,E179=0))+OR(+AND(D179=0,E179=0)),"Axial",(+IF(+OR(C179=0,D179=0,E179=0),"Tangential","Oblique"))) -> Tangential
C180: 6 | D180: 9 | E180: 0 | F180: =$B$5*SQRT((($C180/$B$2)^2)+(($D180/$B$3)^2)+(($E180/$B$4)^2)) -> 361.463699 | G180: =+IF(+AND(C180=0,D180=0)+OR(+AND(C180=0,E180=0))+OR(+AND(D180=0,E180=0)),"Axial",(+IF(+OR(C180=0,D180=0,E180=0),"Tangential","Oblique"))) -> Tangential
C181: 2 | D181: 0 | E181: 7 | F181: =$B$5*SQRT((($C181/$B$2)^2)+(($D181/$B$3)^2)+(($E181/$B$4)^2)) -> 361.6614186 | G181: =+IF(+AND(C181=0,D181=0)+OR(+AND(C181=0,E181=0))+OR(+AND(D181=0,E181=0)),"Axial",(+IF(+OR(C181=0,D181=0,E181=0),"Tangential","Oblique"))) -> Tangential
C182: 0 | D182: 2 | E182: 7 | F182: =$B$5*SQRT((($C182/$B$2)^2)+(($D182/$B$3)^2)+(($E182/$B$4)^2)) -> 364.8041088 | G182: =+IF(+AND(C182=0,D182=0)+OR(+AND(C182=0,E182=0))+OR(+AND(D182=0,E182=0)),"Axial",(+IF(+OR(C182=0,D182=0,E182=0),"Tangential","Oblique"))) -> Tangential
C183: 3 | D183: 0 | E183: 7 | F183: =$B$5*SQRT((($C183/$B$2)^2)+(($D183/$B$3)^2)+(($E183/$B$4)^2)) -> 366.6153982 | G183: =+IF(+AND(C183=0,D183=0)+OR(+AND(C183=0,E183=0))+OR(+AND(D183=0,E183=0)),"Axial",(+IF(+OR(C183=0,D183=0,E183=0),"Tangential","Oblique"))) -> Tangential
C184: 4 | D184: 0 | E184: 7 | F184: =$B$5*SQRT((($C184/$B$2)^2)+(($D184/$B$3)^2)+(($E184/$B$4)^2)) -> 373.4405789 | G184: =+IF(+AND(C184=0,D184=0)+OR(+AND(C184=0,E184=0))+OR(+AND(D184=0,E184=0)),"Axial",(+IF(+OR(C184=0,D184=0,E184=0),"Tangential","Oblique"))) -> Tangential
C185: 0 | D185: 3 | E185: 7 | F185: =$B$5*SQRT((($C185/$B$2)^2)+(($D185/$B$3)^2)+(($E185/$B$4)^2)) -> 373.5555196 | G185: =+IF(+AND(C185=0,D185=0)+OR(+AND(C185=0,E185=0))+OR(+AND(D185=0,E185=0)),"Axial",(+IF(+OR(C185=0,D185=0,E185=0),"Tangential","Oblique"))) -> Tangential
C186: 7 | D186: 9 | E186: 0 | F186: =$B$5*SQRT((($C186/$B$2)^2)+(($D186/$B$3)^2)+(($E186/$B$4)^2)) -> 374.214462 | G186: =+IF(+AND(C186=0,D186=0)+OR(+AND(C186=0,E186=0))+OR(+AND(D186=0,E186=0)),"Axial",(+IF(+OR(C186=0,D186=0,E186=0),"Tangential","Oblique"))) -> Tangential
C187: 8 | D187: 0 | E187: 6 | F187: =$B$5*SQRT((($C187/$B$2)^2)+(($D187/$B$3)^2)+(($E187/$B$4)^2)) -> 374.3759926 | G187: =+IF(+AND(C187=0,D187=0)+OR(+AND(C187=0,E187=0))+OR(+AND(D187=0,E187=0)),"Axial",(+IF(+OR(C187=0,D187=0,E187=0),"Tangential","Oblique"))) -> Tangential
C188: 0 | D188: 6 | E188: 6 | F188: =$B$5*SQRT((($C188/$B$2)^2)+(($D188/$B$3)^2)+(($E188/$B$4)^2)) -> 374.8343966 | G188: =+IF(+AND(C188=0,D188=0)+OR(+AND(C188=0,E188=0))+OR(+AND(D188=0,E188=0)),"Axial",(+IF(+OR(C188=0,D188=0,E188=0),"Tangential","Oblique"))) -> Tangential
C189: 9 | D189: 8 | E189: 0 | F189: =$B$5*SQRT((($C189/$B$2)^2)+(($D189/$B$3)^2)+(($E189/$B$4)^2)) -> 375.7087712 | G189: =+IF(+AND(C189=0,D189=0)+OR(+AND(C189=0,E189=0))+OR(+AND(D189=0,E189=0)),"Axial",(+IF(+OR(C189=0,D189=0,E189=0),"Tangential","Oblique"))) -> Tangential
C190: 5 | D190: 0 | E190: 7 | F190: =$B$5*SQRT((($C190/$B$2)^2)+(($D190/$B$3)^2)+(($E190/$B$4)^2)) -> 382.0366856 | G190: =+IF(+AND(C190=0,D190=0)+OR(+AND(C190=0,E190=0))+OR(+AND(D190=0,E190=0)),"Axial",(+IF(+OR(C190=0,D190=0,E190=0),"Tangential","Oblique"))) -> Tangential
C191: 0 | D191: 9 | E191: 4 | F191: =$B$5*SQRT((($C191/$B$2)^2)+(($D191/$B$3)^2)+(($E191/$B$4)^2)) -> 382.6836305 | G191: =+IF(+AND(C191=0,D191=0)+OR(+AND(C191=0,E191=0))+OR(+AND(D191=0,E191=0)),"Axial",(+IF(+OR(C191=0,D191=0,E191=0),"Tangential","Oblique"))) -> Tangential
C192: 0 | D192: 8 | E192: 5 | F192: =$B$5*SQRT((($C192/$B$2)^2)+(($D192/$B$3)^2)+(($E192/$B$4)^2)) -> 384.6702318 | G192: =+IF(+AND(C192=0,D192=0)+OR(+AND(C192=0,E192=0))+OR(+AND(D192=0,E192=0)),"Axial",(+IF(+OR(C192=0,D192=0,E192=0),"Tangential","Oblique"))) -> Tangential
C193: 0 | D193: 4 | E193: 7 | F193: =$B$5*SQRT((($C193/$B$2)^2)+(($D193/$B$3)^2)+(($E193/$B$4)^2)) -> 385.4738513 | G193: =+IF(+AND(C193=0,D193=0)+OR(+AND(C193=0,E193=0))+OR(+AND(D193=0,E193=0)),"Axial",(+IF(+OR(C193=0,D193=0,E193=0),"Tangential","Oblique"))) -> Tangential
C194: 8 | D194: 9 | E194: 0 | F194: =$B$5*SQRT((($C194/$B$2)^2)+(($D194/$B$3)^2)+(($E194/$B$4)^2)) -> 388.4070917 | G194: =+IF(+AND(C194=0,D194=0)+OR(+AND(C194=0,E194=0))+OR(+AND(D194=0,E194=0)),"Axial",(+IF(+OR(C194=0,D194=0,E194=0),"Tangential","Oblique"))) -> Tangential
C195: 9 | D195: 0 | E195: 6 | F195: =$B$5*SQRT((($C195/$B$2)^2)+(($D195/$B$3)^2)+(($E195/$B$4)^2)) -> 390.4153384 | G195: =+IF(+AND(C195=0,D195=0)+OR(+AND(C195=0,E195=0))+OR(+AND(D195=0,E195=0)),"Axial",(+IF(+OR(C195=0,D195=0,E195=0),"Tangential","Oblique"))) -> Tangential
C196: 6 | D196: 0 | E196: 7 | F196: =$B$5*SQRT((($C196/$B$2)^2)+(($D196/$B$3)^2)+(($E196/$B$4)^2)) -> 392.2873177 | G196: =+IF(+AND(C196=0,D196=0)+OR(+AND(C196=0,E196=0))+OR(+AND(D196=0,E196=0)),"Axial",(+IF(+OR(C196=0,D196=0,E196=0),"Tangential","Oblique"))) -> Tangential
C197: 0 | D197: 7 | E197: 6 | F197: =$B$5*SQRT((($C197/$B$2)^2)+(($D197/$B$3)^2)+(($E197/$B$4)^2)) -> 396.6121719 | G197: =+IF(+AND(C197=0,D197=0)+OR(+AND(C197=0,E197=0))+OR(+AND(D197=0,E197=0)),"Axial",(+IF(+OR(C197=0,D197=0,E197=0),"Tangential","Oblique"))) -> Tangential
C198: 0 | D198: 5 | E198: 7 | F198: =$B$5*SQRT((($C198/$B$2)^2)+(($D198/$B$3)^2)+(($E198/$B$4)^2)) -> 400.2763162 | G198: =+IF(+AND(C198=0,D198=0)+OR(+AND(C198=0,E198=0))+OR(+AND(D198=0,E198=0)),"Axial",(+IF(+OR(C198=0,D198=0,E198=0),"Tangential","Oblique"))) -> Tangential
C199: 9 | D199: 9 | E199: 0 | F199: =$B$5*SQRT((($C199/$B$2)^2)+(($D199/$B$3)^2)+(($E199/$B$4)^2)) -> 403.8896155 | G199: =+IF(+AND(C199=0,D199=0)+OR(+AND(C199=0,E199=0))+OR(+AND(D199=0,E199=0)),"Axial",(+IF(+OR(C199=0,D199=0,E199=0),"Tangential","Oblique"))) -> Tangential
C200: 7 | D200: 0 | E200: 7 | F200: =$B$5*SQRT((($C200/$B$2)^2)+(($D200/$B$3)^2)+(($E200/$B$4)^2)) -> 404.0665757 | G200: =+IF(+AND(C200=0,D200=0)+OR(+AND(C200=0,E200=0))+OR(+AND(D200=0,E200=0)),"Axial",(+IF(+OR(C200=0,D200=0,E200=0),"Tangential","Oblique"))) -> Tangential
... 45 more rows

Sheet Oblique
C1: Oblique Modes
A2: Lx = | B2: =+AllModes!D2 -> 21.03333333 | C2: nx | D2: ny | E2: nz | F2: f | G2: Type | I2: If you found this spreadsheet helpful, please send a donation via PayPal to erika@jhbrandt.net
A3: Ly = | B3: =+AllModes!D3 -> 15.71666667 | C3: 1 | D3: 1 | E3: 1 | F3: =$B$5*SQRT((($C3/$B$2)^2)+(($D3/$B$3)^2)+(($E3/$B$4)^2)) -> 68.00275271 | G3: =+IF(+AND(C3=0,D3=0)+OR(+AND(C3=0,E3=0))+OR(+AND(D3=0,E3=0)),"Axial",(+IF(+OR(C3=0,D3=0,E3=0),"Tangential","Oblique"))) -> Oblique
A4: Lz = | B4: =+AllModes!D4 -> 11.05833333 | C4: 2 | D4: 1 | E4: 1 | F4: =$B$5*SQRT((($C4/$B$2)^2)+(($D4/$B$3)^2)+(($E4/$B$4)^2)) -> 82.39596733 | G4: =+IF(+AND(C4=0,D4=0)+OR(+AND(C4=0,E4=0))+OR(+AND(D4=0,E4=0)),"Axial",(+IF(+OR(C4=0,D4=0,E4=0),"Tangential","Oblique"))) -> Oblique
A5: c/2 = | B5: =1130/2 -> 565 | C5: 1 | D5: 2 | E5: 1 | F5: =$B$5*SQRT((($C5/$B$2)^2)+(($D5/$B$3)^2)+(($E5/$B$4)^2)) -> 92.20296878 | G5: =+IF(+AND(C5=0,D5=0)+OR(+AND(C5=0,E5=0))+OR(+AND(D5=0,E5=0)),"Axial",(+IF(+OR(C5=0,D5=0,E5=0),"Tangential","Oblique"))) -> Oblique
C6: 3 | D6: 1 | E6: 1 | F6: =$B$5*SQRT((($C6/$B$2)^2)+(($D6/$B$3)^2)+(($E6/$B$4)^2)) -> 101.9655033 | G6: =+IF(+AND(C6=0,D6=0)+OR(+AND(C6=0,E6=0))+OR(+AND(D6=0,E6=0)),"Axial",(+IF(+OR(C6=0,D6=0,E6=0),"Tangential","Oblique"))) -> Oblique
A7: V = | B7: =B2*B3*B4 -> 3655.596255 | C7: 2 | D7: 2 | E7: 1 | F7: =$B$5*SQRT((($C7/$B$2)^2)+(($D7/$B$3)^2)+(($E7/$B$4)^2)) -> 103.2768537 | G7: =+IF(+AND(C7=0,D7=0)+OR(+AND(C7=0,E7=0))+OR(+AND(D7=0,E7=0)),"Axial",(+IF(+OR(C7=0,D7=0,E7=0),"Tangential","Oblique"))) -> Oblique
C8: 1 | D8: 1 | E8: 2 | F8: =$B$5*SQRT((($C8/$B$2)^2)+(($D8/$B$3)^2)+(($E8/$B$4)^2)) -> 111.6053913 | G8: =+IF(+AND(C8=0,D8=0)+OR(+AND(C8=0,E8=0))+OR(+AND(D8=0,E8=0)),"Axial",(+IF(+OR(C8=0,D8=0,E8=0),"Tangential","Oblique"))) -> Oblique
C9: 3 | D9: 2 | E9: 1 | F9: =$B$5*SQRT((($C9/$B$2)^2)+(($D9/$B$3)^2)+(($E9/$B$4)^2)) -> 119.47375 | G9: =+IF(+AND(C9=0,D9=0)+OR(+AND(C9=0,E9=0))+OR(+AND(D9=0,E9=0)),"Axial",(+IF(+OR(C9=0,D9=0,E9=0),"Tangential","Oblique"))) -> Oblique
C10: 2 | D10: 1 | E10: 2 | F10: =$B$5*SQRT((($C10/$B$2)^2)+(($D10/$B$3)^2)+(($E10/$B$4)^2)) -> 120.9151952 | G10: =+IF(+AND(C10=0,D10=0)+OR(+AND(C10=0,E10=0))+OR(+AND(D10=0,E10=0)),"Axial",(+IF(+OR(C10=0,D10=0,E10=0),"Tangential","Oblique"))) -> Oblique
C11: 1 | D11: 3 | E11: 1 | F11: =$B$5*SQRT((($C11/$B$2)^2)+(($D11/$B$3)^2)+(($E11/$B$4)^2)) -> 122.3236523 | G11: =+IF(+AND(C11=0,D11=0)+OR(+AND(C11=0,E11=0))+OR(+AND(D11=0,E11=0)),"Axial",(+IF(+OR(C11=0,D11=0,E11=0),"Tangential","Oblique"))) -> Oblique
C12: 4 | D12: 1 | E12: 1 | F12: =$B$5*SQRT((($C12/$B$2)^2)+(($D12/$B$3)^2)+(($E12/$B$4)^2)) -> 124.2899016 | G12: =+IF(+AND(C12=0,D12=0)+OR(+AND(C12=0,E12=0))+OR(+AND(D12=0,E12=0)),"Axial",(+IF(+OR(C12=0,D12=0,E12=0),"Tangential","Oblique"))) -> Oblique
C13: 1 | D13: 2 | E13: 2 | F13: =$B$5*SQRT((($C13/$B$2)^2)+(($D13/$B$3)^2)+(($E13/$B$4)^2)) -> 127.7997514 | G13: =+IF(+AND(C13=0,D13=0)+OR(+AND(C13=0,E13=0))+OR(+AND(D13=0,E13=0)),"Axial",(+IF(+OR(C13=0,D13=0,E13=0),"Tangential","Oblique"))) -> Oblique
C14: 2 | D14: 3 | E14: 1 | F14: =$B$5*SQRT((($C14/$B$2)^2)+(($D14/$B$3)^2)+(($E14/$B$4)^2)) -> 130.8732095 | G14: =+IF(+AND(C14=0,D14=0)+OR(+AND(C14=0,E14=0))+OR(+AND(D14=0,E14=0)),"Axial",(+IF(+OR(C14=0,D14=0,E14=0),"Tangential","Oblique"))) -> Oblique
C15: 3 | D15: 1 | E15: 2 | F15: =$B$5*SQRT((($C15/$B$2)^2)+(($D15/$B$3)^2)+(($E15/$B$4)^2)) -> 135.0124174 | G15: =+IF(+AND(C15=0,D15=0)+OR(+AND(C15=0,E15=0))+OR(+AND(D15=0,E15=0)),"Axial",(+IF(+OR(C15=0,D15=0,E15=0),"Tangential","Oblique"))) -> Oblique
C16: 2 | D16: 2 | E16: 2 | F16: =$B$5*SQRT((($C16/$B$2)^2)+(($D16/$B$3)^2)+(($E16/$B$4)^2)) -> 136.0055054 | G16: =+IF(+AND(C16=0,D16=0)+OR(+AND(C16=0,E16=0))+OR(+AND(D16=0,E16=0)),"Axial",(+IF(+OR(C16=0,D16=0,E16=0),"Tangential","Oblique"))) -> Oblique
C17: 4 | D17: 2 | E17: 1 | F17: =$B$5*SQRT((($C17/$B$2)^2)+(($D17/$B$3)^2)+(($E17/$B$4)^2)) -> 139.0143616 | G17: =+IF(+AND(C17=0,D17=0)+OR(+AND(C17=0,E17=0))+OR(+AND(D17=0,E17=0)),"Axial",(+IF(+OR(C17=0,D17=0,E17=0),"Tangential","Oblique"))) -> Oblique
C18: 3 | D18: 3 | E18: 1 | F18: =$B$5*SQRT((($C18/$B$2)^2)+(($D18/$B$3)^2)+(($E18/$B$4)^2)) -> 143.9988382 | G18: =+IF(+AND(C18=0,D18=0)+OR(+AND(C18=0,E18=0))+OR(+AND(D18=0,E18=0)),"Axial",(+IF(+OR(C18=0,D18=0,E18=0),"Tangential","Oblique"))) -> Oblique
C19: 5 | D19: 1 | E19: 1 | F19: =$B$5*SQRT((($C19/$B$2)^2)+(($D19/$B$3)^2)+(($E19/$B$4)^2)) -> 148.1288048 | G19: =+IF(+AND(C19=0,D19=0)+OR(+AND(C19=0,E19=0))+OR(+AND(D19=0,E19=0)),"Axial",(+IF(+OR(C19=0,D19=0,E19=0),"Tangential","Oblique"))) -> Oblique
C20: 3 | D20: 2 | E20: 2 | F20: =$B$5*SQRT((($C20/$B$2)^2)+(($D20/$B$3)^2)+(($E20/$B$4)^2)) -> 148.678734 | G20: =+IF(+AND(C20=0,D20=0)+OR(+AND(C20=0,E20=0))+OR(+AND(D20=0,E20=0)),"Axial",(+IF(+OR(C20=0,D20=0,E20=0),"Tangential","Oblique"))) -> Oblique
C21: 1 | D21: 3 | E21: 2 | F21: =$B$5*SQRT((($C21/$B$2)^2)+(($D21/$B$3)^2)+(($E21/$B$4)^2)) -> 150.9783591 | G21: =+IF(+AND(C21=0,D21=0)+OR(+AND(C21=0,E21=0))+OR(+AND(D21=0,E21=0)),"Axial",(+IF(+OR(C21=0,D21=0,E21=0),"Tangential","Oblique"))) -> Oblique
C22: 4 | D22: 1 | E22: 2 | F22: =$B$5*SQRT((($C22/$B$2)^2)+(($D22/$B$3)^2)+(($E22/$B$4)^2)) -> 152.57578 | G22: =+IF(+AND(C22=0,D22=0)+OR(+AND(C22=0,E22=0))+OR(+AND(D22=0,E22=0)),"Axial",(+IF(+OR(C22=0,D22=0,E22=0),"Tangential","Oblique"))) -> Oblique
C23: 1 | D23: 4 | E23: 1 | F23: =$B$5*SQRT((($C23/$B$2)^2)+(($D23/$B$3)^2)+(($E23/$B$4)^2)) -> 154.9497975 | G23: =+IF(+AND(C23=0,D23=0)+OR(+AND(C23=0,E23=0))+OR(+AND(D23=0,E23=0)),"Axial",(+IF(+OR(C23=0,D23=0,E23=0),"Tangential","Oblique"))) -> Oblique
C24: 2 | D24: 3 | E24: 2 | F24: =$B$5*SQRT((($C24/$B$2)^2)+(($D24/$B$3)^2)+(($E24/$B$4)^2)) -> 157.984765 | G24: =+IF(+AND(C24=0,D24=0)+OR(+AND(C24=0,E24=0))+OR(+AND(D24=0,E24=0)),"Axial",(+IF(+OR(C24=0,D24=0,E24=0),"Tangential","Oblique"))) -> Oblique
C25: 1 | D25: 1 | E25: 3 | F25: =$B$5*SQRT((($C25/$B$2)^2)+(($D25/$B$3)^2)+(($E25/$B$4)^2)) -> 159.7124866 | G25: =+IF(+AND(C25=0,D25=0)+OR(+AND(C25=0,E25=0))+OR(+AND(D25=0,E25=0)),"Axial",(+IF(+OR(C25=0,D25=0,E25=0),"Tangential","Oblique"))) -> Oblique
C26: 4 | D26: 3 | E26: 1 | F26: =$B$5*SQRT((($C26/$B$2)^2)+(($D26/$B$3)^2)+(($E26/$B$4)^2)) -> 160.582319 | G26: =+IF(+AND(C26=0,D26=0)+OR(+AND(C26=0,E26=0))+OR(+AND(D26=0,E26=0)),"Axial",(+IF(+OR(C26=0,D26=0,E26=0),"Tangential","Oblique"))) -> Oblique
C27: 5 | D27: 2 | E27: 1 | F27: =$B$5*SQRT((($C27/$B$2)^2)+(($D27/$B$3)^2)+(($E27/$B$4)^2)) -> 160.6834027 | G27: =+IF(+AND(C27=0,D27=0)+OR(+AND(C27=0,E27=0))+OR(+AND(D27=0,E27=0)),"Axial",(+IF(+OR(C27=0,D27=0,E27=0),"Tangential","Oblique"))) -> Oblique
C28: 2 | D28: 4 | E28: 1 | F28: =$B$5*SQRT((($C28/$B$2)^2)+(($D28/$B$3)^2)+(($E28/$B$4)^2)) -> 161.7843033 | G28: =+IF(+AND(C28=0,D28=0)+OR(+AND(C28=0,E28=0))+OR(+AND(D28=0,E28=0)),"Axial",(+IF(+OR(C28=0,D28=0,E28=0),"Tangential","Oblique"))) -> Oblique
C29: 4 | D29: 2 | E29: 2 | F29: =$B$5*SQRT((($C29/$B$2)^2)+(($D29/$B$3)^2)+(($E29/$B$4)^2)) -> 164.7919347 | G29: =+IF(+AND(C29=0,D29=0)+OR(+AND(C29=0,E29=0))+OR(+AND(D29=0,E29=0)),"Axial",(+IF(+OR(C29=0,D29=0,E29=0),"Tangential","Oblique"))) -> Oblique
C30: 2 | D30: 1 | E30: 3 | F30: =$B$5*SQRT((($C30/$B$2)^2)+(($D30/$B$3)^2)+(($E30/$B$4)^2)) -> 166.3514335 | G30: =+IF(+AND(C30=0,D30=0)+OR(+AND(C30=0,E30=0))+OR(+AND(D30=0,E30=0)),"Axial",(+IF(+OR(C30=0,D30=0,E30=0),"Tangential","Oblique"))) -> Oblique
C31: 3 | D31: 3 | E31: 2 | F31: =$B$5*SQRT((($C31/$B$2)^2)+(($D31/$B$3)^2)+(($E31/$B$4)^2)) -> 169.0179114 | G31: =+IF(+AND(C31=0,D31=0)+OR(+AND(C31=0,E31=0))+OR(+AND(D31=0,E31=0)),"Axial",(+IF(+OR(C31=0,D31=0,E31=0),"Tangential","Oblique"))) -> Oblique
C32: 1 | D32: 2 | E32: 3 | F32: =$B$5*SQRT((($C32/$B$2)^2)+(($D32/$B$3)^2)+(($E32/$B$4)^2)) -> 171.4208023 | G32: =+IF(+AND(C32=0,D32=0)+OR(+AND(C32=0,E32=0))+OR(+AND(D32=0,E32=0)),"Axial",(+IF(+OR(C32=0,D32=0,E32=0),"Tangential","Oblique"))) -> Oblique
C33: 5 | D33: 1 | E33: 2 | F33: =$B$5*SQRT((($C33/$B$2)^2)+(($D33/$B$3)^2)+(($E33/$B$4)^2)) -> 172.550085 | G33: =+IF(+AND(C33=0,D33=0)+OR(+AND(C33=0,E33=0))+OR(+AND(D33=0,E33=0)),"Axial",(+IF(+OR(C33=0,D33=0,E33=0),"Tangential","Oblique"))) -> Oblique
C34: 3 | D34: 4 | E34: 1 | F34: =$B$5*SQRT((($C34/$B$2)^2)+(($D34/$B$3)^2)+(($E34/$B$4)^2)) -> 172.5747062 | G34: =+IF(+AND(C34=0,D34=0)+OR(+AND(C34=0,E34=0))+OR(+AND(D34=0,E34=0)),"Axial",(+IF(+OR(C34=0,D34=0,E34=0),"Tangential","Oblique"))) -> Oblique
C35: 6 | D35: 1 | E35: 1 | F35: =$B$5*SQRT((($C35/$B$2)^2)+(($D35/$B$3)^2)+(($E35/$B$4)^2)) -> 172.8567423 | G35: =+IF(+AND(C35=0,D35=0)+OR(+AND(C35=0,E35=0))+OR(+AND(D35=0,E35=0)),"Axial",(+IF(+OR(C35=0,D35=0,E35=0),"Tangential","Oblique"))) -> Oblique
C36: 3 | D36: 1 | E36: 3 | F36: =$B$5*SQRT((($C36/$B$2)^2)+(($D36/$B$3)^2)+(($E36/$B$4)^2)) -> 176.8634158 | G36: =+IF(+AND(C36=0,D36=0)+OR(+AND(C36=0,E36=0))+OR(+AND(D36=0,E36=0)),"Axial",(+IF(+OR(C36=0,D36=0,E36=0),"Tangential","Oblique"))) -> Oblique
C37: 2 | D37: 2 | E37: 3 | F37: =$B$5*SQRT((($C37/$B$2)^2)+(($D37/$B$3)^2)+(($E37/$B$4)^2)) -> 177.6226689 | G37: =+IF(+AND(C37=0,D37=0)+OR(+AND(C37=0,E37=0))+OR(+AND(D37=0,E37=0)),"Axial",(+IF(+OR(C37=0,D37=0,E37=0),"Tangential","Oblique"))) -> Oblique
C38: 1 | D38: 4 | E38: 2 | F38: =$B$5*SQRT((($C38/$B$2)^2)+(($D38/$B$3)^2)+(($E38/$B$4)^2)) -> 178.4399864 | G38: =+IF(+AND(C38=0,D38=0)+OR(+AND(C38=0,E38=0))+OR(+AND(D38=0,E38=0)),"Axial",(+IF(+OR(C38=0,D38=0,E38=0),"Tangential","Oblique"))) -> Oblique
C39: 5 | D39: 3 | E39: 1 | F39: =$B$5*SQRT((($C39/$B$2)^2)+(($D39/$B$3)^2)+(($E39/$B$4)^2)) -> 179.6687072 | G39: =+IF(+AND(C39=0,D39=0)+OR(+AND(C39=0,E39=0))+OR(+AND(D39=0,E39=0)),"Axial",(+IF(+OR(C39=0,D39=0,E39=0),"Tangential","Oblique"))) -> Oblique
C40: 4 | D40: 3 | E40: 2 | F40: =$B$5*SQRT((($C40/$B$2)^2)+(($D40/$B$3)^2)+(($E40/$B$4)^2)) -> 183.3523116 | G40: =+IF(+AND(C40=0,D40=0)+OR(+AND(C40=0,E40=0))+OR(+AND(D40=0,E40=0)),"Axial",(+IF(+OR(C40=0,D40=0,E40=0),"Tangential","Oblique"))) -> Oblique
C41: 5 | D41: 2 | E41: 2 | F41: =$B$5*SQRT((($C41/$B$2)^2)+(($D41/$B$3)^2)+(($E41/$B$4)^2)) -> 183.4408485 | G41: =+IF(+AND(C41=0,D41=0)+OR(+AND(C41=0,E41=0))+OR(+AND(D41=0,E41=0)),"Axial",(+IF(+OR(C41=0,D41=0,E41=0),"Tangential","Oblique"))) -> Oblique
C42: 6 | D42: 2 | E42: 1 | F42: =$B$5*SQRT((($C42/$B$2)^2)+(($D42/$B$3)^2)+(($E42/$B$4)^2)) -> 183.7293293 | G42: =+IF(+AND(C42=0,D42=0)+OR(+AND(C42=0,E42=0))+OR(+AND(D42=0,E42=0)),"Axial",(+IF(+OR(C42=0,D42=0,E42=0),"Tangential","Oblique"))) -> Oblique
C43: 2 | D43: 4 | E43: 2 | F43: =$B$5*SQRT((($C43/$B$2)^2)+(($D43/$B$3)^2)+(($E43/$B$4)^2)) -> 184.4059376 | G43: =+IF(+AND(C43=0,D43=0)+OR(+AND(C43=0,E43=0))+OR(+AND(D43=0,E43=0)),"Axial",(+IF(+OR(C43=0,D43=0,E43=0),"Tangential","Oblique"))) -> Oblique
C44: 4 | D44: 4 | E44: 1 | F44: =$B$5*SQRT((($C44/$B$2)^2)+(($D44/$B$3)^2)+(($E44/$B$4)^2)) -> 186.63613 | G44: =+IF(+AND(C44=0,D44=0)+OR(+AND(C44=0,E44=0))+OR(+AND(D44=0,E44=0)),"Axial",(+IF(+OR(C44=0,D44=0,E44=0),"Tangential","Oblique"))) -> Oblique
C45: 3 | D45: 2 | E45: 3 | F45: =$B$5*SQRT((($C45/$B$2)^2)+(($D45/$B$3)^2)+(($E45/$B$4)^2)) -> 187.5038158 | G45: =+IF(+AND(C45=0,D45=0)+OR(+AND(C45=0,E45=0))+OR(+AND(D45=0,E45=0)),"Axial",(+IF(+OR(C45=0,D45=0,E45=0),"Tangential","Oblique"))) -> Oblique
C46: 1 | D46: 5 | E46: 1 | F46: =$B$5*SQRT((($C46/$B$2)^2)+(($D46/$B$3)^2)+(($E46/$B$4)^2)) -> 188.7868612 | G46: =+IF(+AND(C46=0,D46=0)+OR(+AND(C46=0,E46=0))+OR(+AND(D46=0,E46=0)),"Axial",(+IF(+OR(C46=0,D46=0,E46=0),"Tangential","Oblique"))) -> Oblique
C47: 1 | D47: 3 | E47: 3 | F47: =$B$5*SQRT((($C47/$B$2)^2)+(($D47/$B$3)^2)+(($E47/$B$4)^2)) -> 189.3324587 | G47: =+IF(+AND(C47=0,D47=0)+OR(+AND(C47=0,E47=0))+OR(+AND(D47=0,E47=0)),"Axial",(+IF(+OR(C47=0,D47=0,E47=0),"Tangential","Oblique"))) -> Oblique
C48: 4 | D48: 1 | E48: 3 | F48: =$B$5*SQRT((($C48/$B$2)^2)+(($D48/$B$3)^2)+(($E48/$B$4)^2)) -> 190.6087187 | G48: =+IF(+AND(C48=0,D48=0)+OR(+AND(C48=0,E48=0))+OR(+AND(D48=0,E48=0)),"Axial",(+IF(+OR(C48=0,D48=0,E48=0),"Tangential","Oblique"))) -> Oblique
C49: 3 | D49: 4 | E49: 2 | F49: =$B$5*SQRT((($C49/$B$2)^2)+(($D49/$B$3)^2)+(($E49/$B$4)^2)) -> 193.9417908 | G49: =+IF(+AND(C49=0,D49=0)+OR(+AND(C49=0,E49=0))+OR(+AND(D49=0,E49=0)),"Axial",(+IF(+OR(C49=0,D49=0,E49=0),"Tangential","Oblique"))) -> Oblique
C50: 6 | D50: 1 | E50: 2 | F50: =$B$5*SQRT((($C50/$B$2)^2)+(($D50/$B$3)^2)+(($E50/$B$4)^2)) -> 194.1927969 | G50: =+IF(+AND(C50=0,D50=0)+OR(+AND(C50=0,E50=0))+OR(+AND(D50=0,E50=0)),"Axial",(+IF(+OR(C50=0,D50=0,E50=0),"Tangential","Oblique"))) -> Oblique
C51: 2 | D51: 5 | E51: 1 | F51: =$B$5*SQRT((($C51/$B$2)^2)+(($D51/$B$3)^2)+(($E51/$B$4)^2)) -> 194.4355935 | G51: =+IF(+AND(C51=0,D51=0)+OR(+AND(C51=0,E51=0))+OR(+AND(D51=0,E51=0)),"Axial",(+IF(+OR(C51=0,D51=0,E51=0),"Tangential","Oblique"))) -> Oblique
C52: 2 | D52: 3 | E52: 3 | F52: =$B$5*SQRT((($C52/$B$2)^2)+(($D52/$B$3)^2)+(($E52/$B$4)^2)) -> 194.965384 | G52: =+IF(+AND(C52=0,D52=0)+OR(+AND(C52=0,E52=0))+OR(+AND(D52=0,E52=0)),"Axial",(+IF(+OR(C52=0,D52=0,E52=0),"Tangential","Oblique"))) -> Oblique
C53: 7 | D53: 1 | E53: 1 | F53: =$B$5*SQRT((($C53/$B$2)^2)+(($D53/$B$3)^2)+(($E53/$B$4)^2)) -> 198.1411397 | G53: =+IF(+AND(C53=0,D53=0)+OR(+AND(C53=0,E53=0))+OR(+AND(D53=0,E53=0)),"Axial",(+IF(+OR(C53=0,D53=0,E53=0),"Tangential","Oblique"))) -> Oblique
C54: 5 | D54: 3 | E54: 2 | F54: =$B$5*SQRT((($C54/$B$2)^2)+(($D54/$B$3)^2)+(($E54/$B$4)^2)) -> 200.2803868 | G54: =+IF(+AND(C54=0,D54=0)+OR(+AND(C54=0,E54=0))+OR(+AND(D54=0,E54=0)),"Axial",(+IF(+OR(C54=0,D54=0,E54=0),"Tangential","Oblique"))) -> Oblique
C55: 4 | D55: 2 | E55: 3 | F55: =$B$5*SQRT((($C55/$B$2)^2)+(($D55/$B$3)^2)+(($E55/$B$4)^2)) -> 200.521063 | G55: =+IF(+AND(C55=0,D55=0)+OR(+AND(C55=0,E55=0))+OR(+AND(D55=0,E55=0)),"Axial",(+IF(+OR(C55=0,D55=0,E55=0),"Tangential","Oblique"))) -> Oblique
C56: 6 | D56: 3 | E56: 1 | F56: =$B$5*SQRT((($C56/$B$2)^2)+(($D56/$B$3)^2)+(($E56/$B$4)^2)) -> 200.5446456 | G56: =+IF(+AND(C56=0,D56=0)+OR(+AND(C56=0,E56=0))+OR(+AND(D56=0,E56=0)),"Axial",(+IF(+OR(C56=0,D56=0,E56=0),"Tangential","Oblique"))) -> Oblique
C57: 5 | D57: 4 | E57: 1 | F57: =$B$5*SQRT((($C57/$B$2)^2)+(($D57/$B$3)^2)+(($E57/$B$4)^2)) -> 203.2909447 | G57: =+IF(+AND(C57=0,D57=0)+OR(+AND(C57=0,E57=0))+OR(+AND(D57=0,E57=0)),"Axial",(+IF(+OR(C57=0,D57=0,E57=0),"Tangential","Oblique"))) -> Oblique
C58: 3 | D58: 5 | E58: 1 | F58: =$B$5*SQRT((($C58/$B$2)^2)+(($D58/$B$3)^2)+(($E58/$B$4)^2)) -> 203.5020109 | G58: =+IF(+AND(C58=0,D58=0)+OR(+AND(C58=0,E58=0))+OR(+AND(D58=0,E58=0)),"Axial",(+IF(+OR(C58=0,D58=0,E58=0),"Tangential","Oblique"))) -> Oblique
C59: 6 | D59: 2 | E59: 2 | F59: =$B$5*SQRT((($C59/$B$2)^2)+(($D59/$B$3)^2)+(($E59/$B$4)^2)) -> 203.9310065 | G59: =+IF(+AND(C59=0,D59=0)+OR(+AND(C59=0,E59=0))+OR(+AND(D59=0,E59=0)),"Axial",(+IF(+OR(C59=0,D59=0,E59=0),"Tangential","Oblique"))) -> Oblique
C60: 3 | D60: 3 | E60: 3 | F60: =$B$5*SQRT((($C60/$B$2)^2)+(($D60/$B$3)^2)+(($E60/$B$4)^2)) -> 204.0082581 | G60: =+IF(+AND(C60=0,D60=0)+OR(+AND(C60=0,E60=0))+OR(+AND(D60=0,E60=0)),"Axial",(+IF(+OR(C60=0,D60=0,E60=0),"Tangential","Oblique"))) -> Oblique
C61: 4 | D61: 4 | E61: 2 | F61: =$B$5*SQRT((($C61/$B$2)^2)+(($D61/$B$3)^2)+(($E61/$B$4)^2)) -> 206.5537074 | G61: =+IF(+AND(C61=0,D61=0)+OR(+AND(C61=0,E61=0))+OR(+AND(D61=0,E61=0)),"Axial",(+IF(+OR(C61=0,D61=0,E61=0),"Tangential","Oblique"))) -> Oblique
C62: 5 | D62: 1 | E62: 3 | F62: =$B$5*SQRT((($C62/$B$2)^2)+(($D62/$B$3)^2)+(($E62/$B$4)^2)) -> 206.9440669 | G62: =+IF(+AND(C62=0,D62=0)+OR(+AND(C62=0,E62=0))+OR(+AND(D62=0,E62=0)),"Axial",(+IF(+OR(C62=0,D62=0,E62=0),"Tangential","Oblique"))) -> Oblique
C63: 7 | D63: 2 | E63: 1 | F63: =$B$5*SQRT((($C63/$B$2)^2)+(($D63/$B$3)^2)+(($E63/$B$4)^2)) -> 207.694305 | G63: =+IF(+AND(C63=0,D63=0)+OR(+AND(C63=0,E63=0))+OR(+AND(D63=0,E63=0)),"Axial",(+IF(+OR(C63=0,D63=0,E63=0),"Tangential","Oblique"))) -> Oblique
C64: 1 | D64: 5 | E64: 2 | F64: =$B$5*SQRT((($C64/$B$2)^2)+(($D64/$B$3)^2)+(($E64/$B$4)^2)) -> 208.4990839 | G64: =+IF(+AND(C64=0,D64=0)+OR(+AND(C64=0,E64=0))+OR(+AND(D64=0,E64=0)),"Axial",(+IF(+OR(C64=0,D64=0,E64=0),"Tangential","Oblique"))) -> Oblique
C65: 1 | D65: 1 | E65: 4 | F65: =$B$5*SQRT((($C65/$B$2)^2)+(($D65/$B$3)^2)+(($E65/$B$4)^2)) -> 209.2398609 | G65: =+IF(+AND(C65=0,D65=0)+OR(+AND(C65=0,E65=0))+OR(+AND(D65=0,E65=0)),"Axial",(+IF(+OR(C65=0,D65=0,E65=0),"Tangential","Oblique"))) -> Oblique
C66: 1 | D66: 4 | E66: 3 | F66: =$B$5*SQRT((($C66/$B$2)^2)+(($D66/$B$3)^2)+(($E66/$B$4)^2)) -> 211.8800221 | G66: =+IF(+AND(C66=0,D66=0)+OR(+AND(C66=0,E66=0))+OR(+AND(D66=0,E66=0)),"Axial",(+IF(+OR(C66=0,D66=0,E66=0),"Tangential","Oblique"))) -> Oblique
C67: 2 | D67: 5 | E67: 2 | F67: =$B$5*SQRT((($C67/$B$2)^2)+(($D67/$B$3)^2)+(($E67/$B$4)^2)) -> 213.6272198 | G67: =+IF(+AND(C67=0,D67=0)+OR(+AND(C67=0,E67=0))+OR(+AND(D67=0,E67=0)),"Axial",(+IF(+OR(C67=0,D67=0,E67=0),"Tangential","Oblique"))) -> Oblique
C68: 2 | D68: 1 | E68: 4 | F68: =$B$5*SQRT((($C68/$B$2)^2)+(($D68/$B$3)^2)+(($E68/$B$4)^2)) -> 214.3502751 | G68: =+IF(+AND(C68=0,D68=0)+OR(+AND(C68=0,E68=0))+OR(+AND(D68=0,E68=0)),"Axial",(+IF(+OR(C68=0,D68=0,E68=0),"Tangential","Oblique"))) -> Oblique
C69: 4 | D69: 5 | E69: 1 | F69: =$B$5*SQRT((($C69/$B$2)^2)+(($D69/$B$3)^2)+(($E69/$B$4)^2)) -> 215.5552928 | G69: =+IF(+AND(C69=0,D69=0)+OR(+AND(C69=0,E69=0))+OR(+AND(D69=0,E69=0)),"Axial",(+IF(+OR(C69=0,D69=0,E69=0),"Tangential","Oblique"))) -> Oblique
C70: 4 | D70: 3 | E70: 3 | F70: =$B$5*SQRT((($C70/$B$2)^2)+(($D70/$B$3)^2)+(($E70/$B$4)^2)) -> 216.0332965 | G70: =+IF(+AND(C70=0,D70=0)+OR(+AND(C70=0,E70=0))+OR(+AND(D70=0,E70=0)),"Axial",(+IF(+OR(C70=0,D70=0,E70=0),"Tangential","Oblique"))) -> Oblique
C71: 5 | D71: 2 | E71: 3 | F71: =$B$5*SQRT((($C71/$B$2)^2)+(($D71/$B$3)^2)+(($E71/$B$4)^2)) -> 216.1084447 | G71: =+IF(+AND(C71=0,D71=0)+OR(+AND(C71=0,E71=0))+OR(+AND(D71=0,E71=0)),"Axial",(+IF(+OR(C71=0,D71=0,E71=0),"Tangential","Oblique"))) -> Oblique
C72: 2 | D72: 4 | E72: 3 | F72: =$B$5*SQRT((($C72/$B$2)^2)+(($D72/$B$3)^2)+(($E72/$B$4)^2)) -> 216.9282481 | G72: =+IF(+AND(C72=0,D72=0)+OR(+AND(C72=0,E72=0))+OR(+AND(D72=0,E72=0)),"Axial",(+IF(+OR(C72=0,D72=0,E72=0),"Tangential","Oblique"))) -> Oblique
C73: 7 | D73: 1 | E73: 2 | F73: =$B$5*SQRT((($C73/$B$2)^2)+(($D73/$B$3)^2)+(($E73/$B$4)^2)) -> 217.0053001 | G73: =+IF(+AND(C73=0,D73=0)+OR(+AND(C73=0,E73=0))+OR(+AND(D73=0,E73=0)),"Axial",(+IF(+OR(C73=0,D73=0,E73=0),"Tangential","Oblique"))) -> Oblique
C74: 1 | D74: 2 | E74: 4 | F74: =$B$5*SQRT((($C74/$B$2)^2)+(($D74/$B$3)^2)+(($E74/$B$4)^2)) -> 218.3078845 | G74: =+IF(+AND(C74=0,D74=0)+OR(+AND(C74=0,E74=0))+OR(+AND(D74=0,E74=0)),"Axial",(+IF(+OR(C74=0,D74=0,E74=0),"Tangential","Oblique"))) -> Oblique
C75: 6 | D75: 3 | E75: 2 | F75: =$B$5*SQRT((($C75/$B$2)^2)+(($D75/$B$3)^2)+(($E75/$B$4)^2)) -> 219.2020618 | G75: =+IF(+AND(C75=0,D75=0)+OR(+AND(C75=0,E75=0))+OR(+AND(D75=0,E75=0)),"Axial",(+IF(+OR(C75=0,D75=0,E75=0),"Tangential","Oblique"))) -> Oblique
C76: 5 | D76: 4 | E76: 2 | F76: =$B$5*SQRT((($C76/$B$2)^2)+(($D76/$B$3)^2)+(($E76/$B$4)^2)) -> 221.7173813 | G76: =+IF(+AND(C76=0,D76=0)+OR(+AND(C76=0,E76=0))+OR(+AND(D76=0,E76=0)),"Axial",(+IF(+OR(C76=0,D76=0,E76=0),"Tangential","Oblique"))) -> Oblique
C77: 3 | D77: 5 | E77: 2 | F77: =$B$5*SQRT((($C77/$B$2)^2)+(($D77/$B$3)^2)+(($E77/$B$4)^2)) -> 221.9109223 | G77: =+IF(+AND(C77=0,D77=0)+OR(+AND(C77=0,E77=0))+OR(+AND(D77=0,E77=0)),"Axial",(+IF(+OR(C77=0,D77=0,E77=0),"Tangential","Oblique"))) -> Oblique
C78: 6 | D78: 4 | E78: 1 | F78: =$B$5*SQRT((($C78/$B$2)^2)+(($D78/$B$3)^2)+(($E78/$B$4)^2)) -> 221.9561189 | G78: =+IF(+AND(C78=0,D78=0)+OR(+AND(C78=0,E78=0))+OR(+AND(D78=0,E78=0)),"Axial",(+IF(+OR(C78=0,D78=0,E78=0),"Tangential","Oblique"))) -> Oblique
C79: 3 | D79: 1 | E79: 4 | F79: =$B$5*SQRT((($C79/$B$2)^2)+(($D79/$B$3)^2)+(($E79/$B$4)^2)) -> 222.6070728 | G79: =+IF(+AND(C79=0,D79=0)+OR(+AND(C79=0,E79=0))+OR(+AND(D79=0,E79=0)),"Axial",(+IF(+OR(C79=0,D79=0,E79=0),"Tangential","Oblique"))) -> Oblique
C80: 7 | D80: 3 | E80: 1 | F80: =$B$5*SQRT((($C80/$B$2)^2)+(($D80/$B$3)^2)+(($E80/$B$4)^2)) -> 222.7074601 | G80: =+IF(+AND(C80=0,D80=0)+OR(+AND(C80=0,E80=0))+OR(+AND(D80=0,E80=0)),"Axial",(+IF(+OR(C80=0,D80=0,E80=0),"Tangential","Oblique"))) -> Oblique
C81: 2 | D81: 2 | E81: 4 | F81: =$B$5*SQRT((($C81/$B$2)^2)+(($D81/$B$3)^2)+(($E81/$B$4)^2)) -> 223.2107827 | G81: =+IF(+AND(C81=0,D81=0)+OR(+AND(C81=0,E81=0))+OR(+AND(D81=0,E81=0)),"Axial",(+IF(+OR(C81=0,D81=0,E81=0),"Tangential","Oblique"))) -> Oblique
C82: 1 | D82: 6 | E82: 1 | F82: =$B$5*SQRT((($C82/$B$2)^2)+(($D82/$B$3)^2)+(($E82/$B$4)^2)) -> 223.2850053 | G82: =+IF(+AND(C82=0,D82=0)+OR(+AND(C82=0,E82=0))+OR(+AND(D82=0,E82=0)),"Axial",(+IF(+OR(C82=0,D82=0,E82=0),"Tangential","Oblique"))) -> Oblique
C83: 8 | D83: 1 | E83: 1 | F83: =$B$5*SQRT((($C83/$B$2)^2)+(($D83/$B$3)^2)+(($E83/$B$4)^2)) -> 223.7934685 | G83: =+IF(+AND(C83=0,D83=0)+OR(+AND(C83=0,E83=0))+OR(+AND(D83=0,E83=0)),"Axial",(+IF(+OR(C83=0,D83=0,E83=0),"Tangential","Oblique"))) -> Oblique
C84: 3 | D84: 4 | E84: 3 | F84: =$B$5*SQRT((($C84/$B$2)^2)+(($D84/$B$3)^2)+(($E84/$B$4)^2)) -> 225.0905001 | G84: =+IF(+AND(C84=0,D84=0)+OR(+AND(C84=0,E84=0))+OR(+AND(D84=0,E84=0)),"Axial",(+IF(+OR(C84=0,D84=0,E84=0),"Tangential","Oblique"))) -> Oblique
C85: 6 | D85: 1 | E85: 3 | F85: =$B$5*SQRT((($C85/$B$2)^2)+(($D85/$B$3)^2)+(($E85/$B$4)^2)) -> 225.3068072 | G85: =+IF(+AND(C85=0,D85=0)+OR(+AND(C85=0,E85=0))+OR(+AND(D85=0,E85=0)),"Axial",(+IF(+OR(C85=0,D85=0,E85=0),"Tangential","Oblique"))) -> Oblique
C86: 7 | D86: 2 | E86: 2 | F86: =$B$5*SQRT((($C86/$B$2)^2)+(($D86/$B$3)^2)+(($E86/$B$4)^2)) -> 225.7616295 | G86: =+IF(+AND(C86=0,D86=0)+OR(+AND(C86=0,E86=0))+OR(+AND(D86=0,E86=0)),"Axial",(+IF(+OR(C86=0,D86=0,E86=0),"Tangential","Oblique"))) -> Oblique
C87: 2 | D87: 6 | E87: 1 | F87: =$B$5*SQRT((($C87/$B$2)^2)+(($D87/$B$3)^2)+(($E87/$B$4)^2)) -> 228.0809388 | G87: =+IF(+AND(C87=0,D87=0)+OR(+AND(C87=0,E87=0))+OR(+AND(D87=0,E87=0)),"Axial",(+IF(+OR(C87=0,D87=0,E87=0),"Tangential","Oblique"))) -> Oblique
C88: 5 | D88: 5 | E88: 1 | F88: =$B$5*SQRT((($C88/$B$2)^2)+(($D88/$B$3)^2)+(($E88/$B$4)^2)) -> 230.12659 | G88: =+IF(+AND(C88=0,D88=0)+OR(+AND(C88=0,E88=0))+OR(+AND(D88=0,E88=0)),"Axial",(+IF(+OR(C88=0,D88=0,E88=0),"Tangential","Oblique"))) -> Oblique
C89: 5 | D89: 3 | E89: 3 | F89: =$B$5*SQRT((($C89/$B$2)^2)+(($D89/$B$3)^2)+(($E89/$B$4)^2)) -> 230.5743879 | G89: =+IF(+AND(C89=0,D89=0)+OR(+AND(C89=0,E89=0))+OR(+AND(D89=0,E89=0)),"Axial",(+IF(+OR(C89=0,D89=0,E89=0),"Tangential","Oblique"))) -> Oblique
C90: 3 | D90: 2 | E90: 4 | F90: =$B$5*SQRT((($C90/$B$2)^2)+(($D90/$B$3)^2)+(($E90/$B$4)^2)) -> 231.1512966 | G90: =+IF(+AND(C90=0,D90=0)+OR(+AND(C90=0,E90=0))+OR(+AND(D90=0,E90=0)),"Axial",(+IF(+OR(C90=0,D90=0,E90=0),"Tangential","Oblique"))) -> Oblique
C91: 8 | D91: 2 | E91: 1 | F91: =$B$5*SQRT((($C91/$B$2)^2)+(($D91/$B$3)^2)+(($E91/$B$4)^2)) -> 232.2940585 | G91: =+IF(+AND(C91=0,D91=0)+OR(+AND(C91=0,E91=0))+OR(+AND(D91=0,E91=0)),"Axial",(+IF(+OR(C91=0,D91=0,E91=0),"Tangential","Oblique"))) -> Oblique
C92: 1 | D92: 3 | E92: 4 | F92: =$B$5*SQRT((($C92/$B$2)^2)+(($D92/$B$3)^2)+(($E92/$B$4)^2)) -> 232.6371013 | G92: =+IF(+AND(C92=0,D92=0)+OR(+AND(C92=0,E92=0))+OR(+AND(D92=0,E92=0)),"Axial",(+IF(+OR(C92=0,D92=0,E92=0),"Tangential","Oblique"))) -> Oblique
C93: 4 | D93: 5 | E93: 2 | F93: =$B$5*SQRT((($C93/$B$2)^2)+(($D93/$B$3)^2)+(($E93/$B$4)^2)) -> 233.0138907 | G93: =+IF(+AND(C93=0,D93=0)+OR(+AND(C93=0,E93=0))+OR(+AND(D93=0,E93=0)),"Axial",(+IF(+OR(C93=0,D93=0,E93=0),"Tangential","Oblique"))) -> Oblique
C94: 4 | D94: 1 | E94: 4 | F94: =$B$5*SQRT((($C94/$B$2)^2)+(($D94/$B$3)^2)+(($E94/$B$4)^2)) -> 233.6769665 | G94: =+IF(+AND(C94=0,D94=0)+OR(+AND(C94=0,E94=0))+OR(+AND(D94=0,E94=0)),"Axial",(+IF(+OR(C94=0,D94=0,E94=0),"Tangential","Oblique"))) -> Oblique
C95: 6 | D95: 2 | E95: 3 | F95: =$B$5*SQRT((($C95/$B$2)^2)+(($D95/$B$3)^2)+(($E95/$B$4)^2)) -> 233.7523699 | G95: =+IF(+AND(C95=0,D95=0)+OR(+AND(C95=0,E95=0))+OR(+AND(D95=0,E95=0)),"Axial",(+IF(+OR(C95=0,D95=0,E95=0),"Tangential","Oblique"))) -> Oblique
C96: 3 | D96: 6 | E96: 1 | F96: =$B$5*SQRT((($C96/$B$2)^2)+(($D96/$B$3)^2)+(($E96/$B$4)^2)) -> 235.8575482 | G96: =+IF(+AND(C96=0,D96=0)+OR(+AND(C96=0,E96=0))+OR(+AND(D96=0,E96=0)),"Axial",(+IF(+OR(C96=0,D96=0,E96=0),"Tangential","Oblique"))) -> Oblique
C97: 4 | D97: 4 | E97: 3 | F97: =$B$5*SQRT((($C97/$B$2)^2)+(($D97/$B$3)^2)+(($E97/$B$4)^2)) -> 236.0439557 | G97: =+IF(+AND(C97=0,D97=0)+OR(+AND(C97=0,E97=0))+OR(+AND(D97=0,E97=0)),"Axial",(+IF(+OR(C97=0,D97=0,E97=0),"Tangential","Oblique"))) -> Oblique
C98: 2 | D98: 3 | E98: 4 | F98: =$B$5*SQRT((($C98/$B$2)^2)+(($D98/$B$3)^2)+(($E98/$B$4)^2)) -> 237.2440557 | G98: =+IF(+AND(C98=0,D98=0)+OR(+AND(C98=0,E98=0))+OR(+AND(D98=0,E98=0)),"Axial",(+IF(+OR(C98=0,D98=0,E98=0),"Tangential","Oblique"))) -> Oblique
C99: 1 | D99: 5 | E99: 3 | F99: =$B$5*SQRT((($C99/$B$2)^2)+(($D99/$B$3)^2)+(($E99/$B$4)^2)) -> 237.7481503 | G99: =+IF(+AND(C99=0,D99=0)+OR(+AND(C99=0,E99=0))+OR(+AND(D99=0,E99=0)),"Axial",(+IF(+OR(C99=0,D99=0,E99=0),"Tangential","Oblique"))) -> Oblique
C100: 6 | D100: 4 | E100: 2 | F100: =$B$5*SQRT((($C100/$B$2)^2)+(($D100/$B$3)^2)+(($E100/$B$4)^2)) -> 238.9474999 | G100: =+IF(+AND(C100=0,D100=0)+OR(+AND(C100=0,E100=0))+OR(+AND(D100=0,E100=0)),"Axial",(+IF(+OR(C100=0,D100=0,E100=0),"Tangential","Oblique"))) -> Oblique
C101: 7 | D101: 3 | E101: 2 | F101: =$B$5*SQRT((($C101/$B$2)^2)+(($D101/$B$3)^2)+(($E101/$B$4)^2)) -> 239.6455754 | G101: =+IF(+AND(C101=0,D101=0)+OR(+AND(C101=0,E101=0))+OR(+AND(D101=0,E101=0)),"Axial",(+IF(+OR(C101=0,D101=0,E101=0),"Tangential","Oblique"))) -> Oblique
C102: 1 | D102: 6 | E102: 2 | F102: =$B$5*SQRT((($C102/$B$2)^2)+(($D102/$B$3)^2)+(($E102/$B$4)^2)) -> 240.1823944 | G102: =+IF(+AND(C102=0,D102=0)+OR(+AND(C102=0,E102=0))+OR(+AND(D102=0,E102=0)),"Axial",(+IF(+OR(C102=0,D102=0,E102=0),"Tangential","Oblique"))) -> Oblique
C103: 8 | D103: 1 | E103: 2 | F103: =$B$5*SQRT((($C103/$B$2)^2)+(($D103/$B$3)^2)+(($E103/$B$4)^2)) -> 240.655159 | G103: =+IF(+AND(C103=0,D103=0)+OR(+AND(C103=0,E103=0))+OR(+AND(D103=0,E103=0)),"Axial",(+IF(+OR(C103=0,D103=0,E103=0),"Tangential","Oblique"))) -> Oblique
C104: 4 | D104: 2 | E104: 4 | F104: =$B$5*SQRT((($C104/$B$2)^2)+(($D104/$B$3)^2)+(($E104/$B$4)^2)) -> 241.8303904 | G104: =+IF(+AND(C104=0,D104=0)+OR(+AND(C104=0,E104=0))+OR(+AND(D104=0,E104=0)),"Axial",(+IF(+OR(C104=0,D104=0,E104=0),"Tangential","Oblique"))) -> Oblique
C105: 7 | D105: 4 | E105: 1 | F105: =$B$5*SQRT((($C105/$B$2)^2)+(($D105/$B$3)^2)+(($E105/$B$4)^2)) -> 242.1672493 | G105: =+IF(+AND(C105=0,D105=0)+OR(+AND(C105=0,E105=0))+OR(+AND(D105=0,E105=0)),"Axial",(+IF(+OR(C105=0,D105=0,E105=0),"Tangential","Oblique"))) -> Oblique
C106: 2 | D106: 5 | E106: 3 | F106: =$B$5*SQRT((($C106/$B$2)^2)+(($D106/$B$3)^2)+(($E106/$B$4)^2)) -> 242.2579287 | G106: =+IF(+AND(C106=0,D106=0)+OR(+AND(C106=0,E106=0))+OR(+AND(D106=0,E106=0)),"Axial",(+IF(+OR(C106=0,D106=0,E106=0),"Tangential","Oblique"))) -> Oblique
C107: 2 | D107: 6 | E107: 2 | F107: =$B$5*SQRT((($C107/$B$2)^2)+(($D107/$B$3)^2)+(($E107/$B$4)^2)) -> 244.6473046 | G107: =+IF(+AND(C107=0,D107=0)+OR(+AND(C107=0,E107=0))+OR(+AND(D107=0,E107=0)),"Axial",(+IF(+OR(C107=0,D107=0,E107=0),"Tangential","Oblique"))) -> Oblique
C108: 3 | D108: 3 | E108: 4 | F108: =$B$5*SQRT((($C108/$B$2)^2)+(($D108/$B$3)^2)+(($E108/$B$4)^2)) -> 244.729668 | G108: =+IF(+AND(C108=0,D108=0)+OR(+AND(C108=0,E108=0))+OR(+AND(D108=0,E108=0)),"Axial",(+IF(+OR(C108=0,D108=0,E108=0),"Tangential","Oblique"))) -> Oblique
C109: 7 | D109: 1 | E109: 3 | F109: =$B$5*SQRT((($C109/$B$2)^2)+(($D109/$B$3)^2)+(($E109/$B$4)^2)) -> 245.2419525 | G109: =+IF(+AND(C109=0,D109=0)+OR(+AND(C109=0,E109=0))+OR(+AND(D109=0,E109=0)),"Axial",(+IF(+OR(C109=0,D109=0,E109=0),"Tangential","Oblique"))) -> Oblique
C110: 8 | D110: 3 | E110: 1 | F110: =$B$5*SQRT((($C110/$B$2)^2)+(($D110/$B$3)^2)+(($E110/$B$4)^2)) -> 245.8093124 | G110: =+IF(+AND(C110=0,D110=0)+OR(+AND(C110=0,E110=0))+OR(+AND(D110=0,E110=0)),"Axial",(+IF(+OR(C110=0,D110=0,E110=0),"Tangential","Oblique"))) -> Oblique
C111: 4 | D111: 6 | E111: 1 | F111: =$B$5*SQRT((($C111/$B$2)^2)+(($D111/$B$3)^2)+(($E111/$B$4)^2)) -> 246.3326995 | G111: =+IF(+AND(C111=0,D111=0)+OR(+AND(C111=0,E111=0))+OR(+AND(D111=0,E111=0)),"Axial",(+IF(+OR(C111=0,D111=0,E111=0),"Tangential","Oblique"))) -> Oblique
C112: 5 | D112: 5 | E112: 2 | F112: =$B$5*SQRT((($C112/$B$2)^2)+(($D112/$B$3)^2)+(($E112/$B$4)^2)) -> 246.5555443 | G112: =+IF(+AND(C112=0,D112=0)+OR(+AND(C112=0,E112=0))+OR(+AND(D112=0,E112=0)),"Axial",(+IF(+OR(C112=0,D112=0,E112=0),"Tangential","Oblique"))) -> Oblique
C113: 6 | D113: 5 | E113: 1 | F113: =$B$5*SQRT((($C113/$B$2)^2)+(($D113/$B$3)^2)+(($E113/$B$4)^2)) -> 246.7702534 | G113: =+IF(+AND(C113=0,D113=0)+OR(+AND(C113=0,E113=0))+OR(+AND(D113=0,E113=0)),"Axial",(+IF(+OR(C113=0,D113=0,E113=0),"Tangential","Oblique"))) -> Oblique
C114: 5 | D114: 1 | E114: 4 | F114: =$B$5*SQRT((($C114/$B$2)^2)+(($D114/$B$3)^2)+(($E114/$B$4)^2)) -> 247.1822967 | G114: =+IF(+AND(C114=0,D114=0)+OR(+AND(C114=0,E114=0))+OR(+AND(D114=0,E114=0)),"Axial",(+IF(+OR(C114=0,D114=0,E114=0),"Tangential","Oblique"))) -> Oblique
C115: 6 | D115: 3 | E115: 3 | F115: =$B$5*SQRT((($C115/$B$2)^2)+(($D115/$B$3)^2)+(($E115/$B$4)^2)) -> 247.187902 | G115: =+IF(+AND(C115=0,D115=0)+OR(+AND(C115=0,E115=0))+OR(+AND(D115=0,E115=0)),"Axial",(+IF(+OR(C115=0,D115=0,E115=0),"Tangential","Oblique"))) -> Oblique
C116: 8 | D116: 2 | E116: 2 | F116: =$B$5*SQRT((($C116/$B$2)^2)+(($D116/$B$3)^2)+(($E116/$B$4)^2)) -> 248.5798033 | G116: =+IF(+AND(C116=0,D116=0)+OR(+AND(C116=0,E116=0))+OR(+AND(D116=0,E116=0)),"Axial",(+IF(+OR(C116=0,D116=0,E116=0),"Tangential","Oblique"))) -> Oblique
C117: 5 | D117: 4 | E117: 3 | F117: =$B$5*SQRT((($C117/$B$2)^2)+(($D117/$B$3)^2)+(($E117/$B$4)^2)) -> 249.4211543 | G117: =+IF(+AND(C117=0,D117=0)+OR(+AND(C117=0,E117=0))+OR(+AND(D117=0,E117=0)),"Axial",(+IF(+OR(C117=0,D117=0,E117=0),"Tangential","Oblique"))) -> Oblique
C118: 3 | D118: 5 | E118: 3 | F118: =$B$5*SQRT((($C118/$B$2)^2)+(($D118/$B$3)^2)+(($E118/$B$4)^2)) -> 249.593214 | G118: =+IF(+AND(C118=0,D118=0)+OR(+AND(C118=0,E118=0))+OR(+AND(D118=0,E118=0)),"Axial",(+IF(+OR(C118=0,D118=0,E118=0),"Tangential","Oblique"))) -> Oblique
C119: 9 | D119: 1 | E119: 1 | F119: =$B$5*SQRT((($C119/$B$2)^2)+(($D119/$B$3)^2)+(($E119/$B$4)^2)) -> 249.7003588 | G119: =+IF(+AND(C119=0,D119=0)+OR(+AND(C119=0,E119=0))+OR(+AND(D119=0,E119=0)),"Axial",(+IF(+OR(C119=0,D119=0,E119=0),"Tangential","Oblique"))) -> Oblique
C120: 1 | D120: 4 | E120: 4 | F120: =$B$5*SQRT((($C120/$B$2)^2)+(($D120/$B$3)^2)+(($E120/$B$4)^2)) -> 251.3292358 | G120: =+IF(+AND(C120=0,D120=0)+OR(+AND(C120=0,E120=0))+OR(+AND(D120=0,E120=0)),"Axial",(+IF(+OR(C120=0,D120=0,E120=0),"Tangential","Oblique"))) -> Oblique
C121: 3 | D121: 6 | E121: 2 | F121: =$B$5*SQRT((($C121/$B$2)^2)+(($D121/$B$3)^2)+(($E121/$B$4)^2)) -> 251.9130248 | G121: =+IF(+AND(C121=0,D121=0)+OR(+AND(C121=0,E121=0))+OR(+AND(D121=0,E121=0)),"Axial",(+IF(+OR(C121=0,D121=0,E121=0),"Tangential","Oblique"))) -> Oblique
C122: 7 | D122: 2 | E122: 3 | F122: =$B$5*SQRT((($C122/$B$2)^2)+(($D122/$B$3)^2)+(($E122/$B$4)^2)) -> 253.0229798 | G122: =+IF(+AND(C122=0,D122=0)+OR(+AND(C122=0,E122=0))+OR(+AND(D122=0,E122=0)),"Axial",(+IF(+OR(C122=0,D122=0,E122=0),"Tangential","Oblique"))) -> Oblique
C123: 4 | D123: 3 | E123: 4 | F123: =$B$5*SQRT((($C123/$B$2)^2)+(($D123/$B$3)^2)+(($E123/$B$4)^2)) -> 254.8403935 | G123: =+IF(+AND(C123=0,D123=0)+OR(+AND(C123=0,E123=0))+OR(+AND(D123=0,E123=0)),"Axial",(+IF(+OR(C123=0,D123=0,E123=0),"Tangential","Oblique"))) -> Oblique
C124: 5 | D124: 2 | E124: 4 | F124: =$B$5*SQRT((($C124/$B$2)^2)+(($D124/$B$3)^2)+(($E124/$B$4)^2)) -> 254.9041014 | G124: =+IF(+AND(C124=0,D124=0)+OR(+AND(C124=0,E124=0))+OR(+AND(D124=0,E124=0)),"Axial",(+IF(+OR(C124=0,D124=0,E124=0),"Tangential","Oblique"))) -> Oblique
C125: 2 | D125: 4 | E125: 4 | F125: =$B$5*SQRT((($C125/$B$2)^2)+(($D125/$B$3)^2)+(($E125/$B$4)^2)) -> 255.5995027 | G125: =+IF(+AND(C125=0,D125=0)+OR(+AND(C125=0,E125=0))+OR(+AND(D125=0,E125=0)),"Axial",(+IF(+OR(C125=0,D125=0,E125=0),"Tangential","Oblique"))) -> Oblique
C126: 9 | D126: 2 | E126: 1 | F126: =$B$5*SQRT((($C126/$B$2)^2)+(($D126/$B$3)^2)+(($E126/$B$4)^2)) -> 257.3466189 | G126: =+IF(+AND(C126=0,D126=0)+OR(+AND(C126=0,E126=0))+OR(+AND(D126=0,E126=0)),"Axial",(+IF(+OR(C126=0,D126=0,E126=0),"Tangential","Oblique"))) -> Oblique
C127: 7 | D127: 4 | E127: 2 | F127: =$B$5*SQRT((($C127/$B$2)^2)+(($D127/$B$3)^2)+(($E127/$B$4)^2)) -> 257.83011 | G127: =+IF(+AND(C127=0,D127=0)+OR(+AND(C127=0,E127=0))+OR(+AND(D127=0,E127=0)),"Axial",(+IF(+OR(C127=0,D127=0,E127=0),"Tangential","Oblique"))) -> Oblique
C128: 1 | D128: 7 | E128: 1 | F128: =$B$5*SQRT((($C128/$B$2)^2)+(($D128/$B$3)^2)+(($E128/$B$4)^2)) -> 258.1793632 | G128: =+IF(+AND(C128=0,D128=0)+OR(+AND(C128=0,E128=0))+OR(+AND(D128=0,E128=0)),"Axial",(+IF(+OR(C128=0,D128=0,E128=0),"Tangential","Oblique"))) -> Oblique
C129: 5 | D129: 6 | E129: 1 | F129: =$B$5*SQRT((($C129/$B$2)^2)+(($D129/$B$3)^2)+(($E129/$B$4)^2)) -> 259.1794012 | G129: =+IF(+AND(C129=0,D129=0)+OR(+AND(C129=0,E129=0))+OR(+AND(D129=0,E129=0)),"Axial",(+IF(+OR(C129=0,D129=0,E129=0),"Tangential","Oblique"))) -> Oblique
C130: 1 | D130: 1 | E130: 5 | F130: =$B$5*SQRT((($C130/$B$2)^2)+(($D130/$B$3)^2)+(($E130/$B$4)^2)) -> 259.3751846 | G130: =+IF(+AND(C130=0,D130=0)+OR(+AND(C130=0,E130=0))+OR(+AND(D130=0,E130=0)),"Axial",(+IF(+OR(C130=0,D130=0,E130=0),"Tangential","Oblique"))) -> Oblique
C131: 4 | D131: 5 | E131: 3 | F131: =$B$5*SQRT((($C131/$B$2)^2)+(($D131/$B$3)^2)+(($E131/$B$4)^2)) -> 259.5145242 | G131: =+IF(+AND(C131=0,D131=0)+OR(+AND(C131=0,E131=0))+OR(+AND(D131=0,E131=0)),"Axial",(+IF(+OR(C131=0,D131=0,E131=0),"Tangential","Oblique"))) -> Oblique
C132: 8 | D132: 3 | E132: 2 | F132: =$B$5*SQRT((($C132/$B$2)^2)+(($D132/$B$3)^2)+(($E132/$B$4)^2)) -> 261.253913 | G132: =+IF(+AND(C132=0,D132=0)+OR(+AND(C132=0,E132=0))+OR(+AND(D132=0,E132=0)),"Axial",(+IF(+OR(C132=0,D132=0,E132=0),"Tangential","Oblique"))) -> Oblique
C133: 4 | D133: 6 | E133: 2 | F133: =$B$5*SQRT((($C133/$B$2)^2)+(($D133/$B$3)^2)+(($E133/$B$4)^2)) -> 261.746419 | G133: =+IF(+AND(C133=0,D133=0)+OR(+AND(C133=0,E133=0))+OR(+AND(D133=0,E133=0)),"Axial",(+IF(+OR(C133=0,D133=0,E133=0),"Tangential","Oblique"))) -> Oblique
C134: 6 | D134: 5 | E134: 2 | F134: =$B$5*SQRT((($C134/$B$2)^2)+(($D134/$B$3)^2)+(($E134/$B$4)^2)) -> 262.1582479 | G134: =+IF(+AND(C134=0,D134=0)+OR(+AND(C134=0,E134=0))+OR(+AND(D134=0,E134=0)),"Axial",(+IF(+OR(C134=0,D134=0,E134=0),"Tangential","Oblique"))) -> Oblique
C135: 2 | D135: 7 | E135: 1 | F135: =$B$5*SQRT((($C135/$B$2)^2)+(($D135/$B$3)^2)+(($E135/$B$4)^2)) -> 262.3381494 | G135: =+IF(+AND(C135=0,D135=0)+OR(+AND(C135=0,E135=0))+OR(+AND(D135=0,E135=0)),"Axial",(+IF(+OR(C135=0,D135=0,E135=0),"Tangential","Oblique"))) -> Oblique
C136: 3 | D136: 4 | E136: 4 | F136: =$B$5*SQRT((($C136/$B$2)^2)+(($D136/$B$3)^2)+(($E136/$B$4)^2)) -> 262.5623245 | G136: =+IF(+AND(C136=0,D136=0)+OR(+AND(C136=0,E136=0))+OR(+AND(D136=0,E136=0)),"Axial",(+IF(+OR(C136=0,D136=0,E136=0),"Tangential","Oblique"))) -> Oblique
C137: 6 | D137: 1 | E137: 4 | F137: =$B$5*SQRT((($C137/$B$2)^2)+(($D137/$B$3)^2)+(($E137/$B$4)^2)) -> 262.7477847 | G137: =+IF(+AND(C137=0,D137=0)+OR(+AND(C137=0,E137=0))+OR(+AND(D137=0,E137=0)),"Axial",(+IF(+OR(C137=0,D137=0,E137=0),"Tangential","Oblique"))) -> Oblique
C138: 2 | D138: 1 | E138: 5 | F138: =$B$5*SQRT((($C138/$B$2)^2)+(($D138/$B$3)^2)+(($E138/$B$4)^2)) -> 263.5150991 | G138: =+IF(+AND(C138=0,D138=0)+OR(+AND(C138=0,E138=0))+OR(+AND(D138=0,E138=0)),"Axial",(+IF(+OR(C138=0,D138=0,E138=0),"Tangential","Oblique"))) -> Oblique
C139: 8 | D139: 4 | E139: 1 | F139: =$B$5*SQRT((($C139/$B$2)^2)+(($D139/$B$3)^2)+(($E139/$B$4)^2)) -> 263.568932 | G139: =+IF(+AND(C139=0,D139=0)+OR(+AND(C139=0,E139=0))+OR(+AND(D139=0,E139=0)),"Axial",(+IF(+OR(C139=0,D139=0,E139=0),"Tangential","Oblique"))) -> Oblique
C140: 6 | D140: 4 | E140: 3 | F140: =$B$5*SQRT((($C140/$B$2)^2)+(($D140/$B$3)^2)+(($E140/$B$4)^2)) -> 264.8550976 | G140: =+IF(+AND(C140=0,D140=0)+OR(+AND(C140=0,E140=0))+OR(+AND(D140=0,E140=0)),"Axial",(+IF(+OR(C140=0,D140=0,E140=0),"Tangential","Oblique"))) -> Oblique
C141: 9 | D141: 1 | E141: 2 | F141: =$B$5*SQRT((($C141/$B$2)^2)+(($D141/$B$3)^2)+(($E141/$B$4)^2)) -> 264.9182104 | G141: =+IF(+AND(C141=0,D141=0)+OR(+AND(C141=0,E141=0))+OR(+AND(D141=0,E141=0)),"Axial",(+IF(+OR(C141=0,D141=0,E141=0),"Tangential","Oblique"))) -> Oblique
C142: 7 | D142: 5 | E142: 1 | F142: =$B$5*SQRT((($C142/$B$2)^2)+(($D142/$B$3)^2)+(($E142/$B$4)^2)) -> 265.0962389 | G142: =+IF(+AND(C142=0,D142=0)+OR(+AND(C142=0,E142=0))+OR(+AND(D142=0,E142=0)),"Axial",(+IF(+OR(C142=0,D142=0,E142=0),"Tangential","Oblique"))) -> Oblique
C143: 7 | D143: 3 | E143: 3 | F143: =$B$5*SQRT((($C143/$B$2)^2)+(($D143/$B$3)^2)+(($E143/$B$4)^2)) -> 265.4850594 | G143: =+IF(+AND(C143=0,D143=0)+OR(+AND(C143=0,E143=0))+OR(+AND(D143=0,E143=0)),"Axial",(+IF(+OR(C143=0,D143=0,E143=0),"Tangential","Oblique"))) -> Oblique
C144: 1 | D144: 6 | E144: 3 | F144: =$B$5*SQRT((($C144/$B$2)^2)+(($D144/$B$3)^2)+(($E144/$B$4)^2)) -> 265.9697306 | G144: =+IF(+AND(C144=0,D144=0)+OR(+AND(C144=0,E144=0))+OR(+AND(D144=0,E144=0)),"Axial",(+IF(+OR(C144=0,D144=0,E144=0),"Tangential","Oblique"))) -> Oblique
C145: 8 | D145: 1 | E145: 3 | F145: =$B$5*SQRT((($C145/$B$2)^2)+(($D145/$B$3)^2)+(($E145/$B$4)^2)) -> 266.3967352 | G145: =+IF(+AND(C145=0,D145=0)+OR(+AND(C145=0,E145=0))+OR(+AND(D145=0,E145=0)),"Axial",(+IF(+OR(C145=0,D145=0,E145=0),"Tangential","Oblique"))) -> Oblique
C146: 1 | D146: 2 | E146: 5 | F146: =$B$5*SQRT((($C146/$B$2)^2)+(($D146/$B$3)^2)+(($E146/$B$4)^2)) -> 266.7442585 | G146: =+IF(+AND(C146=0,D146=0)+OR(+AND(C146=0,E146=0))+OR(+AND(D146=0,E146=0)),"Axial",(+IF(+OR(C146=0,D146=0,E146=0),"Tangential","Oblique"))) -> Oblique
C147: 5 | D147: 3 | E147: 4 | F147: =$B$5*SQRT((($C147/$B$2)^2)+(($D147/$B$3)^2)+(($E147/$B$4)^2)) -> 267.2784865 | G147: =+IF(+AND(C147=0,D147=0)+OR(+AND(C147=0,E147=0))+OR(+AND(D147=0,E147=0)),"Axial",(+IF(+OR(C147=0,D147=0,E147=0),"Tangential","Oblique"))) -> Oblique
C148: 3 | D148: 7 | E148: 1 | F148: =$B$5*SQRT((($C148/$B$2)^2)+(($D148/$B$3)^2)+(($E148/$B$4)^2)) -> 269.1266859 | G148: =+IF(+AND(C148=0,D148=0)+OR(+AND(C148=0,E148=0))+OR(+AND(D148=0,E148=0)),"Axial",(+IF(+OR(C148=0,D148=0,E148=0),"Tangential","Oblique"))) -> Oblique
C149: 9 | D149: 3 | E149: 1 | F149: =$B$5*SQRT((($C149/$B$2)^2)+(($D149/$B$3)^2)+(($E149/$B$4)^2)) -> 269.6089218 | G149: =+IF(+AND(C149=0,D149=0)+OR(+AND(C149=0,E149=0))+OR(+AND(D149=0,E149=0)),"Axial",(+IF(+OR(C149=0,D149=0,E149=0),"Tangential","Oblique"))) -> Oblique
C150: 2 | D150: 6 | E150: 3 | F150: =$B$5*SQRT((($C150/$B$2)^2)+(($D150/$B$3)^2)+(($E150/$B$4)^2)) -> 270.0085529 | G150: =+IF(+AND(C150=0,D150=0)+OR(+AND(C150=0,E150=0))+OR(+AND(D150=0,E150=0)),"Axial",(+IF(+OR(C150=0,D150=0,E150=0),"Tangential","Oblique"))) -> Oblique
C151: 6 | D151: 2 | E151: 4 | F151: =$B$5*SQRT((($C151/$B$2)^2)+(($D151/$B$3)^2)+(($E151/$B$4)^2)) -> 270.0248348 | G151: =+IF(+AND(C151=0,D151=0)+OR(+AND(C151=0,E151=0))+OR(+AND(D151=0,E151=0)),"Axial",(+IF(+OR(C151=0,D151=0,E151=0),"Tangential","Oblique"))) -> Oblique
C152: 3 | D152: 1 | E152: 5 | F152: =$B$5*SQRT((($C152/$B$2)^2)+(($D152/$B$3)^2)+(($E152/$B$4)^2)) -> 270.2740754 | G152: =+IF(+AND(C152=0,D152=0)+OR(+AND(C152=0,E152=0))+OR(+AND(D152=0,E152=0)),"Axial",(+IF(+OR(C152=0,D152=0,E152=0),"Tangential","Oblique"))) -> Oblique
C153: 2 | D153: 2 | E153: 5 | F153: =$B$5*SQRT((($C153/$B$2)^2)+(($D153/$B$3)^2)+(($E153/$B$4)^2)) -> 270.7715282 | G153: =+IF(+AND(C153=0,D153=0)+OR(+AND(C153=0,E153=0))+OR(+AND(D153=0,E153=0)),"Axial",(+IF(+OR(C153=0,D153=0,E153=0),"Tangential","Oblique"))) -> Oblique
C154: 5 | D154: 5 | E154: 3 | F154: =$B$5*SQRT((($C154/$B$2)^2)+(($D154/$B$3)^2)+(($E154/$B$4)^2)) -> 271.7387558 | G154: =+IF(+AND(C154=0,D154=0)+OR(+AND(C154=0,E154=0))+OR(+AND(D154=0,E154=0)),"Axial",(+IF(+OR(C154=0,D154=0,E154=0),"Tangential","Oblique"))) -> Oblique
C155: 4 | D155: 4 | E155: 4 | F155: =$B$5*SQRT((($C155/$B$2)^2)+(($D155/$B$3)^2)+(($E155/$B$4)^2)) -> 272.0110109 | G155: =+IF(+AND(C155=0,D155=0)+OR(+AND(C155=0,E155=0))+OR(+AND(D155=0,E155=0)),"Axial",(+IF(+OR(C155=0,D155=0,E155=0),"Tangential","Oblique"))) -> Oblique
C156: 9 | D156: 2 | E156: 2 | F156: =$B$5*SQRT((($C156/$B$2)^2)+(($D156/$B$3)^2)+(($E156/$B$4)^2)) -> 272.1372287 | G156: =+IF(+AND(C156=0,D156=0)+OR(+AND(C156=0,E156=0))+OR(+AND(D156=0,E156=0)),"Axial",(+IF(+OR(C156=0,D156=0,E156=0),"Tangential","Oblique"))) -> Oblique
C157: 1 | D157: 7 | E157: 2 | F157: =$B$5*SQRT((($C157/$B$2)^2)+(($D157/$B$3)^2)+(($E157/$B$4)^2)) -> 272.9248479 | G157: =+IF(+AND(C157=0,D157=0)+OR(+AND(C157=0,E157=0))+OR(+AND(D157=0,E157=0)),"Axial",(+IF(+OR(C157=0,D157=0,E157=0),"Tangential","Oblique"))) -> Oblique
C158: 1 | D158: 5 | E158: 4 | F158: =$B$5*SQRT((($C158/$B$2)^2)+(($D158/$B$3)^2)+(($E158/$B$4)^2)) -> 273.4911771 | G158: =+IF(+AND(C158=0,D158=0)+OR(+AND(C158=0,E158=0))+OR(+AND(D158=0,E158=0)),"Axial",(+IF(+OR(C158=0,D158=0,E158=0),"Tangential","Oblique"))) -> Oblique
C159: 8 | D159: 2 | E159: 3 | F159: =$B$5*SQRT((($C159/$B$2)^2)+(($D159/$B$3)^2)+(($E159/$B$4)^2)) -> 273.5767417 | G159: =+IF(+AND(C159=0,D159=0)+OR(+AND(C159=0,E159=0))+OR(+AND(D159=0,E159=0)),"Axial",(+IF(+OR(C159=0,D159=0,E159=0),"Tangential","Oblique"))) -> Oblique
C160: 5 | D160: 6 | E160: 2 | F160: =$B$5*SQRT((($C160/$B$2)^2)+(($D160/$B$3)^2)+(($E160/$B$4)^2)) -> 273.8710482 | G160: =+IF(+AND(C160=0,D160=0)+OR(+AND(C160=0,E160=0))+OR(+AND(D160=0,E160=0)),"Axial",(+IF(+OR(C160=0,D160=0,E160=0),"Tangential","Oblique"))) -> Oblique
C161: 6 | D161: 6 | E161: 1 | F161: =$B$5*SQRT((($C161/$B$2)^2)+(($D161/$B$3)^2)+(($E161/$B$4)^2)) -> 274.0643584 | G161: =+IF(+AND(C161=0,D161=0)+OR(+AND(C161=0,E161=0))+OR(+AND(D161=0,E161=0)),"Axial",(+IF(+OR(C161=0,D161=0,E161=0),"Tangential","Oblique"))) -> Oblique
C162: 3 | D162: 6 | E162: 3 | F162: =$B$5*SQRT((($C162/$B$2)^2)+(($D162/$B$3)^2)+(($E162/$B$4)^2)) -> 276.6089063 | G162: =+IF(+AND(C162=0,D162=0)+OR(+AND(C162=0,E162=0))+OR(+AND(D162=0,E162=0)),"Axial",(+IF(+OR(C162=0,D162=0,E162=0),"Tangential","Oblique"))) -> Oblique
C163: 2 | D163: 7 | E163: 2 | F163: =$B$5*SQRT((($C163/$B$2)^2)+(($D163/$B$3)^2)+(($E163/$B$4)^2)) -> 276.8622286 | G163: =+IF(+AND(C163=0,D163=0)+OR(+AND(C163=0,E163=0))+OR(+AND(D163=0,E163=0)),"Axial",(+IF(+OR(C163=0,D163=0,E163=0),"Tangential","Oblique"))) -> Oblique
C164: 3 | D164: 2 | E164: 5 | F164: =$B$5*SQRT((($C164/$B$2)^2)+(($D164/$B$3)^2)+(($E164/$B$4)^2)) -> 277.3537253 | G164: =+IF(+AND(C164=0,D164=0)+OR(+AND(C164=0,E164=0))+OR(+AND(D164=0,E164=0)),"Axial",(+IF(+OR(C164=0,D164=0,E164=0),"Tangential","Oblique"))) -> Oblique
C165: 2 | D165: 5 | E165: 4 | F165: =$B$5*SQRT((($C165/$B$2)^2)+(($D165/$B$3)^2)+(($E165/$B$4)^2)) -> 277.4205202 | G165: =+IF(+AND(C165=0,D165=0)+OR(+AND(C165=0,E165=0))+OR(+AND(D165=0,E165=0)),"Axial",(+IF(+OR(C165=0,D165=0,E165=0),"Tangential","Oblique"))) -> Oblique
C166: 8 | D166: 4 | E166: 2 | F166: =$B$5*SQRT((($C166/$B$2)^2)+(($D166/$B$3)^2)+(($E166/$B$4)^2)) -> 278.0287232 | G166: =+IF(+AND(C166=0,D166=0)+OR(+AND(C166=0,E166=0))+OR(+AND(D166=0,E166=0)),"Axial",(+IF(+OR(C166=0,D166=0,E166=0),"Tangential","Oblique"))) -> Oblique
C167: 4 | D167: 7 | E167: 1 | F167: =$B$5*SQRT((($C167/$B$2)^2)+(($D167/$B$3)^2)+(($E167/$B$4)^2)) -> 278.352634 | G167: =+IF(+AND(C167=0,D167=0)+OR(+AND(C167=0,E167=0))+OR(+AND(D167=0,E167=0)),"Axial",(+IF(+OR(C167=0,D167=0,E167=0),"Tangential","Oblique"))) -> Oblique
C168: 1 | D168: 3 | E168: 5 | F168: =$B$5*SQRT((($C168/$B$2)^2)+(($D168/$B$3)^2)+(($E168/$B$4)^2)) -> 278.5932302 | G168: =+IF(+AND(C168=0,D168=0)+OR(+AND(C168=0,E168=0))+OR(+AND(D168=0,E168=0)),"Axial",(+IF(+OR(C168=0,D168=0,E168=0),"Tangential","Oblique"))) -> Oblique
C169: 4 | D169: 1 | E169: 5 | F169: =$B$5*SQRT((($C169/$B$2)^2)+(($D169/$B$3)^2)+(($E169/$B$4)^2)) -> 279.4621471 | G169: =+IF(+AND(C169=0,D169=0)+OR(+AND(C169=0,E169=0))+OR(+AND(D169=0,E169=0)),"Axial",(+IF(+OR(C169=0,D169=0,E169=0),"Tangential","Oblique"))) -> Oblique
C170: 7 | D170: 5 | E170: 2 | F170: =$B$5*SQRT((($C170/$B$2)^2)+(($D170/$B$3)^2)+(($E170/$B$4)^2)) -> 279.4770203 | G170: =+IF(+AND(C170=0,D170=0)+OR(+AND(C170=0,E170=0))+OR(+AND(D170=0,E170=0)),"Axial",(+IF(+OR(C170=0,D170=0,E170=0),"Tangential","Oblique"))) -> Oblique
C171: 7 | D171: 1 | E171: 4 | F171: =$B$5*SQRT((($C171/$B$2)^2)+(($D171/$B$3)^2)+(($E171/$B$4)^2)) -> 280.0300988 | G171: =+IF(+AND(C171=0,D171=0)+OR(+AND(C171=0,E171=0))+OR(+AND(D171=0,E171=0)),"Axial",(+IF(+OR(C171=0,D171=0,E171=0),"Tangential","Oblique"))) -> Oblique
C172: 6 | D172: 3 | E172: 4 | F172: =$B$5*SQRT((($C172/$B$2)^2)+(($D172/$B$3)^2)+(($E172/$B$4)^2)) -> 281.735869 | G172: =+IF(+AND(C172=0,D172=0)+OR(+AND(C172=0,E172=0))+OR(+AND(D172=0,E172=0)),"Axial",(+IF(+OR(C172=0,D172=0,E172=0),"Tangential","Oblique"))) -> Oblique
C173: 7 | D173: 4 | E173: 3 | F173: =$B$5*SQRT((($C173/$B$2)^2)+(($D173/$B$3)^2)+(($E173/$B$4)^2)) -> 282.0082989 | G173: =+IF(+AND(C173=0,D173=0)+OR(+AND(C173=0,E173=0))+OR(+AND(D173=0,E173=0)),"Axial",(+IF(+OR(C173=0,D173=0,E173=0),"Tangential","Oblique"))) -> Oblique
C174: 2 | D174: 3 | E174: 5 | F174: =$B$5*SQRT((($C174/$B$2)^2)+(($D174/$B$3)^2)+(($E174/$B$4)^2)) -> 282.4516046 | G174: =+IF(+AND(C174=0,D174=0)+OR(+AND(C174=0,E174=0))+OR(+AND(D174=0,E174=0)),"Axial",(+IF(+OR(C174=0,D174=0,E174=0),"Tangential","Oblique"))) -> Oblique
C175: 3 | D175: 7 | E175: 2 | F175: =$B$5*SQRT((($C175/$B$2)^2)+(($D175/$B$3)^2)+(($E175/$B$4)^2)) -> 283.302951 | G175: =+IF(+AND(C175=0,D175=0)+OR(+AND(C175=0,E175=0))+OR(+AND(D175=0,E175=0)),"Axial",(+IF(+OR(C175=0,D175=0,E175=0),"Tangential","Oblique"))) -> Oblique
C176: 5 | D176: 4 | E176: 4 | F176: =$B$5*SQRT((($C176/$B$2)^2)+(($D176/$B$3)^2)+(($E176/$B$4)^2)) -> 283.6972915 | G176: =+IF(+AND(C176=0,D176=0)+OR(+AND(C176=0,E176=0))+OR(+AND(D176=0,E176=0)),"Axial",(+IF(+OR(C176=0,D176=0,E176=0),"Tangential","Oblique"))) -> Oblique
C177: 9 | D177: 3 | E177: 2 | F177: =$B$5*SQRT((($C177/$B$2)^2)+(($D177/$B$3)^2)+(($E177/$B$4)^2)) -> 283.7610962 | G177: =+IF(+AND(C177=0,D177=0)+OR(+AND(C177=0,E177=0))+OR(+AND(D177=0,E177=0)),"Axial",(+IF(+OR(C177=0,D177=0,E177=0),"Tangential","Oblique"))) -> Oblique
C178: 3 | D178: 5 | E178: 4 | F178: =$B$5*SQRT((($C178/$B$2)^2)+(($D178/$B$3)^2)+(($E178/$B$4)^2)) -> 283.8485749 | G178: =+IF(+AND(C178=0,D178=0)+OR(+AND(C178=0,E178=0))+OR(+AND(D178=0,E178=0)),"Axial",(+IF(+OR(C178=0,D178=0,E178=0),"Tangential","Oblique"))) -> Oblique
C179: 8 | D179: 5 | E179: 1 | F179: =$B$5*SQRT((($C179/$B$2)^2)+(($D179/$B$3)^2)+(($E179/$B$4)^2)) -> 284.7799521 | G179: =+IF(+AND(C179=0,D179=0)+OR(+AND(C179=0,E179=0))+OR(+AND(D179=0,E179=0)),"Axial",(+IF(+OR(C179=0,D179=0,E179=0),"Tangential","Oblique"))) -> Oblique
C180: 8 | D180: 3 | E180: 3 | F180: =$B$5*SQRT((($C180/$B$2)^2)+(($D180/$B$3)^2)+(($E180/$B$4)^2)) -> 285.1419332 | G180: =+IF(+AND(C180=0,D180=0)+OR(+AND(C180=0,E180=0))+OR(+AND(D180=0,E180=0)),"Axial",(+IF(+OR(C180=0,D180=0,E180=0),"Tangential","Oblique"))) -> Oblique
C181: 4 | D181: 6 | E181: 3 | F181: =$B$5*SQRT((($C181/$B$2)^2)+(($D181/$B$3)^2)+(($E181/$B$4)^2)) -> 285.5932472 | G181: =+IF(+AND(C181=0,D181=0)+OR(+AND(C181=0,E181=0))+OR(+AND(D181=0,E181=0)),"Axial",(+IF(+OR(C181=0,D181=0,E181=0),"Tangential","Oblique"))) -> Oblique
C182: 9 | D182: 4 | E182: 1 | F182: =$B$5*SQRT((($C182/$B$2)^2)+(($D182/$B$3)^2)+(($E182/$B$4)^2)) -> 285.8939219 | G182: =+IF(+AND(C182=0,D182=0)+OR(+AND(C182=0,E182=0))+OR(+AND(D182=0,E182=0)),"Axial",(+IF(+OR(C182=0,D182=0,E182=0),"Tangential","Oblique"))) -> Oblique
C183: 6 | D183: 5 | E183: 3 | F183: =$B$5*SQRT((($C183/$B$2)^2)+(($D183/$B$3)^2)+(($E183/$B$4)^2)) -> 285.9707362 | G183: =+IF(+AND(C183=0,D183=0)+OR(+AND(C183=0,E183=0))+OR(+AND(D183=0,E183=0)),"Axial",(+IF(+OR(C183=0,D183=0,E183=0),"Tangential","Oblique"))) -> Oblique
C184: 4 | D184: 2 | E184: 5 | F184: =$B$5*SQRT((($C184/$B$2)^2)+(($D184/$B$3)^2)+(($E184/$B$4)^2)) -> 286.3146953 | G184: =+IF(+AND(C184=0,D184=0)+OR(+AND(C184=0,E184=0))+OR(+AND(D184=0,E184=0)),"Axial",(+IF(+OR(C184=0,D184=0,E184=0),"Tangential","Oblique"))) -> Oblique
C185: 7 | D185: 2 | E185: 4 | F185: =$B$5*SQRT((($C185/$B$2)^2)+(($D185/$B$3)^2)+(($E185/$B$4)^2)) -> 286.8690805 | G185: =+IF(+AND(C185=0,D185=0)+OR(+AND(C185=0,E185=0))+OR(+AND(D185=0,E185=0)),"Axial",(+IF(+OR(C185=0,D185=0,E185=0),"Tangential","Oblique"))) -> Oblique
C186: 6 | D186: 6 | E186: 2 | F186: =$B$5*SQRT((($C186/$B$2)^2)+(($D186/$B$3)^2)+(($E186/$B$4)^2)) -> 287.9976763 | G186: =+IF(+AND(C186=0,D186=0)+OR(+AND(C186=0,E186=0))+OR(+AND(D186=0,E186=0)),"Axial",(+IF(+OR(C186=0,D186=0,E186=0),"Tangential","Oblique"))) -> Oblique
C187: 9 | D187: 1 | E187: 3 | F187: =$B$5*SQRT((($C187/$B$2)^2)+(($D187/$B$3)^2)+(($E187/$B$4)^2)) -> 288.5029864 | G187: =+IF(+AND(C187=0,D187=0)+OR(+AND(C187=0,E187=0))+OR(+AND(D187=0,E187=0)),"Axial",(+IF(+OR(C187=0,D187=0,E187=0),"Tangential","Oblique"))) -> Oblique
C188: 3 | D188: 3 | E188: 5 | F188: =$B$5*SQRT((($C188/$B$2)^2)+(($D188/$B$3)^2)+(($E188/$B$4)^2)) -> 288.7676876 | G188: =+IF(+AND(C188=0,D188=0)+OR(+AND(C188=0,E188=0))+OR(+AND(D188=0,E188=0)),"Axial",(+IF(+OR(C188=0,D188=0,E188=0),"Tangential","Oblique"))) -> Oblique
C189: 5 | D189: 7 | E189: 1 | F189: =$B$5*SQRT((($C189/$B$2)^2)+(($D189/$B$3)^2)+(($E189/$B$4)^2)) -> 289.7832846 | G189: =+IF(+AND(C189=0,D189=0)+OR(+AND(C189=0,E189=0))+OR(+AND(D189=0,E189=0)),"Axial",(+IF(+OR(C189=0,D189=0,E189=0),"Tangential","Oblique"))) -> Oblique
C190: 7 | D190: 6 | E190: 1 | F190: =$B$5*SQRT((($C190/$B$2)^2)+(($D190/$B$3)^2)+(($E190/$B$4)^2)) -> 290.6746127 | G190: =+IF(+AND(C190=0,D190=0)+OR(+AND(C190=0,E190=0))+OR(+AND(D190=0,E190=0)),"Axial",(+IF(+OR(C190=0,D190=0,E190=0),"Tangential","Oblique"))) -> Oblique
C191: 5 | D191: 1 | E191: 5 | F191: =$B$5*SQRT((($C191/$B$2)^2)+(($D191/$B$3)^2)+(($E191/$B$4)^2)) -> 290.849196 | G191: =+IF(+AND(C191=0,D191=0)+OR(+AND(C191=0,E191=0))+OR(+AND(D191=0,E191=0)),"Axial",(+IF(+OR(C191=0,D191=0,E191=0),"Tangential","Oblique"))) -> Oblique
C192: 4 | D192: 7 | E192: 2 | F192: =$B$5*SQRT((($C192/$B$2)^2)+(($D192/$B$3)^2)+(($E192/$B$4)^2)) -> 292.0814576 | G192: =+IF(+AND(C192=0,D192=0)+OR(+AND(C192=0,E192=0))+OR(+AND(D192=0,E192=0)),"Axial",(+IF(+OR(C192=0,D192=0,E192=0),"Tangential","Oblique"))) -> Oblique
C193: 4 | D193: 5 | E193: 4 | F193: =$B$5*SQRT((($C193/$B$2)^2)+(($D193/$B$3)^2)+(($E193/$B$4)^2)) -> 292.6107128 | G193: =+IF(+AND(C193=0,D193=0)+OR(+AND(C193=0,E193=0))+OR(+AND(D193=0,E193=0)),"Axial",(+IF(+OR(C193=0,D193=0,E193=0),"Tangential","Oblique"))) -> Oblique
C194: 1 | D194: 8 | E194: 1 | F194: =$B$5*SQRT((($C194/$B$2)^2)+(($D194/$B$3)^2)+(($E194/$B$4)^2)) -> 293.3285683 | G194: =+IF(+AND(C194=0,D194=0)+OR(+AND(C194=0,E194=0))+OR(+AND(D194=0,E194=0)),"Axial",(+IF(+OR(C194=0,D194=0,E194=0),"Tangential","Oblique"))) -> Oblique
C195: 1 | D195: 4 | E195: 5 | F195: =$B$5*SQRT((($C195/$B$2)^2)+(($D195/$B$3)^2)+(($E195/$B$4)^2)) -> 294.381643 | G195: =+IF(+AND(C195=0,D195=0)+OR(+AND(C195=0,E195=0))+OR(+AND(D195=0,E195=0)),"Axial",(+IF(+OR(C195=0,D195=0,E195=0),"Tangential","Oblique"))) -> Oblique
C196: 9 | D196: 2 | E196: 3 | F196: =$B$5*SQRT((($C196/$B$2)^2)+(($D196/$B$3)^2)+(($E196/$B$4)^2)) -> 295.1457034 | G196: =+IF(+AND(C196=0,D196=0)+OR(+AND(C196=0,E196=0))+OR(+AND(D196=0,E196=0)),"Axial",(+IF(+OR(C196=0,D196=0,E196=0),"Tangential","Oblique"))) -> Oblique
C197: 1 | D197: 7 | E197: 3 | F197: =$B$5*SQRT((($C197/$B$2)^2)+(($D197/$B$3)^2)+(($E197/$B$4)^2)) -> 295.8720798 | G197: =+IF(+AND(C197=0,D197=0)+OR(+AND(C197=0,E197=0))+OR(+AND(D197=0,E197=0)),"Axial",(+IF(+OR(C197=0,D197=0,E197=0),"Tangential","Oblique"))) -> Oblique
C198: 5 | D198: 6 | E198: 3 | F198: =$B$5*SQRT((($C198/$B$2)^2)+(($D198/$B$3)^2)+(($E198/$B$4)^2)) -> 296.7451196 | G198: =+IF(+AND(C198=0,D198=0)+OR(+AND(C198=0,E198=0))+OR(+AND(D198=0,E198=0)),"Axial",(+IF(+OR(C198=0,D198=0,E198=0),"Tangential","Oblique"))) -> Oblique
C199: 2 | D199: 8 | E199: 1 | F199: =$B$5*SQRT((($C199/$B$2)^2)+(($D199/$B$3)^2)+(($E199/$B$4)^2)) -> 296.9955724 | G199: =+IF(+AND(C199=0,D199=0)+OR(+AND(C199=0,E199=0))+OR(+AND(D199=0,E199=0)),"Axial",(+IF(+OR(C199=0,D199=0,E199=0),"Tangential","Oblique"))) -> Oblique
C200: 6 | D200: 4 | E200: 4 | F200: =$B$5*SQRT((($C200/$B$2)^2)+(($D200/$B$3)^2)+(($E200/$B$4)^2)) -> 297.3574679 | G200: =+IF(+AND(C200=0,D200=0)+OR(+AND(C200=0,E200=0))+OR(+AND(D200=0,E200=0)),"Axial",(+IF(+OR(C200=0,D200=0,E200=0),"Tangential","Oblique"))) -> Oblique
... 531 more rows

Sheet Bonello
A1: f | B1: 16 | C1: 20 | D1: 25 | E1: 31.5 | F1: 40 | G1: 50 | H1: 63 | I1: 80 | J1: 100 | K1: 125 | L1: 160 | M1: 200 | N1: 250 | P1: 16 | Q1: 20 | R1: 25 | S1: 31.5 | T1: 40 | U1: 50 | V1: 63 | W1: 80 | X1: 100 | Y1: 125 | Z1: 160 | AA1: 200 | AB1: 250
A2: ='Mode Strength'!A2 -> 26.82551506 | B2: =IF((AND($A2>=14.1,$A2<17.8)),1,0) -> 0 | C2: =IF((AND($A2>=17.8,$A2<22.4)),1,0) -> 0 | D2: =IF((AND($A2>=22.4,$A2<28.2)),1,0) -> 1 | E2: =IF((AND($A2>=28.2,$A2<35.5)),1,0) -> 0 | F2: =IF((AND($A2>=35.5,$A2<44.7)),1,0) -> 0 | G2: =IF((AND($A2>=44.7,$A2<56.2)),1,0) -> 0 | H2: =IF((AND($A2>=56.2,$A2<70.8)),1,0) -> 0 | I2: =IF((AND($A2>=70.8,$A2<89.1)),1,0) -> 0 | J2: =IF((AND($A2>=89.1,$A2<112)),1,0) -> 0 | K2: =IF((AND($A2>=112,$A2<141)),1,0) -> 0 | L2: =IF((AND($A2>=141,$A2<178)),1,0) -> 0 | M2: =IF((AND($A2>=178,$A2<224)),1,0) -> 0 | N2: =IF((AND($A2>=224,$A2<282)),1,0) -> 0 | O2: Actual | P2: =SUM(B2:B1000) -> 0 | Q2: 0 | R2: 1 | S2: 0 | T2: 1 | U2: 3 | V2: 4 | W2: 7 | X2: 13 | Y2: 20 | Z2: 43 | AA2: 82 | AB2: 137
A3: ='Mode Strength'!A3 -> 35.90010604 | B3: =IF((AND($A3>=14.1,$A3<17.8)),1,0) -> 0 | C3: =IF((AND($A3>=17.8,$A3<22.4)),1,0) -> 0 | D3: =IF((AND($A3>=22.4,$A3<28.2)),1,0) -> 0 | E3: =IF((AND($A3>=28.2,$A3<35.5)),1,0) -> 0 | F3: =IF((AND($A3>=35.5,$A3<44.7)),1,0) -> 1 | G3: =IF((AND($A3>=44.7,$A3<56.2)),1,0) -> 0 | H3: =IF((AND($A3>=56.2,$A3<70.8)),1,0) -> 0 | I3: =IF((AND($A3>=70.8,$A3<89.1)),1,0) -> 0 | J3: =IF((AND($A3>=89.1,$A3<112)),1,0) -> 0 | K3: =IF((AND($A3>=112,$A3<141)),1,0) -> 0 | L3: =IF((AND($A3>=141,$A3<178)),1,0) -> 0 | M3: =IF((AND($A3>=178,$A3<224)),1,0) -> 0 | N3: =IF((AND($A3>=224,$A3<282)),1,0) -> 0 | O3: Ideal | Q3: =P2 -> 0 | R3: =IF(Q2>=Q3,Q2,Q3) -> 0 | S3: =IF(R2>=R3,R2,R3) -> 1 | T3: 1 | U3: 1 | V3: 3 | W3: 4 | X3: 7 | Y3: 13 | Z3: 20 | AA3: 43 | AB3: 82
A4: ='Mode Strength'!A4 -> 44.81546465 | B4: 0 | C4: 0 | D4: 0 | E4: 0 | F4: 0 | G4: 1 | H4: 0 | I4: 0 | J4: 0 | K4: 0 | L4: 0 | M4: 0 | N4: 0
A5: ='Mode Strength'!A5 -> 51.02305953 | B5: 0 | C5: 0 | D5: 0 | E5: 0 | F5: 0 | G5: 1 | H5: 0 | I5: 0 | J5: 0 | K5: 0 | L5: 0 | M5: 0 | N5: 0
A6: ='Mode Strength'!A6 -> 53.65103011 | B6: 0 | C6: 0 | D6: 0 | E6: 0 | F6: 0 | G6: 1 | H6: 0 | I6: 0 | J6: 0 | K6: 0 | L6: 0 | M6: 0 | N6: 0
A7: ='Mode Strength'!A7 -> 57.64512869 | B7: 0 | C7: 0 | D7: 0 | E7: 0 | F7: 0 | G7: 0 | H7: 1 | I7: 0 | J7: 0 | K7: 0 | L7: 0 | M7: 0 | N7: 0
A8: ='Mode Strength'!A8 -> 62.38726006 | B8: 0 | C8: 0 | D8: 0 | E8: 0 | F8: 0 | G8: 0 | H8: 1 | I8: 0 | J8: 0 | K8: 0 | L8: 0 | M8: 0 | N8: 0
A9: ='Mode Strength'!A9 -> 64.55424576 | B9: 0 | C9: 0 | D9: 0 | E9: 0 | F9: 0 | G9: 0 | H9: 1 | I9: 0 | J9: 0 | K9: 0 | L9: 0 | M9: 0 | N9: 0
A10: ='Mode Strength'!A10 -> 67.9100764 | B10: 0 | C10: 0 | D10: 0 | E10: 0 | F10: 0 | G10: 0 | H10: 1 | I10: 0 | J10: 0 | K10: 0 | L10: 0 | M10: 0 | N10: 0
A11: ='Mode Strength'!A11 -> 71.80021209 | B11: 0 | C11: 0 | D11: 0 | E11: 0 | F11: 0 | G11: 0 | H11: 0 | I11: 1 | J11: 0 | K11: 0 | L11: 0 | M11: 0 | N11: 0
A12: ='Mode Strength'!A12 -> 74.03908182 | B12: 0 | C12: 0 | D12: 0 | E12: 0 | F12: 0 | G12: 0 | H12: 0 | I12: 1 | J12: 0 | K12: 0 | L12: 0 | M12: 0 | N12: 0
A13: ='Mode Strength'!A13 -> 76.6477574 | B13: 0 | C13: 0 | D13: 0 | E13: 0 | F13: 0 | G13: 0 | H13: 0 | I13: 1 | J13: 0 | K13: 0 | L13: 0 | M13: 0 | N13: 0
A14: ='Mode Strength'!A14 -> 80.47654517 | B14: 0 | C14: 0 | D14: 0 | E14: 0 | F14: 0 | G14: 0 | H14: 0 | I14: 1 | J14: 0 | K14: 0 | L14: 0 | M14: 0 | N14: 0
A15: ='Mode Strength'!A15 -> 82.28367548 | B15: 0 | C15: 0 | D15: 0 | E15: 0 | F15: 0 | G15: 0 | H15: 0 | I15: 1 | J15: 0 | K15: 0 | L15: 0 | M15: 0 | N15: 0
A16: ='Mode Strength'!A16 -> 88.08304638 | B16: 0 | C16: 0 | D16: 0 | E16: 0 | F16: 0 | G16: 0 | H16: 0 | I16: 1 | J16: 0 | K16: 0 | L16: 0 | M16: 0 | N16: 0
A17: ='Mode Strength'!A17 -> 88.12089387 | B17: 0 | C17: 0 | D17: 0 | E17: 0 | F17: 0 | G17: 0 | H17: 0 | I17: 1 | J17: 0 | K17: 0 | L17: 0 | M17: 0 | N17: 0
A18: ='Mode Strength'!A18 -> 89.6309293 | B18: 0 | C18: 0 | D18: 0 | E18: 0 | F18: 0 | G18: 0 | H18: 0 | I18: 0 | J18: 1 | K18: 0 | L18: 0 | M18: 0 | N18: 0
A19: ='Mode Strength'!A19 -> 92.07731164 | B19: 0 | C19: 0 | D19: 0 | E19: 0 | F19: 0 | G19: 0 | H19: 0 | I19: 0 | J19: 1 | K19: 0 | L19: 0 | M19: 0 | N19: 0
A20: ='Mode Strength'!A20 -> 95.28812584 | B20: 0 | C20: 0 | D20: 0 | E20: 0 | F20: 0 | G20: 0 | H20: 0 | I20: 0 | J20: 1 | K20: 0 | L20: 0 | M20: 0 | N20: 0
A21: ='Mode Strength'!A21 -> 101.8265414 | B21: 0 | C21: 0 | D21: 0 | E21: 0 | F21: 0 | G21: 0 | H21: 0 | I21: 0 | J21: 1 | K21: 0 | L21: 0 | M21: 0 | N21: 0
A22: ='Mode Strength'!A22 -> 102.0461191 | B22: 0 | C22: 0 | D22: 0 | E22: 0 | F22: 0 | G22: 0 | H22: 0 | I22: 0 | J22: 1 | K22: 0 | L22: 0 | M22: 0 | N22: 0
A23: ='Mode Strength'!A23 -> 103.1361047 | B23: 0 | C23: 0 | D23: 0 | E23: 0 | F23: 0 | G23: 0 | H23: 0 | I23: 0 | J23: 1 | K23: 0 | L23: 0 | M23: 0 | N23: 0
A24: ='Mode Strength'!A24 -> 105.5131209 | B24: 0 | C24: 0 | D24: 0 | E24: 0 | F24: 0 | G24: 0 | H24: 0 | I24: 0 | J24: 1 | K24: 0 | L24: 0 | M24: 0 | N24: 0
A25: ='Mode Strength'!A25 -> 107.3020602 | B25: 0 | C25: 0 | D25: 0 | E25: 0 | F25: 0 | G25: 0 | H25: 0 | I25: 0 | J25: 1 | K25: 0 | L25: 0 | M25: 0 | N25: 0
A26: ='Mode Strength'!A26 -> 107.7003181 | B26: 0 | C26: 0 | D26: 0 | E26: 0 | F26: 0 | G26: 0 | H26: 0 | I26: 0 | J26: 1 | K26: 0 | L26: 0 | M26: 0 | N26: 0
A27: ='Mode Strength'!A27 -> 107.8505669 | B27: 0 | C27: 0 | D27: 0 | E27: 0 | F27: 0 | G27: 0 | H27: 0 | I27: 0 | J27: 1 | K27: 0 | L27: 0 | M27: 0 | N27: 0
A28: ='Mode Strength'!A28 -> 108.1768368 | B28: 0 | C28: 0 | D28: 0 | E28: 0 | F28: 0 | G28: 0 | H28: 0 | I28: 0 | J28: 1 | K28: 0 | L28: 0 | M28: 0 | N28: 0
A29: ='Mode Strength'!A29 -> 110.990841 | B29: 0 | C29: 0 | D29: 0 | E29: 0 | F29: 0 | G29: 0 | H29: 0 | I29: 0 | J29: 1 | K29: 0 | L29: 0 | M29: 0 | N29: 0
A30: ='Mode Strength'!A30 -> 111.453292 | B30: 0 | C30: 0 | D30: 0 | E30: 0 | F30: 0 | G30: 0 | H30: 0 | I30: 0 | J30: 1 | K30: 0 | L30: 0 | M30: 0 | N30: 0
A31: ='Mode Strength'!A31 -> 113.1483528 | B31: 0 | C31: 0 | D31: 0 | E31: 0 | F31: 0 | G31: 0 | H31: 0 | I31: 0 | J31: 0 | K31: 1 | L31: 0 | M31: 0 | N31: 0
A32: ='Mode Strength'!A32 -> 115.2902574 | B32: 0 | C32: 0 | D32: 0 | E32: 0 | F32: 0 | G32: 0 | H32: 0 | I32: 0 | J32: 0 | K32: 1 | L32: 0 | M32: 0 | N32: 0
A33: ='Mode Strength'!A33 -> 118.8153388 | B33: 0 | C33: 0 | D33: 0 | E33: 0 | F33: 0 | G33: 0 | H33: 0 | I33: 0 | J33: 0 | K33: 1 | L33: 0 | M33: 0 | N33: 0
A34: ='Mode Strength'!A34 -> 119.175128 | B34: 0 | C34: 0 | D34: 0 | E34: 0 | F34: 0 | G34: 0 | H34: 0 | I34: 0 | J34: 0 | K34: 1 | L34: 0 | M34: 0 | N34: 0
A35: ='Mode Strength'!A35 -> 119.3109273 | B35: 0 | C35: 0 | D35: 0 | E35: 0 | F35: 0 | G35: 0 | H35: 0 | I35: 0 | J35: 0 | K35: 1 | L35: 0 | M35: 0 | N35: 0
A36: ='Mode Strength'!A36 -> 120.3236949 | B36: 0 | C36: 0 | D36: 0 | E36: 0 | F36: 0 | G36: 0 | H36: 0 | I36: 0 | J36: 0 | K36: 1 | L36: 0 | M36: 0 | N36: 0
A37: ='Mode Strength'!A37 -> 120.7504081 | B37: 0 | C37: 0 | D37: 0 | E37: 0 | F37: 0 | G37: 0 | H37: 0 | I37: 0 | J37: 0 | K37: 1 | L37: 0 | M37: 0 | N37: 0
A38: ='Mode Strength'!A38 -> 122.1569457 | B38: 0 | C38: 0 | D38: 0 | E38: 0 | F38: 0 | G38: 0 | H38: 0 | I38: 0 | J38: 0 | K38: 1 | L38: 0 | M38: 0 | N38: 0
A39: ='Mode Strength'!A39 -> 124.1205154 | B39: 0 | C39: 0 | D39: 0 | E39: 0 | F39: 0 | G39: 0 | H39: 0 | I39: 0 | J39: 0 | K39: 1 | L39: 0 | M39: 0 | N39: 0
A40: ='Mode Strength'!A40 -> 124.7745201 | B40: 0 | C40: 0 | D40: 0 | E40: 0 | F40: 0 | G40: 0 | H40: 0 | I40: 0 | J40: 0 | K40: 1 | L40: 0 | M40: 0 | N40: 0
A41: ='Mode Strength'!A41 -> 127.6255818 | B41: 0 | C41: 0 | D41: 0 | E41: 0 | F41: 0 | G41: 0 | H41: 0 | I41: 0 | J41: 0 | K41: 1 | L41: 0 | M41: 0 | N41: 0 | P41: If you found this spreadsheet helpful, please send a donation via PayPal to erika@jhbrandt.net
A42: ='Mode Strength'!A42 -> 129.1084915 | B42: 0 | C42: 0 | D42: 0 | E42: 0 | F42: 0 | G42: 0 | H42: 0 | I42: 0 | J42: 0 | K42: 1 | L42: 0 | M42: 0 | N42: 0
A43: ='Mode Strength'!A43 -> 129.9610893 | B43: 0 | C43: 0 | D43: 0 | E43: 0 | F43: 0 | G43: 0 | H43: 0 | I43: 0 | J43: 0 | K43: 1 | L43: 0 | M43: 0 | N43: 0
A44: ='Mode Strength'!A44 -> 130.6948513 | B44: 0 | C44: 0 | D44: 0 | E44: 0 | F44: 0 | G44: 0 | H44: 0 | I44: 0 | J44: 0 | K44: 1 | L44: 0 | M44: 0 | N44: 0
A45: ='Mode Strength'!A45 -> 134.1275753 | B45: 0 | C45: 0 | D45: 0 | E45: 0 | F45: 0 | G45: 0 | H45: 0 | I45: 0 | J45: 0 | K45: 1 | L45: 0 | M45: 0 | N45: 0
A46: ='Mode Strength'!A46 -> 134.446394 | B46: 0 | C46: 0 | D46: 0 | E46: 0 | F46: 0 | G46: 0 | H46: 0 | I46: 0 | J46: 0 | K46: 1 | L46: 0 | M46: 0 | N46: 0
A47: ='Mode Strength'!A47 -> 134.8284182 | B47: 0 | C47: 0 | D47: 0 | E47: 0 | F47: 0 | G47: 0 | H47: 0 | I47: 0 | J47: 0 | K47: 1 | L47: 0 | M47: 0 | N47: 0
A48: ='Mode Strength'!A48 -> 135.8201528 | B48: 0 | C48: 0 | D48: 0 | E48: 0 | F48: 0 | G48: 0 | H48: 0 | I48: 0 | J48: 0 | K48: 1 | L48: 0 | M48: 0 | N48: 0
A49: ='Mode Strength'!A49 -> 138.8249084 | B49: 0 | C49: 0 | D49: 0 | E49: 0 | F49: 0 | G49: 0 | H49: 0 | I49: 0 | J49: 0 | K49: 1 | L49: 0 | M49: 0 | N49: 0
A50: ='Mode Strength'!A50 -> 138.8489253 | B50: 0 | C50: 0 | D50: 0 | E50: 0 | F50: 0 | G50: 0 | H50: 0 | I50: 0 | J50: 0 | K50: 1 | L50: 0 | M50: 0 | N50: 0
A51: ='Mode Strength'!A51 -> 143.5045611 | B51: 0 | C51: 0 | D51: 0 | E51: 0 | F51: 0 | G51: 0 | H51: 0 | I51: 0 | J51: 0 | K51: 0 | L51: 1 | M51: 0 | N51: 0
A52: ='Mode Strength'!A52 -> 143.6004242 | B52: 0 | C52: 0 | D52: 0 | E52: 0 | F52: 0 | G52: 0 | H52: 0 | I52: 0 | J52: 0 | K52: 0 | L52: 1 | M52: 0 | N52: 0
A53: ='Mode Strength'!A53 -> 143.802592 | B53: 0 | C53: 0 | D53: 0 | E53: 0 | F53: 0 | G53: 0 | H53: 0 | I53: 0 | J53: 0 | K53: 0 | L53: 1 | M53: 0 | N53: 0
A54: ='Mode Strength'!A54 -> 146.0845306 | B54: 0 | C54: 0 | D54: 0 | E54: 0 | F54: 0 | G54: 0 | H54: 0 | I54: 0 | J54: 0 | K54: 0 | L54: 1 | M54: 0 | N54: 0
A55: ='Mode Strength'!A55 -> 147.9269302 | B55: 0 | C55: 0 | D55: 0 | E55: 0 | F55: 0 | G55: 0 | H55: 0 | I55: 0 | J55: 0 | K55: 0 | L55: 1 | M55: 0 | N55: 0
A56: ='Mode Strength'!A56 -> 148.0781636 | B56: 0 | C56: 0 | D56: 0 | E56: 0 | F56: 0 | G56: 0 | H56: 0 | I56: 0 | J56: 0 | K56: 0 | L56: 1 | M56: 0 | N56: 0
A57: ='Mode Strength'!A57 -> 148.3670076 | B57: 0 | C57: 0 | D57: 0 | E57: 0 | F57: 0 | G57: 0 | H57: 0 | I57: 0 | J57: 0 | K57: 0 | L57: 1 | M57: 0 | N57: 0
A58: ='Mode Strength'!A58 -> 148.4761098 | B58: 0 | C58: 0 | D58: 0 | E58: 0 | F58: 0 | G58: 0 | H58: 0 | I58: 0 | J58: 0 | K58: 0 | L58: 1 | M58: 0 | N58: 0
A59: ='Mode Strength'!A59 -> 150.772601 | B59: 0 | C59: 0 | D59: 0 | E59: 0 | F59: 0 | G59: 0 | H59: 0 | I59: 0 | J59: 0 | K59: 0 | L59: 1 | M59: 0 | N59: 0
A60: ='Mode Strength'!A60 -> 152.0299005 | B60: 0 | C60: 0 | D60: 0 | E60: 0 | F60: 0 | G60: 0 | H60: 0 | I60: 0 | J60: 0 | K60: 0 | L60: 1 | M60: 0 | N60: 0
A61: ='Mode Strength'!A61 -> 152.136376 | B61: 0 | C61: 0 | D61: 0 | E61: 0 | F61: 0 | G61: 0 | H61: 0 | I61: 0 | J61: 0 | K61: 0 | L61: 1 | M61: 0 | N61: 0
A62: ='Mode Strength'!A62 -> 152.3678449 | B62: 0 | C62: 0 | D62: 0 | E62: 0 | F62: 0 | G62: 0 | H62: 0 | I62: 0 | J62: 0 | K62: 0 | L62: 1 | M62: 0 | N62: 0
A63: ='Mode Strength'!A63 -> 152.3956509 | B63: 0 | C63: 0 | D63: 0 | E63: 0 | F63: 0 | G63: 0 | H63: 0 | I63: 0 | J63: 0 | K63: 0 | L63: 1 | M63: 0 | N63: 0
A64: ='Mode Strength'!A64 -> 153.0691786 | B64: 0 | C64: 0 | D64: 0 | E64: 0 | F64: 0 | G64: 0 | H64: 0 | I64: 0 | J64: 0 | K64: 0 | L64: 1 | M64: 0 | N64: 0
A65: ='Mode Strength'!A65 -> 153.2955148 | B65: 0 | C65: 0 | D65: 0 | E65: 0 | F65: 0 | G65: 0 | H65: 0 | I65: 0 | J65: 0 | K65: 0 | L65: 1 | M65: 0 | N65: 0
A66: ='Mode Strength'!A66 -> 154.738627 | B66: 0 | C66: 0 | D66: 0 | E66: 0 | F66: 0 | G66: 0 | H66: 0 | I66: 0 | J66: 0 | K66: 0 | L66: 1 | M66: 0 | N66: 0
A67: ='Mode Strength'!A67 -> 155.4020003 | B67: =IF((AND($A67>=14.1,$A67<17.8)),1,0) -> 0 | C67: =IF((AND($A67>=17.8,$A67<22.4)),1,0) -> 0 | D67: =IF((AND($A67>=22.4,$A67<28.2)),1,0) -> 0 | E67: =IF((AND($A67>=28.2,$A67<35.5)),1,0) -> 0 | F67: =IF((AND($A67>=35.5,$A67<44.7)),1,0) -> 0 | G67: =IF((AND($A67>=44.7,$A67<56.2)),1,0) -> 0 | H67: =IF((AND($A67>=56.2,$A67<70.8)),1,0) -> 0 | I67: =IF((AND($A67>=70.8,$A67<89.1)),1,0) -> 0 | J67: =IF((AND($A67>=89.1,$A67<112)),1,0) -> 0 | K67: =IF((AND($A67>=112,$A67<141)),1,0) -> 0 | L67: =IF((AND($A67>=141,$A67<178)),1,0) -> 1 | M67: =IF((AND($A67>=178,$A67<224)),1,0) -> 0 | N67: =IF((AND($A67>=224,$A67<282)),1,0) -> 0
A68: ='Mode Strength'!A68 -> 157.2227434 | B68: 0 | C68: 0 | D68: 0 | E68: 0 | F68: 0 | G68: 0 | H68: 0 | I68: 0 | J68: 0 | K68: 0 | L68: 1 | M68: 0 | N68: 0
A69: ='Mode Strength'!A69 -> 157.7694583 | B69: 0 | C69: 0 | D69: 0 | E69: 0 | F69: 0 | G69: 0 | H69: 0 | I69: 0 | J69: 0 | K69: 0 | L69: 1 | M69: 0 | N69: 0
A70: ='Mode Strength'!A70 -> 159.4948253 | B70: 0 | C70: 0 | D70: 0 | E70: 0 | F70: 0 | G70: 0 | H70: 0 | I70: 0 | J70: 0 | K70: 0 | L70: 1 | M70: 0 | N70: 0
A71: ='Mode Strength'!A71 -> 160.3634723 | B71: 0 | C71: 0 | D71: 0 | E71: 0 | F71: 0 | G71: 0 | H71: 0 | I71: 0 | J71: 0 | K71: 0 | L71: 1 | M71: 0 | N71: 0
A72: ='Mode Strength'!A72 -> 160.4644182 | B72: 0 | C72: 0 | D72: 0 | E72: 0 | F72: 0 | G72: 0 | H72: 0 | I72: 0 | J72: 0 | K72: 0 | L72: 1 | M72: 0 | N72: 0
A73: ='Mode Strength'!A73 -> 160.9530903 | B73: 0 | C73: 0 | D73: 0 | E73: 0 | F73: 0 | G73: 0 | H73: 0 | I73: 0 | J73: 0 | K73: 0 | L73: 1 | M73: 0 | N73: 0
A74: ='Mode Strength'!A74 -> 161.5638185 | B74: 0 | C74: 0 | D74: 0 | E74: 0 | F74: 0 | G74: 0 | H74: 0 | I74: 0 | J74: 0 | K74: 0 | L74: 1 | M74: 0 | N74: 0
A75: ='Mode Strength'!A75 -> 162.1992801 | B75: 0 | C75: 0 | D75: 0 | E75: 0 | F75: 0 | G75: 0 | H75: 0 | I75: 0 | J75: 0 | K75: 0 | L75: 1 | M75: 0 | N75: 0
A76: ='Mode Strength'!A76 -> 164.567351 | B76: 0 | C76: 0 | D76: 0 | E76: 0 | F76: 0 | G76: 0 | H76: 0 | I76: 0 | J76: 0 | K76: 0 | L76: 1 | M76: 0 | N76: 0
A77: ='Mode Strength'!A77 -> 164.6133535 | B77: 0 | C77: 0 | D77: 0 | E77: 0 | F77: 0 | G77: 0 | H77: 0 | I77: 0 | J77: 0 | K77: 0 | L77: 1 | M77: 0 | N77: 0
A78: ='Mode Strength'!A78 -> 164.9082014 | B78: 0 | C78: 0 | D78: 0 | E78: 0 | F78: 0 | G78: 0 | H78: 0 | I78: 0 | J78: 0 | K78: 0 | L78: 1 | M78: 0 | N78: 0
A79: ='Mode Strength'!A79 -> 166.1247245 | B79: 0 | C79: 0 | D79: 0 | E79: 0 | F79: 0 | G79: 0 | H79: 0 | I79: 0 | J79: 0 | K79: 0 | L79: 1 | M79: 0 | N79: 0
A80: ='Mode Strength'!A80 -> 168.5337262 | B80: 0 | C80: 0 | D80: 0 | E80: 0 | F80: 0 | G80: 0 | H80: 0 | I80: 0 | J80: 0 | K80: 0 | L80: 1 | M80: 0 | N80: 0
A81: ='Mode Strength'!A81 -> 168.7875685 | B81: 0 | C81: 0 | D81: 0 | E81: 0 | F81: 0 | G81: 0 | H81: 0 | I81: 0 | J81: 0 | K81: 0 | L81: 1 | M81: 0 | N81: 0
A82: ='Mode Strength'!A82 -> 168.8468238 | B82: 0 | C82: 0 | D82: 0 | E82: 0 | F82: 0 | G82: 0 | H82: 0 | I82: 0 | J82: 0 | K82: 0 | L82: 1 | M82: 0 | N82: 0
A83: ='Mode Strength'!A83 -> 169.0723037 | B83: 0 | C83: 0 | D83: 0 | E83: 0 | F83: 0 | G83: 0 | H83: 0 | I83: 0 | J83: 0 | K83: 0 | L83: 1 | M83: 0 | N83: 0
A84: ='Mode Strength'!A84 -> 171.1871845 | B84: 0 | C84: 0 | D84: 0 | E84: 0 | F84: 0 | G84: 0 | H84: 0 | I84: 0 | J84: 0 | K84: 0 | L84: 1 | M84: 0 | N84: 0
A85: ='Mode Strength'!A85 -> 172.0161765 | B85: 0 | C85: 0 | D85: 0 | E85: 0 | F85: 0 | G85: 0 | H85: 0 | I85: 0 | J85: 0 | K85: 0 | L85: 1 | M85: 0 | N85: 0
A86: ='Mode Strength'!A86 -> 172.3149282 | B86: 0 | C86: 0 | D86: 0 | E86: 0 | F86: 0 | G86: 0 | H86: 0 | I86: 0 | J86: 0 | K86: 0 | L86: 1 | M86: 0 | N86: 0
A87: ='Mode Strength'!A87 -> 172.3395159 | B87: 0 | C87: 0 | D87: 0 | E87: 0 | F87: 0 | G87: 0 | H87: 0 | I87: 0 | J87: 0 | K87: 0 | L87: 1 | M87: 0 | N87: 0
A88: ='Mode Strength'!A88 -> 172.6211676 | B88: 0 | C88: 0 | D88: 0 | E88: 0 | F88: 0 | G88: 0 | H88: 0 | I88: 0 | J88: 0 | K88: 0 | L88: 1 | M88: 0 | N88: 0
A89: ='Mode Strength'!A89 -> 172.9353861 | B89: 0 | C89: 0 | D89: 0 | E89: 0 | F89: 0 | G89: 0 | H89: 0 | I89: 0 | J89: 0 | K89: 0 | L89: 1 | M89: 0 | N89: 0
A90: ='Mode Strength'!A90 -> 176.1660928 | B90: 0 | C90: 0 | D90: 0 | E90: 0 | F90: 0 | G90: 0 | H90: 0 | I90: 0 | J90: 0 | K90: 0 | L90: 1 | M90: 0 | N90: 0
A91: ='Mode Strength'!A91 -> 176.2417877 | B91: 0 | C91: 0 | D91: 0 | E91: 0 | F91: 0 | G91: 0 | H91: 0 | I91: 0 | J91: 0 | K91: 0 | L91: 1 | M91: 0 | N91: 0
A92: ='Mode Strength'!A92 -> 176.6223807 | B92: 0 | C92: 0 | D92: 0 | E92: 0 | F92: 0 | G92: 0 | H92: 0 | I92: 0 | J92: 0 | K92: 0 | L92: 1 | M92: 0 | N92: 0
A93: ='Mode Strength'!A93 -> 177.3805991 | B93: 0 | C93: 0 | D93: 0 | E93: 0 | F93: 0 | G93: 0 | H93: 0 | I93: 0 | J93: 0 | K93: 0 | L93: 1 | M93: 0 | N93: 0
A94: ='Mode Strength'!A94 -> 178.1968027 | B94: 0 | C94: 0 | D94: 0 | E94: 0 | F94: 0 | G94: 0 | H94: 0 | I94: 0 | J94: 0 | K94: 0 | L94: 0 | M94: 1 | N94: 0
A95: ='Mode Strength'!A95 -> 179.2618586 | B95: 0 | C95: 0 | D95: 0 | E95: 0 | F95: 0 | G95: 0 | H95: 0 | I95: 0 | J95: 0 | K95: 0 | L95: 0 | M95: 1 | N95: 0
A96: ='Mode Strength'!A96 -> 179.423849 | B96: 0 | C96: 0 | D96: 0 | E96: 0 | F96: 0 | G96: 0 | H96: 0 | I96: 0 | J96: 0 | K96: 0 | L96: 0 | M96: 1 | N96: 0
A97: ='Mode Strength'!A97 -> 179.5005302 | B97: 0 | C97: 0 | D97: 0 | E97: 0 | F97: 0 | G97: 0 | H97: 0 | I97: 0 | J97: 0 | K97: 0 | L97: 0 | M97: 1 | N97: 0
A98: ='Mode Strength'!A98 -> 181.4939355 | B98: 0 | C98: 0 | D98: 0 | E98: 0 | F98: 0 | G98: 0 | H98: 0 | I98: 0 | J98: 0 | K98: 0 | L98: 0 | M98: 1 | N98: 0
A99: ='Mode Strength'!A99 -> 183.1024333 | B99: 0 | C99: 0 | D99: 0 | E99: 0 | F99: 0 | G99: 0 | H99: 0 | I99: 0 | J99: 0 | K99: 0 | L99: 0 | M99: 1 | N99: 0
A100: ='Mode Strength'!A100 -> 183.1908494 | B100: 0 | C100: 0 | D100: 0 | E100: 0 | F100: 0 | G100: 0 | H100: 0 | I100: 0 | J100: 0 | K100: 0 | L100: 0 | M100: 1 | N100: 0
A101: ='Mode Strength'!A101 -> 183.4789371 | B101: 0 | C101: 0 | D101: 0 | E101: 0 | F101: 0 | G101: 0 | H101: 0 | I101: 0 | J101: 0 | K101: 0 | L101: 0 | M101: 1 | N101: 0
A102: ='Mode Strength'!A102 -> 184.1546233 | B102: 0 | C102: 0 | D102: 0 | E102: 0 | F102: 0 | G102: 0 | H102: 0 | I102: 0 | J102: 0 | K102: 0 | L102: 0 | M102: 1 | N102: 0
A103: ='Mode Strength'!A103 -> 186.3817764 | B103: 0 | C103: 0 | D103: 0 | E103: 0 | F103: 0 | G103: 0 | H103: 0 | I103: 0 | J103: 0 | K103: 0 | L103: 0 | M103: 1 | N103: 0
A104: ='Mode Strength'!A104 -> 186.611342 | B104: 0 | C104: 0 | D104: 0 | E104: 0 | F104: 0 | G104: 0 | H104: 0 | I104: 0 | J104: 0 | K104: 0 | L104: 0 | M104: 1 | N104: 0
A105: ='Mode Strength'!A105 -> 186.9328905 | B105: 0 | C105: 0 | D105: 0 | E105: 0 | F105: 0 | G105: 0 | H105: 0 | I105: 0 | J105: 0 | K105: 0 | L105: 0 | M105: 1 | N105: 0
A106: ='Mode Strength'!A106 -> 187.1617802 | B106: 0 | C106: 0 | D106: 0 | E106: 0 | F106: 0 | G106: 0 | H106: 0 | I106: 0 | J106: 0 | K106: 0 | L106: 0 | M106: 1 | N106: 0
A107: ='Mode Strength'!A107 -> 187.2482796 | B107: 0 | C107: 0 | D107: 0 | E107: 0 | F107: 0 | G107: 0 | H107: 0 | I107: 0 | J107: 0 | K107: 0 | L107: 0 | M107: 1 | N107: 0
A108: ='Mode Strength'!A108 -> 187.3469332 | B108: 0 | C108: 0 | D108: 0 | E108: 0 | F108: 0 | G108: 0 | H108: 0 | I108: 0 | J108: 0 | K108: 0 | L108: 0 | M108: 1 | N108: 0
A109: ='Mode Strength'!A109 -> 187.7786054 | B109: 0 | C109: 0 | D109: 0 | E109: 0 | F109: 0 | G109: 0 | H109: 0 | I109: 0 | J109: 0 | K109: 0 | L109: 0 | M109: 1 | N109: 0
A110: ='Mode Strength'!A110 -> 188.5295765 | B110: 0 | C110: 0 | D110: 0 | E110: 0 | F110: 0 | G110: 0 | H110: 0 | I110: 0 | J110: 0 | K110: 0 | L110: 0 | M110: 1 | N110: 0
A111: ='Mode Strength'!A111 -> 189.0744304 | B111: 0 | C111: 0 | D111: 0 | E111: 0 | F111: 0 | G111: 0 | H111: 0 | I111: 0 | J111: 0 | K111: 0 | L111: 0 | M111: 1 | N111: 0
A112: ='Mode Strength'!A112 -> 190.3489511 | B112: 0 | C112: 0 | D112: 0 | E112: 0 | F112: 0 | G112: 0 | H112: 0 | I112: 0 | J112: 0 | K112: 0 | L112: 0 | M112: 1 | N112: 0
A113: ='Mode Strength'!A113 -> 190.5762517 | B113: 0 | C113: 0 | D113: 0 | E113: 0 | F113: 0 | G113: 0 | H113: 0 | I113: 0 | J113: 0 | K113: 0 | L113: 0 | M113: 1 | N113: 0
A114: ='Mode Strength'!A114 -> 191.179555 | B114: 0 | C114: 0 | D114: 0 | E114: 0 | F114: 0 | G114: 0 | H114: 0 | I114: 0 | J114: 0 | K114: 0 | L114: 0 | M114: 1 | N114: 0
A115: ='Mode Strength'!A115 -> 193.6627373 | B115: 0 | C115: 0 | D115: 0 | E115: 0 | F115: 0 | G115: 0 | H115: 0 | I115: 0 | J115: 0 | K115: 0 | L115: 0 | M115: 1 | N115: 0
A116: ='Mode Strength'!A116 -> 193.6774808 | B116: 0 | C116: 0 | D116: 0 | E116: 0 | F116: 0 | G116: 0 | H116: 0 | I116: 0 | J116: 0 | K116: 0 | L116: 0 | M116: 1 | N116: 0
A117: ='Mode Strength'!A117 -> 193.9281447 | B117: 0 | C117: 0 | D117: 0 | E117: 0 | F117: 0 | G117: 0 | H117: 0 | I117: 0 | J117: 0 | K117: 0 | L117: 0 | M117: 1 | N117: 0
A118: ='Mode Strength'!A118 -> 194.1706105 | B118: 0 | C118: 0 | D118: 0 | E118: 0 | F118: 0 | G118: 0 | H118: 0 | I118: 0 | J118: 0 | K118: 0 | L118: 0 | M118: 1 | N118: 0
A119: ='Mode Strength'!A119 -> 194.5871456 | B119: 0 | C119: 0 | D119: 0 | E119: 0 | F119: 0 | G119: 0 | H119: 0 | I119: 0 | J119: 0 | K119: 0 | L119: 0 | M119: 1 | N119: 0
A120: ='Mode Strength'!A120 -> 194.699679 | B120: 0 | C120: 0 | D120: 0 | E120: 0 | F120: 0 | G120: 0 | H120: 0 | I120: 0 | J120: 0 | K120: 0 | L120: 0 | M120: 1 | N120: 0
A121: ='Mode Strength'!A121 -> 196.4975528 | B121: 0 | C121: 0 | D121: 0 | E121: 0 | F121: 0 | G121: 0 | H121: 0 | I121: 0 | J121: 0 | K121: 0 | L121: 0 | M121: 1 | N121: 0
A122: ='Mode Strength'!A122 -> 196.7153138 | B122: 0 | C122: 0 | D122: 0 | E122: 0 | F122: 0 | G122: 0 | H122: 0 | I122: 0 | J122: 0 | K122: 0 | L122: 0 | M122: 1 | N122: 0
A123: ='Mode Strength'!A123 -> 197.8711067 | B123: 0 | C123: 0 | D123: 0 | E123: 0 | F123: 0 | G123: 0 | H123: 0 | I123: 0 | J123: 0 | K123: 0 | L123: 0 | M123: 1 | N123: 0
A124: ='Mode Strength'!A124 -> 200.0074383 | B124: 0 | C124: 0 | D124: 0 | E124: 0 | F124: 0 | G124: 0 | H124: 0 | I124: 0 | J124: 0 | K124: 0 | L124: 0 | M124: 1 | N124: 0
A125: ='Mode Strength'!A125 -> 200.2477866 | B125: 0 | C125: 0 | D125: 0 | E125: 0 | F125: 0 | G125: 0 | H125: 0 | I125: 0 | J125: 0 | K125: 0 | L125: 0 | M125: 1 | N125: 0
A126: ='Mode Strength'!A126 -> 200.271337 | B126: 0 | C126: 0 | D126: 0 | E126: 0 | F126: 0 | G126: 0 | H126: 0 | I126: 0 | J126: 0 | K126: 0 | L126: 0 | M126: 1 | N126: 0
A127: ='Mode Strength'!A127 -> 201.0374967 | B127: 0 | C127: 0 | D127: 0 | E127: 0 | F127: 0 | G127: 0 | H127: 0 | I127: 0 | J127: 0 | K127: 0 | L127: 0 | M127: 1 | N127: 0
A128: ='Mode Strength'!A128 -> 203.0138933 | B128: 0 | C128: 0 | D128: 0 | E128: 0 | F128: 0 | G128: 0 | H128: 0 | I128: 0 | J128: 0 | K128: 0 | L128: 0 | M128: 1 | N128: 0
A129: ='Mode Strength'!A129 -> 203.2246719 | B129: 0 | C129: 0 | D129: 0 | E129: 0 | F129: 0 | G129: 0 | H129: 0 | I129: 0 | J129: 0 | K129: 0 | L129: 0 | M129: 1 | N129: 0
A130: ='Mode Strength'!A130 -> 203.5199742 | B130: 0 | C130: 0 | D130: 0 | E130: 0 | F130: 0 | G130: 0 | H130: 0 | I130: 0 | J130: 0 | K130: 0 | L130: 0 | M130: 1 | N130: 0
A131: ='Mode Strength'!A131 -> 203.6530829 | B131: =IF((AND($A131>=14.1,$A131<17.8)),1,0) -> 0 | C131: =IF((AND($A131>=17.8,$A131<22.4)),1,0) -> 0 | D131: =IF((AND($A131>=22.4,$A131<28.2)),1,0) -> 0 | E131: =IF((AND($A131>=28.2,$A131<35.5)),1,0) -> 0 | F131: =IF((AND($A131>=35.5,$A131<44.7)),1,0) -> 0 | G131: =IF((AND($A131>=44.7,$A131<56.2)),1,0) -> 0 | H131: =IF((AND($A131>=56.2,$A131<70.8)),1,0) -> 0 | I131: =IF((AND($A131>=70.8,$A131<89.1)),1,0) -> 0 | J131: =IF((AND($A131>=89.1,$A131<112)),1,0) -> 0 | K131: =IF((AND($A131>=112,$A131<141)),1,0) -> 0 | L131: =IF((AND($A131>=141,$A131<178)),1,0) -> 0 | M131: =IF((AND($A131>=178,$A131<224)),1,0) -> 1 | N131: =IF((AND($A131>=224,$A131<282)),1,0) -> 0
A132: ='Mode Strength'!A132 -> 203.7302292 | B132: 0 | C132: 0 | D132: 0 | E132: 0 | F132: 0 | G132: 0 | H132: 0 | I132: 0 | J132: 0 | K132: 0 | L132: 0 | M132: 1 | N132: 0
A133: ='Mode Strength'!A133 -> 204.0922381 | B133: 0 | C133: 0 | D133: 0 | E133: 0 | F133: 0 | G133: 0 | H133: 0 | I133: 0 | J133: 0 | K133: 0 | L133: 0 | M133: 1 | N133: 0
A134: ='Mode Strength'!A134 -> 205.8476376 | B134: 0 | C134: 0 | D134: 0 | E134: 0 | F134: 0 | G134: 0 | H134: 0 | I134: 0 | J134: 0 | K134: 0 | L134: 0 | M134: 1 | N134: 0
A135: ='Mode Strength'!A135 -> 206.2722094 | B135: 0 | C135: 0 | D135: 0 | E135: 0 | F135: 0 | G135: 0 | H135: 0 | I135: 0 | J135: 0 | K135: 0 | L135: 0 | M135: 1 | N135: 0
A136: ='Mode Strength'!A136 -> 206.4796619 | B136: 0 | C136: 0 | D136: 0 | E136: 0 | F136: 0 | G136: 0 | H136: 0 | I136: 0 | J136: 0 | K136: 0 | L136: 0 | M136: 1 | N136: 0
A137: ='Mode Strength'!A137 -> 206.6620369 | B137: 0 | C137: 0 | D137: 0 | E137: 0 | F137: 0 | G137: 0 | H137: 0 | I137: 0 | J137: 0 | K137: 0 | L137: 0 | M137: 1 | N137: 0
A138: ='Mode Strength'!A138 -> 207.2256241 | B138: 0 | C138: 0 | D138: 0 | E138: 0 | F138: 0 | G138: 0 | H138: 0 | I138: 0 | J138: 0 | K138: 0 | L138: 0 | M138: 1 | N138: 0
A139: ='Mode Strength'!A139 -> 207.4112526 | B139: 0 | C139: 0 | D139: 0 | E139: 0 | F139: 0 | G139: 0 | H139: 0 | I139: 0 | J139: 0 | K139: 0 | L139: 0 | M139: 1 | N139: 0
A140: ='Mode Strength'!A140 -> 208.2149347 | B140: 0 | C140: 0 | D140: 0 | E140: 0 | F140: 0 | G140: 0 | H140: 0 | I140: 0 | J140: 0 | K140: 0 | L140: 0 | M140: 1 | N140: 0
A141: ='Mode Strength'!A141 -> 208.9547021 | B141: 0 | C141: 0 | D141: 0 | E141: 0 | F141: 0 | G141: 0 | H141: 0 | I141: 0 | J141: 0 | K141: 0 | L141: 0 | M141: 1 | N141: 0
A142: ='Mode Strength'!A142 -> 209.1271682 | B142: 0 | C142: 0 | D142: 0 | E142: 0 | F142: 0 | G142: 0 | H142: 0 | I142: 0 | J142: 0 | K142: 0 | L142: 0 | M142: 1 | N142: 0
A143: ='Mode Strength'!A143 -> 209.883909 | B143: 0 | C143: 0 | D143: 0 | E143: 0 | F143: 0 | G143: 0 | H143: 0 | I143: 0 | J143: 0 | K143: 0 | L143: 0 | M143: 1 | N143: 0
A144: ='Mode Strength'!A144 -> 211.0262417 | B144: 0 | C144: 0 | D144: 0 | E144: 0 | F144: 0 | G144: 0 | H144: 0 | I144: 0 | J144: 0 | K144: 0 | L144: 0 | M144: 1 | N144: 0
A145: ='Mode Strength'!A145 -> 211.5912652 | B145: 0 | C145: 0 | D145: 0 | E145: 0 | F145: 0 | G145: 0 | H145: 0 | I145: 0 | J145: 0 | K145: 0 | L145: 0 | M145: 1 | N145: 0
A146: ='Mode Strength'!A146 -> 213.3360818 | B146: 0 | C146: 0 | D146: 0 | E146: 0 | F146: 0 | G146: 0 | H146: 0 | I146: 0 | J146: 0 | K146: 0 | L146: 0 | M146: 1 | N146: 0
A147: ='Mode Strength'!A147 -> 213.7152663 | B147: 0 | C147: 0 | D147: 0 | E147: 0 | F147: 0 | G147: 0 | H147: 0 | I147: 0 | J147: 0 | K147: 0 | L147: 0 | M147: 1 | N147: 0
A148: ='Mode Strength'!A148 -> 214.0581517 | B148: 0 | C148: 0 | D148: 0 | E148: 0 | F148: 0 | G148: 0 | H148: 0 | I148: 0 | J148: 0 | K148: 0 | L148: 0 | M148: 1 | N148: 0
A149: ='Mode Strength'!A149 -> 214.6041204 | B149: 0 | C149: 0 | D149: 0 | E149: 0 | F149: 0 | G149: 0 | H149: 0 | I149: 0 | J149: 0 | K149: 0 | L149: 0 | M149: 1 | N149: 0
A150: ='Mode Strength'!A150 -> 215.2615272 | B150: 0 | C150: 0 | D150: 0 | E150: 0 | F150: 0 | G150: 0 | H150: 0 | I150: 0 | J150: 0 | K150: 0 | L150: 0 | M150: 1 | N150: 0
A151: ='Mode Strength'!A151 -> 215.4006363 | B151: 0 | C151: 0 | D151: 0 | E151: 0 | F151: 0 | G151: 0 | H151: 0 | I151: 0 | J151: 0 | K151: 0 | L151: 0 | M151: 1 | N151: 0
A152: ='Mode Strength'!A152 -> 215.7011338 | B152: 0 | C152: 0 | D152: 0 | E152: 0 | F152: 0 | G152: 0 | H152: 0 | I152: 0 | J152: 0 | K152: 0 | L152: 0 | M152: 1 | N152: 0
A153: ='Mode Strength'!A153 -> 215.7388794 | B153: 0 | C153: 0 | D153: 0 | E153: 0 | F153: 0 | G153: 0 | H153: 0 | I153: 0 | J153: 0 | K153: 0 | L153: 0 | M153: 1 | N153: 0
A154: ='Mode Strength'!A154 -> 215.8139253 | B154: 0 | C154: 0 | D154: 0 | E154: 0 | F154: 0 | G154: 0 | H154: 0 | I154: 0 | J154: 0 | K154: 0 | L154: 0 | M154: 1 | N154: 0
A155: ='Mode Strength'!A155 -> 216.3536737 | B155: 0 | C155: 0 | D155: 0 | E155: 0 | F155: 0 | G155: 0 | H155: 0 | I155: 0 | J155: 0 | K155: 0 | L155: 0 | M155: 1 | N155: 0
A156: ='Mode Strength'!A156 -> 216.472084 | B156: 0 | C156: 0 | D156: 0 | E156: 0 | F156: 0 | G156: 0 | H156: 0 | I156: 0 | J156: 0 | K156: 0 | L156: 0 | M156: 1 | N156: 0
A157: ='Mode Strength'!A157 -> 216.6326113 | B157: 0 | C157: 0 | D157: 0 | E157: 0 | F157: 0 | G157: 0 | H157: 0 | I157: 0 | J157: 0 | K157: 0 | L157: 0 | M157: 1 | N157: 0
A158: ='Mode Strength'!A158 -> 216.7095583 | B158: 0 | C158: 0 | D158: 0 | E158: 0 | F158: 0 | G158: 0 | H158: 0 | I158: 0 | J158: 0 | K158: 0 | L158: 0 | M158: 1 | N158: 0
A159: ='Mode Strength'!A159 -> 217.0646041 | B159: 0 | C159: 0 | D159: 0 | E159: 0 | F159: 0 | G159: 0 | H159: 0 | I159: 0 | J159: 0 | K159: 0 | L159: 0 | M159: 1 | N159: 0
A160: ='Mode Strength'!A160 -> 217.5861809 | B160: 0 | C160: 0 | D160: 0 | E160: 0 | F160: 0 | G160: 0 | H160: 0 | I160: 0 | J160: 0 | K160: 0 | L160: 0 | M160: 1 | N160: 0
A161: ='Mode Strength'!A161 -> 218.0103676 | B161: 0 | C161: 0 | D161: 0 | E161: 0 | F161: 0 | G161: 0 | H161: 0 | I161: 0 | J161: 0 | K161: 0 | L161: 0 | M161: 1 | N161: 0
A162: ='Mode Strength'!A162 -> 218.9033262 | B162: 0 | C162: 0 | D162: 0 | E162: 0 | F162: 0 | G162: 0 | H162: 0 | I162: 0 | J162: 0 | K162: 0 | L162: 0 | M162: 1 | N162: 0
A163: ='Mode Strength'!A163 -> 219.3857698 | B163: 0 | C163: 0 | D163: 0 | E163: 0 | F163: 0 | G163: 0 | H163: 0 | I163: 0 | J163: 0 | K163: 0 | L163: 0 | M163: 1 | N163: 0
A164: ='Mode Strength'!A164 -> 220.5862215 | B164: 0 | C164: 0 | D164: 0 | E164: 0 | F164: 0 | G164: 0 | H164: 0 | I164: 0 | J164: 0 | K164: 0 | L164: 0 | M164: 1 | N164: 0
A165: ='Mode Strength'!A165 -> 221.3612132 | B165: 0 | C165: 0 | D165: 0 | E165: 0 | F165: 0 | G165: 0 | H165: 0 | I165: 0 | J165: 0 | K165: 0 | L165: 0 | M165: 1 | N165: 0
A166: ='Mode Strength'!A166 -> 221.4152178 | B166: 0 | C166: 0 | D166: 0 | E166: 0 | F166: 0 | G166: 0 | H166: 0 | I166: 0 | J166: 0 | K166: 0 | L166: 0 | M166: 1 | N166: 0
A167: ='Mode Strength'!A167 -> 221.6084951 | B167: 0 | C167: 0 | D167: 0 | E167: 0 | F167: 0 | G167: 0 | H167: 0 | I167: 0 | J167: 0 | K167: 0 | L167: 0 | M167: 1 | N167: 0
A168: ='Mode Strength'!A168 -> 221.6536301 | B168: 0 | C168: 0 | D168: 0 | E168: 0 | F168: 0 | G168: 0 | H168: 0 | I168: 0 | J168: 0 | K168: 0 | L168: 0 | M168: 1 | N168: 0
A169: ='Mode Strength'!A169 -> 221.981682 | B169: 0 | C169: 0 | D169: 0 | E169: 0 | F169: 0 | G169: 0 | H169: 0 | I169: 0 | J169: 0 | K169: 0 | L169: 0 | M169: 1 | N169: 0
A170: ='Mode Strength'!A170 -> 222.1172454 | B170: 0 | C170: 0 | D170: 0 | E170: 0 | F170: 0 | G170: 0 | H170: 0 | I170: 0 | J170: 0 | K170: 0 | L170: 0 | M170: 1 | N170: 0
A171: ='Mode Strength'!A171 -> 222.3036968 | B171: 0 | C171: 0 | D171: 0 | E171: 0 | F171: 0 | G171: 0 | H171: 0 | I171: 0 | J171: 0 | K171: 0 | L171: 0 | M171: 1 | N171: 0
A172: ='Mode Strength'!A172 -> 222.4039473 | B172: 0 | C172: 0 | D172: 0 | E172: 0 | F172: 0 | G172: 0 | H172: 0 | I172: 0 | J172: 0 | K172: 0 | L172: 0 | M172: 1 | N172: 0
A173: ='Mode Strength'!A173 -> 222.9065839 | B173: 0 | C173: 0 | D173: 0 | E173: 0 | F173: 0 | G173: 0 | H173: 0 | I173: 0 | J173: 0 | K173: 0 | L173: 0 | M173: 1 | N173: 0
A174: ='Mode Strength'!A174 -> 222.9807054 | B174: 0 | C174: 0 | D174: 0 | E174: 0 | F174: 0 | G174: 0 | H174: 0 | I174: 0 | J174: 0 | K174: 0 | L174: 0 | M174: 1 | N174: 0
A175: ='Mode Strength'!A175 -> 223.4884756 | B175: 0 | C175: 0 | D175: 0 | E175: 0 | F175: 0 | G175: 0 | H175: 0 | I175: 0 | J175: 0 | K175: 0 | L175: 0 | M175: 1 | N175: 0
A176: ='Mode Strength'!A176 -> 224.0773233 | B176: 0 | C176: 0 | D176: 0 | E176: 0 | F176: 0 | G176: 0 | H176: 0 | I176: 0 | J176: 0 | K176: 0 | L176: 0 | M176: 0 | N176: 1
A177: ='Mode Strength'!A177 -> 224.7837396 | B177: 0 | C177: 0 | D177: 0 | E177: 0 | F177: 0 | G177: 0 | H177: 0 | I177: 0 | J177: 0 | K177: 0 | L177: 0 | M177: 0 | N177: 1
A178: ='Mode Strength'!A178 -> 224.9997519 | B178: 0 | C178: 0 | D178: 0 | E178: 0 | F178: 0 | G178: 0 | H178: 0 | I178: 0 | J178: 0 | K178: 0 | L178: 0 | M178: 0 | N178: 1
A179: ='Mode Strength'!A179 -> 225.4539543 | B179: 0 | C179: 0 | D179: 0 | E179: 0 | F179: 0 | G179: 0 | H179: 0 | I179: 0 | J179: 0 | K179: 0 | L179: 0 | M179: 0 | N179: 1
A180: ='Mode Strength'!A180 -> 226.2967056 | B180: 0 | C180: 0 | D180: 0 | E180: 0 | F180: 0 | G180: 0 | H180: 0 | I180: 0 | J180: 0 | K180: 0 | L180: 0 | M180: 0 | N180: 1
A181: ='Mode Strength'!A181 -> 227.7701028 | B181: 0 | C181: 0 | D181: 0 | E181: 0 | F181: 0 | G181: 0 | H181: 0 | I181: 0 | J181: 0 | K181: 0 | L181: 0 | M181: 0 | N181: 1
A182: ='Mode Strength'!A182 -> 229.8129661 | B182: 0 | C182: 0 | D182: 0 | E182: 0 | F182: 0 | G182: 0 | H182: 0 | I182: 0 | J182: 0 | K182: 0 | L182: 0 | M182: 0 | N182: 1
A183: ='Mode Strength'!A183 -> 229.9432722 | B183: 0 | C183: 0 | D183: 0 | E183: 0 | F183: 0 | G183: 0 | H183: 0 | I183: 0 | J183: 0 | K183: 0 | L183: 0 | M183: 0 | N183: 1
A184: ='Mode Strength'!A184 -> 230.2601538 | B184: 0 | C184: 0 | D184: 0 | E184: 0 | F184: 0 | G184: 0 | H184: 0 | I184: 0 | J184: 0 | K184: 0 | L184: 0 | M184: 0 | N184: 1
A185: ='Mode Strength'!A185 -> 230.5805148 | B185: 0 | C185: 0 | D185: 0 | E185: 0 | F185: 0 | G185: 0 | H185: 0 | I185: 0 | J185: 0 | K185: 0 | L185: 0 | M185: 0 | N185: 1
A186: ='Mode Strength'!A186 -> 230.7661158 | B186: 0 | C186: 0 | D186: 0 | E186: 0 | F186: 0 | G186: 0 | H186: 0 | I186: 0 | J186: 0 | K186: 0 | L186: 0 | M186: 0 | N186: 1
A187: ='Mode Strength'!A187 -> 230.8362763 | B187: 0 | C187: 0 | D187: 0 | E187: 0 | F187: 0 | G187: 0 | H187: 0 | I187: 0 | J187: 0 | K187: 0 | L187: 0 | M187: 0 | N187: 1
A188: ='Mode Strength'!A188 -> 231.9774807 | B188: 0 | C188: 0 | D188: 0 | E188: 0 | F188: 0 | G188: 0 | H188: 0 | I188: 0 | J188: 0 | K188: 0 | L188: 0 | M188: 0 | N188: 1
A189: ='Mode Strength'!A189 -> 232.3200561 | B189: 0 | C189: 0 | D189: 0 | E189: 0 | F189: 0 | G189: 0 | H189: 0 | I189: 0 | J189: 0 | K189: 0 | L189: 0 | M189: 0 | N189: 1
A190: ='Mode Strength'!A190 -> 232.6963319 | B190: 0 | C190: 0 | D190: 0 | E190: 0 | F190: 0 | G190: 0 | H190: 0 | I190: 0 | J190: 0 | K190: 0 | L190: 0 | M190: 0 | N190: 1
A191: ='Mode Strength'!A191 -> 233.358504 | B191: 0 | C191: 0 | D191: 0 | E191: 0 | F191: 0 | G191: 0 | H191: 0 | I191: 0 | J191: 0 | K191: 0 | L191: 0 | M191: 0 | N191: 1
A192: ='Mode Strength'!A192 -> 233.4338047 | B192: 0 | C192: 0 | D192: 0 | E192: 0 | F192: 0 | G192: 0 | H192: 0 | I192: 0 | J192: 0 | K192: 0 | L192: 0 | M192: 0 | N192: 1
A193: ='Mode Strength'!A193 -> 235.5361141 | B193: 0 | C193: 0 | D193: 0 | E193: 0 | F193: 0 | G193: 0 | H193: 0 | I193: 0 | J193: 0 | K193: 0 | L193: 0 | M193: 0 | N193: 1
A194: ='Mode Strength'!A194 -> 235.7222675 | B194: 0 | C194: 0 | D194: 0 | E194: 0 | F194: 0 | G194: 0 | H194: 0 | I194: 0 | J194: 0 | K194: 0 | L194: 0 | M194: 0 | N194: 1
A195: ='Mode Strength'!A195 -> 235.9038232 | B195: =IF((AND($A195>=14.1,$A195<17.8)),1,0) -> 0 | C195: =IF((AND($A195>=17.8,$A195<22.4)),1,0) -> 0 | D195: =IF((AND($A195>=22.4,$A195<28.2)),1,0) -> 0 | E195: =IF((AND($A195>=28.2,$A195<35.5)),1,0) -> 0 | F195: =IF((AND($A195>=35.5,$A195<44.7)),1,0) -> 0 | G195: =IF((AND($A195>=44.7,$A195<56.2)),1,0) -> 0 | H195: =IF((AND($A195>=56.2,$A195<70.8)),1,0) -> 0 | I195: =IF((AND($A195>=70.8,$A195<89.1)),1,0) -> 0 | J195: =IF((AND($A195>=89.1,$A195<112)),1,0) -> 0 | K195: =IF((AND($A195>=112,$A195<141)),1,0) -> 0 | L195: =IF((AND($A195>=141,$A195<178)),1,0) -> 0 | M195: =IF((AND($A195>=178,$A195<224)),1,0) -> 0 | N195: =IF((AND($A195>=224,$A195<282)),1,0) -> 1
A196: ='Mode Strength'!A196 -> 236.3934992 | B196: 0 | C196: 0 | D196: 0 | E196: 0 | F196: 0 | G196: 0 | H196: 0 | I196: 0 | J196: 0 | K196: 0 | L196: 0 | M196: 0 | N196: 1
A197: ='Mode Strength'!A197 -> 236.9207319 | B197: 0 | C197: 0 | D197: 0 | E197: 0 | F197: 0 | G197: 0 | H197: 0 | I197: 0 | J197: 0 | K197: 0 | L197: 0 | M197: 0 | N197: 1
A198: ='Mode Strength'!A198 -> 237.4241396 | B198: 0 | C198: 0 | D198: 0 | E198: 0 | F198: 0 | G198: 0 | H198: 0 | I198: 0 | J198: 0 | K198: 0 | L198: 0 | M198: 0 | N198: 1
A199: ='Mode Strength'!A199 -> 237.6306776 | B199: 0 | C199: 0 | D199: 0 | E199: 0 | F199: 0 | G199: 0 | H199: 0 | I199: 0 | J199: 0 | K199: 0 | L199: 0 | M199: 0 | N199: 1
A200: ='Mode Strength'!A200 -> 238.350256 | B200: 0 | C200: 0 | D200: 0 | E200: 0 | F200: 0 | G200: 0 | H200: 0 | I200: 0 | J200: 0 | K200: 0 | L200: 0 | M200: 0 | N200: 1
... 800 more rows

Sheet Ideal Rooms - IMPERIAL
A1: Ideal Room Dimensions for Low Frequency Mode Response
A2: In the yellow boxes - Enter the room height in Inches & the spreadsheet will automatically calculate ideal widths and depths | Y2: 2
Y3: 3
B4: Dimensions | C4: Height | D4: Width | E4: Length | H4: PHI - Golden Ratio | Y4: 5
B5: A | C5: 1 | D5: 1.14 | E5: 1.39 | F5: L. W. Sepmeyer, 1965 | H5: =((SQRT(5)+1)/2) -> 1.618033989 | Y5: 7
B6: B | C6: 1 | D6: 1.28 | E6: 1.54 | F6: L. W. Sepmeyer, 1965 | Y6: 11
B7: C | C7: 1 | D7: 1.6 | E7: 2.33 | F7: L. W. Sepmeyer, 1965 | Y7: 13
B8: D | C8: 1 | D8: 1.4 | E8: 1.9 | F8: M. M. Louden, 1971 | Y8: 17
B9: E | C9: 1 | D9: 1.3 | E9: 1.9 | F9: M. M. Louden, 1971 | Y9: 19
B10: F | C10: 1 | D10: 1.5 | E10: 2.1 | F10: M. M. Louden, 1971 | Y10: 23
B11: G | C11: 1 | D11: 1.5 | E11: 2.5 | F11: Richard H. Bolt, 1946 | Y11: 29
B12: H | C12: 1 | D12: 1.26 | E12: 1.59 | F12: Richard H. Bolt, 1946 | Y12: 31
B13: I | C13: 1 | D13: 1.96 | E13: 2.59 | F13: IEC 60268-13, 1998 | Y13: 37
B14: J | C14: 1 | D14: 1.62 | E14: 2.62 | F14: The Golden Ratio, 1968 | Y14: 41
B15: K | C15: 1 | D15: 1.49 | E15: 2.31 | F15: Dolby Lab Recomendations | M15: Sonic Behavior Characteristics | Y15: 43
B16: L | C16: 1 | D16: 1.07 | E16: 1.87 | F16: Worst ratio (RPG Inc.) | L16: Wave Region | M16: Transitional region from F² to F³ | O16: Ray Region | Y16: 47
Y17: 53
B18: IT IS HIGHLY RECOMMENDED TO ALWAYS USE PRIME NUMBERS | Y18: 59
Y19: 61
C20: If you found this spreadsheet helpful, please send a donation via PayPal to erika@jhbrandt.net | Y20: 67
K21: Imperial- Ft/In. | L21: 1500 | N21: Useable YES | O21: Useable NO | Y21: 71
N22: 1 | O22: 0 | T22: Floor area calculations based on L & W and then H & L | Y22: 73
Y23: 79
A24: **Note: you can change the numbers in the yellow blocks and all the other ratios will change too! | Q24: USING PRIMES | T24: Prime | U24: Prime exchange height for width | Y24: 83
A25: HEIGHT ft | B25: HEIGHT " | C25: PRIME height | D25: WIDTH " | E25: PRIME width | F25: DEPTH " | G25: PRIME depth | H25: VOLUME | I25: PRIME volume | J25: TABLE | K25: USEABLE 1=Yes 0=NO | L25: F¹ | M25: F² | N25: F³ | O25: minimum RT60 | P25: F¹ | Q25: F² | R25: F³ | S25: minimum RT60 | T25: Square Feet | U25: Square Feet | Y25: 89
A26: =B26/12 -> 8 | B26: 96 | C26: =INDEX($Y$2:$Y$276,MATCH(MIN(ABS($Y$2:$Y$276-B26)),ABS($Y$2:$Y$276-B26),0)) -> 97 | D26: =B26*$D$5 -> 109.44 | E26: =INDEX($Y$2:$Y$276,MATCH(MIN(ABS($Y$2:$Y$276-D26)),ABS($Y$2:$Y$276-D26),0)) -> 109 | F26: =B26*$E$5 -> 133.44 | G26: =INDEX($Y$2:$Y$276,MATCH(MIN(ABS($Y$2:$Y$276-F26)),ABS($Y$2:$Y$276-F26),0)) -> 131 | H26: =(B26/12)*(D26/12)*(F26/12) -> 811.3152 | I26: =(C26/12)*(E26/12)*(G26/12) -> 801.541088 | J26: A | K26: =IF(H26>$L$21,$N$22,$O$22) -> 0 | L26: =565/(F26/12) -> 50.80935252 | M26: =(SQRT(O26/H26)*11250) -> 154.5492152 | N26: =4*M26 -> 618.1968606 | O26: =0.25*(((0.028316846592*H26)/100)^(1/3)) -> 0.153115154 | P26: =565/(G26/12) -> 51.75572519 | Q26: =(SQRT(S26/I26)*11250) -> 155.1748776 | R26: =4*Q26 -> 620.6995105 | S26: =0.25*(((0.028316846592*I26)/100)^(1/3)) -> 0.1524977963 | T26: =(E26/12)*(G26/12) -> 99.15972222 | U26: =(C26/12)*(G26/12) -> 88.24305556 | Y26: 97
A27: 8.5 | B27: 102 | C27: =INDEX($Y$2:$Y$276,MATCH(MIN(ABS($Y$2:$Y$276-B27)),ABS($Y$2:$Y$276-B27),0)) -> 101 | D27: 116.28 | E27: =INDEX($Y$2:$Y$276,MATCH(MIN(ABS($Y$2:$Y$276-D27)),ABS($Y$2:$Y$276-D27),0)) -> 113 | F27: 141.78 | G27: =INDEX($Y$2:$Y$276,MATCH(MIN(ABS($Y$2:$Y$276-F27)),ABS($Y$2:$Y$276-F27),0)) -> 139 | H27: 973.142475 | I27: =(C27/12)*(E27/12)*(G27/12) -> 918.0596065 | J27: A | K27: 0 | L27: 47.82056708 | M27: 145.4580848 | N27: =4*M27 -> 581.8323394 | O27: 0.1626848511 | P27: =565/(G27/12) -> 48.77697842 | Q27: =(SQRT(S27/I27)*11250) -> 148.3108925 | R27: =4*Q27 -> 593.2435699 | S27: =0.25*(((0.028316846592*I27)/100)^(1/3)) -> 0.1595555558 | T27: =(E27/12)*(G27/12) -> 109.0763889 | U27: =(C27/12)*(G27/12) -> 97.49305556 | Y27: 101
A28: 9 | B28: 108 | C28: =INDEX($Y$2:$Y$276,MATCH(MIN(ABS($Y$2:$Y$276-B28)),ABS($Y$2:$Y$276-B28),0)) -> 107 | D28: 123.12 | E28: =INDEX($Y$2:$Y$276,MATCH(MIN(ABS($Y$2:$Y$276-D28)),ABS($Y$2:$Y$276-D28),0)) -> 127 | F28: 150.12 | G28: =INDEX($Y$2:$Y$276,MATCH(MIN(ABS($Y$2:$Y$276-F28)),ABS($Y$2:$Y$276-F28),0)) -> 151 | H28: 1155.1734 | I28: 1187.464699 | J28: A | K28: 0 | L28: 45.1638689 | M28: 137.3770801 | N28: 549.5083205 | O28: 0.1722545483 | P28: 44.90066225 | Q28: 136.1203652 | R28: 544.4814607 | S28: 0.1738448677 | T28: 133.1736111 | U28: 112.2013889 | Y28: 103
A29: 9.5 | B29: 114 | C29: =INDEX($Y$2:$Y$276,MATCH(MIN(ABS($Y$2:$Y$276-B29)),ABS($Y$2:$Y$276-B29),0)) -> 113 | D29: 129.96 | E29: =INDEX($Y$2:$Y$276,MATCH(MIN(ABS($Y$2:$Y$276-D29)),ABS($Y$2:$Y$276-D29),0)) -> 131 | F29: 158.46 | G29: =INDEX($Y$2:$Y$276,MATCH(MIN(ABS($Y$2:$Y$276-F29)),ABS($Y$2:$Y$276-F29),0)) -> 157 | H29: 1358.596425 | I29: 1344.948495 | J29: A | K29: 0 | L29: 42.78682317 | M29: 130.1467075 | N29: 520.58683 | O29: 0.1818242454 | P29: 43.18471338 | Q29: 130.5854501 | R29: 522.3418004 | S29: 0.18121335 | T29: 142.8263889 | U29: 123.2013889 | Y29: 107
A30: 10 | B30: 120 | C30: =INDEX($Y$2:$Y$276,MATCH(MIN(ABS($Y$2:$Y$276-B30)),ABS($Y$2:$Y$276-B30),0)) -> 113 | D30: 136.8 | E30: =INDEX($Y$2:$Y$276,MATCH(MIN(ABS($Y$2:$Y$276-D30)),ABS($Y$2:$Y$276-D30),0)) -> 137 | F30: 166.8 | G30: =INDEX($Y$2:$Y$276,MATCH(MIN(ABS($Y$2:$Y$276-F30)),ABS($Y$2:$Y$276-F30),0)) -> 167 | H30: 1584.6 | I30: 1496.13831 | J30: A | K30: 1 | L30: 40.64748201 | M30: 123.6393721 | N30: 494.5574885 | O30: 0.1913939425 | P30: 40.5988024 | Q30: 126.0296587 | R30: 504.1186349 | S30: 0.1877639527 | T30: 158.8819444 | U30: 131.0486111 | Y30: 109
A31: 10.5 | B31: 126 | C31: =INDEX($Y$2:$Y$276,MATCH(MIN(ABS($Y$2:$Y$276-B31)),ABS($Y$2:$Y$276-B31),0)) -> 127 | D31: 143.64 | E31: =INDEX($Y$2:$Y$276,MATCH(MIN(ABS($Y$2:$Y$276-D31)),ABS($Y$2:$Y$276-D31),0)) -> 139 | F31: 175.14 | G31: =INDEX($Y$2:$Y$276,MATCH(MIN(ABS($Y$2:$Y$276-F31)),ABS($Y$2:$Y$276-F31),0)) -> 173 | H31: 1834.372575 | I31: 1767.343171 | J31: A | K31: 1 | L31: 38.71188763 | M31: 117.751783 | N31: 471.0071319 | O31: 0.2009636396 | P31: 39.19075145 | Q31: 119.2219935 | R31: 476.887974 | S31: 0.1984854152 | T31: 166.9930556 | U31: 152.5763889 | Y31: 113
A32: 11 | B32: 132 | C32: =INDEX($Y$2:$Y$276,MATCH(MIN(ABS($Y$2:$Y$276-B32)),ABS($Y$2:$Y$276-B32),0)) -> 131 | D32: 150.48 | E32: =INDEX($Y$2:$Y$276,MATCH(MIN(ABS($Y$2:$Y$276-D32)),ABS($Y$2:$Y$276-D32),0)) -> 151 | F32: 183.48 | G32: =INDEX($Y$2:$Y$276,MATCH(MIN(ABS($Y$2:$Y$276-F32)),ABS($Y$2:$Y$276-F32),0)) -> 181 | H32: 2109.1026 | I32: 2071.968171 | J32: A | K32: 1 | L32: 36.95225638 | M32: 112.3994292 | N32: 449.5977168 | O32: 0.2105333368 | P32: 37.45856354 | Q32: 113.0669425 | R32: 452.2677699 | S32: 0.2092904112 | T32: 189.7986111 | U32: 164.6597222 | Y32: 127
A33: 11.5 | B33: 138 | C33: =INDEX($Y$2:$Y$276,MATCH(MIN(ABS($Y$2:$Y$276-B33)),ABS($Y$2:$Y$276-B33),0)) -> 137 | D33: 157.32 | E33: =INDEX($Y$2:$Y$276,MATCH(MIN(ABS($Y$2:$Y$276-D33)),ABS($Y$2:$Y$276-D33),0)) -> 157 | F33: 191.82 | G33: =INDEX($Y$2:$Y$276,MATCH(MIN(ABS($Y$2:$Y$276-F33)),ABS($Y$2:$Y$276-F33),0)) -> 191 | H33: 2409.978525 | I33: 2377.441551 | J33: A | K33: 1 | L33: 35.34563653 | M33: 107.5124975 | N33: 430.04999 | O33: 0.2201030339 | P33: 35.4973822 | Q33: 108.0007385 | R33: 432.0029541 | S33: 0.2191080099 | T33: 208.2430556 | U33: 181.7152778 | Y33: 131
A34: 12 | B34: 144 | C34: =INDEX($Y$2:$Y$276,MATCH(MIN(ABS($Y$2:$Y$276-B34)),ABS($Y$2:$Y$276-B34),0)) -> 139 | D34: 164.16 | E34: =INDEX($Y$2:$Y$276,MATCH(MIN(ABS($Y$2:$Y$276-D34)),ABS($Y$2:$Y$276-D34),0)) -> 163 | F34: 200.16 | G34: =INDEX($Y$2:$Y$276,MATCH(MIN(ABS($Y$2:$Y$276-F34)),ABS($Y$2:$Y$276-F34),0)) -> 199 | H34: 2738.1888 | I34: 2609.226273 | J34: A | K34: 1 | L34: 33.87290168 | M34: 103.0328101 | N34: 412.1312404 | O34: 0.229672731 | P34: 34.07035176 | Q34: 104.7030727 | R34: 418.8122909 | S34: 0.2260089056 | T34: 225.2569444 | U34: 192.0902778 | Y34: 137
A35: 12.5 | B35: 150 | C35: =INDEX($Y$2:$Y$276,MATCH(MIN(ABS($Y$2:$Y$276-B35)),ABS($Y$2:$Y$276-B35),0)) -> 149 | D35: 171 | E35: =INDEX($Y$2:$Y$276,MATCH(MIN(ABS($Y$2:$Y$276-D35)),ABS($Y$2:$Y$276-D35),0)) -> 173 | F35: 208.5 | G35: =INDEX($Y$2:$Y$276,MATCH(MIN(ABS($Y$2:$Y$276-F35)),ABS($Y$2:$Y$276-F35),0)) -> 211 | H35: 3094.921875 | I35: 3147.538773 | J35: A | K35: 1 | L35: 32.51798561 | M35: 98.9114977 | N35: 395.6459908 | O35: 0.2392424281 | P35: 32.13270142 | Q35: 98.3572351 | R35: 393.4289404 | S35: 0.2405906068 | T35: 253.4930556 | U35: 218.3263889 | Y35: 139
A36: 13 | B36: 156 | C36: =INDEX($Y$2:$Y$276,MATCH(MIN(ABS($Y$2:$Y$276-B36)),ABS($Y$2:$Y$276-B36),0)) -> 157 | D36: 177.84 | E36: =INDEX($Y$2:$Y$276,MATCH(MIN(ABS($Y$2:$Y$276-D36)),ABS($Y$2:$Y$276-D36),0)) -> 179 | F36: 216.84 | G36: =INDEX($Y$2:$Y$276,MATCH(MIN(ABS($Y$2:$Y$276-F36)),ABS($Y$2:$Y$276-F36),0)) -> 211 | H36: 3481.3662 | I36: 3431.558449 | J36: A | K36: 1 | L36: 31.26729386 | M36: 95.10720932 | N36: 380.4288373 | O36: 0.2488121253 | P36: 32.13270142 | Q36: 95.565149 | R36: 382.260596 | S36: 0.2476198397 | T36: 262.2847222 | U36: 230.0486111 | Y36: 149
A37: 13.5 | B37: 162 | C37: =INDEX($Y$2:$Y$276,MATCH(MIN(ABS($Y$2:$Y$276-B37)),ABS($Y$2:$Y$276-B37),0)) -> 163 | D37: 184.68 | E37: =INDEX($Y$2:$Y$276,MATCH(MIN(ABS($Y$2:$Y$276-D37)),ABS($Y$2:$Y$276-D37),0)) -> 181 | F37: 225.18 | G37: =INDEX($Y$2:$Y$276,MATCH(MIN(ABS($Y$2:$Y$276-F37)),ABS($Y$2:$Y$276-F37),0)) -> 227 | H37: 3898.710225 | I37: 3875.683449 | J37: A | K37: 1 | L37: 30.10924594 | M37: 91.58472009 | N37: 366.3388804 | O37: 0.2583818224 | P37: 29.86784141 | Q37: 91.76574089 | R37: 367.0629636 | S37: 0.257872128 | T37: 285.3263889 | U37: 256.9513889 | Y37: 151
A38: 14 | B38: 168 | C38: =INDEX($Y$2:$Y$276,MATCH(MIN(ABS($Y$2:$Y$276-B38)),ABS($Y$2:$Y$276-B38),0)) -> 167 | D38: 191.52 | E38: =INDEX($Y$2:$Y$276,MATCH(MIN(ABS($Y$2:$Y$276-D38)),ABS($Y$2:$Y$276-D38),0)) -> 191 | F38: 233.52 | G38: =INDEX($Y$2:$Y$276,MATCH(MIN(ABS($Y$2:$Y$276-F38)),ABS($Y$2:$Y$276-F38),0)) -> 233 | H38: 4348.1424 | I38: 4300.926505 | J38: A | K38: 1 | L38: 29.03391572 | M38: 88.31383723 | N38: 353.2553489 | O38: 0.2679515195 | P38: 29.09871245 | Q38: 88.63583378 | R38: 354.5433351 | S38: 0.2669781044 | T38: 309.0486111 | U38: 270.2152778 | Y38: 157
A39: 14.5 | B39: 174 | C39: =INDEX($Y$2:$Y$276,MATCH(MIN(ABS($Y$2:$Y$276-B39)),ABS($Y$2:$Y$276-B39),0)) -> 173 | D39: 198.36 | E39: =INDEX($Y$2:$Y$276,MATCH(MIN(ABS($Y$2:$Y$276-D39)),ABS($Y$2:$Y$276-D39),0)) -> 199 | F39: 241.86 | G39: =INDEX($Y$2:$Y$276,MATCH(MIN(ABS($Y$2:$Y$276-F39)),ABS($Y$2:$Y$276-F39),0)) -> 241 | H39: 4830.851175 | I39: 4801.45081 | J39: A | K39: 1 | L39: 28.03274622 | M39: 85.2685325 | N39: 341.07413 | O39: 0.2775212166 | P39: 28.13278008 | Q39: 85.44221795 | R39: 341.7688718 | S39: 0.2769570763 | T39: 333.0486111 | U39: 289.5347222 | Y39: 163
A40: HEIGHT ft | B40: HEIGHT " | C40: PRIME height | D40: WIDTH " | E40: PRIME width | F40: DEPTH " | G40: PRIME depth | H40: VOLUME | I40: PRIME volume | J40: TABLE | K40: USEABLE 1=Yes 0=NO | L40: F¹ | M40: F² | N40: F³ | O40: minimum RT60 | P40: F¹ | Q40: F² | R40: F³ | S40: minimum RT60 | T40: Square Feet | U40: Square Feet | Y40: 167
A41: =B41/12 -> 8 | B41: =B26 -> 96 | C41: =INDEX($Y$2:$Y$276,MATCH(MIN(ABS($Y$2:$Y$276-B41)),ABS($Y$2:$Y$276-B41),0)) -> 97 | D41: =B41*$D$6 -> 122.88 | E41: =INDEX($Y$2:$Y$276,MATCH(MIN(ABS($Y$2:$Y$276-D41)),ABS($Y$2:$Y$276-D41),0)) -> 127 | F41: =B41*$E$6 -> 147.84 | G41: =INDEX($Y$2:$Y$276,MATCH(MIN(ABS($Y$2:$Y$276-F41)),ABS($Y$2:$Y$276-F41),0)) -> 149 | H41: =(B41/12)*(D41/12)*(F41/12) -> 1009.2544 | I41: =(C41/12)*(E41/12)*(G41/12) -> 1062.228588 | J41: B | K41: =IF(H41>$L$21,$N$22,$O$22) -> 0 | L41: =565/(F41/12) -> 45.86038961 | M41: =(SQRT(O41/H41)*11250) -> 143.7021032 | N41: 574.8084126 | O41: =0.25*(((0.028316846592*H41)/100)^(1/3)) -> 0.1646727944 | P41: =565/(G41/12) -> 45.5033557 | Q41: =(SQRT(S41/I41)*11250) -> 141.2724075 | R41: =4*Q41 -> 565.08963 | S41: =0.25*(((0.028316846592*I41)/100)^(1/3)) -> 0.1675049452 | T41: 131.4097222 | U41: 100.3680556 | Y41: 173
A42: 8.5 | B42: 102 | C42: =INDEX($Y$2:$Y$276,MATCH(MIN(ABS($Y$2:$Y$276-B42)),ABS($Y$2:$Y$276-B42),0)) -> 101 | D42: 130.56 | E42: =INDEX($Y$2:$Y$276,MATCH(MIN(ABS($Y$2:$Y$276-D42)),ABS($Y$2:$Y$276-D42),0)) -> 131 | F42: 157.08 | G42: =INDEX($Y$2:$Y$276,MATCH(MIN(ABS($Y$2:$Y$276-F42)),ABS($Y$2:$Y$276-F42),0)) -> 157 | H42: 1210.5632 | I42: =(C42/12)*(E42/12)*(G42/12) -> 1202.122106 | J42: B | K42: 0 | L42: 43.16271963 | M42: 135.2490383 | N42: 540.996153 | O42: 0.174964844 | P42: =565/(G42/12) -> 43.18471338 | Q42: =(SQRT(S42/I42)*11250) -> 135.5648653 | R42: =4*Q42 -> 542.2594612 | S42: =0.25*(((0.028316846592*I42)/100)^(1/3)) -> 0.1745572264 | T42: 142.8263889 | U42: 110.1180556 | Y42: 179
A43: 9 | B43: 108 | C43: =INDEX($Y$2:$Y$276,MATCH(MIN(ABS($Y$2:$Y$276-B43)),ABS($Y$2:$Y$276-B43),0)) -> 107 | D43: 138.24 | E43: =INDEX($Y$2:$Y$276,MATCH(MIN(ABS($Y$2:$Y$276-D43)),ABS($Y$2:$Y$276-D43),0)) -> 139 | F43: 166.32 | G43: =INDEX($Y$2:$Y$276,MATCH(MIN(ABS($Y$2:$Y$276-F43)),ABS($Y$2:$Y$276-F43),0)) -> 167 | H43: 1437.0048 | I43: 1437.379051 | J43: B | K43: 0 | L43: 40.76479076 | M43: 127.7352028 | N43: 510.9408112 | O43: 0.1852568936 | P43: 40.5988024 | Q43: 127.7241157 | R43: 510.8964627 | S43: 0.1852729749 | T43: 161.2013889 | U43: 124.0902778 | Y43: 181
A44: 9.5 | B44: 114 | C44: =INDEX($Y$2:$Y$276,MATCH(MIN(ABS($Y$2:$Y$276-B44)),ABS($Y$2:$Y$276-B44),0)) -> 113 | D44: 145.92 | E44: =INDEX($Y$2:$Y$276,MATCH(MIN(ABS($Y$2:$Y$276-D44)),ABS($Y$2:$Y$276-D44),0)) -> 149 | F44: 175.56 | G44: =INDEX($Y$2:$Y$276,MATCH(MIN(ABS($Y$2:$Y$276-F44)),ABS($Y$2:$Y$276-F44),0)) -> 173 | H44: 1690.0576 | I44: 1685.648727 | J44: B | K44: 1 | L44: 38.61927546 | M44: 121.0122974 | N44: 484.0491896 | O44: 0.1955489433 | P44: 39.19075145 | Q44: 121.1177095 | R44: 484.470838 | S44: 0.1953787516 | T44: 179.0069444 | U44: 135.7569444 | Y44: 191
A45: 10 | B45: 120 | C45: =INDEX($Y$2:$Y$276,MATCH(MIN(ABS($Y$2:$Y$276-B45)),ABS($Y$2:$Y$276-B45),0)) -> 113 | D45: 153.6 | E45: =INDEX($Y$2:$Y$276,MATCH(MIN(ABS($Y$2:$Y$276-D45)),ABS($Y$2:$Y$276-D45),0)) -> 151 | F45: 184.8 | G45: =INDEX($Y$2:$Y$276,MATCH(MIN(ABS($Y$2:$Y$276-F45)),ABS($Y$2:$Y$276-F45),0)) -> 181 | H45: 1971.2 | I45: 1787.270255 | J45: B | K45: 1 | L45: 36.68831169 | M45: 114.9616825 | N45: 459.8467301 | O45: 0.2058409929 | P45: 37.45856354 | Q45: 118.7772499 | R45: 475.1089996 | S45: 0.1992286141 | T45: 189.7986111 | U45: 142.0347222 | Y45: 193
A46: 10.5 | B46: 126 | C46: =INDEX($Y$2:$Y$276,MATCH(MIN(ABS($Y$2:$Y$276-B46)),ABS($Y$2:$Y$276-B46),0)) -> 127 | D46: 161.28 | E46: =INDEX($Y$2:$Y$276,MATCH(MIN(ABS($Y$2:$Y$276-D46)),ABS($Y$2:$Y$276-D46),0)) -> 163 | F46: 194.04 | G46: =INDEX($Y$2:$Y$276,MATCH(MIN(ABS($Y$2:$Y$276-F46)),ABS($Y$2:$Y$276-F46),0)) -> 193 | H46: 2281.9104 | I46: 2312.090856 | J46: B | K46: 1 | L46: 34.94124923 | M46: 109.4873167 | N46: 437.9492667 | O46: 0.2161330426 | P46: 35.12953368 | Q46: 109.0088378 | R46: 436.0353511 | S46: 0.2170817281 | T46: 218.4652778 | U46: 170.2152778 | Y46: 197
A47: 11 | B47: 132 | C47: =INDEX($Y$2:$Y$276,MATCH(MIN(ABS($Y$2:$Y$276-B47)),ABS($Y$2:$Y$276-B47),0)) -> 131 | D47: 168.96 | E47: =INDEX($Y$2:$Y$276,MATCH(MIN(ABS($Y$2:$Y$276-D47)),ABS($Y$2:$Y$276-D47),0)) -> 167 | F47: 203.28 | G47: =INDEX($Y$2:$Y$276,MATCH(MIN(ABS($Y$2:$Y$276-F47)),ABS($Y$2:$Y$276-F47),0)) -> 199 | H47: 2623.6672 | I47: 2519.399884 | J47: B | K47: 1 | L47: 33.35301063 | M47: 104.5106205 | N47: 418.0424819 | O47: 0.2264250922 | P47: 34.07035176 | Q47: 105.9329272 | R47: 423.7317088 | S47: 0.2233849994 | T47: 230.7847222 | U47: 181.0347222 | Y47: 199
A48: 11.5 | B48: 138 | C48: =INDEX($Y$2:$Y$276,MATCH(MIN(ABS($Y$2:$Y$276-B48)),ABS($Y$2:$Y$276-B48),0)) -> 137 | D48: 176.64 | E48: =INDEX($Y$2:$Y$276,MATCH(MIN(ABS($Y$2:$Y$276-D48)),ABS($Y$2:$Y$276-D48),0)) -> 179 | F48: 212.52 | G48: =INDEX($Y$2:$Y$276,MATCH(MIN(ABS($Y$2:$Y$276-F48)),ABS($Y$2:$Y$276-F48),0)) -> 211 | H48: 2997.9488 | I48: 2994.417245 | J48: B | K48: 1 | L48: 31.90287973 | M48: 99.96668045 | N48: 399.8667218 | O48: 0.2367171419 | P48: 32.13270142 | Q48: 100.0059646 | R48: 400.0238583 | S48: 0.2366241552 | T48: 262.2847222 | U48: 200.7430556 | Y48: 211
A49: 12 | B49: 144 | C49: =INDEX($Y$2:$Y$276,MATCH(MIN(ABS($Y$2:$Y$276-B49)),ABS($Y$2:$Y$276-B49),0)) -> 139 | D49: 184.32 | E49: =INDEX($Y$2:$Y$276,MATCH(MIN(ABS($Y$2:$Y$276-D49)),ABS($Y$2:$Y$276-D49),0)) -> 181 | F49: 221.76 | G49: =INDEX($Y$2:$Y$276,MATCH(MIN(ABS($Y$2:$Y$276-F49)),ABS($Y$2:$Y$276-F49),0)) -> 223 | H49: 3406.2336 | I49: 3246.792245 | J49: B | K49: 1 | L49: 30.57359307 | M49: 95.8014021 | N49: 383.2056084 | O49: 0.2470091915 | P49: 30.40358744 | Q49: 97.34459474 | R49: 389.378379 | S49: 0.2430933833 | T49: 280.2986111 | U49: 215.2569444 | Y49: 223
A50: 12.5 | B50: 150 | C50: =INDEX($Y$2:$Y$276,MATCH(MIN(ABS($Y$2:$Y$276-B50)),ABS($Y$2:$Y$276-B50),0)) -> 149 | D50: 192 | E50: =INDEX($Y$2:$Y$276,MATCH(MIN(ABS($Y$2:$Y$276-D50)),ABS($Y$2:$Y$276-D50),0)) -> 191 | F50: 231 | G50: =INDEX($Y$2:$Y$276,MATCH(MIN(ABS($Y$2:$Y$276-F50)),ABS($Y$2:$Y$276-F50),0)) -> 229 | H50: 3850 | I50: 3771.476273 | J50: B | K50: 1 | L50: 29.35064935 | M50: 91.96934602 | N50: 367.8773841 | O50: 0.2573012412 | P50: 29.6069869 | Q50: 92.60324699 | R50: 370.412988 | S50: 0.255539926 | T50: 303.7430556 | U50: 236.9513889 | Y50: 227
A51: 13 | B51: 156 | C51: =INDEX($Y$2:$Y$276,MATCH(MIN(ABS($Y$2:$Y$276-B51)),ABS($Y$2:$Y$276-B51),0)) -> 157 | D51: 199.68 | E51: =INDEX($Y$2:$Y$276,MATCH(MIN(ABS($Y$2:$Y$276-D51)),ABS($Y$2:$Y$276-D51),0)) -> 199 | F51: 240.24 | G51: =INDEX($Y$2:$Y$276,MATCH(MIN(ABS($Y$2:$Y$276-F51)),ABS($Y$2:$Y$276-F51),0)) -> 241 | H51: 4330.7264 | I51: 4357.385995 | J51: B | K51: 1 | L51: 28.22177822 | M51: 88.43206348 | N51: 353.7282539 | O51: 0.2675932908 | P51: 28.13278008 | Q51: 88.25134446 | R51: 353.0053779 | S51: 0.268141262 | T51: 333.0486111 | U51: 262.7569444 | Y51: 229
A52: 13.5 | B52: 162 | C52: =INDEX($Y$2:$Y$276,MATCH(MIN(ABS($Y$2:$Y$276-B52)),ABS($Y$2:$Y$276-B52),0)) -> 163 | D52: 207.36 | E52: =INDEX($Y$2:$Y$276,MATCH(MIN(ABS($Y$2:$Y$276-D52)),ABS($Y$2:$Y$276-D52),0)) -> 211 | F52: 249.48 | G52: =INDEX($Y$2:$Y$276,MATCH(MIN(ABS($Y$2:$Y$276-F52)),ABS($Y$2:$Y$276-F52),0)) -> 251 | H52: 4849.8912 | I52: 4995.742477 | J52: B | K52: 1 | L52: 27.17652718 | M52: 85.15680187 | N52: 340.6272075 | O52: 0.2778853405 | P52: 27.01195219 | Q52: 84.31988271 | R52: 337.2795308 | S52: 0.2806434985 | T52: 367.7847222 | U52: 284.1180556 | Y52: 233
A53: 14 | B53: 168 | C53: =INDEX($Y$2:$Y$276,MATCH(MIN(ABS($Y$2:$Y$276-B53)),ABS($Y$2:$Y$276-B53),0)) -> 167 | D53: 215.04 | E53: =INDEX($Y$2:$Y$276,MATCH(MIN(ABS($Y$2:$Y$276-D53)),ABS($Y$2:$Y$276-D53),0)) -> 211 | F53: 258.72 | G53: =INDEX($Y$2:$Y$276,MATCH(MIN(ABS($Y$2:$Y$276-F53)),ABS($Y$2:$Y$276-F53),0)) -> 257 | H53: 5408.9728 | I53: 5240.688079 | J53: B | K53: 1 | L53: 26.20593692 | M53: 82.11548752 | N53: 328.4619501 | O53: 0.2881773901 | P53: 26.38132296 | Q53: 82.98518584 | R53: 331.9407434 | S53: 0.2851572439 | T53: 376.5763889 | U53: 298.0486111 | Y53: 239
A54: 14.5 | B54: 174 | C54: =INDEX($Y$2:$Y$276,MATCH(MIN(ABS($Y$2:$Y$276-B54)),ABS($Y$2:$Y$276-B54),0)) -> 173 | D54: 222.72 | E54: =INDEX($Y$2:$Y$276,MATCH(MIN(ABS($Y$2:$Y$276-D54)),ABS($Y$2:$Y$276-D54),0)) -> 223 | F54: 267.96 | G54: =INDEX($Y$2:$Y$276,MATCH(MIN(ABS($Y$2:$Y$276-F54)),ABS($Y$2:$Y$276-F54),0)) -> 269 | H54: 6009.4496 | I54: 6005.64294 | J54: B | K54: 1 | L54: 25.30228392 | M54: 79.28391898 | N54: 317.1356759 | O54: 0.2984694398 | P54: 25.20446097 | Q54: 79.30066674 | R54: 317.202667 | S54: 0.2984064051 | T54: 416.5763889 | U54: 323.1736111 | Y54: 241
A55: HEIGHT ft | B55: HEIGHT " | C55: PRIME height | D55: WIDTH " | E55: PRIME width | F55: DEPTH " | G55: PRIME depth | H55: VOLUME | I55: PRIME volume | J55: TABLE | K55: USEABLE 1=Yes 0=NO | L55: F¹ | M55: F² | N55: F³ | O55: minimum RT60 | P55: F¹ | Q55: F² | R55: F³ | S55: minimum RT60 | T55: Square Feet | U55: Square Feet | Y55: 251
A56: =B56/12 -> 8 | B56: =B41 -> 96 | C56: =INDEX($Y$2:$Y$276,MATCH(MIN(ABS($Y$2:$Y$276-B56)),ABS($Y$2:$Y$276-B56),0)) -> 97 | D56: =B56*$D$7 -> 153.6 | E56: =INDEX($Y$2:$Y$276,MATCH(MIN(ABS($Y$2:$Y$276-D56)),ABS($Y$2:$Y$276-D56),0)) -> 151 | F56: =B56*$E$7 -> 223.68 | G56: =INDEX($Y$2:$Y$276,MATCH(MIN(ABS($Y$2:$Y$276-F56)),ABS($Y$2:$Y$276-F56),0)) -> 223 | H56: =(B56/12)*(D56/12)*(F56/12) -> 1908.736 | I56: =(C56/12)*(E56/12)*(G56/12) -> 1890.208912 | J56: C | K56: =IF(H56>$L$21,$N$22,$O$22) -> 1 | L56: =565/(F56/12) -> 30.3111588 | M56: =(SQRT(O56/H56)*11250) -> 116.2022989 | N56: 464.8091954 | O56: =0.25*(((0.028316846592*H56)/100)^(1/3)) -> 0.2036433626 | P56: =565/(G56/12) -> 30.40358744 | Q56: =(SQRT(S56/I56)*11250) -> 116.5807216 | R56: =4*Q56 -> 466.3228866 | S56: =0.25*(((0.028316846592*I56)/100)^(1/3)) -> 0.2029823332 | T56: 233.8402778 | U56: =(C56/12)*(G56/12) -> 150.2152778 | Y56: 257
A57: 8.5 | B57: 102 | C57: =INDEX($Y$2:$Y$276,MATCH(MIN(ABS($Y$2:$Y$276-B57)),ABS($Y$2:$Y$276-B57),0)) -> 101 | D57: 163.2 | E57: =INDEX($Y$2:$Y$276,MATCH(MIN(ABS($Y$2:$Y$276-D57)),ABS($Y$2:$Y$276-D57),0)) -> 163 | F57: 237.66 | G57: =INDEX($Y$2:$Y$276,MATCH(MIN(ABS($Y$2:$Y$276-F57)),ABS($Y$2:$Y$276-F57),0)) -> 239 | H57: 2289.458 | I57: =(C57/12)*(E57/12)*(G57/12) -> 2277.000579 | J57: C | K57: 1 | L57: 28.52814946 | M57: 109.3668695 | N57: 437.4674781 | O57: 0.2163710728 | P57: =565/(G57/12) -> 28.36820084 | Q57: =(SQRT(S57/I57)*11250) -> 109.5659548 | R57: =4*Q57 -> 438.2638193 | S57: =0.25*(((0.028316846592*I57)/100)^(1/3)) -> 0.2159779187 | T57: 270.5347222 | U57: 167.6319444 | Y57: 263
A58: 9 | B58: 108 | C58: =INDEX($Y$2:$Y$276,MATCH(MIN(ABS($Y$2:$Y$276-B58)),ABS($Y$2:$Y$276-B58),0)) -> 107 | D58: 172.8 | E58: =INDEX($Y$2:$Y$276,MATCH(MIN(ABS($Y$2:$Y$276-D58)),ABS($Y$2:$Y$276-D58),0)) -> 173 | F58: 251.64 | G58: =INDEX($Y$2:$Y$276,MATCH(MIN(ABS($Y$2:$Y$276-F58)),ABS($Y$2:$Y$276-F58),0)) -> 251 | H58: 2717.712 | I58: 2688.808449 | J58: C | K58: 1 | L58: 26.94325227 | M58: 103.2909323 | N58: 413.1637293 | O58: 0.2290987829 | P58: 27.01195219 | Q58: 103.6597252 | R58: 414.638901 | S58: 0.2282837122 | T58: 301.5486111 | U58: 186.5069444 | Y58: 269
A59: 9.5 | B59: 114 | C59: =INDEX($Y$2:$Y$276,MATCH(MIN(ABS($Y$2:$Y$276-B59)),ABS($Y$2:$Y$276-B59),0)) -> 113 | D59: 182.4 | E59: =INDEX($Y$2:$Y$276,MATCH(MIN(ABS($Y$2:$Y$276-D59)),ABS($Y$2:$Y$276-D59),0)) -> 181 | F59: 265.62 | G59: =INDEX($Y$2:$Y$276,MATCH(MIN(ABS($Y$2:$Y$276-F59)),ABS($Y$2:$Y$276-F59),0)) -> 263 | H59: 3196.294 | I59: 3112.927662 | J59: C | K59: 1 | L59: 25.52518636 | M59: 97.85456746 | N59: 391.4182698 | O59: 0.2418264931 | P59: 25.77946768 | Q59: 98.72042095 | R59: 394.8816838 | S59: 0.23970549 | T59: 330.5763889 | U59: 206.3819444 | Y59: 271
A60: 10 | B60: 120 | C60: =INDEX($Y$2:$Y$276,MATCH(MIN(ABS($Y$2:$Y$276-B60)),ABS($Y$2:$Y$276-B60),0)) -> 113 | D60: 192 | E60: =INDEX($Y$2:$Y$276,MATCH(MIN(ABS($Y$2:$Y$276-D60)),ABS($Y$2:$Y$276-D60),0)) -> 191 | F60: 279.6 | G60: =INDEX($Y$2:$Y$276,MATCH(MIN(ABS($Y$2:$Y$276-F60)),ABS($Y$2:$Y$276-F60),0)) -> 281 | H60: 3728 | I60: 3509.735532 | J60: C | K60: 1 | L60: 24.24892704 | M60: 92.96183909 | N60: 371.8473564 | O60: 0.2545542032 | P60: 24.12811388 | Q60: 94.85026399 | R60: 379.4010559 | S60: 0.2494861468 | T60: 372.7152778 | U60: 220.5069444 | Y60: 277
A61: 10.5 | B61: 126 | C61: =INDEX($Y$2:$Y$276,MATCH(MIN(ABS($Y$2:$Y$276-B61)),ABS($Y$2:$Y$276-B61),0)) -> 127 | D61: 201.6 | E61: =INDEX($Y$2:$Y$276,MATCH(MIN(ABS($Y$2:$Y$276-D61)),ABS($Y$2:$Y$276-D61),0)) -> 199 | F61: 293.58 | G61: =INDEX($Y$2:$Y$276,MATCH(MIN(ABS($Y$2:$Y$276-F61)),ABS($Y$2:$Y$276-F61),0)) -> 293 | H61: 4315.626 | I61: 4285.29456 | J61: C | K61: 1 | L61: 23.09421623 | M61: 88.53508485 | N61: 354.1403394 | O61: 0.2672819134 | P61: 23.13993174 | Q61: 88.74347858 | R61: 354.9739143 | S61: 0.266654263 | T61: 404.9097222 | U61: 258.4097222 | Y61: 281
A62: 11 | B62: 132 | C62: =INDEX($Y$2:$Y$276,MATCH(MIN(ABS($Y$2:$Y$276-B62)),ABS($Y$2:$Y$276-B62),0)) -> 131 | D62: 211.2 | E62: =INDEX($Y$2:$Y$276,MATCH(MIN(ABS($Y$2:$Y$276-D62)),ABS($Y$2:$Y$276-D62),0)) -> 211 | F62: 307.56 | G62: =INDEX($Y$2:$Y$276,MATCH(MIN(ABS($Y$2:$Y$276-F62)),ABS($Y$2:$Y$276-F62),0)) -> 307 | H62: 4961.968 | I62: 4910.756366 | J62: C | K62: 1 | L62: 22.04447913 | M62: 84.51076281 | N62: 338.0430512 | O62: 0.2800096236 | P62: 22.08469055 | Q62: 84.8035199 | R62: 339.2140796 | S62: 0.2790429797 | T62: 449.8402778 | U62: 279.2847222 | Y62: 283
A63: 11.5 | B63: 138 | C63: =INDEX($Y$2:$Y$276,MATCH(MIN(ABS($Y$2:$Y$276-B63)),ABS($Y$2:$Y$276-B63),0)) -> 137 | D63: 220.8 | E63: =INDEX($Y$2:$Y$276,MATCH(MIN(ABS($Y$2:$Y$276-D63)),ABS($Y$2:$Y$276-D63),0)) -> 223 | F63: 321.54 | G63: =INDEX($Y$2:$Y$276,MATCH(MIN(ABS($Y$2:$Y$276-F63)),ABS($Y$2:$Y$276-F63),0)) -> 317 | H63: 5669.822 | I63: 5604.552662 | J63: C | K63: 1 | L63: 21.08602351 | M63: 80.83638182 | N63: 323.3455273 | O63: 0.2927373337 | P63: 21.38801262 | Q63: 81.14897215 | R63: 324.5958886 | S63: 0.2916096933 | T63: 490.9097222 | U63: 301.5902778 | Y63: 293
A64: 12 | B64: 144 | C64: =INDEX($Y$2:$Y$276,MATCH(MIN(ABS($Y$2:$Y$276-B64)),ABS($Y$2:$Y$276-B64),0)) -> 139 | D64: 230.4 | E64: =INDEX($Y$2:$Y$276,MATCH(MIN(ABS($Y$2:$Y$276-D64)),ABS($Y$2:$Y$276-D64),0)) -> 229 | F64: 335.52 | G64: =INDEX($Y$2:$Y$276,MATCH(MIN(ABS($Y$2:$Y$276-F64)),ABS($Y$2:$Y$276-F64),0)) -> 337 | H64: 6441.984 | I64: 6207.781829 | J64: C | K64: 1 | L64: 20.2074392 | M64: 77.46819924 | N64: 309.872797 | O64: 0.3054650439 | P64: 20.11869436 | Q64: 78.43041741 | R64: 313.7216696 | S64: 0.3017174671 | T64: 535.9236111 | U64: 325.2986111 | Y64: 307
A65: 12.5 | B65: 150 | C65: =INDEX($Y$2:$Y$276,MATCH(MIN(ABS($Y$2:$Y$276-B65)),ABS($Y$2:$Y$276-B65),0)) -> 149 | D65: 240 | E65: =INDEX($Y$2:$Y$276,MATCH(MIN(ABS($Y$2:$Y$276-D65)),ABS($Y$2:$Y$276-D65),0)) -> 239 | F65: 349.5 | G65: =INDEX($Y$2:$Y$276,MATCH(MIN(ABS($Y$2:$Y$276-F65)),ABS($Y$2:$Y$276-F65),0)) -> 349 | H65: 7281.25 | I65: 7192.26794 | J65: C | K65: 1 | L65: 19.39914163 | M65: 74.36947127 | N65: 297.4778851 | O65: 0.318192754 | P65: 19.4269341 | Q65: 74.67491244 | R65: 298.6996498 | S65: 0.3168912571 | T65: 579.2430556 | U65: 361.1180556 | Y65: 311
A66: 13 | B66: 156 | C66: =INDEX($Y$2:$Y$276,MATCH(MIN(ABS($Y$2:$Y$276-B66)),ABS($Y$2:$Y$276-B66),0)) -> 157 | D66: 249.6 | E66: =INDEX($Y$2:$Y$276,MATCH(MIN(ABS($Y$2:$Y$276-D66)),ABS($Y$2:$Y$276-D66),0)) -> 251 | F66: 363.48 | G66: =INDEX($Y$2:$Y$276,MATCH(MIN(ABS($Y$2:$Y$276-F66)),ABS($Y$2:$Y$276-F66),0)) -> 367 | H66: 8190.416 | I66: 8369.426505 | J66: C | K66: 1 | L66: 18.6530208 | M66: 71.50910699 | N66: 286.036428 | O66: 0.3309204642 | P66: 18.47411444 | Q66: 70.99560124 | R66: 283.982405 | S66: 0.3333139866 | T66: 639.7013889 | U66: 400.1319444 | Y66: 313
A67: 13.5 | B67: 162 | C67: =INDEX($Y$2:$Y$276,MATCH(MIN(ABS($Y$2:$Y$276-B67)),ABS($Y$2:$Y$276-B67),0)) -> 163 | D67: 259.2 | E67: =INDEX($Y$2:$Y$276,MATCH(MIN(ABS($Y$2:$Y$276-D67)),ABS($Y$2:$Y$276-D67),0)) -> 257 | F67: 377.46 | G67: =INDEX($Y$2:$Y$276,MATCH(MIN(ABS($Y$2:$Y$276-F67)),ABS($Y$2:$Y$276-F67),0)) -> 379 | H67: 9172.278 | I67: 9187.898727 | J67: C | K67: 1 | L67: 17.96216818 | M67: 68.86062155 | N67: 275.4424862 | O67: 0.3436481744 | P67: 17.88918206 | Q67: 68.82157515 | R67: 275.2863006 | S67: 0.3438431456 | T67: 676.4097222 | U67: 429.0069444 | Y67: 317
A68: 14 | B68: 168 | C68: =INDEX($Y$2:$Y$276,MATCH(MIN(ABS($Y$2:$Y$276-B68)),ABS($Y$2:$Y$276-B68),0)) -> 167 | D68: 268.8 | E68: =INDEX($Y$2:$Y$276,MATCH(MIN(ABS($Y$2:$Y$276-D68)),ABS($Y$2:$Y$276-D68),0)) -> 269 | F68: 391.44 | G68: =INDEX($Y$2:$Y$276,MATCH(MIN(ABS($Y$2:$Y$276-F68)),ABS($Y$2:$Y$276-F68),0)) -> 389 | H68: 10229.632 | I68: 10112.87442 | J68: C | K68: 1 | L68: 17.32066217 | M68: 66.40131363 | N68: 265.6052545 | O68: 0.3563758845 | P68: 17.42930591 | Q68: 66.65588055 | R68: 266.6235222 | S68: 0.3550148417 | T68: 726.6736111 | U68: 451.1319444 | Y68: 331
A69: 14.5 | B69: 174 | C69: =INDEX($Y$2:$Y$276,MATCH(MIN(ABS($Y$2:$Y$276-B69)),ABS($Y$2:$Y$276-B69),0)) -> 173 | D69: 278.4 | E69: =INDEX($Y$2:$Y$276,MATCH(MIN(ABS($Y$2:$Y$276-D69)),ABS($Y$2:$Y$276-D69),0)) -> 277 | F69: 405.42 | G69: =INDEX($Y$2:$Y$276,MATCH(MIN(ABS($Y$2:$Y$276-F69)),ABS($Y$2:$Y$276-F69),0)) -> 409 | H69: 11365.274 | I69: 11342.41262 | J69: C | K69: 1 | L69: 16.72339796 | M69: 64.11161316 | N69: 256.4464527 | O69: 0.3691035947 | P69: 16.57701711 | Q69: 64.15465799 | R69: 256.618632 | S69: 0.3688559431 | T69: 786.7569444 | U69: 491.3680556 | Y69: 337
A70: HEIGHT ft | B70: HEIGHT " | C70: PRIME height | D70: WIDTH " | E70: PRIME width | F70: DEPTH " | G70: PRIME depth | H70: VOLUME | I70: PRIME volume | J70: TABLE | K70: USEABLE 1=Yes 0=NO | L70: F¹ | M70: F² | N70: F³ | O70: minimum RT60 | P70: F¹ | Q70: F² | R70: F³ | S70: minimum RT60 | T70: Square Feet | U70: Square Feet | Y70: 347
A71: =B71/12 -> 8 | B71: =B56 -> 96 | C71: =INDEX($Y$2:$Y$276,MATCH(MIN(ABS($Y$2:$Y$276-B71)),ABS($Y$2:$Y$276-B71),0)) -> 97 | D71: =B71*$D$8 -> 134.4 | E71: =INDEX($Y$2:$Y$276,MATCH(MIN(ABS($Y$2:$Y$276-D71)),ABS($Y$2:$Y$276-D71),0)) -> 137 | F71: =B71*$E$8 -> 182.4 | G71: =INDEX($Y$2:$Y$276,MATCH(MIN(ABS($Y$2:$Y$276-F71)),ABS($Y$2:$Y$276-F71),0)) -> 181 | H71: =(B71/12)*(D71/12)*(F71/12) -> 1361.92 | I71: =(C71/12)*(E71/12)*(G71/12) -> 1391.961227 | J71: D | K71: =IF(H71>$L$21,$N$22,$O$22) -> 0 | L71: =565/(F71/12) -> 37.17105263 | M71: =(SQRT(O71/H71)*11250) -> 130.040753 | N71: 520.163012 | O71: =0.25*(((0.028316846592*H71)/100)^(1/3)) -> 0.181972392 | P71: =565/(G71/12) -> 37.45856354 | Q71: =(SQRT(S71/I71)*11250) -> 129.0984304 | R71: =4*Q71 -> 516.3937216 | S71: =0.25*(((0.028316846592*I71)/100)^(1/3)) -> 0.1833006552 | T71: 172.2013889 | U71: =(C71/12)*(G71/12) -> 121.9236111 | Y71: 349
A72: 8.5 | B72: 102 | C72: =INDEX($Y$2:$Y$276,MATCH(MIN(ABS($Y$2:$Y$276-B72)),ABS($Y$2:$Y$276-B72),0)) -> 101 | D72: 142.8 | E72: =INDEX($Y$2:$Y$276,MATCH(MIN(ABS($Y$2:$Y$276-D72)),ABS($Y$2:$Y$276-D72),0)) -> 139 | F72: 193.8 | G72: =INDEX($Y$2:$Y$276,MATCH(MIN(ABS($Y$2:$Y$276-F72)),ABS($Y$2:$Y$276-F72),0)) -> 193 | H72: 1633.5725 | I72: =(C72/12)*(E72/12)*(G72/12) -> 1568.01331 | J72: D | K72: 1 | L72: 34.98452012 | M72: 122.3912969 | N72: 489.5651877 | O72: 0.1933456665 | P72: =565/(G72/12) -> 35.12953368 | Q72: =(SQRT(S72/I72)*11250) -> 124.0738027 | R72: =4*Q72 -> 496.295211 | S72: =0.25*(((0.028316846592*I72)/100)^(1/3)) -> 0.1907237979 | T72: 186.2986111 | U72: 135.3680556 | Y72: 353
A73: 9 | B73: 108 | C73: =INDEX($Y$2:$Y$276,MATCH(MIN(ABS($Y$2:$Y$276-B73)),ABS($Y$2:$Y$276-B73),0)) -> 107 | D73: 151.2 | E73: =INDEX($Y$2:$Y$276,MATCH(MIN(ABS($Y$2:$Y$276-D73)),ABS($Y$2:$Y$276-D73),0)) -> 151 | F73: 205.2 | G73: =INDEX($Y$2:$Y$276,MATCH(MIN(ABS($Y$2:$Y$276-F73)),ABS($Y$2:$Y$276-F73),0)) -> 211 | H73: 1939.14 | I73: 1972.874421 | J73: D | K73: 1 | L73: 33.04093567 | M73: 115.5917804 | N73: 462.3671217 | O73: 0.204718941 | P73: 32.13270142 | Q73: 114.9291498 | R73: 459.7165993 | S73: 0.2058992598 | T73: 221.2569444 | U73: 156.7847222 | Y73: 359
A74: 9.5 | B74: 114 | C74: =INDEX($Y$2:$Y$276,MATCH(MIN(ABS($Y$2:$Y$276-B74)),ABS($Y$2:$Y$276-B74),0)) -> 113 | D74: 159.6 | E74: =INDEX($Y$2:$Y$276,MATCH(MIN(ABS($Y$2:$Y$276-D74)),ABS($Y$2:$Y$276-D74),0)) -> 157 | F74: 216.6 | G74: =INDEX($Y$2:$Y$276,MATCH(MIN(ABS($Y$2:$Y$276-F74)),ABS($Y$2:$Y$276-F74),0)) -> 211 | H74: 2280.6175 | I74: 2166.291088 | J74: D | K74: 1 | L74: 31.30193906 | M74: 109.5080025 | N74: 438.0320101 | O74: 0.2160922155 | P74: 32.13270142 | Q74: 111.4015082 | R74: 445.6060327 | S74: 0.2124192685 | T74: 230.0486111 | U74: 165.5763889 | Y74: 367
A75: 10 | B75: 120 | C75: =INDEX($Y$2:$Y$276,MATCH(MIN(ABS($Y$2:$Y$276-B75)),ABS($Y$2:$Y$276-B75),0)) -> 113 | D75: 168 | E75: =INDEX($Y$2:$Y$276,MATCH(MIN(ABS($Y$2:$Y$276-D75)),ABS($Y$2:$Y$276-D75),0)) -> 167 | F75: 228 | G75: =INDEX($Y$2:$Y$276,MATCH(MIN(ABS($Y$2:$Y$276-F75)),ABS($Y$2:$Y$276-F75),0)) -> 227 | H75: 2660 | I75: 2479.002894 | J75: D | K75: 1 | L75: 29.73684211 | M75: 104.0326024 | N75: 416.1304096 | O75: 0.22746549 | P75: 29.86784141 | Q75: 106.5052453 | R75: 426.0209811 | S75: 0.2221846146 | T75: 263.2569444 | U75: 178.1319444 | Y75: 373
A76: 10.5 | B76: 126 | C76: =INDEX($Y$2:$Y$276,MATCH(MIN(ABS($Y$2:$Y$276-B76)),ABS($Y$2:$Y$276-B76),0)) -> 127 | D76: 176.4 | E76: =INDEX($Y$2:$Y$276,MATCH(MIN(ABS($Y$2:$Y$276-D76)),ABS($Y$2:$Y$276-D76),0)) -> 179 | F76: 239.4 | G76: =INDEX($Y$2:$Y$276,MATCH(MIN(ABS($Y$2:$Y$276-F76)),ABS($Y$2:$Y$276-F76),0)) -> 239 | H76: 3079.2825 | I76: 3144.20544 | J76: D | K76: 1 | L76: 28.32080201 | M76: 99.07866895 | N76: 396.3146758 | O76: 0.2388387645 | P76: 28.36820084 | Q76: 98.39198068 | R76: 393.5679227 | S76: 0.2405056461 | T76: 297.0902778 | U76: 210.7847222 | Y76: 379
A77: 11 | B77: 132 | C77: =INDEX($Y$2:$Y$276,MATCH(MIN(ABS($Y$2:$Y$276-B77)),ABS($Y$2:$Y$276-B77),0)) -> 131 | D77: 184.8 | E77: =INDEX($Y$2:$Y$276,MATCH(MIN(ABS($Y$2:$Y$276-D77)),ABS($Y$2:$Y$276-D77),0)) -> 181 | F77: 250.8 | G77: =INDEX($Y$2:$Y$276,MATCH(MIN(ABS($Y$2:$Y$276-F77)),ABS($Y$2:$Y$276-F77),0)) -> 251 | H77: 3540.46 | I77: 3444.132523 | J77: D | K77: 1 | L77: 27.03349282 | M77: 94.57509308 | N77: 378.3003723 | O77: 0.250212039 | P77: 27.01195219 | Q77: 95.44870859 | R77: 381.7948344 | S77: 0.2479219177 | T77: 315.4930556 | U77: 228.3402778 | Y77: 383
A78: 11.5 | B78: 138 | C78: =INDEX($Y$2:$Y$276,MATCH(MIN(ABS($Y$2:$Y$276-B78)),ABS($Y$2:$Y$276-B78),0)) -> 137 | D78: 193.2 | E78: =INDEX($Y$2:$Y$276,MATCH(MIN(ABS($Y$2:$Y$276-D78)),ABS($Y$2:$Y$276-D78),0)) -> 193 | F78: 262.2 | G78: =INDEX($Y$2:$Y$276,MATCH(MIN(ABS($Y$2:$Y$276-F78)),ABS($Y$2:$Y$276-F78),0)) -> 263 | H78: 4045.5275 | I78: 4024.295718 | J78: D | K78: 1 | L78: 25.85812357 | M78: 90.46313252 | N78: 361.8525301 | O78: 0.2615853135 | P78: 25.77946768 | Q78: 90.62194503 | R78: 362.4877801 | S78: 0.2611268923 | T78: 352.4930556 | U78: 250.2152778 | Y78: 389
A79: 12 | B79: 144 | C79: =INDEX($Y$2:$Y$276,MATCH(MIN(ABS($Y$2:$Y$276-B79)),ABS($Y$2:$Y$276-B79),0)) -> 139 | D79: 201.6 | E79: =INDEX($Y$2:$Y$276,MATCH(MIN(ABS($Y$2:$Y$276-D79)),ABS($Y$2:$Y$276-D79),0)) -> 199 | F79: 273.6 | G79: =INDEX($Y$2:$Y$276,MATCH(MIN(ABS($Y$2:$Y$276-F79)),ABS($Y$2:$Y$276-F79),0)) -> 271 | H79: 4596.48 | I79: 4338.038773 | J79: D | K79: 1 | L79: 24.78070175 | M79: 86.69383533 | N79: 346.7753413 | O79: 0.272958588 | P79: 25.01845018 | Q79: 88.38234732 | R79: 353.5293893 | S79: 0.2677438154 | T79: 374.5069444 | U79: 261.5902778 | Y79: 397
A80: 12.5 | B80: 150 | C80: =INDEX($Y$2:$Y$276,MATCH(MIN(ABS($Y$2:$Y$276-B80)),ABS($Y$2:$Y$276-B80),0)) -> 149 | D80: 210 | E80: =INDEX($Y$2:$Y$276,MATCH(MIN(ABS($Y$2:$Y$276-D80)),ABS($Y$2:$Y$276-D80),0)) -> 211 | F80: 285 | G80: =INDEX($Y$2:$Y$276,MATCH(MIN(ABS($Y$2:$Y$276-F80)),ABS($Y$2:$Y$276-F80),0)) -> 283 | H80: 5195.3125 | I80: 5148.864005 | J80: D | K80: 1 | L80: 23.78947368 | M80: 83.22608191 | N80: 332.9043277 | O80: 0.2843318625 | P80: 23.95759717 | Q80: 83.47559713 | R80: 333.9023885 | S80: 0.2834819719 | T80: 414.6736111 | U80: 292.8263889 | Y80: 401
A81: 13 | B81: 156 | C81: =INDEX($Y$2:$Y$276,MATCH(MIN(ABS($Y$2:$Y$276-B81)),ABS($Y$2:$Y$276-B81),0)) -> 157 | D81: 218.4 | E81: =INDEX($Y$2:$Y$276,MATCH(MIN(ABS($Y$2:$Y$276-D81)),ABS($Y$2:$Y$276-D81),0)) -> 223 | F81: 296.4 | G81: =INDEX($Y$2:$Y$276,MATCH(MIN(ABS($Y$2:$Y$276-F81)),ABS($Y$2:$Y$276-F81),0)) -> 293 | H81: 5844.02 | I81: 5936.471644 | J81: D | K81: 1 | L81: 22.87449393 | M81: 80.02507876 | N81: 320.1003151 | O81: 0.295705137 | P81: 23.13993174 | Q81: 79.60747984 | R81: 318.4299194 | S81: 0.2972563247 | T81: 453.7430556 | U81: 319.4513889 | Y81: 409
A82: 13.5 | B82: 162 | C82: =INDEX($Y$2:$Y$276,MATCH(MIN(ABS($Y$2:$Y$276-B82)),ABS($Y$2:$Y$276-B82),0)) -> 163 | D82: 226.8 | E82: =INDEX($Y$2:$Y$276,MATCH(MIN(ABS($Y$2:$Y$276-D82)),ABS($Y$2:$Y$276-D82),0)) -> 227 | F82: 307.8 | G82: =INDEX($Y$2:$Y$276,MATCH(MIN(ABS($Y$2:$Y$276-F82)),ABS($Y$2:$Y$276-F82),0)) -> 307 | H82: 6544.5975 | I82: 6573.673032 | J82: D | K82: 1 | L82: 22.02729045 | M82: 77.06118696 | N82: 308.2447478 | O82: 0.3070784115 | P82: 22.08469055 | Q82: 76.94740447 | R82: 307.7896179 | S82: 0.3075324898 | T82: 483.9513889 | U82: 347.5069444 | Y82: 419
A83: 14 | B83: 168 | C83: =INDEX($Y$2:$Y$276,MATCH(MIN(ABS($Y$2:$Y$276-B83)),ABS($Y$2:$Y$276-B83),0)) -> 167 | D83: 235.2 | E83: =INDEX($Y$2:$Y$276,MATCH(MIN(ABS($Y$2:$Y$276-D83)),ABS($Y$2:$Y$276-D83),0)) -> 233 | F83: 319.2 | G83: =INDEX($Y$2:$Y$276,MATCH(MIN(ABS($Y$2:$Y$276-F83)),ABS($Y$2:$Y$276-F83),0)) -> 317 | H83: 7299.04 | I83: 7138.186921 | J83: D | K83: 1 | L83: 21.2406015 | M83: 74.30900171 | N83: 297.2360068 | O83: 0.318451686 | P83: 21.38801262 | Q83: 74.86302459 | R83: 299.4520984 | S83: 0.3160949883 | T83: 512.9236111 | U83: 367.6319444 | Y83: 421
A84: 14.5 | B84: 174 | C84: =INDEX($Y$2:$Y$276,MATCH(MIN(ABS($Y$2:$Y$276-B84)),ABS($Y$2:$Y$276-B84),0)) -> 173 | D84: 243.6 | E84: =INDEX($Y$2:$Y$276,MATCH(MIN(ABS($Y$2:$Y$276-D84)),ABS($Y$2:$Y$276-D84),0)) -> 241 | F84: 330.6 | G84: =INDEX($Y$2:$Y$276,MATCH(MIN(ABS($Y$2:$Y$276-F84)),ABS($Y$2:$Y$276-F84),0)) -> 331 | H84: 8109.3425 | I84: 7986.332755 | J84: D | K84: 1 | L84: 20.50816697 | M84: 71.74662234 | N84: 286.9864894 | O84: 0.3298249605 | P84: 20.48338369 | Q84: 72.11310701 | R84: 288.4524281 | S84: 0.3281487632 | T84: 553.9652778 | U84: 397.6597222 | Y84: 431
A85: HEIGHT ft | B85: HEIGHT " | C85: PRIME height | D85: WIDTH " | E85: PRIME width | F85: DEPTH " | G85: PRIME depth | H85: VOLUME | I85: PRIME volume | J85: TABLE | K85: USEABLE 1=Yes 0=NO | L85: F¹ | M85: F² | N85: F³ | O85: minimum RT60 | P85: F¹ | Q85: F² | R85: F³ | S85: minimum RT60 | T85: Square Feet | U85: Square Feet | Y85: 433
A86: =B86/12 -> 8 | B86: =B71 -> 96 | C86: =INDEX($Y$2:$Y$276,MATCH(MIN(ABS($Y$2:$Y$276-B86)),ABS($Y$2:$Y$276-B86),0)) -> 97 | D86: =B86*$D$9 -> 124.8 | E86: =INDEX($Y$2:$Y$276,MATCH(MIN(ABS($Y$2:$Y$276-D86)),ABS($Y$2:$Y$276-D86),0)) -> 127 | F86: =B86*$E$9 -> 182.4 | G86: =INDEX($Y$2:$Y$276,MATCH(MIN(ABS($Y$2:$Y$276-F86)),ABS($Y$2:$Y$276-F86),0)) -> 181 | H86: =(B86/12)*(D86/12)*(F86/12) -> 1264.64 | I86: =(C86/12)*(E86/12)*(G86/12) -> 1290.358218 | J86: E | K86: =IF(H86>$L$21,$N$22,$O$22) -> 0 | L86: =565/(F86/12) -> 37.17105263 | M86: =(SQRT(O86/H86)*11250) -> 133.2931107 | N86: 533.1724428 | O86: =0.25*(((0.028316846592*H86)/100)^(1/3)) -> 0.1775322577 | P86: =565/(G86/12) -> 37.45856354 | Q86: =(SQRT(S86/I86)*11250) -> 132.4016033 | R86: =4*Q86 -> 529.6064132 | S86: =0.25*(((0.028316846592*I86)/100)^(1/3)) -> 0.178727646 | T86: =(E86/12)*(G86/12) -> 159.6319444 | U86: =(C86/12)*(G86/12) -> 121.9236111 | Y86: 439
A87: 8.5 | B87: 102 | C87: =INDEX($Y$2:$Y$276,MATCH(MIN(ABS($Y$2:$Y$276-B87)),ABS($Y$2:$Y$276-B87),0)) -> 101 | D87: 132.6 | E87: =INDEX($Y$2:$Y$276,MATCH(MIN(ABS($Y$2:$Y$276-D87)),ABS($Y$2:$Y$276-D87),0)) -> 131 | F87: 193.8 | G87: =INDEX($Y$2:$Y$276,MATCH(MIN(ABS($Y$2:$Y$276-F87)),ABS($Y$2:$Y$276-F87),0)) -> 193 | H87: 1516.88875 | I87: =(C87/12)*(E87/12)*(G87/12) -> 1477.76794 | J87: E | K87: 1 | L87: 34.98452012 | M87: 125.4523395 | N87: 501.809358 | O87: =0.25*(((0.028316846592*H87)/100)^(1/3)) -> 0.1886280238 | P87: =565/(G87/12) -> 35.12953368 | Q87: =(SQRT(S87/I87)*11250) -> 126.5497412 | R87: =4*Q87 -> 506.1989648 | S87: =0.25*(((0.028316846592*I87)/100)^(1/3)) -> 0.1869922977 | T87: 175.5763889 | U87: 135.3680556 | Y87: 443
A88: 9 | B88: 108 | C88: =INDEX($Y$2:$Y$276,MATCH(MIN(ABS($Y$2:$Y$276-B88)),ABS($Y$2:$Y$276-B88),0)) -> 107 | D88: 140.4 | E88: =INDEX($Y$2:$Y$276,MATCH(MIN(ABS($Y$2:$Y$276-D88)),ABS($Y$2:$Y$276-D88),0)) -> 139 | F88: 205.2 | G88: =INDEX($Y$2:$Y$276,MATCH(MIN(ABS($Y$2:$Y$276-F88)),ABS($Y$2:$Y$276-F88),0)) -> 211 | H88: 1800.63 | I88: 1816.089699 | J88: E | K88: 1 | L88: 33.04093567 | M88: 118.4827651 | N88: 473.9310603 | O88: =0.25*(((0.028316846592*H88)/100)^(1/3)) -> 0.1997237899 | P88: 32.13270142 | Q88: 118.1456066 | R88: 472.5824264 | S88: 0.2002937525 | T88: 203.6736111 | U88: 156.7847222 | Y88: 449
A89: 9.5 | B89: 114 | C89: =INDEX($Y$2:$Y$276,MATCH(MIN(ABS($Y$2:$Y$276-B89)),ABS($Y$2:$Y$276-B89),0)) -> 113 | D89: 148.2 | E89: =INDEX($Y$2:$Y$276,MATCH(MIN(ABS($Y$2:$Y$276-D89)),ABS($Y$2:$Y$276-D89),0)) -> 149 | F89: 216.6 | G89: =INDEX($Y$2:$Y$276,MATCH(MIN(ABS($Y$2:$Y$276-F89)),ABS($Y$2:$Y$276-F89),0)) -> 211 | H89: 2117.71625 | I89: 2055.906829 | J89: E | K89: 1 | L89: 31.30193906 | M89: 112.2468301 | N89: 448.9873203 | O89: =0.25*(((0.028316846592*H89)/100)^(1/3)) -> 0.210819556 | P89: 32.13270142 | Q89: 113.3606163 | R89: 453.4424653 | S89: 0.20874822 | T89: 218.3263889 | U89: 165.5763889 | Y89: 457
A90: 10 | B90: 120 | C90: =INDEX($Y$2:$Y$276,MATCH(MIN(ABS($Y$2:$Y$276-B90)),ABS($Y$2:$Y$276-B90),0)) -> 113 | D90: 156 | E90: =INDEX($Y$2:$Y$276,MATCH(MIN(ABS($Y$2:$Y$276-D90)),ABS($Y$2:$Y$276-D90),0)) -> 157 | F90: 228 | G90: =INDEX($Y$2:$Y$276,MATCH(MIN(ABS($Y$2:$Y$276-F90)),ABS($Y$2:$Y$276-F90),0)) -> 227 | H90: 2470 | I90: 2330.559606 | J90: E | K90: 1 | L90: 29.73684211 | M90: 106.6344886 | N90: 426.5379543 | O90: =0.25*(((0.028316846592*H90)/100)^(1/3)) -> 0.2219153221 | P90: 29.86784141 | Q90: 108.7201234 | R90: 434.8804934 | S90: 0.2176582049 | T90: 247.4930556 | U90: 178.1319444 | Y90: 461
A91: 10.5 | B91: 126 | C91: =INDEX($Y$2:$Y$276,MATCH(MIN(ABS($Y$2:$Y$276-B91)),ABS($Y$2:$Y$276-B91),0)) -> 127 | D91: 163.8 | E91: =INDEX($Y$2:$Y$276,MATCH(MIN(ABS($Y$2:$Y$276-D91)),ABS($Y$2:$Y$276-D91),0)) -> 163 | F91: 239.4 | G91: =INDEX($Y$2:$Y$276,MATCH(MIN(ABS($Y$2:$Y$276-F91)),ABS($Y$2:$Y$276-F91),0)) -> 239 | H91: 2859.33375 | I91: 2863.159144 | J91: E | K91: 1 | L91: 28.32080201 | M91: 101.5566558 | N91: =4*M91 -> 406.2266231 | O91: =0.25*(((0.028316846592*H91)/100)^(1/3)) -> 0.2330110882 | P91: 28.36820084 | Q91: 101.5114065 | R91: 406.0456262 | S91: 0.2331149541 | T91: 270.5347222 | U91: 210.7847222 | Y91: 463
A92: 11 | B92: 132 | C92: =INDEX($Y$2:$Y$276,MATCH(MIN(ABS($Y$2:$Y$276-B92)),ABS($Y$2:$Y$276-B92),0)) -> 131 | D92: 171.6 | E92: =INDEX($Y$2:$Y$276,MATCH(MIN(ABS($Y$2:$Y$276-D92)),ABS($Y$2:$Y$276-D92),0)) -> 173 | F92: 250.8 | G92: =INDEX($Y$2:$Y$276,MATCH(MIN(ABS($Y$2:$Y$276-F92)),ABS($Y$2:$Y$276-F92),0)) -> 251 | H92: 3287.57 | I92: 3291.905671 | J92: E | K92: 1 | L92: 27.03349282 | M92: 96.94044415 | N92: 387.7617766 | O92: 0.2441068543 | P92: 27.01195219 | Q92: 96.89786633 | R92: 387.5914653 | S92: 0.2442141172 | T92: 301.5486111 | U92: 228.3402778 | Y92: 467
A93: 11.5 | B93: 138 | C93: =INDEX($Y$2:$Y$276,MATCH(MIN(ABS($Y$2:$Y$276-B93)),ABS($Y$2:$Y$276-B93),0)) -> 137 | D93: 179.4 | E93: =INDEX($Y$2:$Y$276,MATCH(MIN(ABS($Y$2:$Y$276-D93)),ABS($Y$2:$Y$276-D93),0)) -> 179 | F93: 262.2 | G93: =INDEX($Y$2:$Y$276,MATCH(MIN(ABS($Y$2:$Y$276-F93)),ABS($Y$2:$Y$276-F93),0)) -> 263 | H93: 3756.56125 | I93: 3732.377894 | J93: E | K93: 1 | L93: 25.85812357 | M93: 92.72564223 | N93: 370.9025689 | O93: 0.2552026204 | P93: 25.77946768 | Q93: 92.92547833 | R93: 371.7019133 | S93: 0.2546538076 | T93: 326.9236111 | U93: 250.2152778 | Y93: 479
A94: 12 | B94: 144 | C94: =INDEX($Y$2:$Y$276,MATCH(MIN(ABS($Y$2:$Y$276-B94)),ABS($Y$2:$Y$276-B94),0)) -> 139 | D94: 187.2 | E94: =INDEX($Y$2:$Y$276,MATCH(MIN(ABS($Y$2:$Y$276-D94)),ABS($Y$2:$Y$276-D94),0)) -> 191 | F94: 273.6 | G94: =INDEX($Y$2:$Y$276,MATCH(MIN(ABS($Y$2:$Y$276-F94)),ABS($Y$2:$Y$276-F94),0)) -> 271 | H94: 4268.16 | I94: 4163.645255 | J94: E | K94: 1 | L94: 24.78070175 | M94: 88.86207381 | N94: 355.4482952 | O94: 0.2662983865 | P94: 25.01845018 | Q94: 89.59946876 | R94: 358.397875 | S94: 0.2641067766 | T94: 359.4513889 | U94: 261.5902778 | Y94: 487
A95: 12.5 | B95: 150 | C95: =INDEX($Y$2:$Y$276,MATCH(MIN(ABS($Y$2:$Y$276-B95)),ABS($Y$2:$Y$276-B95),0)) -> 149 | D95: 195 | E95: =INDEX($Y$2:$Y$276,MATCH(MIN(ABS($Y$2:$Y$276-D95)),ABS($Y$2:$Y$276-D95),0)) -> 193 | F95: 285 | G95: =INDEX($Y$2:$Y$276,MATCH(MIN(ABS($Y$2:$Y$276-F95)),ABS($Y$2:$Y$276-F95),0)) -> 283 | H95: 4824.21875 | I95: 4709.624421 | J95: E | K95: 1 | L95: 23.78947368 | M95: 85.30759086 | N95: 341.2303634 | O95: 0.2773941527 | P95: 23.95759717 | Q95: 85.99395366 | R95: 343.9758146 | S95: 0.2751801246 | T95: 379.2986111 | U95: 292.8263889 | Y95: 491
A96: 13 | B96: 156 | C96: =INDEX($Y$2:$Y$276,MATCH(MIN(ABS($Y$2:$Y$276-B96)),ABS($Y$2:$Y$276-B96),0)) -> 157 | D96: 202.8 | E96: =INDEX($Y$2:$Y$276,MATCH(MIN(ABS($Y$2:$Y$276-D96)),ABS($Y$2:$Y$276-D96),0)) -> 199 | F96: 296.4 | G96: =INDEX($Y$2:$Y$276,MATCH(MIN(ABS($Y$2:$Y$276-F96)),ABS($Y$2:$Y$276-F96),0)) -> 293 | H96: 5426.59 | I96: 5297.568866 | J96: E | K96: 1 | L96: 22.87449393 | M96: 82.02652967 | N96: 328.1061187 | O96: 0.2884899188 | P96: 23.13993174 | Q96: 82.68710834 | R96: 330.7484334 | S96: 0.2861852029 | T96: 404.9097222 | U96: 319.4513889 | Y96: 499
A97: 13.5 | B97: 162 | C97: =INDEX($Y$2:$Y$276,MATCH(MIN(ABS($Y$2:$Y$276-B97)),ABS($Y$2:$Y$276-B97),0)) -> 163 | D97: 210.6 | E97: =INDEX($Y$2:$Y$276,MATCH(MIN(ABS($Y$2:$Y$276-D97)),ABS($Y$2:$Y$276-D97),0)) -> 211 | F97: 307.8 | G97: =INDEX($Y$2:$Y$276,MATCH(MIN(ABS($Y$2:$Y$276-F97)),ABS($Y$2:$Y$276-F97),0)) -> 307 | H97: 6077.12625 | I97: 6110.33044 | J97: E | K97: 1 | L97: 22.02729045 | M97: 78.98851005 | N97: 315.9540402 | O97: 0.2995856849 | P97: 22.08469055 | Q97: 78.84517276 | R97: 315.380691 | S97: 0.3001303194 | T97: 449.8402778 | U97: 347.5069444 | Y97: 503
A98: 14 | B98: 168 | C98: =INDEX($Y$2:$Y$276,MATCH(MIN(ABS($Y$2:$Y$276-B98)),ABS($Y$2:$Y$276-B98),0)) -> 167 | D98: 218.4 | E98: =INDEX($Y$2:$Y$276,MATCH(MIN(ABS($Y$2:$Y$276-D98)),ABS($Y$2:$Y$276-D98),0)) -> 223 | F98: 319.2 | G98: =INDEX($Y$2:$Y$276,MATCH(MIN(ABS($Y$2:$Y$276-F98)),ABS($Y$2:$Y$276-F98),0)) -> 317 | H98: 6777.68 | I98: 6831.826968 | J98: E | K98: 1 | L98: 21.2406015 | M98: 76.16749184 | N98: 304.6699673 | O98: 0.310681451 | P98: 21.38801262 | Q98: 75.96573113 | R98: 303.8629245 | S98: 0.3115066034 | T98: 490.9097222 | U98: 367.6319444 | Y98: 509
A99: 14.5 | B99: 174 | C99: =INDEX($Y$2:$Y$276,MATCH(MIN(ABS($Y$2:$Y$276-B99)),ABS($Y$2:$Y$276-B99),0)) -> 173 | D99: 226.2 | E99: =INDEX($Y$2:$Y$276,MATCH(MIN(ABS($Y$2:$Y$276-D99)),ABS($Y$2:$Y$276-D99),0)) -> 227 | F99: 330.6 | G99: =INDEX($Y$2:$Y$276,MATCH(MIN(ABS($Y$2:$Y$276-F99)),ABS($Y$2:$Y$276-F99),0)) -> 331 | H99: 7530.10375 | I99: 7522.396412 | J99: E | K99: 1 | L99: 20.50816697 | M99: 73.5410266 | N99: 294.1641064 | O99: 0.3217772171 | P99: 20.48338369 | Q99: 73.56613438 | R99: 294.2645375 | S99: 0.321667396 | T99: 521.7847222 | U99: 397.6597222 | Y99: 521
A100: HEIGHT ft | B100: HEIGHT " | C100: PRIME height | D100: WIDTH " | E100: PRIME width | F100: DEPTH " | G100: PRIME depth | H100: VOLUME | I100: PRIME volume | J100: TABLE | K100: USEABLE 1=Yes 0=NO | L100: F¹ | M100: F² | N100: F³ | O100: minimum RT60 | P100: F¹ | Q100: F² | R100: F³ | S100: minimum RT60 | T100: Square Feet | U100: Square Feet | Y100: 523
A101: =B101/12 -> 8 | B101: =B86 -> 96 | C101: =INDEX($Y$2:$Y$276,MATCH(MIN(ABS($Y$2:$Y$276-B101)),ABS($Y$2:$Y$276-B101),0)) -> 97 | D101: =B101*$D$10 -> 144 | E101: =INDEX($Y$2:$Y$276,MATCH(MIN(ABS($Y$2:$Y$276-D101)),ABS($Y$2:$Y$276-D101),0)) -> 139 | F101: =B101*$E$10 -> 201.6 | G101: =INDEX($Y$2:$Y$276,MATCH(MIN(ABS($Y$2:$Y$276-F101)),ABS($Y$2:$Y$276-F101),0)) -> 199 | H101: =(B101/12)*(D101/12)*(F101/12) -> 1612.8 | I101: =(C101/12)*(E101/12)*(G101/12) -> 1552.729745 | J101: F | K101: =IF(H101>$L$21,$N$22,$O$22) -> 1 | L101: =565/(F101/12) -> 33.63095238 | M101: =(SQRT(O101/H101)*11250) -> 122.9145144 | N101: 491.6580578 | O101: 0.1925226405 | P101: =565/(G101/12) -> 34.07035176 | Q101: =(SQRT(S101/I101)*11250) -> 124.4795617 | R101: =4*Q101 -> 497.9182469 | S101: =0.25*(((0.028316846592*I101)/100)^(1/3)) -> 0.1901021064 | T101: =(E101/12)*(G101/12) -> 192.0902778 | U101: =(C101/12)*(G101/12) -> 134.0486111 | Y101: 541
A102: 8.5 | B102: 102 | C102: =INDEX($Y$2:$Y$276,MATCH(MIN(ABS($Y$2:$Y$276-B102)),ABS($Y$2:$Y$276-B102),0)) -> 101 | D102: 153 | E102: =INDEX($Y$2:$Y$276,MATCH(MIN(ABS($Y$2:$Y$276-D102)),ABS($Y$2:$Y$276-D102),0)) -> 151 | F102: 214.2 | G102: =INDEX($Y$2:$Y$276,MATCH(MIN(ABS($Y$2:$Y$276-F102)),ABS($Y$2:$Y$276-F102),0)) -> 211 | H102: 1934.49375 | I102: =(C102/12)*(E102/12)*(G102/12) -> 1862.245949 | J102: F | K102: 1 | L102: 31.65266106 | M102: 115.6842489 | N102: 462.7369955 | O102: 0.2045553056 | P102: =565/(G102/12) -> 32.13270142 | Q102: =(SQRT(S102/I102)*11250) -> 117.1613396 | R102: =4*Q102 -> 468.6453584 | S102: =0.25*(((0.028316846592*I102)/100)^(1/3)) -> 0.201976411 | T102: 221.2569444 | U102: 147.9930556 | Y102: 547
A103: 9 | B103: 108 | C103: =INDEX($Y$2:$Y$276,MATCH(MIN(ABS($Y$2:$Y$276-B103)),ABS($Y$2:$Y$276-B103),0)) -> 107 | D103: 162 | E103: =INDEX($Y$2:$Y$276,MATCH(MIN(ABS($Y$2:$Y$276-D103)),ABS($Y$2:$Y$276-D103),0)) -> 163 | F103: 226.8 | G103: =INDEX($Y$2:$Y$276,MATCH(MIN(ABS($Y$2:$Y$276-F103)),ABS($Y$2:$Y$276-F103),0)) -> 227 | H103: 2296.35 | I103: 2291.149884 | J103: F | K103: 1 | L103: 29.89417989 | M103: 109.2573462 | N103: 437.0293847 | O103: 0.2165879706 | P103: 29.86784141 | Q103: 109.3399425 | R103: 437.3597699 | S103: 0.2164243582 | T103: 256.9513889 | U103: 168.6736111 | Y103: 557
A104: 9.5 | B104: 114 | C104: =INDEX($Y$2:$Y$276,MATCH(MIN(ABS($Y$2:$Y$276-B104)),ABS($Y$2:$Y$276-B104),0)) -> 113 | D104: 171 | E104: =INDEX($Y$2:$Y$276,MATCH(MIN(ABS($Y$2:$Y$276-D104)),ABS($Y$2:$Y$276-D104),0)) -> 173 | F104: 239.4 | G104: =INDEX($Y$2:$Y$276,MATCH(MIN(ABS($Y$2:$Y$276-F104)),ABS($Y$2:$Y$276-F104),0)) -> 239 | H104: 2700.73125 | I104: 2703.82581 | J104: F | K104: 1 | L104: 28.32080201 | M104: 103.5069595 | N104: 414.0278381 | O104: 0.2286206356 | P104: 28.36820084 | Q104: 103.4674561 | R104: 413.8698246 | S104: 0.2287079219 | T104: 287.1319444 | U104: 187.5486111 | Y104: 563
A105: 10 | B105: 120 | C105: =INDEX($Y$2:$Y$276,MATCH(MIN(ABS($Y$2:$Y$276-B105)),ABS($Y$2:$Y$276-B105),0)) -> 113 | D105: 180 | E105: =INDEX($Y$2:$Y$276,MATCH(MIN(ABS($Y$2:$Y$276-D105)),ABS($Y$2:$Y$276-D105),0)) -> 179 | F105: 252 | G105: =INDEX($Y$2:$Y$276,MATCH(MIN(ABS($Y$2:$Y$276-F105)),ABS($Y$2:$Y$276-F105),0)) -> 251 | H105: 3150 | I105: 2938.065394 | J105: F | K105: 1 | L105: 26.9047619 | M105: 98.33161155 | N105: 393.3264462 | O105: 0.2406533007 | P105: 27.01195219 | Q105: 100.6412886 | R105: 402.5651545 | S105: 0.2351304043 | T105: 312.0069444 | U105: 196.9652778 | Y105: 569
A106: 10.5 | B106: 126 | C106: =INDEX($Y$2:$Y$276,MATCH(MIN(ABS($Y$2:$Y$276-B106)),ABS($Y$2:$Y$276-B106),0)) -> 127 | D106: 189 | E106: =INDEX($Y$2:$Y$276,MATCH(MIN(ABS($Y$2:$Y$276-D106)),ABS($Y$2:$Y$276-D106),0)) -> 191 | F106: 264.6 | G106: =INDEX($Y$2:$Y$276,MATCH(MIN(ABS($Y$2:$Y$276-F106)),ABS($Y$2:$Y$276-F106),0)) -> 263 | H106: 3646.51875 | I106: 3691.89294 | J106: F | K106: 1 | L106: 25.62358277 | M106: 93.64915386 | N106: 374.5966154 | O106: 0.2526859657 | P106: 25.77946768 | Q106: 93.26391495 | R106: 373.0556598 | S106: 0.2537297184 | T106: 348.8402778 | U106: 231.9513889 | Y106: 571
A107: 11 | B107: 132 | C107: =INDEX($Y$2:$Y$276,MATCH(MIN(ABS($Y$2:$Y$276-B107)),ABS($Y$2:$Y$276-B107),0)) -> 131 | D107: 198 | E107: =INDEX($Y$2:$Y$276,MATCH(MIN(ABS($Y$2:$Y$276-D107)),ABS($Y$2:$Y$276-D107),0)) -> 197 | F107: 277.2 | G107: =INDEX($Y$2:$Y$276,MATCH(MIN(ABS($Y$2:$Y$276-F107)),ABS($Y$2:$Y$276-F107),0)) -> 277 | H107: 4192.65 | I107: 4136.885995 | J107: F | K107: 1 | L107: 24.45887446 | M107: 89.39237414 | N107: 357.5694966 | O107: 0.2647186307 | P107: 24.4765343 | Q107: 89.79224373 | R107: 359.1689749 | S107: 0.2635397658 | T107: 378.9513889 | U107: 251.9930556 | Y107: 577
A108: 11.5 | B108: 138 | C108: =INDEX($Y$2:$Y$276,MATCH(MIN(ABS($Y$2:$Y$276-B108)),ABS($Y$2:$Y$276-B108),0)) -> 137 | D108: 207 | E108: =INDEX($Y$2:$Y$276,MATCH(MIN(ABS($Y$2:$Y$276-D108)),ABS($Y$2:$Y$276-D108),0)) -> 211 | F108: 289.8 | G108: =INDEX($Y$2:$Y$276,MATCH(MIN(ABS($Y$2:$Y$276-F108)),ABS($Y$2:$Y$276-F108),0)) -> 293 | H108: 4790.75625 | I108: 4901.476273 | J108: F | K108: 1 | L108: 23.39544513 | M108: 85.50574918 | N108: 342.0229967 | O108: 0.2767512958 | P108: 23.13993174 | Q108: 84.8570064 | R108: 339.4280256 | S108: 0.2788670952 | T108: 429.3263889 | U108: 278.7569444 | Y108: 587
